Workbook

Sheet Sched 27, Contents Sh 1
C1: ='(WP) Instructions & Input'!B11 -> Exhibit No.: ________ | F1: KY PSC Case No. 2021-00183
C2: ='(WP) Instructions & Input'!B12 -> Witness: L. A. Guilbert | F2: Staff 3-36
C3: ='(WP) Instructions & Input'!B6 -> Schedule 27 | F3: Attachment B
C4: Sheet 1
A6: ='(WP) Instructions & Input'!B2 -> Columbia Gas of Virginia, Inc.
A7: Cash Working Capital
A8: ='(WP) Instructions & Input'!B6 -> Schedule 27
A9: ='(WP) Instructions & Input'!B9 -> Case No. PUR-2018-00131
A12: Table of Contents
A14: Line
A15: No. | B15: Description | C15: Sheet Number
A17: 1 | B17: Cash Working Capital Requirements - Total Company (Per Books) | C17: Sheet 2
A18: =A17+1 -> 2 | B18: Cash Working Capital Requirements - LVTS (Per Books) | C18: Sheet 2a
A19: =A18+1 -> 3 | B19: Cash Working Capital Requirements - Jurisdictional (Per Books) | C19: Sheet 2b
A20: =A19+1 -> 4 | B20: Cash Working Capital Requirements - Jurisdictional (Adjusted) | C20: Refer to Schedule 29, Adjustment 30
A21: =A20+1 -> 5 | B21: Revenue Lag | C21: Sheet 3
A22: =A21+1 -> 6 | B22: Weighted Average Collection Lag | C22: Sheet 3a
A23: 7 | B23: Summary of Accounts Receivable | C23: Sheet 3b
A24: 8 | B24: Billing Lag Calculation | C24: Sheet 3c
A25: 9 | B25: Gas Purchased | C25: Sheet 4
A26: 10 | B26: Gas Purchased - Commodity Costs | C26: Sheet 4a, Pages 1 through 7
A27: 11 | B27: Gas Purchased - Transportation Costs | C27: Sheet 4b, Pages 1 through 3
A28: 12 | B28: Payroll Costs | C28: Sheet 5
A29: 13 | B29: Bi-Weekly Gross Payroll Lead Days | C29: Sheet 5a
A30: 14 | B30: Monthly Gross Payroll Lead Days | C30: Sheet 5b
A31: 15 | B31: Uncollectible Expense | C31: Sheet 6
A32: 16 | B32: Other O & M Costs | C32: Sheet 7
A33: 17 | B33: Company and Paid Payroll Taxes | C33: Sheet 8
A34: 18 | B34: Employer's FICA Withheld Lead Day Calculation | C34: Sheet 8a
A35: 19 | B35: Payroll Taxes - FICA Bi-Weekly | C35: Sheet 8a, Page 1
A36: 20 | B36: Payroll Taxes - FICA Monthly Pay | C36: Sheet 8a, Page 2
A37: 21 | B37: Payroll Taxes - Unemployment Taxes | C37: Sheet 8b
A38: 22 | B38: Property Taxes | C38: Sheet 9, Pages 1 through 4
A39: 23 | B39: Other Taxes | C39: Sheet 10
A40: 24 | B40: Income Taxes | C40: Sheet 11
A41: 25 | B41: Interest on Customer Deposits | C41: Sheet 12
A42: 26 | B42: Interest on Debt | C42: Sheet 13
A43: =A42+1 -> 27 | B43: Customer Utility Sales Tax | C43: Sheet 14
A44: 28 | B44: State and Local Consumption Tax | C44: Sheet 15
A45: 29 | B45: Corporate Services | C45: Sheet 16

Sheet Sched 27 cwc (Total Co) sh 2
I1: ='(WP) Instructions & Input'!B11 -> Exhibit No.: ________ | R1: KY PSC Case No. 2021-00183
I2: ='(WP) Instructions & Input'!B12 -> Witness: L. A. Guilbert | R2: Staff 3-36
I3: ='(WP) Instructions & Input'!B6 -> Schedule 27 | R3: Attachment B
I4: Sheet 2
A5: ='(WP) Instructions & Input'!B2 -> Columbia Gas of Virginia, Inc.
A6: Lead / Lag Cash Working Capital Calculation - Total Company Per Books (GAAP)
A7: For The Year Ended December 31, 2017
A8: ='(WP) Instructions & Input'!B9 -> Case No. PUR-2018-00131
G10: Rev | H10: Expense | J10: Working
A11: Line | E11: Per Books | F11: Daily | G11: Lag | H11: Lead | I11: Net Lag | J11: Capital
A12: No. | C12: Cost Category | D12: Reference | E12: Expense | F12: Amount | G12: Days | H12: Days | I12: Days | J12: Req.
E13: (1) | F13: (2) | G13: (3) | H13: (4) | I13: (5=3-4) | J13: (6=2x5)
E14: $ | F14: $ | I14: $ | J14: $
A15: 1 | B15: OPERATING EXPENSES:
A16: =A15+1 -> 2 | C16: Purchased Gas Expense | D16: 80****** | E16: =(133600676-0)-E17-E18-E19 -> 128593522 | F16: =ROUND(E16/365,0) -> 352311 | G16: ='Sh 3 - revlag'!C20 -> 31.26 | H16: ='Sh 4 - gaspurch'!E21 -> 37.4 | I16: =G16-H16 -> -6.14 | J16: =ROUND(I16*F16,0) -> -2163190
A17: 3 | C17: Deferred Gas Expense | D17: 80510000 | E17: 5490146 | F17: 15041 | G17: =$G$16 -> 31.26 | H17: =G17 -> 31.26 | I17: 0 | J17: 0
A18: 4 | C18: Storage Gas Delivered | D18: 80820000 | E18: -26725721 | F18: -73221 | G18: =$G$16 -> 31.26 | H18: 0 | I18: 31.26 | J18: -2288888
A19: 5 | C19: Storage Gas Withdrawn | D19: 80810000 | E19: 26242729 | F19: 71898 | G19: 31.26 | H19: 0 | I19: 31.26 | J19: 2247531
A20: 6 | C20: Prepaid Insurance Expense | D20: 92500000 | E20: =1940330-E28 -> 1754794 | F20: 4808 | G20: 31.26 | H20: 0 | I20: 31.26 | J20: 150298
A21: 7 | C21: Employee Payroll | D21: Various O&M | E21: =15491496+34934+183400+1262657 -> 16972487 | F21: 46500 | G21: 31.26 | H21: ='(WP) Sh 5 - payroll'!E23 -> 8.32 | I21: 22.94 | J21: 1066710
A22: 8 | C22: DIMP Expense | D22: DIMP | E22: =7126134+(-759834) -> 6366300 | F22: 17442 | G22: 31.26 | H22: 0 | I22: 31.26 | J22: 545237
A23: 9 | C23: Employee Benefits Expense | D23: 92600000 | E23: =8442249-E25 -> 7436921.96 | F23: 20375 | G23: 31.26 | H23: 0 | I23: 31.26 | J23: 636923
A24: 10 | C24: Incentive/Stock Compensation | D24: 920-9004, 92002000-9114,9115 | E24: =1610089+183400 -> 1793489 | F24: 4914 | G24: 31.26 | H24: 0 | I24: 31.26 | J24: 153612
A25: 11 | C25: Pension, OPEB & RIP Expense | D25: 92600000 | E25: 1005327.04 | F25: 2754 | G25: 31.26 | H25: 0 | I25: 31.26 | J25: 86090
A26: 12 | C26: Vacation | D26: Various O&M | E26: 1242489 | F26: 3404 | G26: 31.26 | H26: 0 | I26: 31.26 | J26: 106409
A27: 13 | C27: Uncollectible Expense | D27: 90400000 | E27: 1049856 | F27: 2876 | G27: 31.26 | H27: ='Sh 6 - uncoll'!C20 -> 137.85 | I27: -106.59 | J27: -306553 | L27: Check
A28: 14 | C28: Injuries and Damage Expense | D28: 92500000-4017 | E28: 185536 | F28: 508 | G28: 31.26 | H28: 0 | I28: 31.26 | J28: 15880 | O28: GAAP View / | P28: Sould be Zero
A29: 15 | C29: Corporate Services | D29: O&M CE 7001 | E29: =40265252 -> 40265252 | F29: 110316 | G29: 31.26 | H29: ='Sh 16 - NCSC'!F30 -> 31.5 | I29: -0.24 | J29: -26476 | O29: GAAP Tree | P29: Difference
A30: 16 | C30: Regulatory Asset Amortization: | O30: 133600676
A31: 17 | C31: Environmental Remediation | D31: 92300000-3014, 3021 | E31: 1785320 | F31: 4891 | G31: 31.26 | H31: =G31 -> 31.26 | I31: =G31-H31 -> 0 | J31: =ROUND(I31*F31,0) -> 0 | O31: 0 | Q31: Less; Acct 813
A32: 18 | C32: DIMP | D32: 880000, CE 3300 | E32: 2069749.51 | F32: 5671 | G32: 31.26 | H32: =G32 -> 31.26 | I32: =G32-H32 -> 0 | J32: =ROUND(I32*F32,0) -> 0 | L32: (1) | M32: =SUM(E16:E19) -> 133600676 | N32: Cost of Sales | O32: =O30-O31 -> 133600676 | P32: =M32-O32 -> 0
A33: 19 | C33: Metered Propane Conversion | E33: 0 | F33: 0 | G33: 31.26 | H33: 31.26 | I33: =G33-H33 -> 0 | J33: =ROUND(I33*F33,0) -> 0
A34: 20 | C34: Other | D34: Sch 40b, pg 1 | E34: =(100217187+248205)-SUM(E20:E33) -> 18537870.49 | F34: 50789 | G34: 31.26 | H34: ='Sh 7 - Other O&M'!H24 -> 33.74 | I34: =G34-H34 -> -2.48 | J34: =ROUND(I34*F34,0) -> -125957 | O34: =O31 -> 0 | Q34: Plus: Acct 813
L35: (2) | M35: =SUM(E20:E35) -> 100465392 | N35: O&M (non-gas) | O35: =100217187+248205 -> 100465392
A36: =A34+1 -> 21 | C36: Depreciation and Amortization | D36: Sch 40b, pg 1 | E36: 31677565 | F36: 86788 | G36: 31.26 | H36: 0 | I36: =G36-H36 -> 31.26 | J36: =ROUND(I36*F36,0) -> 2712993 | L36: (3) | M36: =E36 -> 31677565 | N36: Depreciation | O36: 31677565
L37: (4) | M37: =SUM(E39:E41) -> 8731675 | N37: Other Taxes | O37: 8731675
A38: =A36+1 -> 22 | B38: TAXES OTHER THAN INCOME: | L38: (5) | M38: =SUM(M35:M37) -> 140874632 | N38: Total Operating Expense | O38: =SUM(O34:O37) -> 140874632 | P38: =O38-M38 -> 0
A39: =A38+1 -> 23 | C39: Payroll Tax Expense | D39: Sch 40b, pg 5 | E39: =(123327+1061976+253003+19178+6423+0)+1 -> 1463908 | F39: =ROUND(E39/365,0) -> 4011 | G39: =$G$16 -> 31.26 | H39: ='Sh 8 - Payroll Taxes'!E23 -> 8.61 | I39: =G39-H39 -> 22.65 | J39: =ROUND(I39*F39,0) -> 90849
A40: =A39+1 -> 24 | C40: Property Tax Expense | D40: Sch 40b, pg 5 | E40: 7258846 | F40: =ROUND(E40/365,0) -> 19887 | G40: 31.26 | H40: ='Sh 9 - Property Taxes'!F143 -> 91.88 | I40: =G40-H40 -> -60.62 | J40: =ROUND(I40*F40,0) -> -1205550
A41: 25 | C41: Other Taxes | D41: Sch 40b, pg 5 | E41: =175+8019+818+(-91) -> 8921 | F41: =ROUND(E41/365,0) -> 24 | G41: 31.26 | H41: ='Sh 10 - Other Taxes'!F47 -> 35.2 | I41: =G41-H41 -> -3.94 | J41: =ROUND(I41*F41,0) -> -95
L42: (6) = (1) + (5) | M42: =M32+M38 -> 274475308 | N42: Total Cost of Sales and Total Operating Expense | O42: =O32+O38 -> 274475308 | P42: =O42-M42 -> 0
A43: =A41+1 -> 26 | B43: INCOME TAXES:
A44: 27 | C44: Current FIT & SIT | D44: Sch 40b, pg 7 | E44: =1510313-E45 -> 1345687 | F44: =ROUND(E44/365,0) -> 3687 | G44: =$G$16 -> 31.26 | H44: ='Sh 11 - FIT'!G23 -> 37.5 | I44: =G44-H44 -> -6.24 | J44: =ROUND(I44*F44,0) -> -23007
A45: 28 | C45: Non-Utility Other Deductions | D45: Tax W/S, Adj 25 | E45: 164626 | F45: 451 | G45: 31.26 | H45: =H44 -> 37.5 | I45: -6.24 | J45: -2814 | L45: (7) | M45: =SUM(E39:E41) -> 8731675 | N45: Total Taxes Other than Income | O45: =O37 -> 8731675 | P45: =O45-M45 -> 0
A46: 29 | C46: Deferred FIT Included in Rate Base | D46: Tax W/S, Adj 25 | E46: =18110159-(E44+E45+E47+E48+E49) -> 15863508 | F46: 43462 | G46: 31.26 | H46: 0 | I46: 31.26 | J46: 1358622
A47: 30 | C47: Deferred ITC | D47: Tax W/S, Adj 25 | E47: -87386 | F47: -239 | G47: 31.26 | H47: =G47 -> 31.26 | I47: 0 | J47: 0
A48: 31 | C48: Deferred FIT Excluded from Rate Base | D48: Tax W/S, Adj 25 | E48: =ROUND(0.35*(-375434+183400+1647735+166715+151463+927008+(-625)+(-1062174)+237032+88421+1028142+(-3000)+488333+(-73307)+(-1933609)+22574+1297771+(-206108)),0) -> 904518 | F48: 2478 | G48: 31.26 | H48: =G48 -> 31.26 | I48: 0 | J48: 0 | L48: (8) | M48: =SUM(E44:E49) -> 18110159 | N48: Total Income Tax Expense | O48: =15313765+2796394 -> 18110159 | P48: =O48-M48 -> 0
A49: 32 | C49: Non-Utility Deferred Income Tax | D49: Tax W/S, Adj 25 | E49: =((-70896)+(-12936)+164626)*-1 -> -80794 | F49: -221 | G49: 31.26 | H49: =G49 -> 31.26 | I49: 0 | J49: 0
A51: =A49+1 -> 33 | B51: OTHER EXPENSES:
A52: 34 | C52: AFUDC | D52: Sch 40b, pg 1 | E52: -29999 | F52: =ROUND(E52/365,0) -> -82 | G52: =$G$16 -> 31.26 | H52: =G52 -> 31.26 | I52: =G52-H52 -> 0 | J52: =ROUND(I52*F52,0) -> 0
A53: 35 | C53: Charitable Donations | D53: Sch 40b, pg 1 | E53: 237032 | F53: 649 | G53: 31.26 | H53: =G53 -> 31.26 | I53: 0 | J53: 0
A54: 36 | C54: Interest on Customer Deposits | D54: Sch 40b, pg 1 | E54: 57760 | F54: 158 | G54: 31.26 | H54: ='Sh 12 - int.-custdep'!C14 -> 182.5 | I54: -151.24 | J54: -23896
A55: 37 | C55: Interest on Supplier Refunds | D55: Sch 40b, pg 1 | E55: 1322 | F55: 4 | G55: 31.26 | H55: =+H54 -> 182.5 | I55: -151.24 | J55: -605
A56: 38 | C56: Other Expense/(Income) | D56: Sch 40b, pg 1 | E56: -852420 | F56: -2335 | G56: 31.26 | H56: =G56 -> 31.26 | I56: 0 | J56: 0 | L56: (9) | M56: =E61-M42 -> 67505303.5 | N56: Operating Income (Loss) | O56: 67505304 | P56: =O56-M56 -> 0.5000001192
A57: 39 | C57: Interest Expense on Debt | D57: Sch 40b, pg 1 | E57: 17882527.5 | F57: 48993 | G57: 31.26 | H57: ='Sh 13 - int'!D23 -> 89.61 | I57: -58.35 | J57: -2858742
A58: 40 | C58: JDC Expense | E58: 0 | F58: =ROUND(E58/365,0) -> 0 | G58: 31.26 | H58: =G58 -> 31.26 | I58: 0 | J58: 0
A59: 41 | C59: Income Available for Common Equity | D59: Sch 40b, pg 1 | E59: 30334084 | F59: 83107 | G59: 31.26 | H59: =G59 -> 31.26 | I59: 0 | J59: 0 | L59: (10) | M59: =-E52+E53+E54+E55-E56+E57 -> 19061060.5 | N59: Other Expenses / (Income) | O59: =(-19061060)*-1 -> 19061060 | P59: =O59-M59 -> -0.4999998994
L60: (11) = (9) - (10) | M60: =M56-M59 -> 48444243 | O60: =O56-O59 -> 48444244
A61: =A59+1 -> 42 | C61: Subtotal | E61: =SUM(E16:E49)-E52+SUM(E53+E54+E55)-E56+SUM(E57+E58+E59) -> 341980611.5 | F61: 936933 | J61: =SUM(J16:J59) -> 145381 | L61: (12) | M61: =SUM(E44:E49) -> 18110159 | O61: =O48 -> 18110159
A63: =A61+1 -> 43 | C63: Customer Utility Taxes | D63: Sheet 15 | E63: ='(WP) Customer Utility Taxes'!O101 -> 10497865.77 | F63: 28761 | G63: =G59 -> 31.26 | H63: ='Sh 14 - Utility Tax'!D34 -> 25.66 | I63: =G63-H63 -> 5.6 | J63: =ROUND(I63*F63,0) -> 161062 | L63: (13) = (11) - (12) | M63: =M60-M61 -> 30334084 | N63: Net Income (Income Available for Common Equity) | O63: 30334085 | P63: =O63-M63 -> 1.000000015
A64: 44 | C64: State & Local Consumption Taxes | D64: Sheet 16 | E64: ='Sh 15 - Consumtion Tax'!G55 -> 3301596.12 | F64: 9045 | G64: =G63 -> 31.26 | H64: ='Sh 15 - Consumtion Tax'!F55 -> 31.35 | I64: =G64-H64 -> -0.09 | J64: =ROUND(I64*F64,0) -> -814
A65: 45 | C65: Plus: Balance Sheet Analysis | D65: Sch 28 | J65: ='Sched 28(BS) Juris sh 3 of 4'!F66 -> 5193506.919 | M65: =E61 -> 341980611.5 | N65: Total Gross Revenue | O65: 341980612 | P65: =O65-M65 -> 0.5000001192
A66: 46 | I66: TOTAL CASH WORKING CAPITAL REQUIREMENT/(SOURCE) | J66: =SUM(J61:J65) -> 5499135.919
C68: Note 2: 0 Net Lead days assigned in compliance with the Staff in Case No. PUE950033
C69: Note 3: Per Case No. PUE950033, 0 Cash Working Capital used due to a timing difference between deferred gas expense
C70: and the average deferred gas balance reflected in rate base.
C71: Note 4: 0 Net Lead days assigned in compliance with normalization requirements of the IRS
C72: Note 5: 0 Net Lead days assigned in compliance with Staff Report

Sheet Sched 27 cwc (LVTS) sh 2a
J1: ='(WP) Instructions & Input'!B11 -> Exhibit No.: ________ | P1: KY PSC Case No. 2021-00183
J2: ='(WP) Instructions & Input'!B12 -> Witness: L. A. Guilbert | P2: Staff 3-36
J3: ='Sched 27 cwc (Total Co) sh 2'!I3 -> Schedule 27 | P3: Attachment B
J4: Sheet 2a
A5: ='(WP) Instructions & Input'!B2 -> Columbia Gas of Virginia, Inc.
A6: Lead / Lag Cash Working Capital Calculation - LVTS Per Books (GAAP)
A7: ='Sched 27 cwc (Total Co) sh 2'!A7:J7 -> For The Year Ended December 31, 2017
A8: ='(WP) Instructions & Input'!B9 -> Case No. PUR-2018-00131
D10: Alloc | E10: Alloc | F10: LVTS | G10: LVTS | H10: Rev | I10: Expense | K10: LVTS
A11: Line | D11: Factor | E11: Factor | F11: Per Books | G11: Daily | H11: Lag | I11: Lead | J11: Net Lag | K11: CWC
A12: No. | C12: Cost Category | D12: Ref | E12: % | F12: Expense | G12: Amount | H12: Days | I12: Days | J12: Days | K12: Requirement
D13: Per | E13: Per | F13: (1) | G13: (2) | H13: (3) | I13: (4) | J13: (5=3-4) | K13: (6=2x5)
F14: $ | G14: $ | J14: $ | K14: $
A15: 1 | B15: OPERATING EXPENSES:
A16: =A15+1 -> 2 | C16: ='Sched 27 cwc (Total Co) sh 2'!C16 -> Purchased Gas Expense | D16: Sch 40b, pg 3 | F16: =0+0-F17-F18-F19 -> 0 | G16: =ROUND((F16)/365,0) -> 0 | H16: ='Sched 27 cwc (Total Co) sh 2'!G16 -> 31.26 | I16: ='Sched 27 cwc (Total Co) sh 2'!H16 -> 37.4 | J16: =H16-I16 -> -6.14 | K16: =ROUND(J16*G16,0) -> 0
A17: 3 | C17: ='Sched 27 cwc (Total Co) sh 2'!C17 -> Deferred Gas Expense | D17: 20 | E17: =LOOKUP(D17,'(WP) LVTS Alloc Factors'!$A$3:$B$24) -> 0 | F17: =E17*'Sched 27 cwc (Total Co) sh 2'!E17 -> 0 | G17: 0 | H17: ='Sched 27 cwc (Total Co) sh 2'!G17 -> 31.26 | I17: ='Sched 27 cwc (Total Co) sh 2'!H17 -> 31.26 | J17: 0 | K17: 0
A18: 4 | C18: ='Sched 27 cwc (Total Co) sh 2'!C18 -> Storage Gas Delivered | D18: 20 | E18: =LOOKUP(D18,'(WP) LVTS Alloc Factors'!$A$3:$B$24) -> 0 | F18: =E18*'Sched 27 cwc (Total Co) sh 2'!E18 -> 0 | G18: 0 | H18: ='Sched 27 cwc (Total Co) sh 2'!G18 -> 31.26 | I18: ='Sched 27 cwc (Total Co) sh 2'!H18 -> 0 | J18: 31.26 | K18: 0
A19: 5 | C19: ='Sched 27 cwc (Total Co) sh 2'!C19 -> Storage Gas Withdrawn | D19: 20 | E19: =LOOKUP(D19,'(WP) LVTS Alloc Factors'!$A$3:$B$24) -> 0 | F19: =E19*'Sched 27 cwc (Total Co) sh 2'!E19 -> 0 | G19: 0 | H19: ='Sched 27 cwc (Total Co) sh 2'!G19 -> 31.26 | I19: ='Sched 27 cwc (Total Co) sh 2'!H19 -> 0 | J19: 31.26 | K19: 0
A20: 6 | C20: ='Sched 27 cwc (Total Co) sh 2'!C20 -> Prepaid Insurance Expense | D20: 22 | E20: =LOOKUP(D20,'(WP) LVTS Alloc Factors'!$A$3:$B$24) -> 0.03864 | F20: =E20*'Sched 27 cwc (Total Co) sh 2'!E20 -> 67805.24016 | G20: 186 | H20: ='Sched 27 cwc (Total Co) sh 2'!G20 -> 31.26 | I20: ='Sched 27 cwc (Total Co) sh 2'!H20 -> 0 | J20: 31.26 | K20: 5814
A21: 7 | C21: ='Sched 27 cwc (Total Co) sh 2'!C21 -> Employee Payroll | D21: 22 | E21: =LOOKUP(D21,'(WP) LVTS Alloc Factors'!$A$3:$B$24) -> 0.03864 | F21: =E21*'Sched 27 cwc (Total Co) sh 2'!E21 -> 655816.8977 | G21: 1797 | H21: ='Sched 27 cwc (Total Co) sh 2'!G21 -> 31.26 | I21: ='Sched 27 cwc (Total Co) sh 2'!H21 -> 8.32 | J21: 22.94 | K21: 41223
A22: 8 | C22: ='Sched 27 cwc (Total Co) sh 2'!C22 -> DIMP Expense | D22: 21 | E22: =LOOKUP(D22,'(WP) LVTS Alloc Factors'!$A$3:$B$24) -> 0.04831 | F22: =E22*'Sched 27 cwc (Total Co) sh 2'!E22 -> 307555.953 | G22: 843 | H22: ='Sched 27 cwc (Total Co) sh 2'!G22 -> 31.26 | I22: ='Sched 27 cwc (Total Co) sh 2'!H22 -> 0 | J22: 31.26 | K22: 26352
A23: 9 | C23: ='Sched 27 cwc (Total Co) sh 2'!C23 -> Employee Benefits Expense | D23: 22 | E23: =LOOKUP(D23,'(WP) LVTS Alloc Factors'!$A$3:$B$24) -> 0.03864 | F23: =E23*'Sched 27 cwc (Total Co) sh 2'!E23 -> 287362.6645 | G23: 787 | H23: ='Sched 27 cwc (Total Co) sh 2'!G23 -> 31.26 | I23: ='Sched 27 cwc (Total Co) sh 2'!H23 -> 0 | J23: 31.26 | K23: 24602
A24: 10 | C24: ='Sched 27 cwc (Total Co) sh 2'!C24 -> Incentive/Stock Compensation | D24: 22 | E24: =LOOKUP(D24,'(WP) LVTS Alloc Factors'!$A$3:$B$24) -> 0.03864 | F24: =E24*'Sched 27 cwc (Total Co) sh 2'!E24 -> 69300.41496 | G24: 190 | H24: ='Sched 27 cwc (Total Co) sh 2'!G24 -> 31.26 | I24: ='Sched 27 cwc (Total Co) sh 2'!H24 -> 0 | J24: 31.26 | K24: 5939
A25: 11 | C25: ='Sched 27 cwc (Total Co) sh 2'!C25 -> Pension, OPEB & RIP Expense | D25: 22 | E25: =LOOKUP(D25,'(WP) LVTS Alloc Factors'!$A$3:$B$24) -> 0.03864 | F25: =E25*'Sched 27 cwc (Total Co) sh 2'!E25 -> 38845.83683 | G25: 106 | H25: ='Sched 27 cwc (Total Co) sh 2'!G25 -> 31.26 | I25: ='Sched 27 cwc (Total Co) sh 2'!H25 -> 0 | J25: 31.26 | K25: 3314
A26: 12 | C26: ='Sched 27 cwc (Total Co) sh 2'!C26 -> Vacation | D26: 22 | E26: =LOOKUP(D26,'(WP) LVTS Alloc Factors'!$A$3:$B$24) -> 0.03864 | F26: =E26*'Sched 27 cwc (Total Co) sh 2'!E26 -> 48009.77496 | G26: 132 | H26: ='Sched 27 cwc (Total Co) sh 2'!G26 -> 31.26 | I26: ='Sched 27 cwc (Total Co) sh 2'!H26 -> 0 | J26: 31.26 | K26: 4126
A27: 13 | C27: ='Sched 27 cwc (Total Co) sh 2'!C27 -> Uncollectible Expense | D27: 2 | E27: =LOOKUP(D27,'(WP) LVTS Alloc Factors'!$A$3:$B$24) -> 6e-05 | F27: =E27*'Sched 27 cwc (Total Co) sh 2'!E27 -> 62.99136 | G27: 0 | H27: ='Sched 27 cwc (Total Co) sh 2'!G27 -> 31.26 | I27: ='Sched 27 cwc (Total Co) sh 2'!H27 -> 137.85 | J27: -106.59 | K27: 0
A28: 14 | C28: ='Sched 27 cwc (Total Co) sh 2'!C28 -> Injuries and Damage Expense | D28: 22 | E28: =LOOKUP(D28,'(WP) LVTS Alloc Factors'!$A$3:$B$24) -> 0.03864 | F28: =E28*'Sched 27 cwc (Total Co) sh 2'!E28 -> 7169.11104 | G28: 20 | H28: ='Sched 27 cwc (Total Co) sh 2'!G28 -> 31.26 | I28: ='Sched 27 cwc (Total Co) sh 2'!H28 -> 0 | J28: 31.26 | K28: 625
A29: 15 | C29: ='Sched 27 cwc (Total Co) sh 2'!C29 -> Corporate Services | D29: 22 | E29: =LOOKUP(D29,'(WP) LVTS Alloc Factors'!$A$3:$B$24) -> 0.03864 | F29: =E29*'Sched 27 cwc (Total Co) sh 2'!E29 -> 1555849.337 | G29: 4263 | H29: ='Sched 27 cwc (Total Co) sh 2'!G29 -> 31.26 | I29: ='Sched 27 cwc (Total Co) sh 2'!H29 -> 31.5 | J29: -0.24 | K29: -1023
A30: 16 | C30: ='Sched 27 cwc (Total Co) sh 2'!C30 -> Regulatory Asset Amortization:
A31: 17 | C31: ='Sched 27 cwc (Total Co) sh 2'!C31 -> Environmental Remediation | D31: 22 | E31: =LOOKUP(D31,'(WP) LVTS Alloc Factors'!$A$3:$B$24) -> 0.03864 | F31: =E31*'Sched 27 cwc (Total Co) sh 2'!E31 -> 68984.7648 | G31: 189 | H31: ='Sched 27 cwc (Total Co) sh 2'!G31 -> 31.26 | I31: ='Sched 27 cwc (Total Co) sh 2'!H31 -> 31.26 | J31: =H31-I31 -> 0 | K31: =ROUND(J31*G31,0) -> 0
A32: 18 | C32: ='Sched 27 cwc (Total Co) sh 2'!C32 -> DIMP | D32: 21 | E32: =LOOKUP(D32,'(WP) LVTS Alloc Factors'!$A$3:$B$24) -> 0.04831 | F32: =E32*'Sched 27 cwc (Total Co) sh 2'!E32 -> 99989.59883 | G32: 274 | H32: ='Sched 27 cwc (Total Co) sh 2'!G32 -> 31.26 | I32: ='Sched 27 cwc (Total Co) sh 2'!H32 -> 31.26 | J32: =H32-I32 -> 0 | K32: =ROUND(J32*G32,0) -> 0
A33: 19 | C33: ='Sched 27 cwc (Total Co) sh 2'!C33 -> Metered Propane Conversion | E33: 0 | F33: =E33*'Sched 27 cwc (Total Co) sh 2'!E33 -> 0 | G33: 0 | H33: ='Sched 27 cwc (Total Co) sh 2'!G33 -> 31.26 | I33: ='Sched 27 cwc (Total Co) sh 2'!H33 -> 31.26 | J33: =H33-I33 -> 0 | K33: =ROUND(J33*G33,0) -> 0
A34: 20 | C34: ='Sched 27 cwc (Total Co) sh 2'!C34 -> Other | D34: 22 | E34: =LOOKUP(D34,'(WP) LVTS Alloc Factors'!$A$3:$B$24) -> 0.03864 | F34: 608922 | G34: 1668 | H34: ='Sched 27 cwc (Total Co) sh 2'!G34 -> 31.26 | I34: ='Sched 27 cwc (Total Co) sh 2'!H34 -> 33.74 | J34: =H34-I34 -> -2.48 | K34: =ROUND(J34*G34,0) -> -4137
A36: =A34+1 -> 21 | C36: ='Sched 27 cwc (Total Co) sh 2'!C36 -> Depreciation and Amortization | D36: Sch 40b, pg 6 | F36: 1726280 | G36: 4730 | H36: ='Sched 27 cwc (Total Co) sh 2'!G36 -> 31.26 | I36: ='Sched 27 cwc (Total Co) sh 2'!H36 -> 0 | J36: =H36-I36 -> 31.26 | K36: =ROUND(J36*G36,0) -> 147860
A38: =A36+1 -> 22 | B38: TAXES OTHER THAN INCOME
A39: 23 | C39: ='Sched 27 cwc (Total Co) sh 2'!C39 -> Payroll Tax Expense | D39: 22 | E39: =LOOKUP(D39,'(WP) LVTS Alloc Factors'!$A$3:$B$24) -> 0.03864 | F39: =('Sched 27 cwc (Total Co) sh 2'!E39*E39) -> 56565.40512 | G39: =ROUND((F39)/365,0) -> 155 | H39: ='Sched 27 cwc (Total Co) sh 2'!G39 -> 31.26 | I39: ='Sched 27 cwc (Total Co) sh 2'!H39 -> 8.61 | J39: =H39-I39 -> 22.65 | K39: =ROUND(J39*G39,0) -> 3511
A40: 24 | C40: ='Sched 27 cwc (Total Co) sh 2'!C40 -> Property Tax Expense | D40: 16 | E40: =LOOKUP(D40,'(WP) LVTS Alloc Factors'!$A$3:$B$24) -> 0.07225 | F40: =('Sched 27 cwc (Total Co) sh 2'!E40*E40) -> 524451.6235 | G40: =ROUND((F40)/365,0) -> 1437 | H40: ='Sched 27 cwc (Total Co) sh 2'!G40 -> 31.26 | I40: ='Sched 27 cwc (Total Co) sh 2'!H40 -> 91.88 | J40: =H40-I40 -> -60.62 | K40: =ROUND(J40*G40,0) -> -87111
A41: 25 | C41: ='Sched 27 cwc (Total Co) sh 2'!C41 -> Other Taxes | D41: 19 | E41: =LOOKUP(D41,'(WP) LVTS Alloc Factors'!$A$3:$B$24) -> 0.05063 | F41: 350 | G41: =ROUND((F41)/365,0) -> 1 | H41: ='Sched 27 cwc (Total Co) sh 2'!G41 -> 31.26 | I41: ='Sched 27 cwc (Total Co) sh 2'!H41 -> 35.2 | J41: =H41-I41 -> -3.94 | K41: =ROUND(J41*G41,0) -> -4
A43: =A41+1 -> 26 | B43: INCOME TAXES:
A44: 27 | C44: ='Sched 27 cwc (Total Co) sh 2'!C44 -> Current FIT & SIT | E44: FIT W/S | F44: 2389231 | G44: =ROUND((F44)/365,0) -> 6546 | H44: =H41 -> 31.26 | I44: ='Sched 27 cwc (Total Co) sh 2'!H44 -> 37.5 | J44: =H44-I44 -> -6.24 | K44: =ROUND(J44*G44,0) -> -40847
A45: 28 | C45: ='Sched 27 cwc (Total Co) sh 2'!C46 -> Deferred FIT Included in Rate Base | D45: 17 | E45: =LOOKUP(D45,'(WP) LVTS Alloc Factors'!$A$3:$B$24) -> 0.07479 | F45: =('Sched 27 cwc (Total Co) sh 2'!E46*E45) -> 1186431.763 | G45: =ROUND((F45)/365,0) -> 3250 | H45: =H44 -> 31.26 | I45: ='Sched 27 cwc (Total Co) sh 2'!H46 -> 0 | J45: =H45-I45 -> 31.26 | K45: =ROUND(J45*G45,0) -> 101595
A46: 29 | C46: ='Sched 27 cwc (Total Co) sh 2'!C47 -> Deferred ITC | D46: 17 | E46: =LOOKUP(D46,'(WP) LVTS Alloc Factors'!$A$3:$B$24) -> 0.07479 | F46: =('Sched 27 cwc (Total Co) sh 2'!E47*E46) -> -6535.59894 | G46: =ROUND((F46)/365,0) -> -18 | H46: =H45 -> 31.26 | I46: ='Sched 27 cwc (Total Co) sh 2'!H47 -> 31.26 | J46: =H46-I46 -> 0 | K46: =ROUND(J46*G46,0) -> 0
A47: 30 | C47: ='Sched 27 cwc (Total Co) sh 2'!C48 -> Deferred FIT Excluded from Rate Base | D47: 17 | E47: =LOOKUP(D47,'(WP) LVTS Alloc Factors'!$A$3:$B$24) -> 0.07479 | F47: =('Sched 27 cwc (Total Co) sh 2'!E48*E47) -> 67648.90122 | G47: =ROUND((F47)/365,0) -> 185 | H47: =H46 -> 31.26 | I47: ='Sched 27 cwc (Total Co) sh 2'!H48 -> 31.26 | J47: =H47-I47 -> 0 | K47: =ROUND(J47*G47,0) -> 0
A49: =A47+1 -> 31 | B49: OTHER EXPENSES:
A50: 32 | C50: ='Sched 27 cwc (Total Co) sh 2'!C52 -> AFUDC | D50: 17 | E50: =LOOKUP(D50,'(WP) LVTS Alloc Factors'!$A$3:$B$24) -> 0.07479 | F50: =('Sched 27 cwc (Total Co) sh 2'!E52*E50) -> -2243.62521 | G50: =ROUND((F50)/365,0) -> -6 | H50: ='Sched 27 cwc (Total Co) sh 2'!G52 -> 31.26 | I50: ='Sched 27 cwc (Total Co) sh 2'!H52 -> 31.26 | J50: =H50-I50 -> 0 | K50: =ROUND(J50*G50,0) -> 0
A51: 33 | C51: ='Sched 27 cwc (Total Co) sh 2'!C53 -> Charitable Donations | D51: 22 | E51: =LOOKUP(D51,'(WP) LVTS Alloc Factors'!$A$3:$B$24) -> 0.03864 | F51: =('Sched 27 cwc (Total Co) sh 2'!E53*E51) -> 9158.91648 | G51: 25 | H51: =H50 -> 31.26 | I51: ='Sched 27 cwc (Total Co) sh 2'!H53 -> 31.26 | J51: 0 | K51: 0
A52: 34 | C52: ='Sched 27 cwc (Total Co) sh 2'!C54 -> Interest on Customer Deposits | D52: 18 | E52: =LOOKUP(D52,'(WP) LVTS Alloc Factors'!$A$3:$B$24) -> 0 | F52: =('Sched 27 cwc (Total Co) sh 2'!E54*E52) -> 0 | G52: 0 | H52: =H51 -> 31.26 | I52: ='Sched 27 cwc (Total Co) sh 2'!H54 -> 182.5 | J52: -151.24 | K52: 0
A53: 35 | C53: ='Sched 27 cwc (Total Co) sh 2'!C55 -> Interest on Supplier Refunds | D53: 18 | E53: =LOOKUP(D53,'(WP) LVTS Alloc Factors'!$A$3:$B$24) -> 0 | F53: =('Sched 27 cwc (Total Co) sh 2'!E55*E53) -> 0 | G53: 0 | H53: =H52 -> 31.26 | I53: ='Sched 27 cwc (Total Co) sh 2'!H55 -> 182.5 | J53: -151.24 | K53: 0
A54: 36 | C54: ='Sched 27 cwc (Total Co) sh 2'!C56 -> Other Expense/(Income) | F54: 0 | G54: 0 | H54: =H53 -> 31.26 | I54: ='Sched 27 cwc (Total Co) sh 2'!H56 -> 31.26 | J54: 0 | K54: 0
A55: 37 | C55: ='Sched 27 cwc (Total Co) sh 2'!C57 -> Interest Expense on Debt | D55: Sch 40b; p. 1 | F55: 1360269 | G55: 3727 | H55: =H54 -> 31.26 | I55: ='Sched 27 cwc (Total Co) sh 2'!H57 -> 89.61 | J55: -58.35 | K55: -217470
A56: 38 | C56: ='Sched 27 cwc (Total Co) sh 2'!C58 -> JDC Expense | D56: Sch 40b; p. 1 | F56: 0 | G56: 0 | H56: =H55 -> 31.26 | I56: ='Sched 27 cwc (Total Co) sh 2'!H58 -> 31.26 | J56: 0 | K56: 0
A57: 39 | C57: ='Sched 27 cwc (Total Co) sh 2'!C59 -> Income Available for Common Equity | D57: Sch 40b; p. 1 | F57: 5900832.71 | G57: 16167 | H57: 31.26 | I57: ='Sched 27 cwc (Total Co) sh 2'!H59 -> 31.26 | J57: 0 | K57: 0
A59: =A57+1 -> 40 | C59: Subtotal | F59: =SUM(F16:F47)-F50+SUM(F51+F52+F53)-F54+SUM(F55+F56+F57) -> 17032601.93 | K59: =SUM(K16:K58) -> 14369
A61: =A59+1 -> 41 | C61: ='Sched 27 cwc (Total Co) sh 2'!C63 -> Customer Utility Taxes | D61: 2 | E61: =LOOKUP(D61,'(WP) LVTS Alloc Factors'!$A$3:$B$24) -> 6e-05 | F61: =('Sched 27 cwc (Total Co) sh 2'!E63*E61) -> 629.8719462 | G61: =ROUND((F61)/365,0) -> 2 | H61: =H57 -> 31.26 | I61: ='Sched 27 cwc (Total Co) sh 2'!H63 -> 25.66 | J61: =H61-I61 -> 5.6 | K61: =ROUND(J61*G61,0) -> 11
A62: 42 | C62: ='Sched 27 cwc (Total Co) sh 2'!C64 -> State & Local Consumption Taxes | D62: 2 | E62: =LOOKUP(D62,'(WP) LVTS Alloc Factors'!$A$3:$B$24) -> 6e-05 | F62: =('Sched 27 cwc (Total Co) sh 2'!E64*E62) -> 198.0957672 | G62: =ROUND((F62)/365,0) -> 1 | H62: =H61 -> 31.26 | I62: ='Sched 27 cwc (Total Co) sh 2'!H64 -> 31.35 | J62: =H62-I62 -> -0.09 | K62: =ROUND(J62*G62,0) -> 0
A63: 43 | C63: ='Sched 27 cwc (Total Co) sh 2'!C65 -> Plus: Balance Sheet Analysis | K63: ='Sched 28(BS) LVTS sh 2 of 4'!H66 -> 522779
A64: 44 | J64: TOTAL CASH WORKING CAPITAL REQUIREMENT/(SOURCE) | K64: =SUM(K59:K63) -> 537159

Sheet Sched 27 cwc (Juris) sh 2b
J1: ='(WP) Instructions & Input'!B11 -> Exhibit No.: ________ | O1: KY PSC Case No. 2021-00183
J2: ='(WP) Instructions & Input'!B12 -> Witness: L. A. Guilbert | O2: Staff 3-36
J3: ='Sched 27 cwc (Total Co) sh 2'!I3 -> Schedule 27 | O3: Attachment B
J4: Sheet 2b
A5: ='(WP) Instructions & Input'!B2 -> Columbia Gas of Virginia, Inc.
A6: Lead / Lag Cash Working Capital Calculation - Jurisdictional Per Books (GAAP)
A7: ='Sched 27 cwc (Total Co) sh 2'!A7:J7 -> For The Year Ended December 31, 2017
A8: ='(WP) Instructions & Input'!B9 -> Case No. PUR-2018-00131
D10: Alloc | E10: Alloc | F10: Jurisdictional | G10: Juris. | H10: Rev | I10: Expense | K10: Jurisdictional
A11: Line | D11: Factor | E11: Factor | F11: Per Books | G11: Daily | H11: Lag | I11: Lead | J11: Net Lag | K11: CWC
A12: No. | C12: Cost Category | D12: Ref | E12: % | F12: Expense | G12: Amount | H12: Days | I12: Days | J12: Days | K12: Requirement
D13: Per | E13: Per | F13: (1) | G13: (2) | H13: (3) | I13: (4) | J13: (5=3-4) | K13: (6=2x5)
F14: $ | G14: $ | J14: $ | K14: $
A15: 1 | B15: OPERATING EXPENSES:
A16: =A15+1 -> 2 | C16: ='Sched 27 cwc (Total Co) sh 2'!C16 -> Purchased Gas Expense | D16: Sch 40b, pg 3 | F16: =SUM(120772774+4779028+0.4999999)-F17-F18-F19 -> 120772774.4 | G16: =ROUND((F16)/365,0) -> 330884 | H16: ='Sched 27 cwc (Total Co) sh 2'!G16 -> 31.26 | I16: ='Sched 27 cwc (Total Co) sh 2'!H16 -> 37.4 | J16: =H16-I16 -> -6.14 | K16: =ROUND(J16*G16,0) -> -2031628
A17: 3 | C17: ='Sched 27 cwc (Total Co) sh 2'!C17 -> Deferred Gas Expense | D17: 20 | E17: =LOOKUP(D17,'(WP) Juris Alloc Factors'!$A$3:$B$24) -> 0.95444 | F17: =E17*'Sched 27 cwc (Total Co) sh 2'!E17 -> 5240014.948 | G17: 14356 | H17: ='Sched 27 cwc (Total Co) sh 2'!G17 -> 31.26 | I17: ='Sched 27 cwc (Total Co) sh 2'!H17 -> 31.26 | J17: 0 | K17: 0
A18: 4 | C18: ='Sched 27 cwc (Total Co) sh 2'!C18 -> Storage Gas Delivered | D18: 20 | E18: =LOOKUP(D18,'(WP) Juris Alloc Factors'!$A$3:$B$24) -> 0.95444 | F18: =E18*'Sched 27 cwc (Total Co) sh 2'!E18 -> -25508097.15 | G18: -69885 | H18: ='Sched 27 cwc (Total Co) sh 2'!G18 -> 31.26 | I18: ='Sched 27 cwc (Total Co) sh 2'!H18 -> 0 | J18: 31.26 | K18: -2184605
A19: 5 | C19: ='Sched 27 cwc (Total Co) sh 2'!C19 -> Storage Gas Withdrawn | D19: 20 | E19: =LOOKUP(D19,'(WP) Juris Alloc Factors'!$A$3:$B$24) -> 0.95444 | F19: =E19*'Sched 27 cwc (Total Co) sh 2'!E19 -> 25047110.27 | G19: 68622 | H19: ='Sched 27 cwc (Total Co) sh 2'!G19 -> 31.26 | I19: ='Sched 27 cwc (Total Co) sh 2'!H19 -> 0 | J19: 31.26 | K19: 2145124
A20: 6 | C20: ='Sched 27 cwc (Total Co) sh 2'!C20 -> Prepaid Insurance Expense | D20: 22 | E20: =LOOKUP(D20,'(WP) Juris Alloc Factors'!$A$3:$B$24) -> 0.93417 | F20: =E20*'Sched 27 cwc (Total Co) sh 2'!E20 -> 1639275.911 | G20: 4491 | H20: ='Sched 27 cwc (Total Co) sh 2'!G20 -> 31.26 | I20: ='Sched 27 cwc (Total Co) sh 2'!H20 -> 0 | J20: 31.26 | K20: 140389
A21: 7 | C21: ='Sched 27 cwc (Total Co) sh 2'!C21 -> Employee Payroll | D21: 22 | E21: =LOOKUP(D21,'(WP) Juris Alloc Factors'!$A$3:$B$24) -> 0.93417 | F21: =E21*'Sched 27 cwc (Total Co) sh 2'!E21 -> 15855188.18 | G21: 43439 | H21: ='Sched 27 cwc (Total Co) sh 2'!G21 -> 31.26 | I21: ='Sched 27 cwc (Total Co) sh 2'!H21 -> 8.32 | J21: 22.94 | K21: 996491
A22: 8 | C22: ='Sched 27 cwc (Total Co) sh 2'!C22 -> DIMP Expense | D22: 21 | E22: =LOOKUP(D22,'(WP) Juris Alloc Factors'!$A$3:$B$24) -> 0.92019 | F22: =E22*'Sched 27 cwc (Total Co) sh 2'!E22 -> 5858205.597 | G22: 16050 | H22: ='Sched 27 cwc (Total Co) sh 2'!G22 -> 31.26 | I22: ='Sched 27 cwc (Total Co) sh 2'!H22 -> 0 | J22: 31.26 | K22: 501723
A23: 9 | C23: ='Sched 27 cwc (Total Co) sh 2'!C23 -> Employee Benefits Expense | D23: 22 | E23: =LOOKUP(D23,'(WP) Juris Alloc Factors'!$A$3:$B$24) -> 0.93417 | F23: =E23*'Sched 27 cwc (Total Co) sh 2'!E23 -> 6947349.387 | G23: 19034 | H23: ='Sched 27 cwc (Total Co) sh 2'!G23 -> 31.26 | I23: ='Sched 27 cwc (Total Co) sh 2'!H23 -> 0 | J23: 31.26 | K23: 595003
A24: 10 | C24: ='Sched 27 cwc (Total Co) sh 2'!C24 -> Incentive/Stock Compensation | D24: 22 | E24: =LOOKUP(D24,'(WP) Juris Alloc Factors'!$A$3:$B$24) -> 0.93417 | F24: =E24*'Sched 27 cwc (Total Co) sh 2'!E24 -> 1675423.619 | G24: 4590 | H24: ='Sched 27 cwc (Total Co) sh 2'!G24 -> 31.26 | I24: ='Sched 27 cwc (Total Co) sh 2'!H24 -> 0 | J24: 31.26 | K24: 143483
A25: 11 | C25: ='Sched 27 cwc (Total Co) sh 2'!C25 -> Pension, OPEB & RIP Expense | D25: 22 | E25: =LOOKUP(D25,'(WP) Juris Alloc Factors'!$A$3:$B$24) -> 0.93417 | F25: =E25*'Sched 27 cwc (Total Co) sh 2'!E25 -> 939146.361 | G25: 2573 | H25: ='Sched 27 cwc (Total Co) sh 2'!G25 -> 31.26 | I25: ='Sched 27 cwc (Total Co) sh 2'!H25 -> 0 | J25: 31.26 | K25: 80432
A26: 12 | C26: ='Sched 27 cwc (Total Co) sh 2'!C26 -> Vacation | D26: 22 | E26: =LOOKUP(D26,'(WP) Juris Alloc Factors'!$A$3:$B$24) -> 0.93417 | F26: =E26*'Sched 27 cwc (Total Co) sh 2'!E26 -> 1160695.949 | G26: 3180 | H26: ='Sched 27 cwc (Total Co) sh 2'!G26 -> 31.26 | I26: ='Sched 27 cwc (Total Co) sh 2'!H26 -> 0 | J26: 31.26 | K26: 99407
A27: 13 | C27: ='Sched 27 cwc (Total Co) sh 2'!C27 -> Uncollectible Expense | D27: 2 | E27: =LOOKUP(D27,'(WP) Juris Alloc Factors'!$A$3:$B$24) -> 0.99367 | F27: =E27*'Sched 27 cwc (Total Co) sh 2'!E27 -> 1043210.412 | G27: 2858 | H27: ='Sched 27 cwc (Total Co) sh 2'!G27 -> 31.26 | I27: ='Sched 27 cwc (Total Co) sh 2'!H27 -> 137.85 | J27: -106.59 | K27: -304634
A28: 14 | C28: ='Sched 27 cwc (Total Co) sh 2'!C28 -> Injuries and Damage Expense | D28: 22 | E28: =LOOKUP(D28,'(WP) Juris Alloc Factors'!$A$3:$B$24) -> 0.93417 | F28: =E28*'Sched 27 cwc (Total Co) sh 2'!E28 -> 173322.1651 | G28: 475 | H28: ='Sched 27 cwc (Total Co) sh 2'!G28 -> 31.26 | I28: ='Sched 27 cwc (Total Co) sh 2'!H28 -> 0 | J28: 31.26 | K28: 14849
A29: 15 | C29: ='Sched 27 cwc (Total Co) sh 2'!C29 -> Corporate Services | D29: 22 | E29: =LOOKUP(D29,'(WP) Juris Alloc Factors'!$A$3:$B$24) -> 0.93417 | F29: =E29*'Sched 27 cwc (Total Co) sh 2'!E29 -> 37614590.46 | G29: 103054 | H29: ='Sched 27 cwc (Total Co) sh 2'!G29 -> 31.26 | I29: ='Sched 27 cwc (Total Co) sh 2'!H29 -> 31.5 | J29: -0.24 | K29: -24733
A30: 16 | C30: ='Sched 27 cwc (Total Co) sh 2'!C30 -> Regulatory Asset Amortization:
A31: 17 | C31: ='Sched 27 cwc (Total Co) sh 2'!C31 -> Environmental Remediation | D31: 22 | E31: =LOOKUP(D31,'(WP) Juris Alloc Factors'!$A$3:$B$24) -> 0.93417 | F31: =E31*'Sched 27 cwc (Total Co) sh 2'!E31 -> 1667792.384 | G31: 4569 | H31: ='Sched 27 cwc (Total Co) sh 2'!G31 -> 31.26 | I31: ='Sched 27 cwc (Total Co) sh 2'!H31 -> 31.26 | J31: =H31-I31 -> 0 | K31: =ROUND(J31*G31,0) -> 0
A32: 18 | C32: ='Sched 27 cwc (Total Co) sh 2'!C32 -> DIMP | D32: 21 | E32: =LOOKUP(D32,'(WP) Juris Alloc Factors'!$A$3:$B$24) -> 0.92019 | F32: =E32*'Sched 27 cwc (Total Co) sh 2'!E32 -> 1904562.802 | G32: 5218 | H32: ='Sched 27 cwc (Total Co) sh 2'!G32 -> 31.26 | I32: ='Sched 27 cwc (Total Co) sh 2'!H32 -> 31.26 | J32: =H32-I32 -> 0 | K32: =ROUND(J32*G32,0) -> 0
A33: 19 | C33: ='Sched 27 cwc (Total Co) sh 2'!C33 -> Metered Propane Conversion | E33: 0 | F33: =E33*'Sched 27 cwc (Total Co) sh 2'!E33 -> 0 | G33: 0 | H33: ='Sched 27 cwc (Total Co) sh 2'!G33 -> 31.26 | I33: ='Sched 27 cwc (Total Co) sh 2'!H33 -> 31.26 | J33: =H33-I33 -> 0 | K33: =ROUND(J33*G33,0) -> 0
A34: 20 | C34: ='Sched 27 cwc (Total Co) sh 2'!C34 -> Other | D34: 22 | E34: =LOOKUP(D34,'(WP) Juris Alloc Factors'!$A$3:$B$24) -> 0.93417 | F34: 16211690.2 | G34: 44416 | H34: ='Sched 27 cwc (Total Co) sh 2'!G34 -> 31.26 | I34: ='Sched 27 cwc (Total Co) sh 2'!H34 -> 33.74 | J34: =H34-I34 -> -2.48 | K34: =ROUND(J34*G34,0) -> -110152
A36: =A34+1 -> 21 | C36: ='Sched 27 cwc (Total Co) sh 2'!C36 -> Depreciation and Amortization | D36: Sch 40b, pg 6 | F36: 28889569.25 | G36: 79150 | H36: ='Sched 27 cwc (Total Co) sh 2'!G36 -> 31.26 | I36: ='Sched 27 cwc (Total Co) sh 2'!H36 -> 0 | J36: =H36-I36 -> 31.26 | K36: =ROUND(J36*G36,0) -> 2474229
A38: =A36+1 -> 22 | B38: TAXES OTHER THAN INCOME
A39: 23 | C39: ='Sched 27 cwc (Total Co) sh 2'!C39 -> Payroll Tax Expense | D39: 22 | E39: =LOOKUP(D39,'(WP) Juris Alloc Factors'!$A$3:$B$24) -> 0.93417 | F39: =('Sched 27 cwc (Total Co) sh 2'!E39*E39) -> 1367538.936 | G39: =ROUND((F39)/365,0) -> 3747 | H39: ='Sched 27 cwc (Total Co) sh 2'!G39 -> 31.26 | I39: ='Sched 27 cwc (Total Co) sh 2'!H39 -> 8.61 | J39: =H39-I39 -> 22.65 | K39: =ROUND(J39*G39,0) -> 84870
A40: 24 | C40: ='Sched 27 cwc (Total Co) sh 2'!C40 -> Property Tax Expense | D40: 16 | E40: =LOOKUP(D40,'(WP) Juris Alloc Factors'!$A$3:$B$24) -> 0.88813 | F40: =('Sched 27 cwc (Total Co) sh 2'!E40*E40) -> 6446798.898 | G40: =ROUND((F40)/365,0) -> 17662 | H40: ='Sched 27 cwc (Total Co) sh 2'!G40 -> 31.26 | I40: ='Sched 27 cwc (Total Co) sh 2'!H40 -> 91.88 | J40: =H40-I40 -> -60.62 | K40: =ROUND(J40*G40,0) -> -1070670
A41: 25 | C41: ='Sched 27 cwc (Total Co) sh 2'!C41 -> Other Taxes | D41: 19 | E41: =LOOKUP(D41,'(WP) Juris Alloc Factors'!$A$3:$B$24) -> 0.90637 | F41: 8318 | G41: =ROUND((F41)/365,0) -> 23 | H41: ='Sched 27 cwc (Total Co) sh 2'!G41 -> 31.26 | I41: ='Sched 27 cwc (Total Co) sh 2'!H41 -> 35.2 | J41: =H41-I41 -> -3.94 | K41: =ROUND(J41*G41,0) -> -91
A43: =A41+1 -> 26 | B43: INCOME TAXES:
A44: 27 | C44: ='Sched 27 cwc (Total Co) sh 2'!C44 -> Current FIT & SIT | E44: FIT W/S | F44: -2461120 | G44: =ROUND((F44)/365,0) -> -6743 | H44: =H41 -> 31.26 | I44: ='Sched 27 cwc (Total Co) sh 2'!H44 -> 37.5 | J44: =H44-I44 -> -6.24 | K44: =ROUND(J44*G44,0) -> 42076
A45: 28 | C45: ='Sched 27 cwc (Total Co) sh 2'!C46 -> Deferred FIT Included in Rate Base | D45: 17 | E45: =LOOKUP(D45,'(WP) Juris Alloc Factors'!$A$3:$B$24) -> 0.88551 | F45: =('Sched 27 cwc (Total Co) sh 2'!E46*E45) -> 14047294.97 | G45: =ROUND((F45)/365,0) -> 38486 | H45: =H44 -> 31.26 | I45: ='Sched 27 cwc (Total Co) sh 2'!H46 -> 0 | J45: =H45-I45 -> 31.26 | K45: =ROUND(J45*G45,0) -> 1203072
A46: 29 | C46: ='Sched 27 cwc (Total Co) sh 2'!C47 -> Deferred ITC | D46: 17 | E46: =LOOKUP(D46,'(WP) Juris Alloc Factors'!$A$3:$B$24) -> 0.88551 | F46: =('Sched 27 cwc (Total Co) sh 2'!E47*E46) -> -77381.17686 | G46: =ROUND((F46)/365,0) -> -212 | H46: =H45 -> 31.26 | I46: ='Sched 27 cwc (Total Co) sh 2'!H47 -> 31.26 | J46: =H46-I46 -> 0 | K46: =ROUND(J46*G46,0) -> 0
A47: 30 | C47: ='Sched 27 cwc (Total Co) sh 2'!C48 -> Deferred FIT Excluded from Rate Base | D47: 17 | E47: =LOOKUP(D47,'(WP) Juris Alloc Factors'!$A$3:$B$24) -> 0.88551 | F47: =('Sched 27 cwc (Total Co) sh 2'!E48*E47) -> 800959.7342 | G47: =ROUND((F47)/365,0) -> 2194 | H47: =H46 -> 31.26 | I47: ='Sched 27 cwc (Total Co) sh 2'!H48 -> 31.26 | J47: =H47-I47 -> 0 | K47: =ROUND(J47*G47,0) -> 0
A49: =A47+1 -> 31 | B49: OTHER EXPENSES:
A50: 32 | C50: ='Sched 27 cwc (Total Co) sh 2'!C52 -> AFUDC | D50: 17 | E50: =LOOKUP(D50,'(WP) Juris Alloc Factors'!$A$3:$B$24) -> 0.88551 | F50: =('Sched 27 cwc (Total Co) sh 2'!E52*E50) -> -26564.41449 | G50: =ROUND((F50)/365,0) -> -73 | H50: ='Sched 27 cwc (Total Co) sh 2'!G52 -> 31.26 | I50: ='Sched 27 cwc (Total Co) sh 2'!H52 -> 31.26 | J50: =H50-I50 -> 0 | K50: =ROUND(J50*G50,0) -> 0
A51: 33 | C51: ='Sched 27 cwc (Total Co) sh 2'!C53 -> Charitable Donations | D51: 22 | E51: =LOOKUP(D51,'(WP) Juris Alloc Factors'!$A$3:$B$24) -> 0.93417 | F51: =('Sched 27 cwc (Total Co) sh 2'!E53*E51) -> 221428.1834 | G51: 607 | H51: =H50 -> 31.26 | I51: ='Sched 27 cwc (Total Co) sh 2'!H53 -> 31.26 | J51: 0 | K51: 0
A52: 34 | C52: ='Sched 27 cwc (Total Co) sh 2'!C54 -> Interest on Customer Deposits | D52: 18 | E52: =LOOKUP(D52,'(WP) Juris Alloc Factors'!$A$3:$B$24) -> 0.99518 | F52: =('Sched 27 cwc (Total Co) sh 2'!E54*E52) -> 57481.5968 | G52: 157 | H52: =H51 -> 31.26 | I52: ='Sched 27 cwc (Total Co) sh 2'!H54 -> 182.5 | J52: -151.24 | K52: -23745
A53: 35 | C53: ='Sched 27 cwc (Total Co) sh 2'!C55 -> Interest on Supplier Refunds | D53: 18 | E53: =LOOKUP(D53,'(WP) Juris Alloc Factors'!$A$3:$B$24) -> 0.99518 | F53: =('Sched 27 cwc (Total Co) sh 2'!E55*E53) -> 1315.62796 | G53: 4 | H53: =H52 -> 31.26 | I53: ='Sched 27 cwc (Total Co) sh 2'!H55 -> 182.5 | J53: -151.24 | K53: -605
A54: 36 | C54: ='Sched 27 cwc (Total Co) sh 2'!C56 -> Other Expense/(Income) | F54: 0 | G54: 0 | H54: =H53 -> 31.26 | I54: ='Sched 27 cwc (Total Co) sh 2'!H56 -> 31.26 | J54: 0 | K54: 0
A55: 37 | C55: ='Sched 27 cwc (Total Co) sh 2'!C57 -> Interest Expense on Debt | D55: Sch 40b; p. 1 | F55: 15752174 | G55: 43157 | H55: =H54 -> 31.26 | I55: ='Sched 27 cwc (Total Co) sh 2'!H57 -> 89.61 | J55: -58.35 | K55: -2518211
A56: 38 | C56: ='Sched 27 cwc (Total Co) sh 2'!C58 -> JDC Expense | D56: Sch 40b; p. 1 | F56: 0 | G56: 0 | H56: =H55 -> 31.26 | I56: ='Sched 27 cwc (Total Co) sh 2'!H58 -> 31.26 | J56: 0 | K56: 0
A57: 39 | C57: ='Sched 27 cwc (Total Co) sh 2'!C59 -> Income Available for Common Equity | D57: Sch 40b; p. 1 | F57: 21567510.54 | G57: 59089 | H57: 31.26 | I57: ='Sched 27 cwc (Total Co) sh 2'!H59 -> 31.26 | J57: 0 | K57: 0
A59: =A57+1 -> 40 | C59: Subtotal | F59: =SUM(F16:F47)-F50+SUM(F51+F52+F53)-F54+SUM(F55+F56+F57) -> 304890708.9 | K59: =SUM(K16:K58) -> 252074
A61: =A59+1 -> 41 | C61: ='Sched 27 cwc (Total Co) sh 2'!C63 -> Customer Utility Taxes | D61: 2 | E61: =LOOKUP(D61,'(WP) Juris Alloc Factors'!$A$3:$B$24) -> 0.99367 | F61: =('Sched 27 cwc (Total Co) sh 2'!E63*E61) -> 10431414.28 | G61: =ROUND((F61)/365,0) -> 28579 | H61: =H57 -> 31.26 | I61: ='Sched 27 cwc (Total Co) sh 2'!H63 -> 25.66 | J61: =H61-I61 -> 5.6 | K61: =ROUND(J61*G61,0) -> 160042
A62: 42 | C62: ='Sched 27 cwc (Total Co) sh 2'!C64 -> State & Local Consumption Taxes | D62: 2 | E62: =LOOKUP(D62,'(WP) Juris Alloc Factors'!$A$3:$B$24) -> 0.99367 | F62: =('Sched 27 cwc (Total Co) sh 2'!E64*E62) -> 3280697.017 | G62: =ROUND((F62)/365,0) -> 8988 | H62: =H61 -> 31.26 | I62: ='Sched 27 cwc (Total Co) sh 2'!H64 -> 31.35 | J62: =H62-I62 -> -0.09 | K62: =ROUND(J62*G62,0) -> -809
A63: 43 | C63: ='Sched 27 cwc (Total Co) sh 2'!C65 -> Plus: Balance Sheet Analysis | K63: ='Sched 28(BS) Juris sh 3 of 4'!I66 -> 4400900
A64: 44 | J64: TOTAL CASH WORKING CAPITAL REQUIREMENT/(SOURCE) | K64: =SUM(K59:K63) -> 4812207

Sheet Sh 3 - revlag
C1: ='(WP) Instructions & Input'!B11 -> Exhibit No.: ________ | F1: KY PSC Case No. 2021-00183
C2: ='(WP) Instructions & Input'!B12 -> Witness: L. A. Guilbert | F2: Staff 3-36
C3: ='(WP) Instructions & Input'!B6 -> Schedule 27 | F3: Attachment B
C4: Sheet 3
A6: ='(WP) Instructions & Input'!B2 -> Columbia Gas of Virginia, Inc.
A7: ='(WP) Instructions & Input'!B3 -> Analysis of Cash Working Capital Requirement
A8: Revenue Lag
A9: ='(WP) Instructions & Input'!B4 -> TME: December 31, 2017
A10: ='(WP) Instructions & Input'!B9 -> Case No. PUR-2018-00131
A12: Line | C12: Number
A13: No. | B13: Lag Component | C13: of Days
B14: (1) | C14: (2)
A16: 1 | B16: Meter Reading 1/ | C16: =ROUND(365/12/2,2) -> 15.21
A17: 2 | B17: Collection (see Sheet No. 3a) | C17: ='Sh 3a - coll-lag'!G38 -> 13.41
A18: 3 | B18: Billing (see Sheet No. 3c) | C18: ='Sh 3c - bill lag'!D20 -> 2.64
A20: 4 | B20: Total Revenue Lag | C20: =C16+C17+C18 -> 31.26
A22: 1/ | B22: CGV reads all meters monthly. Bills generated using the Distributive Information System are mailed that evening. Large volume Commercial and Industrial customers billed using Gas Accounting System are mailed 5 to 10 days from final meter read. Meter reading lag represents the midpoint of any billing month and are computed as: 365 days / 12 Months / 2 (midpoint) = 15.21 days.
A24: Source: Company Financial Statements

Sheet Sh 3a - coll-lag
G1: ='(WP) Instructions & Input'!B11 -> Exhibit No.: ________ | J1: KY PSC Case No. 2021-00183
G2: ='(WP) Instructions & Input'!B12 -> Witness: L. A. Guilbert | J2: Staff 3-36
G3: ='(WP) Instructions & Input'!B6 -> Schedule 27 | J3: Attachment B
G4: Sheet 3a
A6: ='(WP) Instructions & Input'!B2 -> Columbia Gas of Virginia, Inc.
A7: Weighted Average Collection Lag
A8: TME: December 31, 2017
A9: ='(WP) Instructions & Input'!B9 -> Case No. PUR-2018-00131
A11: Line | D11: Average Daily Revenue | G11: Amount
A12: No. | G12: $
A14: 1 | B14: Total Tariff Revenues:
A15: =A14+1 -> 2 | B15: Residential Revenues | G15: 186952928.6
A16: =A15+1 -> 3 | B16: Commercial Revenues | G16: 61091432.76
A17: =A16+1 -> 4 | B17: Industrial Revenues | G17: 2288723.13
A18: =A17+1 -> 5 | B18: Other Revenues | G18: 0
A19: =A18+1 -> 6 | F19: Total Tariff Revenue | G19: =SUM(G15:G18) -> 250333084.5
A21: =A19+1 -> 7 | B21: Non - traditional sales | G21: 8919898.17
A22: =A21+1 -> 8 | B22: Transportation Revenue | G22: =59277.76+19566964.52+28956789.04+89099.29+14115232.29 -> 62787362.9
A23: 9 | B23: Utility Service, State & Local Consumption Taxes | G23: 13799462
A24: 10 | B24: Forfeited Discounts | G24: 693407.76
A25: 11 | B25: Miscellaneous Service Revenue | G25: 844934.71
A26: 12 | B26: Billed RNA Revenue | G26: =5834162.01+611431.58+95567.66+322.69-63097.63-86.39 -> 6478299.92
A27: 13 | B27: Other Gas Revenues - Other | G27: 920892.05
A28: 14 | F28: Subtotal of Additional Revenue | G28: =SUM(G21:G27) -> 94444257.51
A30: =A28+1 -> 15 | B30: Supplier Refunds | G30: =-59277.76-89099.29-422761.1-50644.62-1302831.11 -> -1924613.88
A32: =A30+1 -> 16 | F32: Total Adjusted Revenue | G32: =G19+G28+G30 -> 342852728.1
A34: =A32+1 -> 17 | F34: Average Daily Revenue (Line 16 ÷ 365 days) | G34: =G32/365 -> 939322.5428
A36: =A34+1 -> 18 | F36: Average Daily A/R Balance (Per Sheet No. 3b) | G36: ='Sh 3b - ARsumm'!I31 -> 12594620.14
A38: =A36+1 -> 19 | F38: Revenue Collection Lag Days (Line 18 ÷ Line 17) | G38: =ROUND(G36/G34,2) -> 13.41
A42: Revenue normalization - revenues differences between as billed and per book revenues
A43: See listing in binder provided by Accounting showing by voucher normalized revenues
A44: Primarily includes supplier refunds including interest.

Sheet Sh 3b - ARsumm
H1: ='(WP) Instructions & Input'!B11 -> Exhibit No.: ________ | M1: KY PSC Case No. 2021-00183
H2: ='(WP) Instructions & Input'!B12 -> Witness: L. A. Guilbert | M2: Staff 3-36
I3: ='(WP) Instructions & Input'!B6 -> Schedule 27 | M3: Attachment B
I4: Sheet 3b
A5: ='(WP) Instructions & Input'!B2 -> Columbia Gas of Virginia, Inc.
A6: Analysis of Cash Working Capital Allowance
A7: Summary of Accounts Receivable
A8: ='Sh 3a - coll-lag'!A8 -> TME: December 31, 2017
A9: ='(WP) Instructions & Input'!B9 -> Case No. PUR-2018-00131
C11: 14200220,14200230 | D11: ="14200250"&", 14300220" -> 14200250, 14300220 | E11: 14200260 | F11: ="14300018"&"" -> 14300018 | G11: ="14300280"&"" -> 14300280 | H11: ="14300240"&""&", 14300330" -> 14300240, 14300330
C12: Customer A/R CAB | D12: Customer A/R GMB | E12: Customer Premise | F12: Off-System Sales | G12: Home Energy Assistance | H12: Transportation A/R | I12: Utility
A13: Line | C13: Month-End | D13: Month-End | E13: Month-End | F13: Month-End | G13: Month-end | H13: Month-End | I13: Accounts
A14: No. | B14: Test Year | C14: Balance | D14: Balance | E14: Balance | F14: Balance | G14: Balance | H14: Balance | I14: Receivables
C15: (1) | D15: (2) | E15: (3) | F15: (4) | G15: (5) | H15: (6) | I15: (8)=(1 thru 7)
C16: ($) | D16: ($) | E16: ($) | F16: ($) | G16: ($) | H16: ($) | I16: ($)
A18: 1 | B18: January | C18: =22834954.06+4287.18 -> 22839241.24 | D18: =1242358.82+100847.99 -> 1343206.81 | E18: 616549.46 | F18: 869841.3 | G18: 241274.38 | H18: =4361281.25+2061270.42 -> 6422551.67 | I18: =SUM(C18:H18) -> 32332664.86
A19: =A18+1 -> 2 | B19: February | C19: =25955358.74+-603.39 -> 25954755.35 | D19: =1027743.51+62805.88 -> 1090549.39 | E19: 603028.71 | F19: 791722.71 | G19: 116275.67 | H19: =4558145.72+2529985.97 -> 7088131.69 | I19: 35644463.52
A20: 3 | B20: March | C20: =18775045.88+3074.32 -> 18778120.2 | D20: =536646.82+38954.4 -> 575601.22 | E20: 440937.43 | F20: 2588419.96 | G20: 76531.55 | H20: =3561063.03+1685269.27 -> 5246332.3 | I20: 27705942.66
A21: 4 | B21: April | C21: =14928143.41+13025.65 -> 14941169.06 | D21: =678579.35+28677.97 -> 707257.32 | E21: 454880.03 | F21: 1063527.46 | G21: 41460.25 | H21: =5462699.64+1438979.55 -> 6901679.19 | I21: 24109973.31
A22: 5 | B22: May | C22: =4827114.77+28077.13 -> 4855191.9 | D22: =418188.04+14176.54 -> 432364.58 | E22: 437285.41 | F22: 1472750.96 | G22: 0 | H22: =3139337+246167.88 -> 3385504.88 | I22: 10583097.73
A23: 6 | B23: June | C23: =2994417.64+31615.19 -> 3026032.83 | D23: =481919.65+11015.55 -> 492935.2 | E23: 428456.59 | F23: 989737.36 | G23: 0 | H23: =3764966.15+5193.89 -> 3770160.04 | I23: 8707322.02
A24: 7 | B24: July | C24: =-44735.48+11748.36 -> -32987.12 | D24: =548576.02+9940.83 -> 558516.85 | E24: 490761.83 | F24: 1150692.46 | G24: 0 | H24: =4038133.63+-515667.45 -> 3522466.18 | I24: 5689450.2
A25: 8 | B25: August | C25: =-4232545.29+35461.45 -> -4197083.84 | D25: =705646.94+9718.59 -> 715365.53 | E25: 447405.22 | F25: 2031928.57 | G25: 0 | H25: =3354253.19+-1243188.9 -> 2111064.29 | I25: 1108679.77
A26: 9 | B26: September | C26: =-7270365.19+21790.58 -> -7248574.61 | D26: =558171.39+10340.21 -> 568511.6 | E26: 869507.49 | F26: 588492.73 | G26: 0 | H26: =5056663.74+-1820291.31 -> 3236372.43 | I26: -1985690.36
A27: 10 | B27: October | C27: =-10483349.09+8160.82 -> -10475188.27 | D27: =849802.18+22954.96 -> 872757.14 | E27: 844025.73 | F27: 386423.13 | G27: 0 | H27: =3583376.21+-2401745.96 -> 1181630.25 | I27: -7190352.02
A28: 11 | B28: November | C28: =-6163980.7+6884.02 -> -6157096.68 | D28: =836613.75+50424.99 -> 887038.74 | E28: 828405.44 | F28: 132857.13 | G28: 0 | H28: =3782974.49+-1948850.1 -> 1834124.39 | I28: -2474670.98
A29: 12 | B29: December | C29: =9587703.8+4093.64 -> 9591797.44 | D29: =1004715.54+59027.49 -> 1063743.03 | E29: 1645750.52 | F29: 265857.13 | G29: 0 | H29: =4518601.8+-181188.92 -> 4337412.88 | I29: 16904561
A30: =A29+1 -> 13 | B30: Total | C30: =SUM(C18:C29) -> 71875377.5 | D30: 9307847.41 | E30: 8106993.86 | F30: 12332250.9 | G30: 475541.85 | H30: 49037430.19 | I30: 151135441.7
A31: =A30+1 -> 14 | B31: 12 Mo. Avg. | C31: =C30/12 -> 5989614.792 | D31: =D30/12 -> 775653.9508 | E31: 675582.8217 | F31: 1027687.575 | G31: 39628.4875 | H31: 4086452.516 | I31: 12594620.14
A33: (1) | B33: Source: Company Financial Statements

Sheet Sh 3c - bill lag
D1: ='(WP) Instructions & Input'!B11 -> Exhibit No.: ________ | H1: KY PSC Case No. 2021-00183
D2: ='(WP) Instructions & Input'!B12 -> Witness: L. A. Guilbert | H2: Staff 3-36
E3: ='(WP) Instructions & Input'!B6 -> Schedule 27 | H3: Attachment B
E4: Sheet 3c
A6: ='(WP) Instructions & Input'!B2 -> Columbia Gas of Virginia, Inc.
A7: ='(WP) Instructions & Input'!B3 -> Analysis of Cash Working Capital Requirement
A8: Billing Lag Calculation
A9: ='(WP) Instructions & Input'!B4 -> TME: December 31, 2017
A12: Line | C12: Revenue | D12: Billing | E12: Weighted
A13: No. | B13: Description | C13: Amount | D13: Lag | E13: Revenue
B14: (1) | C14: (2) | D14: (3) | E14: (4)=(2)*(3)
C15: $ | E15: $
A16: 1 | B16: Tariff / Transportation Revenues - (DIS) | C16: ='Sh 3a - coll-lag'!G19-'Sh 3c - bill lag'!C17-'Sh 3c - bill lag'!C18 -> 206626914.5 | D16: ='(WP) 3c bill lag DIS'!E267 -> 1.46031746 | E16: =D16*C16 -> 301740891
A17: =A16+1 -> 2 | B17: Tariff / Transportation Revenues - (GTS) | C17: ='(WP) 3c bill lag GTS'!E2935 -> 33665337.84 | D17: =ROUND(+E17/C17,2) -> 9.85 | E17: ='(WP) 3c bill lag GTS'!F2935 -> 331664667.6
A18: =A17+1 -> 3 | B18: Tariff / Transportation Revenues - (GMB/GAS) | C18: ='(WP) 3c bill lag GMB'!F1140 -> 10040832.12 | D18: =ROUND(+E18/C18,2) -> 2.69 | E18: ='(WP) 3c bill lag GMB'!G1140 -> 27035802.03
A19: =A18+1 -> 4 | C19: =SUM(C16:C18) -> 250333084.5 | E19: =SUM(E16:E18) -> 660441360.7
A20: =A19+1 -> 5 | B20: Calculated Billing Lag | D20: =ROUND($E$19/$C$19,2) -> 2.64

Sheet (WP)Autopay adj 3a Do not file (hidden)
D1: ='(WP) Instructions & Input'!B11 -> Exhibit No.: ________
D2: ='(WP) Instructions & Input'!B12 -> Witness: L. A. Guilbert
D3: ='(WP) Instructions & Input'!B6 -> Schedule 27
D4: Workpaper 3a
A5: ='(WP) Instructions & Input'!B2 -> Columbia Gas of Virginia, Inc.
A6: ='(WP) Instructions & Input'!B3 -> Analysis of Cash Working Capital Requirement
A7: Collection Lag Adjustment for Automatic Payment Customers
A8: ='(WP) Instructions & Input'!B4 -> TME: December 31, 2017
A11: Line No. | B11: Month | C11: A/R Balance Impact
C12: ($)
A13: 1 | B13: January 2015 | C13: 2205767
A14: =A13+1 -> 2 | B14: February | C14: 1746256
A15: 3 | B15: March | C15: 2028950
A16: 4 | B16: April | C16: 1116889
A17: 5 | B17: May | C17: 866643
A18: 6 | B18: June | C18: 800033
A19: 7 | B19: July | C19: 888798
A20: 8 | B20: August | C20: 858952
A21: 9 | B21: September | C21: 889025
A22: 10 | B22: October | C22: 963368
A23: 11 | B23: November | C23: 920198
A24: 12 | B24: December | C24: 1442736
A25: =A24+1 -> 13 | B25: Total | C25: =SUM(C13:C24) -> 14727615
A26: =A25+1 -> 14 | B26: Average A/R Balance for Automatic Payment Customers | C26: =C25/12 -> 1227301.25
A28: =A26+1 -> 15 | B28: Total Adjusted Revenue TME 12/31/2015 | C28: 333819774.7
A29: =A28+1 -> 16 | B29: Average Daily Revenue (Line 15 / 365) | C29: =C28/365 -> 914574.7253
A31: =A29+1 -> 17 | B31: Revenue Collection Lag Days (Line 14 / Line 16) | C31: =ROUND(C26/C29,2) -> 1.34

Sheet Sh 4 - gaspurch
E1: ='(WP) Instructions & Input'!B11 -> Exhibit No.: ________ | J1: KY PSC Case No. 2021-00183
E2: ='(WP) Instructions & Input'!B12 -> Witness: L. A. Guilbert | J2: Staff 3-36
F3: ='(WP) Instructions & Input'!B6 -> Schedule 27 | J3: Attachment B
F4: Sheet 4
A6: ='(WP) Instructions & Input'!B2 -> Columbia Gas of Virginia, Inc.
A7: ='(WP) Instructions & Input'!B3 -> Analysis of Cash Working Capital Requirement
A8: Gas Purchased Cost
A9: ='(WP) Instructions & Input'!B4 -> TME: December 31, 2017
A10: ='(WP) Instructions & Input'!B9 -> Case No. PUR-2018-00131
E12: Weighted | F12: Dollar
A13: Line | D13: Amount | E13: Average | F13: Lead
A14: No. | B14: Supplier Category | C14: Reference | D14: Paid | E14: Lead Days | F14: Days
B15: (1) | C15: (2) | D15: (3) | E15: (4) | F15: (5=3*4))
D16: $ | F16: $
A18: 1 | B18: Commodity Costs | C18: Sheet 4a | D18: ='Sh 4a - Commodity'!H325 -> 77966426.39 | E18: ='Sh 4a - Commodity'!E325 -> 40.94 | F18: ='Sh 4a - Commodity'!I325 -> 3191744083
A19: =A18+1 -> 2 | B19: Transportation Costs | C19: Sheet 4b | D19: ='Sh 4b - Transportation'!H135 -> 63902985.29 | E19: ='Sh 4b - Transportation'!E135 -> 33.08 | F19: ='Sh 4b - Transportation'!I135 -> 2113606752
A21: =A19+1 -> 3 | C21: Total | D21: =SUM(D18:D20) -> 141869411.7 | E21: =ROUND(F21/D21,2) -> 37.4 | F21: =SUM(F18:F20) -> 5305350835
A23: Note: | B23: The Gas Purchase leads for both Commodity and Transportation Costs were developed through the Gas Supply Department gas purchase system that included the gas flow service period, the date paid and the amount paid for each purchase.

Sheet Sh 4a - Commodity
H1: ='(WP) Instructions & Input'!B11 -> Exhibit No.: ________ | J1: Source: Sean Liggett/Brad Ranney | N1: KY PSC Case No. 2021-00183
H2: ='(WP) Instructions & Input'!B12 -> Witness: L. A. Guilbert | N2: Staff 3-36
I3: ='(WP) Instructions & Input'!B6 -> Schedule 27 | N3: Attachment B
I4: Sheet 4a
A6: ='(WP) Instructions & Input'!B2 -> Columbia Gas of Virginia, Inc.
A7: ='(WP) Instructions & Input'!B3 -> Analysis of Cash Working Capital Requirement
A8: Gas Purchased - Commodity Costs
A9: ='(WP) Instructions & Input'!B4 -> TME: December 31, 2017
A10: ='(WP) Instructions & Input'!B9 -> Case No. PUR-2018-00131
D12: Midpoint of
A13: Line | B13: Service | C13: Payment | D13: Service | E13: Lag | F13: INVOICE | G13: PAYMENT | I13: Weighted
A14: No. | B14: Month | C14: Date | D14: Period | E14: Days | F14: NUMBER | G14: TYPE | H14: Payment | I14: Days
B15: (1) | C15: (2) | D15: (3) | E15: (4)=(2-1+3) | H15: (5) | I15: (6)=(4*5)
A17: 1 | B17: =42369-334+365+366 -> 2017-01-31 | C17: =B17+27 -> 2017-02-27 | D17: 15.5 | E17: =C17-B17+D17 -> 42.5 | F17: 2003040986-I | G17: W | H17: 9210 | I17: =ROUND(E17*H17,0) -> 391425
A18: =A17+1 -> 2 | B18: =42369-334+365+366 -> 2017-01-31 | C18: =B18+27 -> 2017-02-27 | D18: 15.5 | E18: =C18-B18+D18 -> 42.5 | F18: 2003040987-I | G18: W | H18: 6378 | I18: 271065
A19: =A18+1 -> 3 | B19: 2017-01-31 | C19: 2017-02-27 | D19: 15.5 | E19: 42.5 | F19: R040318789 | G19: W | H19: 1108870 | I19: 47126975
A20: 4 | B20: 2017-01-31 | C20: 2017-02-27 | D20: 15.5 | E20: 42.5 | F20: GSHI03040826 | G20: W | H20: 18960 | I20: 805800
A21: 5 | B21: 2017-01-31 | C21: 2017-02-27 | D21: 15.5 | E21: 42.5 | F21: GSHI03040827 | G21: W | H21: 5168 | I21: 219640
A22: 6 | B22: 2017-01-31 | C22: 2017-02-27 | D22: 15.5 | E22: 42.5 | F22: 200304-I-0046 | G22: W | H22: 514119.5 | I22: 21850079
A23: 7 | B23: 2017-01-31 | C23: 2017-02-27 | D23: 15.5 | E23: 42.5 | F23: 200304-I-0047 | G23: W | H23: 170625 | I23: 7251563
A24: 8 | B24: 2017-01-31 | C24: 2017-02-27 | D24: 15.5 | E24: 42.5 | F24: 03040042-00 | G24: W | H24: 2529363.69 | I24: 107497957
A25: 9 | B25: 2017-01-31 | C25: 2017-02-27 | D25: 15.5 | E25: 42.5 | F25: SEM0403-2 | G25: W | H25: 31100 | I25: 1321750
A26: 10 | B26: 2017-01-31 | C26: 2017-02-27 | D26: 15.5 | E26: 42.5 | F26: 72832 | G26: W | H26: 202966.5 | I26: 8626076
A27: 11 | B27: 2017-01-31 | C27: 2017-02-27 | D27: 15.5 | E27: 42.5 | F27: 75308 | G27: W | H27: 1836068 | I27: 78032890
A28: =A27+1 -> 12 | B28: 2017-01-31 | C28: 2017-02-27 | D28: 15.5 | E28: 42.5 | F28: 152618 | G28: W | H28: 3525.5 | I28: 149834
A29: =A28+1 -> 13 | B29: 2017-01-31 | C29: 2017-02-27 | D29: 15.5 | E29: 42.5 | H29: 3793284 | I29: 161214570
A30: 14 | B30: 2017-01-31 | C30: 2017-02-27 | D30: 15.5 | E30: 42.5 | H30: 143286.25 | I30: 6089666
A31: 15 | B31: 2017-01-31 | C31: 2017-02-27 | D31: 15.5 | E31: 42.5 | H31: 409553.96 | I31: 17406043
A32: 16 | B32: 2017-01-31 | C32: 2017-02-27 | D32: 15.5 | E32: 42.5 | H32: 502856.75 | I32: 21371412
A33: 17 | B33: 2017-01-31 | C33: 2017-02-27 | D33: 15.5 | E33: 42.5 | H33: 2749.44 | I33: 116851
A34: 18 | B34: 2017-01-31 | C34: 2017-02-27 | D34: 15.5 | E34: 42.5 | H34: 61600 | I34: 2618000
A35: 19 | B35: 2017-01-31 | C35: 2017-02-27 | D35: 15.5 | E35: 42.5 | H35: 590905 | I35: 25113463
A36: 20 | B36: 2017-01-31 | C36: 2017-02-27 | D36: 15.5 | E36: 42.5 | H36: 315500 | I36: 13408750
F37: SALE-0306-0033 | G37: W
A38: =A36+1 -> 21 | B38: =B36+28 -> 2017-02-28 | C38: =B38+27 -> 2017-03-27 | D38: 14 | E38: 41 | F38: SALE-0306-0162 | G38: W | H38: 11475 | I38: =ROUND(E38*H38,0) -> 470475
A39: =A38+1 -> 22 | B39: =B38 -> 2017-02-28 | C39: =B39+27 -> 2017-03-27 | D39: 14 | E39: 41 | F39: 1052341 | G39: W | H39: 853658.4 | I39: 34999994
A40: 23 | B40: =B39 -> 2017-02-28 | C40: 2017-03-27 | D40: 14 | E40: 41 | F40: 2003050995-I | G40: W | H40: 46205 | I40: 1894405
A41: 24 | B41: 2017-02-28 | C41: 2017-03-27 | D41: 14 | E41: 41 | F41: 2003050996-I | G41: W | H41: 62676 | I41: 2569716
A42: 25 | B42: 2017-02-28 | C42: 2017-03-27 | D42: 14 | E42: 41 | F42: 2003050997-I | G42: W | H42: 14300 | I42: 586300
A43: 26 | B43: 2017-02-28 | C43: 2017-03-27 | D43: 14 | E43: 41 | F43: CTC-35135 | G43: C | H43: 7944.75 | I43: 325735
A44: 27 | B44: 2017-02-28 | C44: 2017-03-27 | D44: 14 | E44: 41 | F44: 1623 | G44: W | H44: 183118.75 | I44: 7507869
A45: 28 | B45: 2017-02-28 | C45: 2017-03-27 | D45: 14 | E45: 41 | F45: R050319159 | G45: W | H45: 16607.25 | I45: 680897
A46: 29 | B46: 2017-02-28 | C46: 2017-03-27 | D46: 14 | E46: 41 | F46: R050319367 | G46: W | H46: 1890429.94 | I46: 77507628
A47: 30 | B47: 2017-02-28 | C47: 2017-03-27 | D47: 14 | E47: 41 | F47: 74754 | G47: W | H47: 28725 | I47: 1177725
A48: 31 | B48: 2017-02-28 | C48: 2017-03-27 | D48: 14 | E48: 41 | F48: GSHI03050082 | G48: W | H48: 42564 | I48: 1745124
A49: 32 | B49: 2017-02-28 | C49: 2017-03-27 | D49: 14 | E49: 41 | F49: S-052003-00006 | G49: W | H49: 75686.5 | I49: 3103147
A50: 33 | B50: 2017-02-28 | C50: 2017-03-27 | D50: 14 | E50: 41 | F50: 200305-I-0254 | G50: W | H50: 1449896 | I50: 59445736
A51: 34 | B51: 2017-02-28 | C51: 2017-03-27 | D51: 14 | E51: 41 | F51: 503220008427877 | G51: W | H51: 2933028 | I51: 120254148
A52: 35 | B52: 2017-02-28 | C52: 2017-03-27 | D52: 14 | E52: 41 | H52: 16430.25 | I52: 673640
A53: 36 | B53: 2017-02-28 | C53: 2017-03-27 | D53: 14 | E53: 41 | H53: 214525.1 | I53: 8795529
A54: 37 | B54: 2017-02-28 | C54: 2017-03-27 | D54: 14 | E54: 41 | H54: 567825 | I54: 23280825
A55: 38 | B55: 2017-02-28 | C55: 2017-03-27 | D55: 14 | E55: 41 | H55: 1202.77 | I55: 49314
A56: 39 | B56: 2017-02-28 | C56: 2017-03-27 | D56: 14 | E56: 41 | H56: 291297 | I56: 11943177
F57: S-200305-0012 | G57: W
A58: =A56+1 -> 40 | B58: =B56+31 -> 2017-03-31 | C58: =B58+25 -> 2017-04-25 | D58: 15.5 | E58: =C58-B58+D58 -> 40.5 | F58: 200305-0286 | G58: W | H58: 24000 | I58: 972000
A59: 41 | B59: =B58 -> 2017-03-31 | C59: =B59+25 -> 2017-04-25 | D59: 15.5 | E59: 40.5 | F59: 74754 | G59: W | H59: 13750 | I59: 556875
A60: 42 | B60: =B59 -> 2017-03-31 | C60: 2017-04-25 | D60: 15.5 | E60: 40.5 | F60: 75757 | G60: W | H60: 1076803.6 | I60: 43610546
A61: 43 | B61: 2017-03-31 | C61: 2017-04-25 | D61: 15.5 | E61: 40.5 | F61: 153149 | G61: W | H61: 53133.01 | I61: 2151887
A62: 44 | B62: 2017-03-31 | C62: 2017-04-25 | D62: 15.5 | E62: 40.5 | F62: 149363 | G62: W | H62: 100913 | I62: 4086977
A63: 45 | B63: 2017-03-31 | C63: 2017-04-25 | D63: 15.5 | E63: 40.5 | H63: 73206.25 | I63: =ROUND(E63*H63,0) -> 2964853
A64: 46 | B64: 2017-03-31 | C64: 2017-04-25 | D64: 15.5 | E64: 40.5 | F64: SALE-0307-0041 | G64: W | H64: 70274 | I64: =ROUND(E64*H64,0) -> 2846097
A65: 47 | B65: 2017-03-31 | C65: 2017-04-25 | D65: 15.5 | E65: 40.5 | F65: 2003061070-I | G65: W | H65: 3920 | I65: 158760
A66: 48 | B66: 2017-03-31 | C66: 2017-04-25 | D66: 15.5 | E66: 40.5 | F66: 2003061071-I | G66: W | H66: 40462.5 | I66: 1638731
A67: 49 | B67: 2017-03-31 | C67: 2017-04-25 | D67: 15.5 | E67: 40.5 | F67: 20660 | G67: W | H67: 99575 | I67: 4032788
A68: 50 | B68: 2017-03-31 | C68: 2017-04-25 | D68: 15.5 | E68: 40.5 | F68: 1720 | G68: W | H68: 161850 | I68: 6554925
A69: 51 | B69: 2017-03-31 | C69: 2017-04-25 | D69: 15.5 | E69: 40.5 | F69: 39457 | G69: C | H69: 1626977.64 | I69: 65892594
A70: 52 | B70: 2017-03-31 | C70: 2017-04-25 | D70: 15.5 | E70: 40.5 | F70: R060320216 | G70: W | H70: 81000 | I70: 3280500
A71: 53 | B71: 2017-03-31 | C71: 2017-04-25 | D71: 15.5 | E71: 40.5 | F71: 3210 | G71: W | H71: 21945 | I71: 888773
A72: 54 | B72: 2017-03-31 | C72: 2017-04-25 | D72: 15.5 | E72: 40.5 | H72: 63247.25 | I72: 2561514
A73: 55 | B73: 2017-03-31 | C73: 2017-04-25 | D73: 15.5 | E73: 40.5 | H73: 65950.5 | I73: 2670995
A74: 56 | B74: 2017-03-31 | C74: 2017-04-25 | D74: 15.5 | E74: 40.5 | H74: 15250 | I74: 617625
A75: 57 | B75: 2017-03-31 | C75: 2017-04-25 | D75: 15.5 | E75: 40.5 | H75: 9555 | I75: 386978
A76: 58 | B76: 2017-03-31 | C76: 2017-04-25 | D76: 15.5 | E76: 40.5 | H76: 40500 | I76: 1640250
A77: 59 | B77: 2017-03-31 | C77: 2017-04-25 | D77: 15.5 | E77: 40.5 | H77: 54466.47 | I77: 2205892
A78: 60 | B78: 2017-03-31 | C78: 2017-04-25 | D78: 15.5 | E78: 40.5 | H78: 955226 | I78: 38686653
A79: 61 | B79: 2017-03-31 | C79: 2017-04-25 | D79: 15.5 | E79: 40.5 | H79: 695.92 | I79: 28185
A80: 62 | B80: 2017-03-31 | C80: 2017-04-25 | D80: 15.5 | E80: 40.5 | H80: 141566.5 | I80: 5733443
A81: 63 | B81: 2017-03-31 | C81: 2017-04-25 | D81: 15.5 | E81: 40.5 | H81: 500845.5 | I81: 20284243
F82: 200306-I-0229 | G82: W
A83: =A81+1 -> 64 | B83: =B81+30 -> 2017-04-30 | C83: =B83+25 -> 2017-05-25 | D83: 15 | E83: =C83-B83+D83 -> 40 | F83: S2003060659OGMC | G83: W | H83: 210076.5 | I83: 8403060
A84: 65 | B84: =B83 -> 2017-04-30 | C84: =B84+25 -> 2017-05-25 | D84: =D83 -> 15 | E84: 40 | F84: S-200306-0024 | G84: W | H84: 51484.5 | I84: 2059380
A85: 66 | B85: =B84 -> 2017-04-30 | C85: 2017-05-25 | D85: =D84 -> 15 | E85: 40 | F85: 77551 | G85: W | H85: 119200 | I85: 4768000
A86: 67 | B86: 2017-04-30 | C86: 2017-05-25 | D86: 15 | E86: 40 | F86: 82369 | G86: W | H86: 67237.5 | I86: 2689500
A87: 68 | B87: 2017-04-30 | C87: 2017-05-25 | D87: 15 | E87: 40 | H87: 7437.5 | I87: =ROUND(E87*H87,0) -> 297500
A88: 69 | B88: 2017-04-30 | C88: 2017-05-25 | D88: 15 | E88: 40 | F88: SALE-0308-0041 | G88: W | H88: 366725 | I88: =ROUND(E88*H88,0) -> 14669000
A89: 70 | B89: 2017-04-30 | C89: 2017-05-25 | D89: 15 | E89: 40 | F89: 1056365 | G89: W | H89: 280820 | I89: =ROUND(E89*H89,0) -> 11232800
A90: 71 | B90: 2017-04-30 | C90: 2017-05-25 | D90: 15 | E90: 40 | F90: 200307 1947 | G90: W | H90: 87884 | I90: =ROUND(E90*H90,0) -> 3515360
A91: 72 | B91: 2017-04-30 | C91: 2017-05-25 | D91: 15 | E91: 40 | F91: 2003070981-I | G91: W | H91: 14516.5 | I91: =ROUND(E91*H91,0) -> 580660
A92: 73 | B92: 2017-04-30 | C92: 2017-05-25 | D92: 15 | E92: 40 | F92: 2003070982-I | G92: W | H92: 50927.75 | I92: 2037110
A93: 74 | B93: 2017-04-30 | C93: 2017-05-25 | D93: 15 | E93: 40 | F93: 1798 | G93: W | H93: 281 | I93: 11240
A94: 75 | B94: 2017-04-30 | C94: 2017-05-25 | D94: 15 | E94: 40 | F94: R070320374 | G94: W | H94: 143810.5 | I94: 5752420
A95: 76 | B95: 2017-04-30 | C95: 2017-05-25 | D95: 15 | E95: 40 | F95: 3902 | G95: W | H95: 1685150.8 | I95: 67406032
A96: 77 | B96: 2017-04-30 | C96: 2017-05-25 | D96: 15 | E96: 40 | F96: GSHI03070081 | G96: W | H96: 46012.5 | I96: 1840500
A97: 78 | B97: 2017-04-30 | C97: 2017-05-25 | D97: 15 | E97: 40 | F97: S-072003-00004 | G97: W | H97: 56925 | I97: 2277000
A98: 79 | B98: 2017-04-30 | C98: 2017-05-25 | D98: 15 | E98: 40 | F98: 200307-I-0054 | G98: W | H98: 31374 | I98: 1254960
A99: 80 | B99: 2017-04-30 | C99: 2017-05-25 | D99: 15 | E99: 40 | F99: 703220008427877 | G99: W | H99: 5269.5 | I99: 210780
A100: 81 | B100: 2017-04-30 | C100: 2017-05-25 | D100: 15 | E100: 40 | F100: 03070038-00 | G100: W | H100: 8850 | I100: 354000
A101: 82 | B101: 2017-04-30 | C101: 2017-05-25 | D101: 15 | E101: 40 | F101: A0307S0105 | G101: W | H101: 14184 | I101: 567360
A102: 83 | B102: 2017-04-30 | C102: 2017-05-25 | D102: 15 | E102: 40 | F102: 79907 | G102: W | H102: 313.5 | I102: 12540
A103: 84 | B103: 2017-04-30 | C103: 2017-05-25 | D103: 15 | E103: 40 | F103: 82374 | G103: W | H103: 237300 | I103: 9492000
A104: 85 | B104: 2017-04-30 | C104: 2017-05-25 | D104: 15 | E104: 40 | F104: 153983 | G104: W | H104: 314378.75 | I104: 12575150
A105: 86 | B105: 2017-04-30 | C105: 2017-05-25 | D105: 15 | E105: 40 | F105: 154145 | G105: W | H105: 39666 | I105: 1586640
A106: 87 | B106: 2017-04-30 | C106: 2017-05-25 | D106: 15 | E106: 40 | F106: 154145 | G106: W | H106: 65026.5 | I106: =ROUND(E106*H106,0) -> 2601060
A107: 88 | B107: 2017-04-30 | C107: 2017-05-25 | D107: 15 | E107: 40 | H107: 29800 | I107: =ROUND(E107*H107,0) -> 1192000
A108: 89 | B108: 2017-04-30 | C108: 2017-05-25 | D108: 15 | E108: 40 | H108: 27987.5 | I108: 1119500
A109: 90 | B109: 2017-04-30 | C109: 2017-05-25 | D109: 15 | E109: 40 | H109: 520.49 | I109: 20820
A110: 91 | B110: 2017-04-30 | C110: 2017-05-25 | D110: 15 | E110: 40 | H110: 87038 | I110: 3481520
A111: 92 | B111: 2017-04-30 | C111: 2017-05-25 | D111: 15 | E111: 40 | H111: 52140 | I111: 2085600
A112: 93 | B112: 2017-04-30 | C112: 2017-05-25 | D112: 15 | E112: 40 | H112: 56100 | I112: 2244000
A113: 94 | B113: 2017-04-30 | C113: 2017-05-25 | D113: 15 | E113: 40 | H113: 1835975 | I113: 73439000
F114: SALE-0309-0059 | G114: W
A115: =A113+1 -> 95 | B115: =B113+31 -> 2017-05-31 | C115: =B115+26 -> 2017-06-26 | D115: 15.5 | E115: =C115-B115+D115 -> 41.5 | F115: 1058343 | G115: W | H115: 1845740 | I115: =ROUND(E115*H115,0) -> 76598210
A116: 96 | B116: =B115 -> 2017-05-31 | C116: =B116+26 -> 2017-06-26 | D116: 15.5 | E116: 41.5 | F116: 2003081808-I | G116: W | H116: 32277 | I116: =ROUND(E116*H116,0) -> 1339496
A117: 97 | B117: =B116 -> 2017-05-31 | C117: 2017-06-26 | D117: 15.5 | E117: 41.5 | F117: 2003081809-I | G117: W | H117: 29875 | I117: =ROUND(E117*H117,0) -> 1239813
A118: 98 | B118: 2017-05-31 | C118: 2017-06-26 | D118: 15.5 | E118: 41.5 | F118: R080321162 | G118: W | H118: 49037.75 | I118: 2035067
A119: 99 | B119: 2017-05-31 | C119: 2017-06-26 | D119: 15.5 | E119: 41.5 | F119: CP4591-000001A | G119: W | H119: 23627.5 | I119: 980541
A120: 100 | B120: 2017-05-31 | C120: 2017-06-26 | D120: 15.5 | E120: 41.5 | F120: 200308-I-0065 | G120: W | H120: 154316.75 | I120: 6404145
A121: 101 | B121: 2017-05-31 | C121: 2017-06-26 | D121: 15.5 | E121: 41.5 | F121: 82619 | G121: W | H121: 618825 | I121: 25681238
A122: =A121+1 -> 102 | B122: 2017-05-31 | C122: 2017-06-26 | D122: 15.5 | E122: 41.5 | F122: 154314 | G122: W | H122: 146554.5 | I122: 6082012
A123: 103 | B123: 2017-05-31 | C123: 2017-06-26 | D123: 15.5 | E123: 41.5 | F123: 154314 | G123: W | H123: 1188 | I123: =ROUND(E123*H123,0) -> 49302
A124: 104 | B124: 2017-05-31 | C124: 2017-06-26 | D124: 15.5 | E124: 41.5 | F124: 90020239 | G124: W | H124: 86946.75 | I124: =ROUND(E124*H124,0) -> 3608290
A125: 105 | B125: 2017-05-31 | C125: 2017-06-26 | D125: 15.5 | E125: 41.5 | F125: 2003091721-I | G125: W | H125: 4014.5 | I125: =ROUND(E125*H125,0) -> 166602
A126: 106 | B126: 2017-05-31 | C126: 2017-06-26 | D126: 15.5 | E126: 41.5 | F126: R090321753 | G126: W | H126: 121395.25 | I126: =ROUND(E126*H126,0) -> 5037903
A127: 107 | B127: 2017-05-31 | C127: 2017-06-26 | D127: 15.5 | E127: 41.5 | F127: 200309-I-0057 | G127: W | H127: 110867 | I127: 4600981
A128: 108 | B128: 2017-05-31 | C128: 2017-06-26 | D128: 15.5 | E128: 41.5 | F128: S2003091082OGMC | G128: W | H128: 27676 | I128: 1148554
A129: 109 | B129: 2017-05-31 | C129: 2017-06-26 | D129: 15.5 | E129: 41.5 | F129: S-200309-0007 | G129: W | H129: 90919.5 | I129: 3773159
A130: 110 | B130: 2017-05-31 | C130: 2017-06-26 | D130: 15.5 | E130: 41.5 | F130: 85108 | G130: W | H130: 1564199.15 | I130: 64914265
A131: 111 | B131: 2017-05-31 | C131: 2017-06-26 | D131: 15.5 | E131: 41.5 | H131: 101285.5 | I131: 4203348
A132: 112 | B132: 2017-05-31 | C132: 2017-06-26 | D132: 15.5 | E132: 41.5 | H132: 14520 | I132: 602580
A133: 113 | B133: 2017-05-31 | C133: 2017-06-26 | D133: 15.5 | E133: 41.5 | H133: 30368 | I133: 1260272
A134: 114 | B134: 2017-05-31 | C134: 2017-06-26 | D134: 15.5 | E134: 41.5 | H134: 154426.75 | I134: 6408710
A135: 115 | B135: 2017-05-31 | C135: 2017-06-26 | D135: 15.5 | E135: 41.5 | H135: 96854.5 | I135: 4019462
A136: 116 | B136: 2017-05-31 | C136: 2017-06-26 | D136: 15.5 | E136: 41.5 | H136: 90014.5 | I136: 3735602
A137: 117 | B137: 2017-05-31 | C137: 2017-06-26 | D137: 15.5 | E137: 41.5 | H137: 23142 | I137: 960393
A138: 118 | B138: 2017-05-31 | C138: 2017-06-26 | D138: 15.5 | E138: 41.5 | H138: 13738.75 | I138: 570158
A139: 119 | B139: 2017-05-31 | C139: 2017-06-26 | D139: 15.5 | E139: =C139-B139+D139 -> 41.5 | H139: 6147.75 | I139: =ROUND(E139*H139,0) -> 255132
A140: 120 | B140: 2017-05-31 | C140: 2017-06-26 | D140: 15.5 | E140: 41.5 | H140: 52686 | I140: 2186469
A141: 121 | B141: 2017-05-31 | C141: 2017-06-26 | D141: 15.5 | E141: 41.5 | H141: 185730 | I141: 7707795
A142: 122 | B142: 2017-05-31 | C142: 2017-06-26 | D142: 15.5 | E142: 41.5 | H142: 87748.75 | I142: 3641573
A143: 123 | B143: 2017-05-31 | C143: 2017-06-26 | D143: 15.5 | E143: 41.5 | H143: 32395 | I143: 1344393
A144: 124 | B144: 2017-05-31 | C144: 2017-06-26 | D144: 15.5 | E144: 41.5 | H144: 20037.5 | I144: 831556
A145: 125 | B145: 2017-05-31 | C145: 2017-06-26 | D145: 15.5 | E145: 41.5 | H145: 7674.75 | I145: 318502
A146: 126 | B146: 2017-05-31 | C146: 2017-06-26 | D146: 15.5 | E146: 41.5 | H146: 507939.75 | I146: 21079500
A147: 127 | B147: 2017-05-31 | C147: 2017-06-26 | D147: 15.5 | E147: 41.5 | H147: 210.38 | I147: 8731
A148: 128 | B148: 2017-05-31 | C148: 2017-06-26 | D148: 15.5 | E148: 41.5 | H148: 30078.5 | I148: 1248258
A149: 129 | B149: 2017-05-31 | C149: 2017-06-26 | D149: 15.5 | E149: 41.5 | H149: 21937.5 | I149: 910406
A150: 130 | B150: 2017-05-31 | C150: 2017-06-26 | D150: 15.5 | E150: 41.5 | H150: 271394.18 | I150: 11262858
A151: 131 | B151: 2017-05-31 | C151: 2017-06-26 | D151: 15.5 | E151: =C151-B151+D151 -> 41.5 | H151: 276300 | I151: =ROUND(E151*H151,0) -> 11466450
F152: 85108 | G152: W
A153: =A151+1 -> 132 | B153: =B138+30 -> 2017-06-30 | C153: =B153+25 -> 2017-07-25 | D153: 15 | E153: =C153-B153+D153 -> 40 | F153: SALE-0311-0159 | G153: W | H153: 93621.47 | I153: 3744859
A154: 133 | B154: =B153 -> 2017-06-30 | C154: =B154+25 -> 2017-07-25 | D154: 15 | E154: =C154-B154+D154 -> 40 | F154: 1062207 | G154: W | H154: 58234.75 | I154: 2329390
A155: 134 | B155: =B154 -> 2017-06-30 | C155: 2017-07-25 | D155: 15 | E155: =C155-B155+D155 -> 40 | F155: 71305909 | G155: W | H155: 28000 | I155: 1120000
A156: 135 | B156: 2017-06-30 | C156: 2017-07-25 | D156: 15 | E156: =C156-B156+D156 -> 40 | F156: 2003101057-I | G156: W | H156: 27637.5 | I156: 1105500
A157: 136 | B157: 2017-06-30 | C157: 2017-07-25 | D157: 15 | E157: =C157-B157+D157 -> 40 | F157: 2003101058-I | G157: W | H157: 11560 | I157: 462400
A158: 137 | B158: 2017-06-30 | C158: 2017-07-25 | D158: 15 | E158: =C158-B158+D158 -> 40 | H158: 272582 | I158: 10903280
A159: 138 | B159: 2017-06-30 | C159: 2017-07-25 | D159: 15 | E159: 40 | H159: 140317 | I159: 5612680
A160: 139 | B160: 2017-06-30 | C160: 2017-07-25 | D160: 15 | E160: 40 | H160: 97496.25 | I160: 3899850
A161: 140 | B161: 2017-06-30 | C161: 2017-07-25 | D161: 15 | E161: 40 | H161: 28000 | I161: 1120000
A162: 141 | B162: 2017-06-30 | C162: 2017-07-25 | D162: 15 | E162: 40 | H162: 398482 | I162: 15939280
A163: 142 | B163: 2017-06-30 | C163: 2017-07-25 | D163: 15 | E163: 40 | H163: 45305 | I163: 1812200
A164: 143 | B164: 2017-06-30 | C164: 2017-07-25 | D164: 15 | E164: 40 | H164: 73587 | I164: 2943480
A165: 144 | B165: 2017-06-30 | C165: 2017-07-25 | D165: 15 | E165: 40 | H165: 1184044 | I165: 47361760
A166: 145 | B166: 2017-06-30 | C166: 2017-07-25 | D166: 15 | E166: 40 | H166: 201874.5 | I166: 8074980
A167: 146 | B167: 2017-06-30 | C167: 2017-07-25 | D167: 15 | E167: 40 | H167: 33113.5 | I167: 1324540
A168: 147 | B168: 2017-06-30 | C168: 2017-07-25 | D168: 15 | E168: 40 | H168: 1398740.11 | I168: 55949604
A169: 148 | B169: 2017-06-30 | C169: 2017-07-25 | D169: 15 | E169: 40 | H169: 69337.5 | I169: 2773500
A170: 149 | B170: 2017-06-30 | C170: 2017-07-25 | D170: 15 | E170: 40 | H170: 73956.25 | I170: 2958250
A171: 150 | B171: 2017-06-30 | C171: 2017-07-25 | D171: 15 | E171: 40 | H171: 4110 | I171: 164400
A172: 151 | B172: 2017-06-30 | C172: 2017-07-25 | D172: 15 | E172: 40 | H172: 7384.5 | I172: 295380
A173: 152 | B173: 2017-06-30 | C173: 2017-07-25 | D173: 15 | E173: 40 | H173: 3045.4 | I173: 121816
A174: 153 | B174: 2017-06-30 | C174: 2017-07-25 | D174: 15 | E174: =C174-B174+D174 -> 40 | H174: 19965.5 | I174: =ROUND(E174*H174,0) -> 798620
A175: 154 | B175: 2017-06-30 | C175: 2017-07-25 | D175: 15 | E175: 40 | H175: 8400 | I175: 336000
A176: 155 | B176: 2017-06-30 | C176: 2017-07-25 | D176: 15 | E176: 40 | H176: 34672 | I176: 1386880
A177: 156 | B177: 2017-06-30 | C177: 2017-07-25 | D177: 15 | E177: 40 | H177: 35131.25 | I177: 1405250
A178: 157 | B178: 2017-06-30 | C178: 2017-07-25 | D178: 15 | E178: 40 | H178: 38360 | I178: 1534400
A179: 158 | B179: 2017-06-30 | C179: 2017-07-25 | D179: 15 | E179: 40 | H179: 81882.75 | I179: 3275310
A180: 159 | B180: 2017-06-30 | C180: 2017-07-25 | D180: 15 | E180: 40 | H180: 134683.5 | I180: 5387340
A181: 160 | B181: 2017-06-30 | C181: 2017-07-25 | D181: 15 | E181: 40 | H181: 510038.75 | I181: 20401550
A182: 161 | B182: 2017-06-30 | C182: 2017-07-25 | D182: 15 | E182: 40 | H182: 46.8 | I182: 1872
A183: 162 | B183: 2017-06-30 | C183: 2017-07-25 | D183: 15 | E183: 40 | H183: 85731 | I183: 3429240
A184: 163 | B184: 2017-06-30 | C184: 2017-07-25 | D184: 15 | E184: 40 | H184: 124760 | I184: 4990400
A185: 164 | B185: 2017-06-30 | C185: 2017-07-25 | D185: 15 | E185: 40 | H185: 2017762.5 | I185: 80710500
F186: 2003101059-I | G186: W
A187: =A185+1 -> 165 | B187: =B173+31 -> 2017-07-31 | C187: =B187+25 -> 2017-08-25 | D187: 15.5 | E187: =C187-B187+D187 -> 40.5 | F187: 1979 | G187: W | H187: 71950 | I187: =ROUND(E187*H187,0) -> 2913975
A188: 166 | B188: =B187 -> 2017-07-31 | C188: =B188+25 -> 2017-08-25 | D188: 15.5 | E188: =C188-B188+D188 -> 40.5 | F188: R100322346 | G188: W | H188: 27075 | I188: 1096538
A189: 167 | B189: =B188 -> 2017-07-31 | C189: 2017-08-25 | D189: 15.5 | E189: =C189-B189+D189 -> 40.5 | F189: 5774 | G189: W | H189: 32909.5 | I189: 1332835
A190: 168 | B190: 2017-07-31 | C190: 2017-08-25 | D190: 15.5 | E190: =C190-B190+D190 -> 40.5 | F190: 200310-I-0060 | G190: W | H190: 42978 | I190: 1740609
A191: 169 | B191: 2017-07-31 | C191: 2017-08-25 | D191: 15.5 | E191: =C191-B191+D191 -> 40.5 | F191: S-200310-0010 | G191: W | H191: 38137.5 | I191: 1544569
A192: 170 | B192: 2017-07-31 | C192: 2017-08-25 | D192: 15.5 | E192: =C192-B192+D192 -> 40.5 | H192: 14200 | I192: 575100
A193: 171 | B193: 2017-07-31 | C193: 2017-08-25 | D193: 15.5 | E193: 40.5 | H193: 177615 | I193: 7193408
A194: 172 | B194: 2017-07-31 | C194: 2017-08-25 | D194: 15.5 | E194: 40.5 | H194: 124144 | I194: 5027832
A195: 173 | B195: 2017-07-31 | C195: 2017-08-25 | D195: 15.5 | E195: 40.5 | H195: 156613.5 | I195: 6342847
A196: 174 | B196: 2017-07-31 | C196: 2017-08-25 | D196: 15.5 | E196: 40.5 | H196: 15455 | I196: 625928
A197: 175 | B197: 2017-07-31 | C197: 2017-08-25 | D197: 15.5 | E197: 40.5 | H197: 5585 | I197: 226193
A198: 176 | B198: 2017-07-31 | C198: 2017-08-25 | D198: 15.5 | E198: 40.5 | H198: 138937 | I198: 5626949
A199: 177 | B199: 2017-07-31 | C199: 2017-08-25 | D199: 15.5 | E199: 40.5 | H199: 30140 | I199: 1220670
A200: 178 | B200: 2017-07-31 | C200: 2017-08-25 | D200: 15.5 | E200: 40.5 | H200: 142104.5 | I200: 5755232
A201: 179 | B201: 2017-07-31 | C201: 2017-08-25 | D201: 15.5 | E201: 40.5 | H201: 1458412.61 | I201: 59065711
A202: 180 | B202: 2017-07-31 | C202: 2017-08-25 | D202: 15.5 | E202: 40.5 | H202: 1779896.78 | I202: 72085820
A203: 181 | B203: 2017-07-31 | C203: 2017-08-25 | D203: 15.5 | E203: 40.5 | H203: 122892.5 | I203: 4977146
... 119 more rows

Sheet Sh 4b - Transportation
H1: ='(WP) Instructions & Input'!B11 -> Exhibit No.: ________ | J1: Source: Sean Liggett/Brad Ranney | N1: KY PSC Case No. 2021-00183
H2: ='(WP) Instructions & Input'!B12 -> Witness: L. A. Guilbert | N2: Staff 3-36
I3: ='(WP) Instructions & Input'!B6 -> Schedule 27 | N3: Attachment B
I4: Sheet 4b
A6: ='(WP) Instructions & Input'!B2 -> Columbia Gas of Virginia, Inc.
A7: ='(WP) Instructions & Input'!B3 -> Analysis of Cash Working Capital Requirement
A8: Gas Purchased - Transportation Costs
A9: ='(WP) Instructions & Input'!B4 -> TME: December 31, 2017
A10: ='(WP) Instructions & Input'!B9 -> Case No. PUR-2018-00131
D12: Midpoint of
A13: Line | B13: Service | C13: Payment | D13: Service | E13: Lag | F13: INVOICE | G13: PAYMENT | I13: Weighted
A14: No. | B14: Month | C14: Date | D14: Period | E14: Days | F14: NUMBER | G14: TYPE | H14: Payment | I14: Days
B15: (1) | C15: (2) | D15: (3) | E15: (4)=(2-1+3) | H15: (5) | I15: (6)=(4*5)
A17: 1 | B17: =42369-334+365+366 -> 2017-01-31 | C17: 2017-02-21 | D17: 15.5 | E17: =C17-B17+D17 -> 36.5 | F17: 200302-1561 | G17: W | H17: 167263.66 | I17: =ROUND(E17*H17,0) -> 6105124
A18: =A17+1 -> 2 | B18: =B17 -> 2017-01-31 | C18: 2017-02-13 | D18: =D17 -> 15.5 | E18: 28.5 | F18: 2003020004AR28J | G18: W | H18: 649637.04 | I18: 18514656
A19: 3 | B19: =B18 -> 2017-01-31 | C19: 2017-02-13 | D19: =D18 -> 15.5 | E19: 28.5 | F19: 2003020004AR28J | G19: W | H19: 23978.06 | I19: 683375
A20: 4 | B20: 2017-01-31 | C20: 2017-02-23 | D20: 15.5 | E20: 38.5 | F20: TR0303-08416-14 | G20: T | H20: 185802.43 | I20: 7153394
A21: 5 | B21: 2017-01-31 | C21: 2017-02-17 | D21: 15.5 | E21: 32.5 | F21: TR0303-08416-14 | G21: T | H21: 114559.95 | I21: 3723198
A22: 6 | B22: 2017-01-31 | C22: 2017-02-21 | D22: 15.5 | E22: 36.5 | F22: 401650303 | G22: W | H22: 2769115.75 | I22: 101072725
A23: 7 | B23: 2017-01-31 | C23: 2017-02-10 | D23: 15.5 | E23: 25.5 | F23: 401660303 | G23: W | H23: 887318.69 | I23: 22626627
A24: 8 | B24: 2017-01-31 | C24: 2017-02-21 | D24: 15.5 | E24: 36.5 | F24: TR0303-08416-51 | G24: T | H24: 3002.16 | I24: 109579
A25: 9 | B25: 2017-01-31 | C25: 2017-02-16 | D25: 15.5 | E25: 31.5 | F25: 200303-0134 | G25: W | H25: 783265.43 | I25: =ROUND(E25*H25,0) -> 24672861
F26: 200303-0167 | G26: W
A27: =A25+1 -> 10 | B27: =B25+28 -> 2017-02-28 | C27: 2017-03-10 | D27: 14 | E27: =C27-B27+D27 -> 24 | F27: 200303-0298 | G27: W | H27: 798695.24 | I27: 19168686
A28: 11 | B28: =B27 -> 2017-02-28 | C28: 2017-03-13 | D28: 14 | E28: 27 | F28: 200303-0354 | G28: W | H28: 715800.04 | I28: 19326601
A29: 12 | B29: =B28 -> 2017-02-28 | C29: 2017-03-13 | D29: 14 | E29: 27 | F29: 200303-0389 | G29: W | H29: 13234.31 | I29: 357326
A30: 13 | B30: 2017-02-28 | C30: 2017-03-16 | D30: 14 | E30: 30 | F30: 200303-1056 | G30: W | H30: 749061.17 | I30: 22471835
A31: 14 | B31: 2017-02-28 | C31: 2017-03-20 | D31: 14 | E31: 34 | F31: 200303-1577 | G31: W | H31: 175361.01 | I31: 5962274
A32: 15 | B32: 2017-02-28 | C32: 2017-03-20 | D32: 14 | E32: 34 | F32: 2003030004AR28J | G32: W | H32: 107530.4 | I32: 3656034
A33: 16 | B33: 2017-02-28 | C33: 2017-03-20 | D33: 14 | E33: 34 | H33: 2852420.87 | I33: 96982310
A34: 17 | B34: 2017-02-28 | C34: 2017-03-23 | D34: =D33 -> 14 | E34: 37 | F34: TR0403-08416-14 | G34: T | H34: 185623.45 | I34: =ROUND(E34*H34,0) -> 6868068
A35: 18 | B35: 2017-02-28 | C35: 2017-03-27 | D35: =D34 -> 14 | E35: 41 | F35: TR0403-08416-14 | G35: T | H35: 583.01 | I35: 23903
F36: 401650403 | G36: W
A37: =A35+1 -> 19 | B37: =B35+31 -> 2017-03-31 | C37: 2017-04-10 | D37: 15.5 | E37: =C37-B37+D37 -> 25.5 | F37: 401660403 | G37: W | H37: 883087.08 | I37: 22518721
A38: 20 | B38: =B37 -> 2017-03-31 | C38: 2017-04-13 | D38: 15.5 | E38: 28.5 | F38: TR0403-08416-51 | G38: T | H38: 718860.04 | I38: 20487511
A39: 21 | B39: =B38 -> 2017-03-31 | C39: 2017-04-17 | D39: 15.5 | E39: 32.5 | F39: 1127 | G39: W | H39: 16077.98 | I39: 522534
A40: 22 | B40: 2017-03-31 | C40: 2017-04-17 | D40: 15.5 | E40: 32.5 | F40: 1437 | G40: W | H40: 767410.17 | I40: 24940831
A41: 23 | B41: 2017-03-31 | C41: 2017-04-20 | D41: 15.5 | E41: 35.5 | F41: 2003040004AR28J | G41: W | H41: 176365.98 | I41: 6260992
A42: 24 | B42: 2017-03-31 | C42: 2017-04-20 | D42: =D41 -> 15.5 | E42: 35.5 | H42: 110705.5 | I42: 3930045
A43: 25 | B43: 2017-03-31 | C43: 2017-04-20 | D43: =D42 -> 15.5 | E43: 35.5 | F43: TR0503-08416-14 | G43: T | H43: 442.26 | I43: =ROUND(E43*H43,0) -> 15700
A44: 26 | B44: 2017-03-31 | C44: 2017-04-24 | D44: =D43 -> 15.5 | E44: 39.5 | F44: TR0503-08416-14 | G44: T | H44: 185704.26 | I44: 7335318
A45: 27 | B45: 2017-03-31 | C45: 2017-04-24 | D45: =D44 -> 15.5 | E45: =C45-B45+D45 -> 39.5 | F45: TR0503-08416-15 | G45: T | H45: 2894092.6 | I45: =ROUND(E45*H45,0) -> 114316658
F46: 401660503 | G46: W
A47: =A45+1 -> 28 | B47: =B45+30 -> 2017-04-30 | C47: 2017-05-10 | D47: 15 | E47: =C47-B47+D47 -> 25 | F47: TR0503-08416-51 | G47: T | H47: 818257.8 | I47: 20456445
A48: 29 | B48: =B47 -> 2017-04-30 | C48: 2017-05-11 | D48: 15 | E48: 26 | F48: 2552 | G48: W | H48: 791660.04 | I48: 20583161
A49: 30 | B49: =B48 -> 2017-04-30 | C49: 2017-05-15 | D49: 15 | E49: 30 | F49: 2786 | G49: W | H49: 10869.84 | I49: 326095
A50: 31 | B50: 2017-04-30 | C50: 2017-05-15 | D50: 15 | E50: 30 | F50: 2003050004AR28J | G50: W | H50: 761774.29 | I50: 22853229
A51: 32 | B51: 2017-04-30 | C51: 2017-05-19 | D51: 15 | E51: 34 | H51: 107489.25 | I51: 3654635
A52: 33 | B52: 2017-04-30 | C52: 2017-05-22 | D52: 15 | E52: 37 | F52: TR0603-08416-14 | G52: T | H52: 176190.84 | I52: =ROUND(E52*H52,0) -> 6519061
A53: 34 | B53: 2017-04-30 | C53: 2017-05-22 | D53: 15 | E53: 37 | F53: TR0603-08416-14 | G53: T | H53: 185622.4 | I53: 6868029
A54: 35 | B54: 2017-04-30 | C54: 2017-05-22 | D54: 15 | E54: 37 | F54: 401650603 | G54: W | H54: 2161910.36 | I54: 79990683
F55: TR0603-08416-51 | G55: T
A56: =A54+1 -> 36 | B56: =B54+31 -> 2017-05-31 | C56: 2017-06-12 | D56: 15.5 | E56: =C56-B56+D56 -> 27.5 | F56: 3956 | G56: W | H56: 793260.04 | I56: 21814651
A57: 37 | B57: =B56 -> 2017-05-31 | C57: 2017-06-12 | D57: 15.5 | E57: 27.5 | F57: 4051 | G57: W | H57: 844223.02 | I57: 23216133
A58: 38 | B58: =B57 -> 2017-05-31 | C58: 2017-06-15 | D58: 15.5 | E58: 30.5 | F58: 2003060004AR28J | G58: W | H58: 11627.6 | I58: 354642
A59: 39 | B59: 2017-05-31 | C59: 2017-06-16 | D59: =D58 -> 15.5 | E59: 31.5 | H59: 839168.39 | I59: 26433804
A60: 40 | B60: 2017-05-31 | C60: 2017-06-20 | D60: 15.5 | E60: 35.5 | F60: TR0703-08416-14 | G60: T | H60: 107489.25 | I60: =ROUND(E60*H60,0) -> 3815868
A61: 41 | B61: 2017-05-31 | C61: 2017-06-20 | D61: 15.5 | E61: 35.5 | F61: TR0703-08416-14 | G61: T | H61: 365.18 | I61: 12964
A62: 42 | B62: 2017-05-31 | C62: 2017-06-22 | D62: 15.5 | E62: 37.5 | F62: 401650703 | G62: W | H62: 175352.67 | I62: 6575725
A63: 43 | B63: 2017-05-31 | C63: 2017-06-22 | D63: 15.5 | E63: 37.5 | F63: 401660703 | G63: W | H63: 1957683.15 | I63: 73413118
A64: 44 | B64: 2017-05-31 | C64: 2017-06-23 | D64: 15.5 | E64: 38.5 | F64: TR0703-08416-51 | G64: T | H64: 185622.4 | I64: 7146462
F65: 4934 | G65: W
A66: =A64+1 -> 45 | B66: =B64+30 -> 2017-06-30 | C66: 2017-07-10 | D66: 15 | E66: =C66-B66+D66 -> 25 | F66: 5160 | G66: W | H66: 816907.8 | I66: 20422695
A67: 46 | B67: =B66 -> 2017-06-30 | C67: 2017-07-13 | D67: 15 | E67: 28 | F67: 2003070004AR28J | G67: W | H67: 770609.53 | I67: 21577067
A68: 47 | B68: =B67 -> 2017-06-30 | C68: 2017-07-17 | D68: =D67 -> 15 | E68: 32 | H68: 11261.03 | I68: 360353
A69: 48 | B69: 2017-06-30 | C69: 2017-07-17 | D69: 15 | E69: 32 | F69: TR0803-08416-14 | G69: T | H69: 776693.4 | I69: =ROUND(E69*H69,0) -> 24854189
A70: 49 | B70: 2017-06-30 | C70: 2017-07-20 | D70: 15 | E70: 35 | F70: TR0803-08416-14 | G70: T | H70: 108264.25 | I70: 3789249
A71: 50 | B71: 2017-06-30 | C71: 2017-07-20 | D71: 15 | E71: 35 | F71: 401650803 | G71: W | H71: 353.4 | I71: 12369
A72: 51 | B72: 2017-06-30 | C72: 2017-07-24 | D72: 15 | E72: 39 | F72: 401660803 | G72: W | H72: 169823.88 | I72: 6623131
A73: 52 | B73: 2017-06-30 | C73: 2017-07-24 | D73: 15 | E73: 39 | F73: TR0803-08416-51 | G73: T | H73: 185622.4 | I73: 7239274
A74: 53 | B74: =B73 -> 2017-06-30 | C74: 2017-07-24 | D74: =D73 -> 15 | E74: 39 | H74: 2166718.87 | I74: 84502036
A76: =A74+1 -> 54 | B76: =B73+31 -> 2017-07-31 | C76: 2017-08-10 | D76: 15.5 | E76: =C76-B76+D76 -> 25.5 | F76: 2003080004AR28J | G76: W | H76: 844138.06 | I76: 21525521
A77: 55 | B77: =B76 -> 2017-07-31 | C77: 2017-08-11 | D77: =D76 -> 15.5 | E77: 26.5 | H77: 761640.04 | I77: 20183461
A78: 56 | B78: =B77 -> 2017-07-31 | C78: 2017-08-14 | D78: 15.5 | E78: 29.5 | F78: TR0903-08146-14 | G78: T | H78: 11894.04 | I78: =ROUND(E78*H78,0) -> 350874
A79: 57 | B79: 2017-07-31 | C79: 2017-08-14 | D79: 15.5 | E79: 29.5 | F79: TR0903-08416-14 | G79: T | H79: 765120.56 | I79: 22571057
A80: 58 | B80: 2017-07-31 | C80: 2017-08-18 | D80: 15.5 | E80: 33.5 | F80: 401650903 | G80: W | H80: 109389.25 | I80: 3664540
A81: =A80+1 -> 59 | B81: 2017-07-31 | C81: 2017-08-21 | D81: 15.5 | E81: 36.5 | F81: 401660903 | G81: W | H81: 150517.8 | I81: 5493900
A82: 60 | B82: 2017-07-31 | C82: 2017-08-21 | D82: 15.5 | E82: 36.5 | F82: TR0903-08416-51 | G82: T | H82: 185622.4 | I82: 6775218
A83: 61 | B83: 2017-07-31 | C83: 2017-08-21 | D83: 15.5 | E83: 36.5 | F83: 17592 | G83: W | H83: 2149105.77 | I83: 78442361
A84: 62 | B84: 2017-07-31 | C84: 2017-08-21 | D84: 15.5 | E84: 36.5 | F84: 17803 | G84: W | H84: 365.18 | I84: 13329
A86: =A84+1 -> 63 | B86: =B84+31 -> 2017-08-31 | C86: 2017-09-11 | D86: 15.5 | E86: =C86-B86+D86 -> 26.5 | H86: 686651.04 | I86: 18196253
A87: 64 | B87: =B86 -> 2017-08-31 | C87: 2017-09-11 | D87: =D86 -> 15.5 | E87: 26.5 | F87: TR1003-08416-14 | G87: T | H87: 844138.06 | I87: =ROUND(E87*H87,0) -> 22369659
A88: 65 | B88: =B87 -> 2017-08-31 | C88: 2017-09-18 | D88: =D87 -> 15.5 | E88: 33.5 | F88: TR1003-08416-14 | G88: T | H88: 12904.2 | I88: 432291
A89: 66 | B89: 2017-08-31 | C89: 2017-09-18 | D89: 15.5 | E89: 33.5 | F89: 401651003 | G89: W | H89: 772595.71 | I89: 25881956
A90: 67 | B90: 2017-08-31 | C90: 2017-09-20 | D90: 15.5 | E90: 35.5 | F90: 401661003 | G90: W | H90: 185720.69 | I90: 6593084
A91: 68 | B91: 2017-08-31 | C91: 2017-09-20 | D91: 15.5 | E91: 35.5 | F91: TR1003-08416-51 | G91: T | H91: 112890.5 | I91: 4007613
A92: 69 | B92: 2017-08-31 | C92: 2017-09-20 | D92: 15.5 | E92: 35.5 | F92: 18673 | G92: W | H92: 1026.74 | I92: 36449
A93: 70 | B93: 2017-08-31 | C93: 2017-09-25 | D93: 15.5 | E93: 40.5 | F93: 18976 | G93: W | H93: 150481.37 | I93: 6094495
A94: 71 | B94: 2017-08-31 | C94: 2017-09-25 | D94: 15.5 | E94: 40.5 | H94: 2160839.39 | I94: 87513995
A96: =A94+1 -> 72 | B96: =B93+30 -> 2017-09-30 | C96: 2017-10-10 | D96: 15 | E96: =C96-B96+D96 -> 25 | F96: TR0803-08416-14 | G96: T | H96: 818257.8 | I96: =ROUND(E96*H96,0) -> 20456445
A97: 73 | B97: =B96 -> 2017-09-30 | C97: 2017-10-12 | D97: =D96 -> 15 | E97: 27 | F97: TR0803-08416-14 | G97: T | H97: 691760.04 | I97: 18677521
A98: 74 | B98: =B97 -> 2017-09-30 | C98: 2017-10-16 | D98: =D97 -> 15 | E98: 31 | F98: 401650803 | G98: W | H98: 12253.96 | I98: 379873
A99: 75 | B99: 2017-09-30 | C99: 2017-10-16 | D99: 15 | E99: 31 | F99: 401660803 | G99: W | H99: 793507.79 | I99: 24598741
A100: 76 | B100: 2017-09-30 | C100: 2017-10-20 | D100: 15 | E100: 35 | F100: TR0803-08416-51 | G100: T | H100: 110770.65 | I100: 3876973
A101: 77 | B101: 2017-09-30 | C101: 2017-10-20 | D101: 15 | E101: 35 | F101: 16628 | G101: W | H101: 353.4 | I101: 12369
A102: 78 | B102: 2017-09-30 | C102: 2017-10-23 | D102: 15 | E102: 38 | F102: 16861 | G102: W | H102: 151518.12 | I102: 5757689
A103: 79 | B103: 2017-09-30 | C103: 2017-10-23 | D103: 15 | E103: 38 | F103: 2003080004AR28J | G103: W | H103: 185622.4 | I103: 7053651
A104: 80 | B104: 2017-09-30 | C104: 2017-10-23 | D104: 15 | E104: 38 | H104: 2155070.87 | I104: 81892693
F105: TR0903-08146-14 | G105: T
A106: =A104+1 -> 81 | B106: =B104+31 -> 2017-10-31 | C106: 2017-11-10 | D106: 15.5 | E106: =C106-B106+D106 -> 25.5 | F106: TR0903-08416-14 | G106: T | H106: 845533.06 | I106: 21561093
A107: 82 | B107: =B106 -> 2017-10-31 | C107: 2017-11-13 | D107: =D106 -> 15.5 | E107: 28.5 | F107: 401650903 | G107: W | H107: 808760.04 | I107: 23049661
A108: 83 | B108: =B107 -> 2017-10-31 | C108: 2017-11-13 | D108: =D107 -> 15.5 | E108: 28.5 | F108: 401660903 | G108: W | H108: 14526.43 | I108: 414003
A109: 84 | B109: 2017-10-31 | C109: 2017-11-16 | D109: 15.5 | E109: 31.5 | F109: TR0903-08416-51 | G109: T | H109: 772590.11 | I109: 24336588
A110: 85 | B110: 2017-10-31 | C110: 2017-11-20 | D110: 15.5 | E110: 35.5 | F110: 17592 | G110: W | H110: 177379.29 | I110: 6296965
A111: 86 | B111: 2017-10-31 | C111: 2017-11-20 | D111: 15.5 | E111: 35.5 | F111: 17803 | G111: W | H111: 107784.25 | I111: 3826341
A112: 87 | B112: 2017-10-31 | C112: 2017-11-20 | D112: 15.5 | E112: 35.5 | H112: 2799325.02 | I112: 99376038
A113: 88 | B113: 2017-10-31 | C113: 2017-11-20 | D113: 15.5 | E113: 35.5 | F113: TR1003-08416-14 | G113: T | H113: 23.56 | I113: 836
A114: 89 | B114: 2017-10-31 | C114: 2017-11-22 | D114: 15.5 | E114: 37.5 | F114: TR1003-08416-14 | G114: T | H114: 185622.4 | I114: 6960840
A116: =A114+1 -> 90 | B116: =B114+30 -> 2017-11-30 | C116: 2017-12-11 | D116: 15 | E116: =C116-B116+D116 -> 26 | F116: 401661003 | G116: W | H116: 809204.08 | I116: 21039306
A117: 91 | B117: =B116 -> 2017-11-30 | C117: 2017-12-11 | D117: =D116 -> 15 | E117: =C117-B117+D117 -> 26 | F117: TR1003-08416-51 | G117: T | H117: 834343.8 | I117: 21692939
A118: 92 | B118: =B117 -> 2017-11-30 | C118: 2017-12-15 | D118: =D117 -> 15 | E118: =C118-B118+D118 -> 30 | F118: 18673 | G118: W | H118: 16549.54 | I118: 496486
A119: 93 | B119: 2017-11-30 | C119: 2017-12-15 | D119: 15 | E119: =C119-B119+D119 -> 30 | F119: 18976 | G119: W | H119: 762673.69 | I119: 22880211
A120: 94 | B120: 2017-11-30 | C120: 2017-12-20 | D120: 15 | E120: =C120-B120+D120 -> 35 | F120: 2003100004AR28J | G120: W | H120: 107489.25 | I120: 3762124
A121: 95 | B121: 2017-11-30 | C121: 2017-12-22 | D121: 15 | E121: =C121-B121+D121 -> 37 | H121: 177466.86 | I121: 6566274
A122: 96 | B122: 2017-11-30 | C122: 2017-12-22 | D122: 15 | E122: 37 | H122: 2816127.28 | I122: 104196709
A123: 97 | B123: 2017-11-30 | C123: 2017-12-26 | D123: 15 | E123: 41 | H123: 185622.4 | I123: 7610518
A125: =A123+1 -> 98 | B125: =B123+31 -> 2017-12-31 | C125: 2018-01-10 | D125: 15.5 | E125: 25.5 | H125: 866143.43 | I125: 22086657
A126: 99 | B126: =B125 -> 2017-12-31 | C126: 2018-01-12 | D126: =D125 -> 15.5 | E126: 27.5 | H126: 809204.08 | I126: 22253112
A127: 100 | B127: =B126 -> 2017-12-31 | C127: 2018-01-16 | D127: =D126 -> 15.5 | E127: 31.5 | H127: 25463.03 | I127: 802085
A128: 101 | B128: =B126 -> 2017-12-31 | C128: 2018-01-16 | D128: =D126 -> 15.5 | E128: 31.5 | H128: 768551.04 | I128: 24209358
A129: 102 | B129: =B128 -> 2017-12-31 | C129: 2018-01-19 | D129: =D128 -> 15.5 | E129: 34.5 | H129: 111292.5 | I129: 3839591
A130: 103 | B130: 2017-12-31 | C130: 2018-01-22 | D130: 15.5 | E130: 37.5 | H130: 178138.23 | I130: 6680184
A131: 104 | B131: 2017-12-31 | C131: 2018-01-22 | D131: 15.5 | E131: 37.5 | H131: 185719.2 | I131: 6964470
A132: 105 | B132: 2017-12-31 | C132: 2018-01-22 | D132: 15.5 | E132: 37.5 | H132: 2840252.12 | I132: 106509455
A133: 106 | B133: 2017-12-31 | C133: 2018-01-22 | D133: 15.5 | E133: 37.5 | H133: 3225.15 | I133: 120943
A135: =A133+1 -> 107 | B135: Total | E135: =ROUND(I135/H135,2) -> 33.08 | H135: =SUM(H17:H133) -> 63902985.29 | I135: =SUM(I17:I133) -> 2113606752

Sheet Sh 5a - bi-pay
G1: ='(WP) Instructions & Input'!B11 -> Exhibit No.: ________ | L1: KY PSC Case No. 2021-00183
G2: ='(WP) Instructions & Input'!B12 -> Witness: L. A. Guilbert | L2: Staff 3-36
H3: ='(WP) Instructions & Input'!B6 -> Schedule 27 | L3: Attachment B
H4: Sheet 5a
A6: ='(WP) Instructions & Input'!B2 -> Columbia Gas of Virginia, Inc.
A7: ='(WP) Instructions & Input'!B3 -> Analysis of Cash Working Capital Requirement
A8: Bi-Weekly Gross Payroll Lead Days
A9: ='(WP) Instructions & Input'!B4 -> TME: December 31, 2017
A10: ='(WP) Instructions & Input'!B9 -> Case No. PUR-2018-00131
F12: Bi-Weekly
C13: End of | D13: Days from | F13: Gross Pay | G13: Normal | H13: Bi-Weekly
A14: Line | C14: Pay | D14: Pay Date to | E14: Service | F14: Lead | G14: Bi-Weekly | H14: Gross Pay
A15: No. | B15: Pay Dates | C15: Period | D15: Pay Period | E15: Midpoint | F15: Days | G15: Gross Pay | H15: Dollar Days
B16: (1) | C16: (2) | D16: (3) | E16: (4) | F16: (5)=(3)+(4) | G16: (6) | H16: (7)=(5)*(6)
G17: ($)
A19: 1 | B19: 2017-01-06 | C19: 2017-01-07 | D19: =B19-C19 -> -1 | E19: 7 | F19: =D19+E19 -> 6 | G19: 774990.53 | H19: =G19*F19 -> 4649943.18
A20: =A19+1 -> 2 | B20: 2017-01-20 | C20: 2017-01-21 | D20: =B20-C20 -> -1 | E20: =$E$19 -> 7 | F20: =D20+E20 -> 6 | G20: 708265.95 | H20: 4249595.7
A21: =A20+1 -> 3 | B21: 2017-02-03 | C21: 2017-02-04 | D21: -1 | E21: =$E$19 -> 7 | F21: 6 | G21: 742597.81 | H21: 4455586.86
A22: =A21+1 -> 4 | B22: 2017-02-17 | C22: 2017-02-18 | D22: -1 | E22: 7 | F22: 6 | G22: 741617.72 | H22: 4449706.32
A23: 5 | B23: 2017-03-03 | C23: 2017-03-04 | D23: -1 | E23: 7 | F23: 6 | G23: 1600061.03 | H23: 9600366.18
A24: =A23+1 -> 6 | B24: 2017-03-17 | C24: 2017-03-18 | D24: -1 | E24: 7 | F24: 6 | G24: 732531.76 | H24: 4395190.56
A25: 7 | B25: 2017-03-31 | C25: 2017-04-01 | D25: -1 | E25: 7 | F25: 6 | G25: 756689.95 | H25: 4540139.7
A26: 8 | B26: 2017-04-14 | C26: 2017-04-15 | D26: -1 | E26: 7 | F26: 6 | G26: 792220.91 | H26: 4753325.46
A27: =A26+1 -> 9 | B27: 2017-04-28 | C27: 2017-04-29 | D27: -1 | E27: 7 | F27: 6 | G27: 766425.8 | H27: 4598554.8
A28: 10 | B28: 2017-05-12 | C28: 2017-05-13 | D28: -1 | E28: 7 | F28: 6 | G28: 751741.84 | H28: 4510451.04
A29: 11 | B29: 2017-05-26 | C29: 2017-05-27 | D29: -1 | E29: 7 | F29: 6 | G29: 806851.69 | H29: 4841110.14
A30: =A29+1 -> 12 | B30: 2017-06-09 | C30: 2017-06-10 | D30: -1 | E30: 7 | F30: 6 | G30: 811552.69 | H30: 4869316.14
A31: 13 | B31: 2017-06-23 | C31: 2017-06-24 | D31: -1 | E31: 7 | F31: 6 | G31: 803960.01 | H31: 4823760.06
A32: =A31+1 -> 14 | B32: 2017-07-07 | C32: 2017-07-08 | D32: -1 | E32: 7 | F32: 6 | G32: 787241.9 | H32: 4723451.4
A33: 15 | B33: 2017-07-21 | C33: 2017-07-22 | D33: -1 | E33: 7 | F33: 6 | G33: 807477.08 | H33: 4844862.48
A34: 16 | B34: 2017-08-04 | C34: 2017-08-05 | D34: -1 | E34: 7 | F34: 6 | G34: 827887.23 | H34: 4967323.38
A35: =A34+1 -> 17 | B35: 2017-08-18 | C35: 2017-08-19 | D35: -1 | E35: 7 | F35: 6 | G35: 821816.21 | H35: 4930897.26
A36: 18 | B36: 2017-09-01 | C36: 2017-09-02 | D36: -1 | E36: 7 | F36: 6 | G36: 813716.09 | H36: 4882296.54
A37: 19 | B37: 2017-09-15 | C37: 2017-09-16 | D37: -1 | E37: 7 | F37: 6 | G37: 799868.06 | H37: 4799208.36
A38: =A37+1 -> 20 | B38: 2017-09-29 | C38: 2017-09-30 | D38: -1 | E38: 7 | F38: 6 | G38: 815079.7 | H38: 4890478.2
A39: 21 | B39: 2017-10-13 | C39: 2017-10-14 | D39: -1 | E39: 7 | F39: 6 | G39: 855304.74 | H39: 5131828.44
A40: =A39+1 -> 22 | B40: 2017-10-27 | C40: 2017-10-28 | D40: -1 | E40: 7 | F40: 6 | G40: 843835.52 | H40: 5063013.12
A41: 23 | B41: 2017-11-09 | C41: 2017-11-11 | D41: -2 | E41: 7 | F41: 5 | G41: 862779.64 | H41: 4313898.2
A42: 24 | B42: 2017-11-22 | C42: 2017-11-25 | D42: -3 | E42: 7 | F42: 4 | G42: 862352.28 | H42: 3449409.12
A43: =A42+1 -> 25 | B43: 2017-12-08 | C43: 2017-12-09 | D43: -1 | E43: 7 | F43: 6 | G43: 858164.9 | H43: 5148989.4
A44: =A43+1 -> 26 | B44: 2017-12-22 | C44: 2017-12-23 | D44: -1 | E44: 7 | F44: 6 | G44: 869608.87 | H44: 5217653.22
A46: =A44+1 -> 27 | E46: Bi-Weekly Lead Days | F46: =ROUND(H46/G46,2) -> 5.88 | G46: =ROUND((SUM(G19:G44)),0) -> 21614640 | H46: =ROUND((SUM(H19:H44)),0) -> 127100355
A48: Payroll is funded on payday.
A50: Payment leads days represents days from midpoint of pay period to end of pay period.

Sheet Sh 5b - month-pay
F1: ='(WP) Instructions & Input'!B11 -> Exhibit No.: ________ | K1: KY PSC Case No. 2021-00183
F2: ='(WP) Instructions & Input'!B12 -> Witness: L. A. Guilbert | K2: Staff 3-36
F3: ='(WP) Instructions & Input'!B6 -> Schedule 27 | K3: Attachment B
G4: Sheet 5b
A6: ='(WP) Instructions & Input'!B2 -> Columbia Gas of Virginia, Inc.
A7: ='(WP) Instructions & Input'!B3 -> Analysis of Cash Working Capital Requirement
A8: Monthly Gross Payroll Lead Days
A9: ='(WP) Instructions & Input'!B4 -> TME: December 31, 2017
A10: ='(WP) Instructions & Input'!B9 -> Case No. PUR-2018-00131
E12: Monthly
E13: Gross Pay | F13: Normal | G13: Monthly
A14: Line | B14: Monthly | C14: End of Pay | D14: Service | E14: Lead | F14: Monthly | G14: Gross Pay
A15: No. | B15: Pay Dates | C15: Period | D15: Midpoint | E15: Days | F15: Gross Pay | G15: Dollar Days
B16: (1) | C16: (2) | D16: (3) | E16: (4)=(1)-(2)+(3) | F16: (5) | G16: (6)=(4)*(5)
F17: ($)
A19: 1 | B19: 2017-01-31 | C19: 2017-01-31 | D19: 15.5 | E19: =B19-C19+D19 -> 15.5 | F19: 571511.95 | G19: =ROUND(F19*E19,0) -> 8858435
A20: =A19+1 -> 2 | B20: 2017-02-28 | C20: 2017-02-28 | D20: 14 | E20: =B20-C20+D20 -> 14 | F20: 1554834.09 | G20: 21767677
A21: 3 | B21: 2017-03-31 | C21: 2017-03-31 | D21: 15.5 | E21: =B21-C21+D21 -> 15.5 | F21: 647498.96 | G21: 10036234
A22: 4 | B22: 2017-04-28 | C22: 2017-04-30 | D22: 15 | E22: 13 | F22: 583155.84 | G22: 7581026
A23: 5 | B23: 2017-05-31 | C23: 2017-05-31 | D23: 15.5 | E23: 15.5 | F23: 604015.38 | G23: 9362238
A24: 6 | B24: 2017-06-30 | C24: 2017-06-30 | D24: 15 | E24: 15 | F24: 614471.2 | G24: 9217068
A25: 7 | B25: 2017-07-31 | C25: 2017-07-31 | D25: 15.5 | E25: 15.5 | F25: 598515.91 | G25: 9276997
A26: 8 | B26: 2017-08-31 | C26: 2017-08-31 | D26: 15.5 | E26: 15.5 | F26: 598508.67 | G26: 9276884
A27: 9 | B27: 2017-09-29 | C27: 2017-09-30 | D27: 15 | E27: 14 | F27: 606751.37 | G27: 8494519
A28: 10 | B28: 2017-10-31 | C28: 2017-10-31 | D28: 15.5 | E28: 15.5 | F28: 606990.31 | G28: 9408350
A29: 11 | B29: 2017-11-30 | C29: 2017-11-30 | D29: 15 | E29: 15 | F29: 661162.53 | G29: 9917438
A30: 12 | B30: 2017-12-29 | C30: 2017-12-31 | D30: 15.5 | E30: 13.5 | F30: 625484.05 | G30: 8444035
A32: =A30+1 -> 13 | D32: Monthly Lead Days | E32: =ROUND(G32/F32,2) -> 14.7 | F32: =ROUND((SUM(F19:F30)),0) -> 8272900 | G32: =ROUND((SUM(G19:G30)),0) -> 121640901
A34: Payroll is funded on payday.
A36: Payment leads days represents days from midpoint of pay period to end of pay period.

Sheet Sh 6 - OPEB (do not file) (hidden)
I1: ='(WP) Instructions & Input'!B11 -> Exhibit No.: ________
I2: ='(WP) Instructions & Input'!B12 -> Witness: L. A. Guilbert
I3: ='(WP) Instructions & Input'!B6 -> Schedule 27
I4: Sheet 6
A6: ='(WP) Instructions & Input'!B2 -> Columbia Gas of Virginia, Inc.
A7: ='(WP) Instructions & Input'!B3 -> Analysis of Cash Working Capital Requirement
A8: OPEB Costs
A9: ='(WP) Instructions & Input'!B4 -> TME: December 31, 2017
A10: ='(WP) Instructions & Input'!B9 -> Case No. PUR-2018-00131
D12: Midpoint
A13: Line | B13: End of | C13: Payment | D13: of Service | E13: Amount | F13: Lead | G13: Lead
A14: No. | B14: Service Period | C14: Date | D14: Period | E14: Paid | F14: Days | G14: Days
B15: (1) | C15: (2) | D15: (3) | E15: (4) | F15: (5)=(2-1+3) | G15: (6)=(4x5) | I15: Notes
E16: $ | G16: $
A18: 1 | B18: 2014-12-31 | C18: 2015-01-31 | D18: 15.5 | E18: 23390.36 | F18: =C18-B18+D18 -> 46.5 | G18: =ROUND(F18*E18,0) -> 1087652 | I18: Retiree Deferral
A19: =+A18+1 -> 2 | B19: 2015-01-31 | C19: 2015-02-28 | D19: 15.5 | E19: 21934.91 | F19: =C19-B19+D19 -> 43.5 | G19: =ROUND(F19*E19,0) -> 954169 | I19: Retiree Deferral
A20: =+A19+1 -> 3 | B20: 2015-02-28 | C20: 2015-03-30 | D20: 14 | E20: 13408.17 | F20: 44 | G20: 589959 | I20: Retiree Deferral
A21: 4 | B21: 2015-02-28 | C21: 2015-03-30 | D21: 45 | E21: -58733.44 | F21: 75 | G21: -4405008 | I21: Reimbursement from Trust
A22: 5 | B22: 2015-03-31 | C22: 2015-03-30 | D22: 45 | E22: 50000 | F22: 44 | G22: 2200000 | I22: Payment to Trust
A23: 6 | B23: 2015-03-31 | C23: 2015-04-30 | D23: 15.5 | E23: 14337.84 | F23: 45.5 | G23: 652372 | I23: Retiree Deferral
A24: 7 | B24: 2015-04-30 | C24: 2015-05-31 | D24: 15 | E24: 20694.75 | F24: 46 | G24: 951959 | I24: Retiree Deferral
A25: 8 | B25: 2015-05-31 | C25: 2015-06-30 | D25: 15.5 | E25: 20880.24 | F25: 45.5 | G25: 950051 | I25: Retiree Deferral
A26: 9 | B26: 2015-05-31 | C26: 2015-06-30 | D26: 46 | E26: -55912.83 | F26: 76 | G26: -4249375 | I26: Reimbursement from Trust
A27: 10 | B27: 2015-06-30 | C27: 2015-06-19 | D27: 45.5 | E27: 50000 | F27: 34.5 | G27: 1725000 | I27: Payment to Trust
A28: 11 | B28: 2015-06-30 | C28: 2015-07-31 | D28: 15 | E28: 26452.67 | F28: 46 | G28: 1216823 | I28: Retiree Deferral
A29: 12 | B29: 2015-07-31 | C29: 2015-08-31 | D29: 15.5 | E29: 17580.45 | F29: 46.5 | G29: 817491 | I29: Retiree Deferral
A30: 13 | B30: 2015-08-31 | C30: 2015-09-30 | D30: 15.5 | E30: 21011.35 | F30: 45.5 | G30: 956016 | I30: Retiree Deferral
A31: 14 | B31: 2015-08-31 | C31: 2015-09-28 | D31: 46 | E31: -58586.09 | F31: 74 | G31: -4335371 | I31: Reimbursement from Trust
A32: 15 | B32: 2015-09-30 | C32: 2015-09-25 | D32: 46 | E32: 50000 | F32: 41 | G32: 2050000 | I32: Payment to Trust
A33: 16 | B33: 2015-09-30 | C33: 2015-10-31 | D33: 15 | E33: 17376.37 | F33: 46 | G33: 799313 | I33: Retiree Deferral
A34: 17 | B34: 2015-10-31 | C34: 2015-11-30 | D34: 15.5 | E34: 22034.07 | F34: 45.5 | G34: 1002550 | I34: Retiree Deferral
A35: 18 | B35: 2015-11-30 | C35: 2015-12-31 | D35: 15 | E35: 32043.02 | F35: 46 | G35: 1473979 | I35: Retiree Deferral
A36: 19 | B36: 2015-11-30 | C36: 2015-12-28 | D36: 45.5 | E36: -77911.83 | F36: 73.5 | G36: -5726520 | I36: Reimbursement from Trust
A37: 20 | B37: 2015-12-31 | C37: 2015-12-28 | D37: 46 | E37: 50000 | F37: 43 | G37: 2150000 | I37: Payment to Trust
A38: 21
A39: 22 | B39: Total | E39: =SUM(E18:E37) -> 200000.01 | F39: =ROUND(G39/E39,2) -> 4.31 | G39: =SUM(G18:G37) -> 861060

Sheet Sh 6 - uncoll
C1: ='(WP) Instructions & Input'!B11 -> Exhibit No.: ________ | F1: KY PSC Case No. 2021-00183
C2: ='(WP) Instructions & Input'!B12 -> Witness: L. A. Guilbert | F2: Staff 3-36
C3: ='(WP) Instructions & Input'!B6 -> Schedule 27 | F3: Attachment B
C4: Sheet 6
A8: ='(WP) Instructions & Input'!B2 -> Columbia Gas of Virginia, Inc.
A9: ='(WP) Instructions & Input'!B3 -> Analysis of Cash Working Capital Requirement
A10: Uncollectible Expense
A11: ='(WP) Instructions & Input'!B4 -> TME: December 31, 2017
A12: ='(WP) Instructions & Input'!B9 -> Case No. PUR-2018-00131
A14: Line
A15: No. | B15: Component Description | C15: Days
A17: 1 | B17: Midpoint of Service Month | C17: ='Sh 3 - revlag'!C16 -> 15.21
A18: =A17+1 -> 2 | B18: Billing Lag | C18: ='Sh 3 - revlag'!C18 -> 2.64
A19: =A18+1 -> 3 | B19: Charge Off (1) | C19: 120
A20: =A19+1 -> 4 | B20: Total Uncollectible Expense Lead Days | C20: =SUM(C17:C19) -> 137.85
A24: ="(1) Unpaid accounts are charged off after 120 days per Columbia's collections/charge off process." -> (1) Unpaid accounts are charged off after 120 days per Columbia's collections/charge off process.

Sheet Sh 7 - Other O&M
F1: ='(WP) Instructions & Input'!B11 -> Exhibit No.: ________ | K1: KY PSC Case No. 2021-00183
F2: ='(WP) Instructions & Input'!B12 -> Witness: L. A. Guilbert | K2: Staff 3-36
H3: ='(WP) Instructions & Input'!$B$6 -> Schedule 27 | K3: Attachment B
H4: Sheet 7
A6: ='(WP) Instructions & Input'!B2 -> Columbia Gas of Virginia, Inc.
A7: ='(WP) Instructions & Input'!B3 -> Analysis of Cash Working Capital Requirement
A8: Other O & M Costs
A9: ='(WP) Instructions & Input'!B4 -> TME: December 31, 2017
A10: ='(WP) Instructions & Input'!B9 -> Case No. PUR-2018-00131
C14: Approved | F14: Dollar
A15: Line | C15: Check | D15: Lead | F15: Weighted | H15: Lead
A16: No. | B16: Description | C16: Amount | D16: Days | E16: Notes | F16: Days | G16: Percentage | H16: Days
B17: (1) | C17: (2) | D17: (3)=(5/2) | E17: (4) | F17: (5) | G17: (6) | H17: (7)=(3)*(6)
C18: $ | G18: %
A20: 1 | B20: Total Work Management Contracts | C20: 5034445.9 | D20: =ROUND(F20/C20,2) -> 33.53 | E20: 1_/ | F20: 168821809 | G20: 0.7157 | H20: =ROUND(D20*G20,2) -> 24
A22: =A20+1 -> 2 | B22: Total General Office Source | C22: 1346840.08 | D22: =ROUND(F22/C22,2) -> 34.25 | E22: 2_/ | F22: 46132157.67 | G22: 0.2843 | H22: =ROUND(D22*G22,2) -> 9.74
A24: =A22+1 -> 3 | B24: Total | C24: =+C20+C22 -> 6381285.98 | F24: =+F20+F22 -> 214953966.7 | G24: =+G20+G22 -> 1 | H24: =+H20+H22 -> 33.74
A28: Notes:
A30: 1_/ | B30: This data are made up of numerous invoices and is maintained in an excel spreadsheet.
B31: An electronic copy of this data may be provided upon request.
A33: 2_/ | B33: Days were based on 400 invoices randomly selected from the company's accounts payable system.

Sheet Sh 8 - Payroll Taxes
E1: ='(WP) Instructions & Input'!B11 -> Exhibit No.: ________ | I1: KY PSC Case No. 2021-00183
E2: ='(WP) Instructions & Input'!B12 -> Witness: L. A. Guilbert | I2: Staff 3-36
F3: ='(WP) Instructions & Input'!B6 -> Schedule 27 | I3: Attachment B
F4: Sheet 8
A6: ='(WP) Instructions & Input'!B2 -> Columbia Gas of Virginia, Inc.
A7: ='(WP) Instructions & Input'!B3 -> Analysis of Cash Working Capital Requirement
A8: Company Paid Payroll Taxes
A9: ='(WP) Instructions & Input'!B4 -> TME: December 31, 2017
A10: ='(WP) Instructions & Input'!B9 -> Case No. PUR-2018-00131
F13: Dollar
A14: Line | D14: Payroll | E14: Lead | F14: Lead
A15: No. | B15: Description | C15: Reference | D15: Costs | E15: Days | F15: Days
D16: (1) | E16: (2) | F16: (3)
D17: $ | F17: $
A19: 1 | B19: F.I.C.A. | C19: Sheet 8a | D19: ='Sh 8a Pg 1 fica-bi'!D46+'Sh 8a Pg 2 fica-mo'!D31 -> 4330119.94 | E19: ='Sh 8a - FICA'!E20 -> 8.25 | F19: ='Sh 8a - FICA'!F20 -> 35716908
A20: 2 | B20: Federal Unemployment | C20: Sheet 8b | D20: ='Sh 8b - FUTA,SUTA'!F57 -> 15153.03 | E20: ='Sh 8b - FUTA,SUTA'!H59 -> 74.5 | F20: ='Sh 8b - FUTA,SUTA'!H57 -> 1128903
A21: 3 | B21: State Unemployment | C21: Sheet 8b | D21: ='Sh 8b - FUTA,SUTA'!G57 -> 8746.54 | E21: ='Sh 8b - FUTA,SUTA'!I59 -> 74.5 | F21: ='Sh 8b - FUTA,SUTA'!I57 -> 651619
A23: 4 | C23: Total | D23: =SUM(D19:D21) -> 4354019.51 | E23: =ROUND(F23/D23,2) -> 8.61 | F23: =SUM(F19:F21) -> 37497430

Sheet Sh 8a - FICA
E1: ='(WP) Instructions & Input'!B11 -> Exhibit No.: ________ | I1: KY PSC Case No. 2021-00183
E2: ='(WP) Instructions & Input'!B12 -> Witness: L. A. Guilbert | I2: Staff 3-36
F3: ='(WP) Instructions & Input'!B6 -> Schedule 27 | I3: Attachment B
F4: Sheet 8a
A6: ='(WP) Instructions & Input'!B2 -> Columbia Gas of Virginia, Inc.
A7: ='(WP) Instructions & Input'!B3 -> Analysis of Cash Working Capital Requirement
A8: Employee's FICA Withheld Lead Day Calculation
A9: ='(WP) Instructions & Input'!B4 -> TME: December 31, 2017
A10: ='(WP) Instructions & Input'!B9 -> Case No. PUR-2018-00131
D12: Employee's | F12: Dollar
A13: Line | D13: FICA | E13: Lead | F13: Weighted
A14: No. | B14: Pay Type | C14: Reference | D14: Withholding | E14: Days | F14: Days
D15: (1) | E15: (2) | F15: (3)
A17: 1 | B17: Bi-Weekly | C17: Sheet 8a, Page 1 | D17: =+'Sh 8a Pg 1 fica-bi'!D46 -> 3167968 | E17: =+'Sh 8a Pg 1 fica-bi'!F46 -> 5.88 | F17: =+'Sh 8a Pg 1 fica-bi'!G46 -> 18629815
A18: =A17+1 -> 2 | B18: Monthly | C18: Sheet 8a, Page 2 | D18: =+'Sh 8a Pg 2 fica-mo'!D31 -> 1162151.94 | E18: =+'Sh 8a Pg 2 fica-mo'!F31 -> 14.7 | F18: =+'Sh 8a Pg 2 fica-mo'!G31 -> 17087093
A20: =A18+1 -> 3 | C20: Total | D20: =SUM(D16:D18) -> 4330119.94 | E20: =ROUND(F20/D20,2) -> 8.25 | F20: =SUM(F16:F18) -> 35716908

Sheet Sh 8a Pg 1 fica-bi
F1: ='(WP) Instructions & Input'!B11 -> Exhibit No.: ________ | L1: KY PSC Case No. 2021-00183
F2: ='(WP) Instructions & Input'!B12 -> Witness: L. A. Guilbert | L2: Staff 3-36
G3: ='(WP) Instructions & Input'!B6 -> Schedule 27 | L3: Attachment B
G4: Sheet 8a, Page 1
A6: ='(WP) Instructions & Input'!B2 -> Columbia Gas of Virginia, Inc.
A7: ='(WP) Instructions & Input'!B3 -> Analysis of Cash Working Capital Requirement
A8: Payroll Taxes - FICA BI-Weekly
A9: ='(WP) Instructions & Input'!B4 -> TME: December 31, 2017
A10: ='(WP) Instructions & Input'!B9 -> Case No. PUR-2018-00131
D12: Total
C13: Days From | D13: Bi-Weekly
A14: Line | C14: Midpoint | D14: FICA | E14: Deposit | F14: Lead | G14: Weighted
A15: No. | B15: Pay Date | C15: To Pay 1/ | D15: Withheld | E15: Date 2/ | F15: Days | G15: Payroll
B16: (1) | C16: (2) | D16: (3) | E16: (4) | F16: (5) | G16: (6=3x5)
D17: ($)
A19: 1 | B19: ='Sh 5a - bi-pay'!B19 -> 2017-01-06 | C19: ='Sh 5a - bi-pay'!F19 -> 6 | D19: 113162.34 | E19: =B19 -> 2017-01-06 | F19: =C19+(E19-B19) -> 6 | G19: =ROUND(+D19*F19,0) -> 678974
A20: =A19+1 -> 2 | B20: ='Sh 5a - bi-pay'!B20 -> 2017-01-20 | C20: ='Sh 5a - bi-pay'!F20 -> 6 | D20: 102828.62 | E20: =B20 -> 2017-01-20 | F20: 6 | G20: 616972
A21: =A20+1 -> 3 | B21: ='Sh 5a - bi-pay'!B21 -> 2017-02-03 | C21: ='Sh 5a - bi-pay'!F21 -> 6 | D21: 108064.2 | E21: 2017-02-03 | F21: 6 | G21: 648385
A22: 4 | B22: ='Sh 5a - bi-pay'!B22 -> 2017-02-17 | C22: ='Sh 5a - bi-pay'!F22 -> 6 | D22: 107730.6 | E22: 2017-02-17 | F22: 6 | G22: 646384
A23: 5 | B23: ='Sh 5a - bi-pay'!B23 -> 2017-03-03 | C23: ='Sh 5a - bi-pay'!F23 -> 6 | D23: 239158.5 | E23: 2017-03-03 | F23: 6 | G23: 1434951
A24: 6 | B24: ='Sh 5a - bi-pay'!B24 -> 2017-03-17 | C24: ='Sh 5a - bi-pay'!F24 -> 6 | D24: 106562.82 | E24: 2017-03-17 | F24: 6 | G24: 639377
A25: 7 | B25: ='Sh 5a - bi-pay'!B25 -> 2017-03-31 | C25: ='Sh 5a - bi-pay'!F25 -> 6 | D25: 115773.14 | E25: 2017-03-31 | F25: 6 | G25: 694639
A26: 8 | B26: ='Sh 5a - bi-pay'!B26 -> 2017-04-14 | C26: ='Sh 5a - bi-pay'!F26 -> 6 | D26: 115556.52 | E26: 2017-04-14 | F26: 6 | G26: 693339
A27: 9 | B27: ='Sh 5a - bi-pay'!B27 -> 2017-04-28 | C27: ='Sh 5a - bi-pay'!F27 -> 6 | D27: 111501.58 | E27: 2017-04-28 | F27: 6 | G27: 669009
A28: 10 | B28: ='Sh 5a - bi-pay'!B28 -> 2017-05-12 | C28: ='Sh 5a - bi-pay'!F28 -> 6 | D28: 109260.52 | E28: 2017-05-12 | F28: 6 | G28: 655563
A29: 11 | B29: ='Sh 5a - bi-pay'!B29 -> 2017-05-26 | C29: ='Sh 5a - bi-pay'!F29 -> 6 | D29: 117666.52 | E29: 2017-05-26 | F29: 6 | G29: 705999
A30: 12 | B30: ='Sh 5a - bi-pay'!B30 -> 2017-06-09 | C30: ='Sh 5a - bi-pay'!F30 -> 6 | D30: 118441.86 | E30: 2017-06-09 | F30: 6 | G30: 710651
A31: 13 | B31: ='Sh 5a - bi-pay'!B31 -> 2017-06-23 | C31: ='Sh 5a - bi-pay'!F31 -> 6 | D31: 117247.08 | E31: 2017-06-23 | F31: 6 | G31: 703482
A32: 14 | B32: ='Sh 5a - bi-pay'!B32 -> 2017-07-07 | C32: ='Sh 5a - bi-pay'!F32 -> 6 | D32: 114680.2 | E32: 2017-07-07 | F32: 6 | G32: 688081
A33: 15 | B33: ='Sh 5a - bi-pay'!B33 -> 2017-07-21 | C33: ='Sh 5a - bi-pay'!F33 -> 6 | D33: 117721.72 | E33: 2017-07-21 | F33: 6 | G33: 706330
A34: 16 | B34: ='Sh 5a - bi-pay'!B34 -> 2017-08-04 | C34: ='Sh 5a - bi-pay'!F34 -> 6 | D34: 120840.58 | E34: 2017-08-04 | F34: 6 | G34: 725043
A35: 17 | B35: ='Sh 5a - bi-pay'!B35 -> 2017-08-18 | C35: ='Sh 5a - bi-pay'!F35 -> 6 | D35: 119892 | E35: 2017-08-18 | F35: 6 | G35: 719352
A36: 18 | B36: ='Sh 5a - bi-pay'!B36 -> 2017-09-01 | C36: ='Sh 5a - bi-pay'!F36 -> 6 | D36: 118646.76 | E36: 2017-09-01 | F36: 6 | G36: 711881
A37: 19 | B37: ='Sh 5a - bi-pay'!B37 -> 2017-09-15 | C37: ='Sh 5a - bi-pay'!F37 -> 6 | D37: 116513.71 | E37: 2017-09-15 | F37: 6 | G37: 699082
A38: 20 | B38: ='Sh 5a - bi-pay'!B38 -> 2017-09-29 | C38: ='Sh 5a - bi-pay'!F38 -> 6 | D38: 124707.14 | E38: 2017-09-29 | F38: 6 | G38: 748243
A39: 21 | B39: ='Sh 5a - bi-pay'!B39 -> 2017-10-13 | C39: ='Sh 5a - bi-pay'!F39 -> 6 | D39: 125003.24 | E39: 2017-10-13 | F39: 6 | G39: 750019
A40: 22 | B40: ='Sh 5a - bi-pay'!B40 -> 2017-10-27 | C40: ='Sh 5a - bi-pay'!F40 -> 6 | D40: 123250.74 | E40: 2017-10-27 | F40: 6 | G40: 739504
A41: 23 | B41: ='Sh 5a - bi-pay'!B41 -> 2017-11-09 | C41: ='Sh 5a - bi-pay'!F41 -> 5 | D41: 126049.34 | E41: 2017-11-09 | F41: 5 | G41: 630247
A42: 24 | B42: ='Sh 5a - bi-pay'!B42 -> 2017-11-22 | C42: ='Sh 5a - bi-pay'!F42 -> 4 | D42: 125971.7 | E42: 2017-11-22 | F42: 4 | G42: 503887
A43: 25 | B43: ='Sh 5a - bi-pay'!B43 -> 2017-12-08 | C43: ='Sh 5a - bi-pay'!F43 -> 6 | D43: 125024.98 | E43: 2017-12-08 | F43: 6 | G43: 750150
A44: 26 | B44: ='Sh 5a - bi-pay'!B44 -> 2017-12-22 | C44: ='Sh 5a - bi-pay'!F44 -> 6 | D44: 126711.76 | E44: 2017-12-22 | F44: 6 | G44: 760271
A46: =A44+1 -> 27 | B46: Total | C46: ='Sh 5a - bi-pay'!F46 -> 5.88 | D46: =ROUND((SUM(D19:D45)),0) -> 3167968 | F46: =ROUND(+G46/D46,2) -> 5.88 | G46: =ROUND((SUM(G19:G45)),0) -> 18629815
A48: 1/ | B48: See detail on Sheet 5a, Column 5.
A49: 2/ | B49: NiSource / CGV is a next day taxpayer, however, tax payments are processed by a third party agent and cash is provided to the agent on payday.

Sheet Sh 8a Pg 2 fica-mo
F1: ='(WP) Instructions & Input'!B11 -> Exhibit No.: ________ | J1: KY PSC Case No. 2021-00183
F2: ='(WP) Instructions & Input'!B12 -> Witness: L. A. Guilbert | J2: Staff 3-36
G3: ='(WP) Instructions & Input'!B6 -> Schedule 27 | J3: Attachment B
G4: Sheet 8a, Page 2
A6: ='(WP) Instructions & Input'!B2 -> Columbia Gas of Virginia, Inc.
A7: ='(WP) Instructions & Input'!B3 -> Analysis of Cash Working Capital Requirement
A8: Payroll Taxes - FICA Monthly Pay
A9: ='(WP) Instructions & Input'!B4 -> TME: December 31, 2017
A10: ='(WP) Instructions & Input'!B9 -> Case No. PUR-2018-00131
C12: Days From | D12: Monthly
A13: Line | C13: Midpoint | D13: Total FICA | E13: Deposit | F13: Lead | G13: Weighted
A14: No. | B14: Pay Date | C14: To Pay Date 1/ | D14: Withheld | E14: Date | F14: Days | G14: FICA
B15: (1) | C15: (2) | D15: (3) | E15: (4) | F15: (5) | G15: (6=3x5)
D16: ($)
A18: 1 | B18: =+'Sh 5b - month-pay'!B19 -> 2017-01-31 | C18: =+'Sh 5b - month-pay'!E19 -> 15.5 | D18: 84025.34 | E18: 2017-01-31 | F18: =C18+(E18-B18) -> 15.5 | G18: =ROUND(+D18*F18,0) -> 1302393
A19: =A18+1 -> 2 | B19: =+'Sh 5b - month-pay'!B20 -> 2017-02-28 | C19: =+'Sh 5b - month-pay'!E20 -> 14 | D19: 234322.52 | E19: 2017-02-28 | F19: 14 | G19: 3280515
A20: =A19+1 -> 3 | B20: =+'Sh 5b - month-pay'!B21 -> 2017-03-31 | C20: =+'Sh 5b - month-pay'!E21 -> 15.5 | D20: 94631.3 | E20: 2017-03-31 | F20: 15.5 | G20: 1466785
A21: 4 | B21: =+'Sh 5b - month-pay'!B22 -> 2017-04-28 | C21: =+'Sh 5b - month-pay'!E22 -> 13 | D21: 83299.94 | E21: 2017-04-28 | F21: 13 | G21: 1082899
A22: 5 | B22: =+'Sh 5b - month-pay'!B23 -> 2017-05-31 | C22: =+'Sh 5b - month-pay'!E23 -> 15.5 | D22: 84789.9 | E22: 2017-05-31 | F22: 15.5 | G22: 1314243
A23: 6 | B23: =+'Sh 5b - month-pay'!B24 -> 2017-06-30 | C23: =+'Sh 5b - month-pay'!E24 -> 15 | D23: 86246.16 | E23: 2017-06-30 | F23: 15 | G23: 1293692
A24: 7 | B24: =+'Sh 5b - month-pay'!B25 -> 2017-07-31 | C24: =+'Sh 5b - month-pay'!E25 -> 15.5 | D24: 83719.22 | E24: 2017-07-31 | F24: 15.5 | G24: 1297648
A25: 8 | B25: =+'Sh 5b - month-pay'!B26 -> 2017-08-31 | C25: =+'Sh 5b - month-pay'!E26 -> 15.5 | D25: 82443.17 | E25: 2017-08-31 | F25: 15.5 | G25: 1277869
A26: 9 | B26: =+'Sh 5b - month-pay'!B27 -> 2017-09-29 | C26: =+'Sh 5b - month-pay'!E27 -> 14 | D26: 82318.88 | E26: 2017-09-29 | F26: 14 | G26: 1152464
A27: 10 | B27: =+'Sh 5b - month-pay'!B28 -> 2017-10-31 | C27: =+'Sh 5b - month-pay'!E28 -> 15.5 | D27: 80718.93 | E27: 2017-10-31 | F27: 15.5 | G27: 1251143
A28: 11 | B28: =+'Sh 5b - month-pay'!B29 -> 2017-11-30 | C28: =+'Sh 5b - month-pay'!E29 -> 15 | D28: 87565.24 | E28: 2017-11-30 | F28: 15 | G28: 1313479
A29: 12 | B29: =+'Sh 5b - month-pay'!B30 -> 2017-12-29 | C29: =+'Sh 5b - month-pay'!E30 -> 13.5 | D29: 78071.34 | E29: 2017-12-29 | F29: 13.5 | G29: 1053963
A31: =A29+1 -> 13 | B31: Total | C31: =+'Sh 5b - month-pay'!E32 -> 14.7 | D31: =SUM(D18:D29) -> 1162151.94 | F31: =ROUND(+G31/D31,2) -> 14.7 | G31: =SUM(G18:G29) -> 17087093
A33: 1/ | B33: See detail on Sheet 5a.

Sheet Sh 8b - FUTA,SUTA
H1: ='(WP) Instructions & Input'!B11 -> Exhibit No.: ________ | L1: KY PSC Case No. 2021-00183
H2: ='(WP) Instructions & Input'!B12 -> Witness: L. A. Guilbert | L2: Staff 3-36
I3: ='(WP) Instructions & Input'!B6 -> Schedule 27 | L3: Attachment B
I4: Sheet 8b
A6: ='(WP) Instructions & Input'!B2 -> Columbia Gas of Virginia, Inc.
A7: ='(WP) Instructions & Input'!B3 -> Analysis of Cash Working Capital Requirement
A8: Payroll Taxes - Unemployment Taxes
A9: ='(WP) Instructions & Input'!B4 -> TME: December 31, 2017
A10: ='(WP) Instructions & Input'!B9 -> Case No. PUR-2018-00131
B12: Service | C12: Days
A13: Line | B13: Period | C13: From | D13: Deposit | E13: Lead | F13: Federal | G13: State | H13: Federal | I13: State
A14: No. | B14: Qtr Ended | C14: Midpoint | D14: Paid | E14: Days | F14: Paid | G14: Paid | H14: $ Weighted | I14: $ Weighted
B15: (1) | C15: (2) | D15: (3) | E15: (4=3-1+2) | F15: (5) | G15: (6) | H15: (7=4*5) | I15: (8=4*6)
F16: $ | G16: $
A17: Monthly
A18: 1 | B18: 2017-01-31 | C18: 15.5 | D18: 2017-03-31 | E18: =D18-B18+C18 -> 74.5 | F18: 2918.87 | G18: 2547.31 | H18: =ROUND($E$18*F18,0) -> 217456 | I18: =ROUND($E$18*G18,0) -> 189775
A19: =A18+1 -> 2 | B19: 2017-02-28 | C19: 14 | D19: 2017-03-31 | E19: 45 | F19: 189.13 | G19: 413.3 | H19: 14090 | I19: 30791
A20: 3 | B20: 2017-03-31 | C20: 15.5 | D20: 2017-03-31 | E20: 15.5 | F20: 30.49 | G20: 25.41 | H20: 2272 | I20: 1893
A21: 4 | B21: 2017-04-30 | C21: 15 | D21: 2017-06-30 | E21: 76 | F21: 55.74 | G21: -1160.75 | H21: 4153 | I21: -86476
A22: 5 | B22: 2017-05-31 | C22: 15.5 | D22: 2017-06-30 | E22: 45.5 | F22: 42 | G22: 25.2 | H22: 3129 | I22: 1877
A23: 6 | B23: 2017-06-30 | C23: 15 | D23: 2017-06-30 | E23: 15 | F23: 34.66 | G23: 17.33 | H23: 2582 | I23: 1291
A24: 7 | B24: 2017-07-31 | C24: 15.5 | D24: 2017-09-30 | E24: 76.5 | F24: 7.34 | G24: 6.67 | H24: 547 | I24: 497
A25: 8 | B25: 2017-08-31 | C25: 15.5 | D25: 2017-09-30 | E25: 45.5 | F25: 0 | G25: 0 | H25: 0 | I25: 0
A26: 9 | B26: 2017-09-30 | C26: 15 | D26: 2017-09-30 | E26: 15 | F26: 36.78 | G26: 18.39 | H26: 2740 | I26: 1370
A27: 10 | B27: 2017-10-31 | C27: 15.5 | D27: 2017-12-31 | E27: 76.5 | F27: 47.22 | G27: 29.61 | H27: 3518 | I27: 2206
A28: 11 | B28: 2017-11-30 | C28: 15 | D28: 2017-12-31 | E28: 46 | F28: 0 | G28: 0 | H28: 0 | I28: 0
A29: 12 | B29: 2017-12-31 | C29: 15.5 | D29: 2017-12-31 | E29: 15.5 | F29: 62.45 | G29: 31.22 | H29: 4653 | I29: 2326
A30: Bi-weekly
A31: =A29+1 -> 13 | B31: 2017-01-07 | C31: 7 | D31: 2017-03-31 | E31: =D31-B31+C31 -> 90 | F31: 4377.24 | G31: 3655.53 | H31: =ROUND($E$18*F31,0) -> 326104 | I31: =ROUND($E$18*G31,0) -> 272337
A32: =A31+1 -> 14 | B32: 2017-01-21 | C32: =C31 -> 7 | D32: 2017-03-31 | E32: 76 | F32: 3753.53 | G32: 3254.22 | H32: 279638 | I32: 242439
A33: 15 | B33: 2017-02-04 | C33: 7 | D33: 2017-03-31 | E33: 62 | F33: 1756.43 | G33: 2187.24 | H33: 130854 | I33: 162949
A34: 16 | B34: 2017-02-18 | C34: 7 | D34: 2017-03-31 | E34: 48 | F34: 375.17 | G34: 569.23 | H34: 27950 | I34: 42408
A35: 17 | B35: 2017-03-04 | C35: 7 | D35: 2017-03-31 | E35: 34 | F35: 157.6 | G35: 235.01 | H35: 11741 | I35: 17508
A36: 18 | B36: 2017-03-18 | C36: 7 | D36: 2017-03-31 | E36: 20 | F36: 47.76 | G36: 45.1 | H36: 3558 | I36: 3360
A37: 19 | B37: 2017-04-01 | C37: 7 | D37: 2017-06-30 | E37: 97 | F37: 191.43 | G37: 160.88 | H37: 14262 | I37: 11986
A38: 20 | B38: 2017-04-15 | C38: 7 | D38: 2017-06-30 | E38: 83 | F38: 174.91 | G38: -3842.05 | H38: 13031 | I38: -286233
A39: 21 | B39: 2017-04-29 | C39: 7 | D39: 2017-06-30 | E39: 69 | F39: 125.38 | G39: 80.69 | H39: 9341 | I39: 6011
A40: 22 | B40: 2017-05-13 | C40: 7 | D40: 2017-06-30 | E40: 55 | F40: 76.77 | G40: 46.97 | H40: 5719 | I40: 3499
A41: 23 | B41: 2017-05-27 | C41: 7 | D41: 2017-06-30 | E41: 41 | F41: 9.05 | G41: 19.38 | H41: 674 | I41: 1444
A42: 24 | B42: 2017-06-10 | C42: 7 | D42: 2017-06-30 | E42: 27 | F42: 0 | G42: 0 | H42: 0 | I42: 0
A43: 25 | B43: 2017-06-24 | C43: 7 | D43: 2017-06-30 | E43: 13 | F43: 5.28 | G43: 2.64 | H43: 393 | I43: 197
A44: 26 | B44: 2017-07-08 | C44: 7 | D44: 2017-09-30 | E44: 91 | F44: 18.9 | G44: 9.46 | H44: 1408 | I44: 705
A45: 27 | B45: 2017-07-22 | C45: 7 | D45: 2017-09-30 | E45: 77 | F45: 17.14 | G45: 8.55 | H45: 1277 | I45: 637
A46: 28 | B46: 2017-08-05 | C46: 7 | D46: 2017-09-30 | E46: 63 | F46: 30.59 | G46: 15.31 | H46: 2279 | I46: 1141
A47: 29 | B47: 2017-08-19 | C47: 7 | D47: 2017-09-30 | E47: 49 | F47: 33.49 | G47: 19.74 | H47: 2495 | I47: 1471
A48: 30 | B48: 2017-09-02 | C48: 7 | D48: 2017-09-30 | E48: 35 | F48: 22.6 | G48: 11.3 | H48: 1684 | I48: 842
A49: 31 | B49: 2017-09-16 | C49: 7 | D49: 2017-09-30 | E49: 21 | F49: 14.99 | G49: 10.49 | H49: 1117 | I49: 782
A50: 32 | B50: 2017-09-30 | C50: 7 | D50: 2017-09-30 | E50: 7 | F50: 23.25 | G50: 11.63 | H50: 1732 | I50: 866
A51: 33 | B51: 2017-10-14 | C51: 7 | D51: 2017-12-31 | E51: 85 | F51: 151.54 | G51: 78.79 | H51: 11290 | I51: 5870
A52: 34 | B52: 2017-10-28 | C52: 7 | D52: 2017-12-31 | E52: 71 | F52: 144.49 | G52: 75.22 | H52: 10765 | I52: 5604
A53: 35 | B53: 2017-11-11 | C53: 7 | D53: 2017-12-31 | E53: 57 | F53: 102.84 | G53: 57.42 | H53: 7662 | I53: 4278
A54: 36 | B54: 2017-11-25 | C54: 7 | D54: 2017-12-31 | E54: 43 | F54: 69.11 | G54: 52.01 | H54: 5149 | I54: 3875
A55: 37 | B55: 2017-12-09 | C55: 7 | D55: 2017-12-31 | E55: 29 | F55: 24.91 | G55: 16.01 | H55: 1856 | I55: 1193
A56: =A55+1 -> 38 | B56: 2017-12-23 | C56: 7 | D56: 2017-12-31 | E56: 15 | F56: 23.95 | G56: 12.08 | H56: 1784 | I56: 900
A57: =A56+1 -> 39 | B57: Total | F57: =SUM(F18:F56) -> 15153.03 | G57: =SUM(G18:G56) -> 8746.54 | H57: =SUM(H18:H56) -> 1128903 | I57: =SUM(I18:I56) -> 651619
A59: =A57+1 -> 40 | B59: Net Lead Days | H59: =ROUND(H57/F57,2) -> 74.5 | I59: =ROUND(I57/G57,2) -> 74.5

Sheet Sh 9 - Property Taxes
F1: ='(WP) Instructions & Input'!B11 -> Exhibit No.: ________ | J1: KY PSC Case No. 2021-00183
F2: ='(WP) Instructions & Input'!B12 -> Witness: L. A. Guilbert | J2: Staff 3-36
G3: ='(WP) Instructions & Input'!B6 -> Schedule 27 | J3: Attachment B
G4: Sheet 9
A5: ='(WP) Instructions & Input'!B2 -> Columbia Gas of Virginia, Inc.
A6: ='(WP) Instructions & Input'!B3 -> Analysis of Cash Working Capital Requirement
A7: Property Taxes
A8: ='(WP) Instructions & Input'!B4 -> TME: December 31, 2017
A9: ='(WP) Instructions & Input'!B9 -> Case No. PUR-2018-00131
A11: Line | D11: Date | E11: Midpoint | F11: Lag | G11: Weighted
A12: No. | B12: Taxing Authority | C12: Payments | D12: Paid | E12: of Tax Year | F12: Days | G12: Lag Days
B13: (1) | C13: (2) | D13: (3) | E13: (4) | F13: (5)=(3-4) | G13: (6)=(5*2)
C14: ($) | G14: ($)
B15: Cities
A16: =A15+1 -> 1 | B16: Altavista | C16: 998.05 | D16: 2017-11-01 | E16: 2017-07-01 | F16: =D16-E16 -> 123 | G16: =ROUND(C16*F16,0) -> 122760
A17: =A16+1 -> 2 | B17: Bridgewater | C17: 162.94 | D17: 2017-05-26 | E17: 2017-07-01 | F17: =D17-E17 -> -36 | G17: =ROUND(C17*F17,0) -> -5866
A18: 3 | B18: Bridgewater | C18: 164.03 | D18: 2017-11-02 | E18: 2017-07-01 | F18: =D18-E18 -> 124 | G18: 20340
A19: 4 | B19: Broadway | C19: 411.18 | D19: 2017-11-21 | E19: 2017-07-01 | F19: 143 | G19: 58799
A20: 5 | B20: Brookneal | C20: 64.35 | D20: 2017-11-01 | E20: 2017-07-01 | F20: 123 | G20: =ROUND(F20*C20,0) -> 7915
A21: =A20+1 -> 6 | B21: Buena Vista | C21: 27733.37 | D21: 2017-05-23 | E21: 2017-07-01 | F21: -39 | G21: -1081601
A22: 7 | B22: Buena Vista | C22: 27733.38 | D22: 2017-11-01 | E22: 2017-07-01 | F22: 123 | G22: 3411206
A23: 8 | B23: Chase City | C23: 1835.52 | D23: 2017-12-08 | E23: 2017-07-01 | F23: 160 | G23: =ROUND(F23*C23,0) -> 293683
A24: 9 | B24: Chatham | C24: 2638.41 | D24: 2017-11-21 | E24: 2017-07-01 | F24: 143 | G24: 377293
A25: 10 | B25: Chesapeake | C25: 75854.68 | D25: 2017-10-11 | E25: 2017-07-01 | F25: 102 | G25: 7737177
A26: 11 | B26: Chesapeake | C26: 75854.68 | D26: 2017-12-08 | E26: 2017-07-01 | F26: 160 | G26: =ROUND(F26*C26,0) -> 12136749
A27: 12 | B27: Clifton Forge | C27: 7418.08 | D27: 2017-11-01 | E27: 2017-07-01 | F27: 123 | G27: 912424
A28: 13 | B28: Colonial Hts. | C28: 42264.68 | D28: 2017-04-25 | E28: 2017-07-01 | F28: -67 | G28: =ROUND(F28*C28,0) -> -2831734
A29: 14 | B29: Colonial Hts. | C29: 44298.3 | D29: 2017-10-31 | E29: 2017-07-01 | F29: 122 | G29: 5404393
A30: 15 | B30: Covington | C30: 23730.52 | D30: 2017-11-01 | E30: 2017-07-01 | F30: 123 | G30: =ROUND(F30*C30,0) -> 2918854
A31: 16 | B31: Culpeper, Town | C31: 9888.08 | D31: 2017-12-08 | E31: 2017-07-01 | F31: 160 | G31: 1582093
A32: 17 | B32: Dayton | C32: 75.2 | D32: 2017-05-26 | E32: 2017-07-01 | F32: -36 | G32: -2707
A33: 18 | B33: Dayton | C33: 72.1 | D33: 2017-11-21 | E33: 2017-07-01 | F33: 143 | G33: 10310
A34: 19 | B34: Dumfries | C34: 4507.6 | D34: 2017-11-21 | E34: 2017-07-01 | F34: 143 | G34: 644587
A35: 20 | B35: Fredericksburg | C35: 48285.05 | D35: 2017-04-25 | E35: 2017-07-01 | F35: -67 | G35: -3235098
A36: 21 | B36: Fredericksburg | C36: 10054.07 | D36: 2017-10-11 | E36: 2017-07-01 | F36: 102 | G36: 1025515
A37: 22 | B37: Fredericksburg | C37: 60612.08 | D37: 2017-10-31 | E37: 2017-07-01 | F37: 122 | G37: 7394674
A38: 23 | B38: Glasgow | C38: 109.17 | D38: 2017-11-02 | E38: 2017-07-01 | F38: 124 | G38: 13537
A39: 24 | B39: Gordonsville | C39: 354.42 | D39: 2017-11-21 | E39: 2017-07-01 | F39: 143 | G39: 50682
A40: 25 | B40: Halifax | C40: 489.63 | D40: 2017-11-02 | E40: 2017-07-01 | F40: 124 | G40: 60714
A41: 26 | B41: Harrisonburg | C41: 53504.1 | D41: 2017-11-21 | E41: 2017-07-01 | F41: 143 | G41: 7651086
A42: 27 | B42: Haymarket | C42: 1439.96 | D42: 2017-11-02 | E42: 2017-07-01 | F42: 124 | G42: 178555
A43: 28 | B43: Herndon | C43: 18953.42 | D43: 2017-10-31 | E43: 2017-07-01 | F43: 122 | G43: 2312317
A44: 29 | B44: Hurt | C44: 114.53 | D44: 2017-11-21 | E44: 2017-07-01 | F44: 143 | G44: 16378
A45: 30 | B45: Iron Gate | C45: 64.06 | D45: 2017-11-09 | E45: 2017-07-01 | F45: 131 | G45: 8392
A46: 31 | B46: La Crosse | C46: 111.53 | D46: 2017-12-07 | E46: 2017-07-01 | F46: 159 | G46: 17733
A47: 32 | B47: Lawrenceville | C47: 1051.5 | D47: 2017-12-07 | E47: 2017-07-01 | F47: 159 | G47: 167189
A48: 33 | B48: Lexington | C48: 53070.15 | D48: 2017-11-02 | E48: 2017-07-01 | F48: 124 | G48: 6580699
A49: 34 | B49: Lynchburg | C49: 394588.79 | D49: 2017-11-01 | E49: 2017-07-01 | F49: 123 | G49: 48534421
A50: 35 | B50: Manassas | C50: 94971.88 | D50: 2017-05-26 | E50: 2017-07-01 | F50: -36 | G50: -3418988
B51: Cities (continued)
A52: 1 | B52: Manassas | C52: 107673.12 | D52: 2017-11-21 | E52: 2017-07-01 | F52: =D52-E52 -> 143 | G52: 15397256
A53: 2 | B53: Manassas Park | C53: 84997.3 | D53: 2017-11-21 | E53: 2017-07-01 | F53: =D53-E53 -> 143 | G53: =ROUND(F53*C53,0) -> 12154614
A54: 3 | B54: Narrows | C54: 44237.26 | D54: 2017-11-21 | E54: 2017-07-01 | F54: 143 | G54: 6325928
A55: 4 | B55: Petersburg | C55: 53898.01 | D55: 2017-10-31 | E55: 2017-07-01 | F55: =D55-E55 -> 122 | G55: =ROUND(F55*C55,0) -> 6575557
A56: 5 | B56: Portsmouth | C56: 89070.8 | D56: 2017-10-11 | E56: 2017-07-01 | F56: 102 | G56: 9085222
A57: 6 | B57: Portsmouth | C57: 367247.69 | D57: 2017-11-21 | E57: 2017-07-01 | F57: 143 | G57: 52516420
A58: 7 | B58: Quantico | C58: 594.71 | D58: 2017-12-08 | E58: 2017-07-01 | F58: 160 | G58: 95154
A59: 8 | B59: Richmond | C59: 6.53 | D59: 2017-05-31 | E59: 2017-07-01 | F59: -31 | G59: -202
A60: 9 | B60: Richmond | C60: 9.86 | D60: 2017-11-21 | E60: 2017-07-01 | F60: 143 | G60: 1410
A61: 10 | B61: Smithfield | C61: 6871.12 | D61: 2017-12-07 | E61: 2017-07-01 | F61: 159 | G61: 1092508
A62: 11 | B62: South Hill | C62: 7189.61 | D62: 2017-12-08 | E62: 2017-07-01 | F62: 160 | G62: 1150338
A63: 12 | B63: Staunton | C63: 206133.86 | D63: 2017-12-01 | E63: 2017-07-01 | F63: 153 | G63: 31538481
A64: 13 | B64: Suffolk | C64: 176456.9 | D64: 2017-12-01 | E64: 2017-07-01 | F64: 153 | G64: 26997906
A65: 14 | B65: Timberville | C65: 262.43 | D65: 2017-12-07 | E65: 2017-07-01 | F65: 159 | G65: 41726
A66: 15 | B66: Vienna | C66: 42.35 | D66: 2017-11-02 | E66: 2017-07-01 | F66: 124 | G66: 5251
A67: 16 | B67: Warrenton | C67: 1414.44 | D67: 2017-06-22 | E67: 2017-07-01 | F67: -9 | G67: -12730
A68: 17 | B68: Warrenton | C68: 1456.79 | D68: 2017-12-07 | E68: 2017-07-01 | F68: 159 | G68: 231630
A69: 18 | B69: Waverly | C69: 309.91 | D69: 2017-12-21 | E69: 2017-07-01 | F69: 173 | G69: 53614
A70: 19 | B70: Waynesboro | C70: 136219.19 | D70: 2017-11-02 | E70: 2017-07-01 | F70: 124 | G70: 16891180
A71: =A70+1 -> 20 | B71: Counties
A72: 21 | B72: Albemarle | C72: 2849.68 | D72: 2017-07-26 | E72: 2017-07-01 | F72: =D72-E72 -> 25 | G72: =ROUND(F72*C72,0) -> 71242
A73: 22 | B73: Albemarle | C73: 2935.94 | D73: 2017-11-01 | E73: 2017-07-01 | F73: 123 | G73: 361121
A74: 23 | B74: Alleghany | C74: 46934.1 | D74: 2017-11-01 | E74: 2017-07-01 | F74: 123 | G74: 5772894
A75: 24 | B75: Amherst | C75: 57760.11 | D75: 2017-11-21 | E75: 2017-07-01 | F75: 143 | G75: 8259696
A76: 25 | B76: Appomattox | C76: 5905.97 | D76: 2017-11-01 | E76: 2017-07-01 | F76: 123 | G76: 726434
A77: 26 | B77: Augusta | C77: 28087.98 | D77: 2017-05-26 | E77: 2017-07-01 | F77: -36 | G77: -1011167
A78: 27 | B78: Augusta | C78: 30970.41 | D78: 2017-11-21 | E78: 2017-07-01 | F78: 143 | G78: 4428769
A79: 28 | B79: Bath | C79: 1.23 | D79: 2017-11-01 | E79: 2017-07-01 | F79: =D79-E79 -> 123 | G79: =ROUND(F79*C79,0) -> 151
A80: 29 | B80: Bedford | C80: 29833.28 | D80: 2017-11-01 | E80: 2017-07-01 | F80: 123 | G80: 3669493
A81: 30 | B81: Botetourt | C81: 5714.91 | D81: 2017-10-11 | E81: 2017-07-01 | F81: 102 | G81: 582921
A82: 31 | B82: Brunswick | C82: 8106.89 | D82: 2017-11-01 | E82: 2017-07-01 | F82: 123 | G82: 997147
A83: 32 | B83: Buckingham | C83: 57009.17 | D83: 2017-05-26 | E83: 2017-07-01 | F83: -36 | G83: -2052330
A84: 33 | B84: Buckingham | C84: 58194.94 | D84: 2017-11-09 | E84: 2017-07-01 | F84: =D84-E84 -> 131 | G84: =ROUND(F84*C84,0) -> 7623537
A85: 34 | B85: Campbell | C85: 25061.16 | D85: 2017-11-01 | E85: 2017-07-01 | F85: 123 | G85: 3082523
A86: 35 | B86: Caroline | C86: 32727.33 | D86: 2017-05-26 | E86: 2017-07-01 | F86: -36 | G86: -1178184
A87: =A86+1 -> 36 | B87: Caroline | C87: 28735.37 | D87: 2017-11-02 | E87: 2017-07-01 | F87: 124 | G87: 3563186
A88: 37 | B88: Chesterfield | C88: 401067.8 | D88: 2017-05-26 | E88: 2017-07-01 | F88: -36 | G88: -14438441
A89: 38 | B89: Chesterfield | C89: 538648.12 | D89: 2017-11-02 | E89: 2017-07-01 | F89: 124 | G89: 66792367
A90: 39 | B90: Culpeper County | C90: 173760.02 | D90: 2017-11-01 | E90: 2017-07-01 | F90: 123 | G90: 21372482
A91: =A90+1 -> 40 | B91: Dinwiddie | C91: 12265.44 | D91: 2017-05-26 | E91: 2017-07-01 | F91: =D91-E91 -> -36 | G91: =ROUND(F91*C91,0) -> -441556
A92: 41 | B92: Dinwiddie | C92: 13337.13 | D92: 2017-11-02 | E92: 2017-07-01 | F92: 124 | G92: 1653804
A93: 42 | B93: Fairfax (all jurisdictns) | C93: 74542 | D93: 2017-07-26 | E93: 2017-07-01 | F93: 25 | G93: 1863550
A94: 43 | B94: Fairfax (all jurisdictns) | C94: 82019.78 | D94: 2017-11-21 | E94: 2017-07-01 | F94: 143 | G94: 11728829
A95: 44 | B95: Fauquier | C95: 68054.34 | D95: 2017-05-26 | E95: 2017-07-01 | F95: -36 | G95: -2449956
A96: 45 | B96: Fauquier | C96: 67973.49 | D96: 2017-11-02 | E96: 2017-07-01 | F96: 124 | G96: 8428713
A97: 46 | B97: Fauquier | C97: 3316.66 | D97: 2017-11-02 | E97: 2017-07-01 | F97: 124 | G97: 411266
A98: 47 | B98: Fluvanna | C98: 104223.64 | D98: 2017-11-21 | E98: 2017-07-01 | F98: 143 | G98: 14903981
A99: 48 | B99: Fluvanna | C99: 4868.37 | D99: 2017-11-21 | E99: 2017-07-01 | F99: 143 | G99: 696177
B100: Counties (continued)
A101: 1 | B101: Giles | C101: 87333.85 | D101: 2017-11-02 | E101: 2017-07-01 | F101: =D101-E101 -> 124 | G101: =ROUND(F101*C101,0) -> 10829397
A102: =A101+1 -> 2 | B102: Goochland | C102: 13096.83 | D102: 2017-11-21 | E102: 2017-07-01 | F102: 143 | G102: 1872847
A103: =A102+1 -> 3 | B103: Greene | C103: 2975.02 | D103: 2017-11-02 | E103: 2017-07-01 | F103: 124 | G103: 368902
A104: 4 | B104: Greensville | C104: 4348.03 | D104: 2017-11-02 | E104: 2017-07-01 | F104: 124 | G104: 539156
A105: 5 | B105: Halifax | C105: 6482.13 | D105: 2017-05-26 | E105: 2017-07-01 | F105: -36 | G105: -233357
A106: 6 | B106: Halifax | C106: 6540.07 | D106: 2017-11-02 | E106: 2017-07-01 | F106: =D106-E106 -> 124 | G106: =ROUND(F106*C106,0) -> 810969
A107: 7 | B107: Isle of Wight | C107: 114707.5 | D107: 2017-11-02 | E107: 2017-07-01 | F107: 124 | G107: 14223730
A108: 8 | B108: Loudoun | C108: 89252.5 | D108: 2017-05-26 | E108: 2017-07-01 | F108: -36 | G108: -3213090
A109: 9 | B109: Loudoun | C109: 16089.96 | D109: 2017-11-02 | E109: 2017-07-01 | F109: 124 | G109: 1995155
A110: 10 | B110: Louisa | C110: 65839.25 | D110: 2017-11-02 | E110: 2017-07-01 | F110: 124 | G110: 8164067
A111: 11 | B111: Madison | C111: 115.18 | D111: 2017-11-02 | E111: 2017-07-01 | F111: 124 | G111: 14282
A112: 12 | B112: Mecklenburg | C112: 13818.34 | D112: 2017-11-02 | E112: 2017-07-01 | F112: 124 | G112: 1713474
A113: 13 | B113: Orange | C113: 2775.34 | D113: 2017-06-08 | E113: 2017-07-01 | F113: -23 | G113: -63833
A114: 14 | B114: Orange | C114: 2849.52 | D114: 2017-12-08 | E114: 2017-07-01 | F114: 160 | G114: 455923
A115: 15 | B115: Page | C115: 43.48 | D115: 2017-11-21 | E115: 2017-07-01 | F115: =D115-E115 -> 143 | G115: =ROUND(F115*C115,0) -> 6218
A116: 16 | B116: Pittsylvania | C116: 13667.17 | D116: 2017-05-31 | E116: 2017-07-01 | F116: -31 | G116: -423682
A117: 17 | B117: Pittsylvania | C117: 28656.11 | D117: 2017-11-21 | E117: 2017-07-01 | F117: 143 | G117: 4097824
A118: 18 | B118: Powhatan | C118: 3797.84 | D118: 2017-10-11 | E118: 2017-07-01 | F118: 102 | G118: 387380
A119: 19 | B119: Prince George | C119: 18438.93 | D119: 2017-05-26 | E119: 2017-07-01 | F119: -36 | G119: -663801
A120: 20 | B120: Prince George | C120: 33465.63 | D120: 2017-10-11 | E120: 2017-07-01 | F120: 102 | G120: 3413494
A121: 21 | B121: Prince Wm | C121: 221738.78 | D121: 2017-06-29 | E121: 2017-07-01 | F121: -2 | G121: -443478
A122: 22 | B122: Prince Wm | C122: 245320.04 | D122: 2017-11-21 | E122: 2017-07-01 | F122: 143 | G122: 35080766
A123: 23 | B123: Rockbridge | C123: 29116.44 | D123: 2017-11-21 | E123: 2017-07-01 | F123: =D123-E123 -> 143 | G123: =ROUND(F123*C123,0) -> 4163651
A124: 24 | B124: Rockingham | C124: 37426.08 | D124: 2017-05-26 | E124: 2017-07-01 | F124: -36 | G124: -1347339
A125: 25 | B125: Rockingham | C125: 37397.37 | D125: 2017-11-02 | E125: 2017-07-01 | F125: 124 | G125: 4637274
A126: 26 | B126: Rockingham | C126: 1944.78 | D126: 2017-11-02 | E126: 2017-07-01 | F126: =D126-E126 -> 124 | G126: =ROUND(F126*C126,0) -> 241153
A127: 27 | B127: Shenandoah | C127: 1010.13 | D127: 2017-05-26 | E127: 2017-07-01 | F127: -36 | G127: -36365
A128: 28 | B128: Shenandoah | C128: 925.16 | D128: 2017-11-01 | E128: 2017-07-01 | F128: 123 | G128: 113795
A129: 29 | B129: Smyth | C129: 7017.11 | D129: 2017-11-21 | E129: 2017-07-01 | F129: 143 | G129: 1003447
A130: 30 | B130: Southampton | C130: 10819.55 | D130: 2017-11-02 | E130: 2017-07-01 | F130: 124 | G130: 1341624
A131: 31 | B131: Spotsylvania | C131: 356647.45 | D131: 2017-05-26 | E131: 2017-07-01 | F131: -36 | G131: -12839308
A132: 32 | B132: Spotsylvania | C132: 8749.63 | D132: 2017-11-21 | E132: 2017-07-01 | F132: 143 | G132: 1251197
A133: 33 | B133: Stafford | C133: 187605.13 | D133: 2017-05-26 | E133: 2017-07-01 | F133: -36 | G133: -6753785
A134: 34 | B134: Stafford | C134: 203357.65 | D134: 2017-11-02 | E134: 2017-07-01 | F134: 124 | G134: 25216349
A135: 35 | B135: Surry | C135: 1522.96 | D135: 2017-11-02 | E135: 2017-07-01 | F135: 124 | G135: 188847
A136: 36 | B136: Sussex | C136: 10109.09 | D136: 2017-11-01 | E136: 2017-07-01 | F136: 123 | G136: 1243418
A137: 37 | B137: Warren | C137: 30.91 | D137: 2017-05-26 | E137: 2017-07-01 | F137: -36 | G137: -1113
A138: 38 | B138: Warren | C138: 30.91 | D138: 2017-11-02 | E138: 2017-07-01 | F138: 124 | G138: 3833
A139: 39 | B139: Warren | C139: 139.17 | D139: 2017-11-02 | E139: 2017-07-01 | F139: =D139-E139 -> 124 | G139: =ROUND(F139*C139,0) -> 17257
A140: 40 | B140: States
A141: 41 | B141: State of West Virginia | C141: 68325.23 | D141: =41975+60+365+365 -> 2017-01-30 | E141: =41456+365+365 -> 2015-07-01 | F141: =D141-E141 -> 579 | G141: =ROUND(F141*C141,0) -> 39560308
A142: 42 | B142: State of West Virginia | C142: 50261.52 | D142: =42240-9+365+365 -> 2017-08-14 | E142: =41456+365+365+365 -> 2016-06-30 | F142: 410 | G142: 20607223
A143: =A142+1 -> 43 | B143: Total | C143: =SUM(C16:C142) -> 6336264.4 | F143: =ROUND(G143/C143,2) -> 91.88 | G143: =SUM(G16:G142) -> 582178202

Sheet Sh 10 - Other Taxes
F1: ='(WP) Instructions & Input'!B11 -> Exhibit No.: ________ | J1: KY PSC Case No. 2021-00183
F2: ='(WP) Instructions & Input'!B12 -> Witness: L. A. Guilbert | J2: Staff 3-36
G3: ='(WP) Instructions & Input'!B6 -> Schedule 27 | J3: Attachment B
G4: Sheet 10
A6: ='(WP) Instructions & Input'!B2 -> Columbia Gas of Virginia, Inc.
A7: ='(WP) Instructions & Input'!B3 -> Analysis of Cash Working Capital Requirement
A8: Other Taxes
A9: ='(WP) Instructions & Input'!B4 -> TME: December 31, 2017
A10: ='(WP) Instructions & Input'!B9 -> Case No. PUR-2018-00131
A12: Line | B12: End of Service | C12: Midpoint of | D12: Payment | E12: Amount | F12: Lead | G12: Weighted
A13: No. | B13: Period | C13: Service Period | D13: Date | E13: Paid | F13: Days | G13: Tax Dollars
B14: (1) | C14: (1) | D14: (2) | E14: (3) | F14: (4) | G14: (5=3*4)
E15: $ | G15: $
B16: Direct Payment Sales Tax
A18: 1 | B18: 2017-01-31 | C18: 15.5 | D18: 2017-02-20 | E18: 2982.05 | F18: =(D18-B18)+C18 -> 35.5 | G18: =ROUND(E18*F18,0) -> 105863
A19: 2 | B19: 2017-02-28 | C19: 14 | D19: 2017-03-20 | E19: 13457.14 | F19: 34 | G19: 457543
A20: 3 | B20: 2017-03-31 | C20: 15.5 | D20: 2017-04-20 | E20: 20884.52 | F20: 35.5 | G20: 741400
A21: 4 | B21: 2017-04-30 | C21: 15 | D21: 2017-05-20 | E21: 19351.36 | F21: 35 | G21: 677298
A22: 5 | B22: 2017-05-31 | C22: 15.5 | D22: 2017-06-20 | E22: 26131.55 | F22: 35.5 | G22: 927670
A23: 6 | B23: 2017-06-30 | C23: 15 | D23: 2017-07-20 | E23: 24846.65 | F23: 35 | G23: 869633
A24: 7 | B24: 2017-07-31 | C24: 15.5 | D24: 2017-08-20 | E24: 15681.52 | F24: 35.5 | G24: 556694
A25: 8 | B25: 2017-08-31 | C25: 15.5 | D25: 2017-09-20 | E25: 28167.48 | F25: 35.5 | G25: 999946
A26: 9 | B26: 2017-09-30 | C26: 15 | D26: 2017-10-20 | E26: 2492.09 | F26: 35 | G26: 87223
A27: 10 | B27: 2017-10-31 | C27: 15.5 | D27: 2017-11-20 | E27: 8397.15 | F27: 35.5 | G27: 298099
A28: 11 | B28: 2017-11-30 | C28: 15 | D28: 2017-12-20 | E28: 15117.63 | F28: 35 | G28: 529117
A29: 12 | B29: 2017-12-31 | C29: 15.5 | D29: 2018-01-20 | E29: 23096.13 | F29: 35.5 | G29: 819913
E30: =SUM(E18:E29) -> 200605.27 | F30: =ROUND(G30/E30,1) -> 35.2 | G30: =SUM(G18:G29) -> 7070399
B32: Sales & Use
A33: =A29+1 -> 13 | B33: 2017-01-31 | C33: =C18 -> 15.5 | D33: 2017-02-20 | E33: 0 | F33: =(D33-B33)+C33 -> 35.5 | G33: =ROUND(E33*F33,0) -> 0
A34: =A33+1 -> 14 | B34: 2017-02-28 | C34: =C19 -> 14 | D34: 2017-03-20 | E34: 0 | F34: 34 | G34: 0
A35: =A34+1 -> 15 | B35: 2017-03-31 | C35: 15.5 | D35: 2017-04-20 | E35: 0 | F35: 35.5 | G35: 0
A36: =A35+1 -> 16 | B36: 2017-04-30 | C36: 15 | D36: 2017-05-20 | E36: 0 | F36: 35 | G36: 0
A37: =A36+1 -> 17 | B37: 2017-05-31 | C37: 15.5 | D37: 2017-06-20 | E37: 0 | F37: 35.5 | G37: 0
A38: =A34+1 -> 15 | B38: 2017-06-30 | C38: 15 | D38: 2017-07-20 | E38: 0 | F38: 35 | G38: 0
A39: =A38+1 -> 16 | B39: 2017-07-31 | C39: 15.5 | D39: 2017-08-20 | E39: 0 | F39: 35.5 | G39: 0
A40: 17 | B40: 2017-08-31 | C40: 15.5 | D40: 2017-09-20 | E40: 0 | F40: 35.5 | G40: 0
A41: 18 | B41: 2017-09-30 | C41: 15 | D41: 2017-10-20 | E41: 0 | F41: 35 | G41: 0
A42: 19 | B42: 2017-10-31 | C42: 15.5 | D42: 2017-11-20 | E42: 0 | F42: 35.5 | G42: 0
A43: 20 | B43: 2017-11-30 | C43: 15 | D43: 2017-12-20 | E43: 0 | F43: 35 | G43: 0
A44: 21 | B44: 2017-12-31 | C44: 15.5 | D44: 2018-01-20 | E44: 0 | F44: 35.5 | G44: 0
E45: =SUM(E33:E44) -> 0 | G45: =SUM(G33:G44) -> 0
A47: =A44+1 -> 22 | B47: TOTAL OTHER TAXES | E47: =E30+E45 -> 200605.27 | F47: =F30+F45 -> 35.2 | G47: =G30+G45 -> 7070399

Sheet Sh 11 - FIT
F1: ='(WP) Instructions & Input'!B11 -> Exhibit No.: ________ | J1: KY PSC Case No. 2021-00183
F2: ='(WP) Instructions & Input'!B12 -> Witness: L. A. Guilbert | J2: Staff 3-36
G3: ='(WP) Instructions & Input'!B6 -> Schedule 27 | J3: Attachment B
G4: Sheet 11
A6: ='(WP) Instructions & Input'!B2 -> Columbia Gas of Virginia, Inc.
A7: ='(WP) Instructions & Input'!B3 -> Analysis of Cash Working Capital Requirement
A8: Federal Income Taxes
A9: ='(WP) Instructions & Input'!B4 -> TME: December 31, 2017
A10: ='(WP) Instructions & Input'!B9 -> Case No. PUR-2018-00131
E12: Midpoint | G12: Weighted
A13: Line | B13: Amount | C13: Service | D13: Date | E13: of | F13: Lead | G13: Lead
A14: No. | B14: Due | C14: Period | D14: Paid | E14: Year | F14: Days | G14: Days
B15: (1) | C15: (2) | D15: (3) | E15: (4) | F15: (5) | G15: (6=1*5)
A18: 1 | B18: 0.25 | C18: 2017 | D18: =DATE(2017,4,15) -> 2017-04-15 | E18: =DATE(2017,7,1) -> 2017-07-01 | F18: =D18-E18 -> -77 | G18: =ROUND(F18*B18,2) -> -19.25
A19: =A18+1 -> 2 | B19: 0.25 | C19: 2017 | D19: =DATE(2017,6,15) -> 2017-06-15 | E19: =DATE(2017,7,1) -> 2017-07-01 | F19: =D19-E19 -> -16 | G19: =ROUND(F19*B19,2) -> -4
A20: =A19+1 -> 3 | B20: 0.25 | C20: 2017 | D20: =DATE(2017,9,15) -> 2017-09-15 | E20: =DATE(2017,7,1) -> 2017-07-01 | F20: =D20-E20 -> 76 | G20: =ROUND(F20*B20,2) -> 19
A21: =A20+1 -> 4 | B21: 0.25 | C21: 2017 | D21: =DATE(2017,12,15) -> 2017-12-15 | E21: =DATE(2017,7,1) -> 2017-07-01 | F21: =D21-E21 -> 167 | G21: =ROUND(F21*B21,2) -> 41.75
A23: =A21+1 -> 5 | F23: Total Federal Income Tax Lead Days | G23: =SUM(G18:G22) -> 37.5
A25: ( ) Denotes Credit

Sheet Sh 12 - int.-custdep
B1: ='(WP) Instructions & Input'!B11 -> Exhibit No.: ________ | F1: KY PSC Case No. 2021-00183
B2: ='(WP) Instructions & Input'!B12 -> Witness: L. A. Guilbert | F2: Staff 3-36
C3: ='(WP) Instructions & Input'!B6 -> Schedule 27 | F3: Attachment B
C4: Sheet 12
A6: ='Sh 11 - FIT'!A6 -> Columbia Gas of Virginia, Inc.
A7: ='(WP) Instructions & Input'!B3 -> Analysis of Cash Working Capital Requirement
A8: Interest On Customer Deposits
A9: ='Sh 11 - FIT'!A9 -> TME: December 31, 2017
A10: ='(WP) Instructions & Input'!B9 -> Case No. PUR-2018-00131
A12: Line
A13: No.
A14: 1 | B14: Weighted Average Lead Days | C14: =ROUND(365/2,2) -> 182.5
A16: Note: | B16: Interest on Customer Deposits represents interest on deposits CGV requires as security on customers with poor payment history. The interest is recovered through rates and since CGV holds the deposit for one year, lead days are equal to the midpoint of the year or 365/2=182.5.
B17: Interest on SUPPLIER REFUNDS is included with the principle for the supplier refunds. Item is included in Balance Sheet Analysis. Therefore, the lead days are 0 for supplier refunds.

Sheet Sh 13 - int
D1: ='(WP) Instructions & Input'!B11 -> Exhibit No.: ________ | H1: KY PSC Case No. 2021-00183
D2: ='(WP) Instructions & Input'!B12 -> Witness: L. A. Guilbert | H2: Staff 3-36
E3: ='(WP) Instructions & Input'!B6 -> Schedule 27 | H3: Attachment B
E4: Sheet 13
A6: ='(WP) Instructions & Input'!B2 -> Columbia Gas of Virginia, Inc.
A7: ='(WP) Instructions & Input'!B3 -> Analysis of Cash Working Capital Requirement
A8: Interest On Debt
A9: ='(WP) Instructions & Input'!B4 -> TME: December 31, 2017
A10: ='(WP) Instructions & Input'!B9 -> Case No. PUR-2018-00131
E12: Dollar
A13: Line | D13: Lead | E13: Lead
A14: No. | B14: Instrument | C14: Amount | D14: Days | E14: Days
C15: (1) | D15: (2) | E15: (3=1*2)
C16: $ | E16: $
A19: 1 | B19: Installment Promissory Notes | C19: 17487834.65 | D19: =ROUND(365/2/2,2) -> 91.25 | E19: =ROUND(C19*D19,0) -> 1595764912
A21: =A19+1 -> 2 | B21: Money Pool | C21: 394691.9 | D21: ='(WP) Sh 13-Money Pool Int.'!E30 -> 16.95 | E21: =ROUND(C21*D21,0) -> 6690028
A23: =A21+1 -> 3 | B23: Total | C23: =SUM(C19:C21) -> 17882526.55 | D23: =ROUND(E23/C23,2) -> 89.61 | E23: =SUM(E19:E21) -> 1602454940
A25: Source: Financial Statements, Page 5
B30: Note: The Install Prom Notes and N/P - Money Pool are held by the Col Gas System,
B31: Inc. with Interest Payable as follows:
B33: Debentures: | C33: Interest on each series of debentures is paid semi-annually,
C34: the lead is calculated as follows: No. Of Days in the Year /
C35: No. of Int Payments / 2 (to determine midpoint) = lead days.
C36: 365/2/2 = 91.3
B39: N/P Money Pool/Open Gas Inv: | C39: Interest is paid monthly; the first business day of the following
C40: The lead days are calculated on next schedule.

Sheet Sh 14 - Utility Tax
E1: ='(WP) Instructions & Input'!B11 -> Exhibit No.: ________ | J1: KY PSC Case No. 2021-00183
E2: ='(WP) Instructions & Input'!B12 -> Witness: L. A. Guilbert | J2: Staff 3-36
F3: ='(WP) Instructions & Input'!B6 -> Schedule 27 | J3: Attachment B
E4: Sheet 14
A6: ='(WP) Instructions & Input'!B2 -> Columbia Gas of Virginia, Inc.
A7: ='(WP) Instructions & Input'!B3 -> Analysis of Cash Working Capital Requirement
A8: Customer Utility Sales Tax
A9: ='(WP) Instructions & Input'!B4 -> TME: December 31, 2017
A10: ='(WP) Instructions & Input'!B9 -> Case No. PUR-2018-00131
A12: Line | B12: End of | C12: Payment | D12: Lead | E12: Amount | F12: Weighted
A13: No. | B13: Period | C13: Date | D13: Days | E13: Paid | F13: Tax Dollars
B14: (1) | C14: (2) | D14: (3=2-1) | E14: (4) | F14: (5=3*4)
A17: =A15+1 -> 1 | B17: ='(WP) Customer Utility Taxes'!C8 -> 2017-01-31 | C17: ='(WP) Customer Utility Taxes'!C$7 -> 2017-02-09 | D17: =C17-B17 -> 9 | E17: ='(WP) Customer Utility Taxes'!C101 -> 1187740.89 | F17: =ROUND(E17*D17,0) -> 10689668
A18: 2 | B18: ='(WP) Customer Utility Taxes'!D8 -> 2017-02-28 | C18: ='(WP) Customer Utility Taxes'!D$7 -> 2017-03-09 | D18: =C18-B18 -> 9 | E18: ='(WP) Customer Utility Taxes'!D101 -> 1108087.1 | F18: 9972784
A19: 3 | B19: ='(WP) Customer Utility Taxes'!E8 -> 2017-03-31 | C19: ='(WP) Customer Utility Taxes'!E$7 -> 2017-04-12 | D19: 12 | E19: ='(WP) Customer Utility Taxes'!E101 -> 1040441.54 | F19: 12485298
A20: 4 | B20: ='(WP) Customer Utility Taxes'!F8 -> 2017-04-30 | C20: ='(WP) Customer Utility Taxes'!F$7 -> 2017-05-10 | D20: 10 | E20: ='(WP) Customer Utility Taxes'!F101 -> 933757.68 | F20: 9337577
A21: 5 | B21: ='(WP) Customer Utility Taxes'!G8 -> 2017-05-31 | C21: ='(WP) Customer Utility Taxes'!G$7 -> 2017-06-13 | D21: 13 | E21: ='(WP) Customer Utility Taxes'!G101 -> 768230.12 | F21: 9986992
A22: 6 | B22: ='(WP) Customer Utility Taxes'!H8 -> 2017-06-30 | C22: ='(WP) Customer Utility Taxes'!H$7 -> 2017-07-14 | D22: 14 | E22: ='(WP) Customer Utility Taxes'!H101 -> 728878.09 | F22: 10204293
A23: 7 | B23: ='(WP) Customer Utility Taxes'!I8 -> 2017-07-31 | C23: ='(WP) Customer Utility Taxes'!I$7 -> 2017-08-14 | D23: 14 | E23: ='(WP) Customer Utility Taxes'!I101 -> 697628.96 | F23: 9766805
A24: 8 | B24: ='(WP) Customer Utility Taxes'!J8 -> 2017-08-31 | C24: ='(WP) Customer Utility Taxes'!J$7 -> 2017-09-08 | D24: 8 | E24: ='(WP) Customer Utility Taxes'!J101 -> 688366.39 | F24: 5506931
A25: 9 | B25: ='(WP) Customer Utility Taxes'!K8 -> 2017-09-30 | C25: ='(WP) Customer Utility Taxes'!K$7 -> 2017-10-09 | D25: 9 | E25: ='(WP) Customer Utility Taxes'!K101 -> 693396.96 | F25: 6240573
A26: 10 | B26: ='(WP) Customer Utility Taxes'!L8 -> 2017-10-31 | C26: ='(WP) Customer Utility Taxes'!L$7 -> 2017-11-08 | D26: 8 | E26: ='(WP) Customer Utility Taxes'!L101 -> 713805.59 | F26: 5710445
A27: 11 | B27: ='(WP) Customer Utility Taxes'!M8 -> 2017-11-30 | C27: ='(WP) Customer Utility Taxes'!M$7 -> 2017-12-08 | D27: 8 | E27: ='(WP) Customer Utility Taxes'!M101 -> 849355.92 | F27: 6794847
A28: 12 | B28: ='(WP) Customer Utility Taxes'!N8 -> 2017-12-31 | C28: ='(WP) Customer Utility Taxes'!N$7 -> 2018-01-12 | D28: 12 | E28: ='(WP) Customer Utility Taxes'!N101 -> 1088176.53 | F28: 13058118
A30: 13 | B30: Wtd. Average Lead Days | D30: =ROUND(F30/E30,2) -> 10.45 | E30: =SUM(E17:E29) -> 10497865.77 | F30: =SUM(F17:F29) -> 109754331
A32: =A30+1 -> 14 | B32: Add: Service Midpoint 1/ | D32: 15.21
A34: =A32+1 -> 15 | C34: Total Lead Days | D34: =D30+D32 -> 25.66
A36: 1/ | B36: Service Midpoint lead days computed as: 365 days/12 months/ 2(midpoint) = 15.21 days.
A37: 2/ | B37: Represents the average number of days from the end of the month to the actual payment date.
B39: Payment Date is the 20th of the following month.
B41: If the 20th is not a business day, then the payment date is the last business day prior to the 20th.

Sheet Sh 15 - Consumtion Tax
K1: KY PSC Case No. 2021-00183
H2: ='Sh 16 - NCSC'!H1 -> Exhibit No.: ________ | K2: Staff 3-36
H3: ='Sh 16 - NCSC'!H2 -> Witness: L. A. Guilbert | K3: Attachment B
H4: ='Sh 16 - NCSC'!H3 -> Schedule 27
H5: Sheet 15
A6: ='(WP) Instructions & Input'!B2 -> Columbia Gas of Virginia, Inc.
A7: ='(WP) Instructions & Input'!B3 -> Analysis of Cash Working Capital Requirement
A8: State and Local Consumption Tax
A9: ='(WP) Instructions & Input'!B4 -> TME: December 31, 2017
A10: ='(WP) Instructions & Input'!B9 -> Case No. PUR-2018-00131
E12: Midpoint | H12: Dollar
A13: Line | C13: Service | D13: Payment | E13: of Service | F13: Lead | G13: Amount | H13: Lead
A14: No. | B14: Jurisdiction | C14: Period | D14: Date | E14: Period | F14: Days | G14: Paid | H14: Days
B15: (1) | C15: (2) | D15: (3) | E15: (4) | F15: (5)=(3-2+4) | G15: (6) | H15: (7)=(5*6))
G16: $ | H16: $
A18: 1 | B18: State | C18: 2017-01-31 | D18: 2017-02-13 | E18: =31/2 -> 15.5 | F18: =D18-C18+E18 -> 28.5 | G18: 528220.69 | H18: =F18*G18 -> 15054289.66
A19: 2 | B19: Local | C19: 2017-01-31 | D19: 2017-02-09 | F19: =F18 -> 28.5 | G19: 139664.45 | H19: =F19*G19 -> 3980436.825
A21: 3 | B21: State | C21: 2017-02-28 | D21: 2017-03-13 | E21: =28/2 -> 14 | F21: =D21-C21+E21 -> 27 | G21: 423941.12 | H21: =F21*G21 -> 11446410.24
A22: 4 | B22: Local | C22: 2017-02-28 | D22: 2017-03-09 | F22: =F21 -> 27 | G22: 112088.08 | H22: =F22*G22 -> 3026378.16
A24: 5 | B24: State | C24: 2017-03-31 | D24: 2017-04-20 | E24: =31/2 -> 15.5 | F24: =D24-C24+E24 -> 35.5 | G24: 350099.97 | H24: =F24*G24 -> 12428548.93
A25: 6 | B25: Local | C25: 2017-03-31 | D25: 2017-04-12 | F25: =F24 -> 35.5 | G25: 92543.97 | H25: =F25*G25 -> 3285310.935
A27: 7 | B27: State | C27: 2017-04-30 | D27: 2017-05-22 | E27: =30/2 -> 15 | F27: =D27-C27+E27 -> 37 | G27: 231144.42 | H27: =F27*G27 -> 8552343.54
A28: 8 | B28: Local | C28: 2017-04-30 | D28: 2017-05-10 | F28: =F27 -> 37 | G28: 61128.78 | H28: =F28*G28 -> 2261764.86
A30: 9 | B30: State | C30: 2017-05-31 | D30: 2017-06-26 | E30: =31/2 -> 15.5 | F30: =D30-C30+E30 -> 41.5 | G30: 111976.45 | H30: =F30*G30 -> 4647022.675
A31: 10 | B31: Local | C31: 2017-05-31 | D31: 2017-06-13 | F31: =F30 -> 41.5 | G31: 29556.97 | H31: =F31*G31 -> 1226614.255
A33: 11 | B33: State | C33: 2017-06-30 | D33: 2017-07-18 | E33: =30/2 -> 15 | F33: =D33-C33+E33 -> 33 | G33: 83274.02 | H33: =F33*G33 -> 2748042.66
A34: 12 | B34: Local | C34: 2017-06-30 | D34: 2017-07-14 | F34: =F33 -> 33 | G34: 21930.99 | H34: =F34*G34 -> 723722.67
A36: 13 | B36: State | C36: 2017-07-31 | D36: 2017-08-14 | E36: =31/2 -> 15.5 | F36: =D36-C36+E36 -> 29.5 | G36: 66958.29 | H36: =F36*G36 -> 1975269.555
A37: 14 | B37: Local | C37: 2017-07-31 | D37: 2017-08-14 | F37: =F36 -> 29.5 | G37: 17591.02 | H37: =F37*G37 -> 518935.09
A39: 15 | B39: State | C39: 2017-08-31 | D39: 2017-09-12 | E39: =31/2 -> 15.5 | F39: =D39-C39+E39 -> 27.5 | G39: 62988.89 | H39: =F39*G39 -> 1732194.475
A40: 16 | B40: Local | C40: 2017-08-31 | D40: 2017-09-08 | F40: =F39 -> 27.5 | G40: 16541.66 | H40: =F40*G40 -> 454895.65
A42: 17 | B42: State | C42: 2017-09-30 | D42: 2017-10-11 | E42: =30/2 -> 15 | F42: =D42-C42+E42 -> 26 | G42: 68909.96 | H42: =F42*G42 -> 1791658.96
A43: 18 | B43: Local | C43: 2017-09-30 | D43: 2017-10-09 | F43: =F42 -> 26 | G43: 18108.36 | H43: =F43*G43 -> 470817.36
A45: 19 | B45: State | C45: 2017-10-31 | D45: 2017-11-16 | E45: =31/2 -> 15.5 | F45: =D45-C45+E45 -> 31.5 | G45: 75731.37 | H45: =F45*G45 -> 2385538.155
A46: 20 | B46: Local | C46: 2017-10-31 | D46: 2017-11-08 | F46: =F45 -> 31.5 | G46: 19916.34 | H46: =F46*G46 -> 627364.71
A48: 21 | B48: State | C48: 2017-11-30 | D48: 2017-12-14 | E48: =30/2 -> 15 | F48: =D48-C48+E48 -> 29 | G48: 186217.12 | H48: =F48*G48 -> 5400296.48
A49: 22 | B49: Local | C49: 2017-11-30 | D49: 2017-12-08 | F49: =F48 -> 29 | G49: 49167.86 | H49: =F49*G49 -> 1425867.94
A51: 23 | B51: State | C51: 2017-12-31 | D51: 2018-01-17 | E51: =31/2 -> 15.5 | F51: =D51-C51+E51 -> 32.5 | G51: 422284.74 | H51: =F51*G51 -> 13724254.05
A52: 24 | B52: Local | C52: 2017-12-31 | D52: 2018-01-12 | F52: =F51 -> 32.5 | G52: 111610.6 | H52: =F52*G52 -> 3627344.5
A55: 25 | B55: Total | F55: =ROUND(H55/G55,2) -> 31.35 | G55: =SUM(G18:G52) -> 3301596.12 | H55: =SUM(H18:H52) -> 103515322.3
A57: Note:
A58: Local Consumption Taxes are due by the 20th of the month.
A59: State Taxes are due the last business day of the month.

Sheet Sh 16 - NCSC
H1: ='(WP) Instructions & Input'!B11 -> Exhibit No.: ________ | L1: KY PSC Case No. 2021-00183
H2: ='(WP) Instructions & Input'!B12 -> Witness: L. A. Guilbert | L2: Staff 3-36
H3: ='(WP) Instructions & Input'!B6 -> Schedule 27 | L3: Attachment B
H4: Sheet 16
A6: ='(WP) Instructions & Input'!B2 -> Columbia Gas of Virginia, Inc.
A7: ='(WP) Instructions & Input'!B3 -> Analysis of Cash Working Capital Requirement
A8: Corporate Services
A9: ='(WP) Instructions & Input'!B4 -> TME: December 31, 2017
A10: ='(WP) Instructions & Input'!B9 -> Case No. PUR-2018-00131
E12: Midpoint | H12: Weighted
A13: Line | B13: End of | C13: Payment | E13: of Service | F13: Lead | H13: Lead
A14: No. | B14: Service Period | C14: Date | E14: Period | F14: Days | G14: Payment | H14: Days
B15: (1) | C15: (2) | E15: (3) | F15: (4)=(2)-(1)+(3) | G15: (5) | H15: (6)=(4)*(5)
G16: $ | H16: $
A17: 1 | B17: 2017-01-31 | C17: 2017-02-17 | E17: 15.5 | F17: =C17-B17+E17 -> 32.5 | G17: 3713184.94 | H17: =ROUND(G17*F17,0) -> 120678511
A18: =A17+1 -> 2 | B18: 2017-02-28 | C18: 2017-03-15 | E18: 14 | F18: 29 | G18: 4364946.43 | H18: 126583446
A19: =A18+1 -> 3 | B19: 2017-03-31 | C19: 2017-04-18 | E19: 15.5 | F19: 33.5 | G19: 4948283.95 | H19: 165767512
A20: 4 | B20: 2017-04-30 | C20: 2017-05-16 | E20: 15 | F20: 31 | G20: 4238160.85 | H20: 131382986
A21: 5 | B21: 2017-05-31 | C21: 2017-06-15 | E21: 15.5 | F21: 30.5 | G21: 4536733.08 | H21: 138370359
A22: 6 | B22: 2017-06-30 | C22: 2017-07-17 | E22: 15 | F22: 32 | G22: 5297539.98 | H22: 169521279
A23: 7 | B23: 2017-07-31 | C23: 2017-08-15 | E23: 15.5 | F23: 30.5 | G23: 5440693.75 | H23: 165941159
A24: 8 | B24: 2017-08-31 | C24: 2017-09-15 | E24: 15.5 | F24: 30.5 | G24: 4902448.1 | H24: 149524667
A25: 9 | B25: 2017-09-30 | C25: 2017-10-16 | E25: 15 | F25: 31 | G25: 5753208.57 | H25: 178349466
A26: 10 | B26: 2017-10-31 | C26: 2017-11-15 | E26: 15.5 | F26: 30.5 | G26: 5565555.06 | H26: 169749429
A27: 11 | B27: 2017-11-30 | C27: 2017-12-19 | E27: 15 | F27: =C27-B27+E27 -> 34 | G27: 6165537.04 | H27: 209628259
A28: 12 | B28: 2017-12-31 | C28: 2018-01-17 | E28: 15.5 | F28: =C28-B28+E28 -> 32.5 | G28: 6429577.34 | H28: =ROUND(G28*F28,0) -> 208961264
A29: 13 | C29: Total | G29: =SUM(G17:G28) -> 61355869.09 | H29: =SUM(H17:H28) -> 1934458337
A30: 14 | B30: Weighted Average Days (Col. 6/Col. 5) | F30: =ROUND(H29/G29,1) -> 31.5

Sheet Sched 28(BS) Contents sh 1 of 4
C1: ='(WP) Instructions & Input'!B11 -> Exhibit No.: ________ | F1: KY PSC Case No. 2021-00183
C2: ='(WP) Instructions & Input'!B12 -> Witness: L. A. Guilbert | F2: Staff 3-36
C3: ='(WP) Instructions & Input'!B7 -> Schedule 28 | F3: Attachment B
C4: Sheet 1
A6: ='(WP) Instructions & Input'!B2 -> Columbia Gas of Virginia, Inc.
A7: Cash Working Capital -- Balance Sheet Analysis
A8: ='(WP) Instructions & Input'!B7 -> Schedule 28
A9: ='(WP) Instructions & Input'!B9 -> Case No. PUR-2018-00131
A12: Table of Contents
A14: Line
A15: No. | B15: Description | C15: Sheet Number
A17: 1 | B17: Cash Working Capital - Balance Sheet Analysis - LVTS (Per Books) | C17: Sheet 2
A18: =A17+1 -> 2 | B18: Cash Working Capital - Balance Sheet Analysis - Jurisdictional (Per Books) | C18: Sheet 3
A19: =A18+1 -> 3 | B19: Cash Working Capital - Total Company Detail (Per Books) | C19: Sheet 4

Sheet Sched 28(BS) LVTS sh 2 of 4
G1: ='(WP) Instructions & Input'!B11 -> Exhibit No.: ________ | K1: KY PSC Case No. 2021-00183
G2: ='(WP) Instructions & Input'!B12 -> Witness: L. A. Guilbert | K2: Staff 3-36
H3: ='(WP) Instructions & Input'!B7 -> Schedule 28 | K3: Attachment B
H4: Sheet 2
A5: ='(WP) Instructions & Input'!B2 -> Columbia Gas of Virginia, Inc.
A6: Cash Working Capital
A7: Balance Sheet Analysis -- LVTS
A8: 13 Months Average December 31, 2017
A9: ='(WP) Instructions & Input'!B9 -> Case No. PUR-2018-00131
F10: Sch 40b
A11: Line | E11: 13 Mo. Avg. | F11: Alloc | G11: LVTS | H11: LVTS
A12: No. | B12: ='Sched 28(BS) Juris sh 3 of 4'!B12 -> Account Number | C12: ='Sched 28(BS) Juris sh 3 of 4'!C12 -> Description | E12: ='Sched 28(BS) Juris sh 3 of 4'!F12 -> 12/31/2017 | F12: Factor | G12: % | H12: =E12 -> 12/31/2017
A14: 1 | B14: 12800000 | C14: Funds Held in Trust | E14: ='Sched 28(BS) Detail sh 4 of 4'!S15 -> 44282 | F14: ='Sched 28(BS) Juris sh 3 of 4'!G14 -> 22 | G14: =LOOKUP(F14,'(WP) LVTS Alloc Factors'!$A$3:$B$24) -> 0.03864 | H14: =ROUND(E14*G14,0) -> 1711
A15: =A14+1 -> 2 | B15: ='Sched 28(BS) Juris sh 3 of 4'!B15 -> 14100000 | C15: ='Sched 28(BS) Juris sh 3 of 4'!C15 -> Notes Receivable - Employees | E15: ='Sched 28(BS) Detail sh 4 of 4'!S16 -> 0 | F15: ='Sched 28(BS) Juris sh 3 of 4'!G15 -> 22 | G15: =LOOKUP(F15,'(WP) LVTS Alloc Factors'!$A$3:$B$24) -> 0.03864 | H15: =ROUND(E15*G15,0) -> 0
A16: =A15+1 -> 3 | B16: ='Sched 28(BS) Juris sh 3 of 4'!B16 -> 14300180-3633,3638 | C16: ='Sched 28(BS) Juris sh 3 of 4'!C16 -> Other A/R - Employee Advances | E16: ='Sched 28(BS) Detail sh 4 of 4'!S17 -> 0 | F16: ='Sched 28(BS) Juris sh 3 of 4'!G16 -> 22 | G16: =LOOKUP(F16,'(WP) LVTS Alloc Factors'!$A$3:$B$24) -> 0.03864 | H16: =ROUND(E16*G16,0) -> 0
A17: =A16+1 -> 4 | B17: ='Sched 28(BS) Juris sh 3 of 4'!B17 -> 14300001-4525 | C17: ='Sched 28(BS) Juris sh 3 of 4'!C17 -> Other A/R - Emp. Temp. Exp. Adv. | E17: ='Sched 28(BS) Detail sh 4 of 4'!S18 -> 0 | F17: ='Sched 28(BS) Juris sh 3 of 4'!G17 -> 22 | G17: =LOOKUP(F17,'(WP) LVTS Alloc Factors'!$A$3:$B$24) -> 0.03864 | H17: 0
A18: 5 | B18: ='Sched 28(BS) Juris sh 3 of 4'!B18 -> 14302000-9605 | C18: ='Sched 28(BS) Juris sh 3 of 4'!C18 -> Income Tax Receivable - State | E18: ='Sched 28(BS) Detail sh 4 of 4'!S19 -> 0 | F18: ='Sched 28(BS) Juris sh 3 of 4'!G18 -> 22 | G18: =LOOKUP(F18,'(WP) LVTS Alloc Factors'!$A$3:$B$24) -> 0.03864 | H18: 0
A19: 6 | B19: ='Sched 28(BS) Juris sh 3 of 4'!B19 -> 14300001-3638 | C19: ='Sched 28(BS) Juris sh 3 of 4'!C19 -> Other A/R - Miscellaneous | E19: ='Sched 28(BS) Detail sh 4 of 4'!S20 -> 53471 | F19: ='Sched 28(BS) Juris sh 3 of 4'!G19 -> 22 | G19: =LOOKUP(F19,'(WP) LVTS Alloc Factors'!$A$3:$B$24) -> 0.03864 | H19: 2066
A20: 7 | B20: ='Sched 28(BS) Juris sh 3 of 4'!B20 -> 14300300 | C20: ='Sched 28(BS) Juris sh 3 of 4'!C20 -> Other AR-Rent Deposits | E20: ='Sched 28(BS) Detail sh 4 of 4'!S21 -> 30204 | F20: ='Sched 28(BS) Juris sh 3 of 4'!G20 -> 22 | G20: =LOOKUP(F20,'(WP) LVTS Alloc Factors'!$A$3:$B$24) -> 0.03864 | H20: =ROUND(E20*G20,0) -> 1167
A21: 8 | B21: ='Sched 28(BS) Juris sh 3 of 4'!B21 -> 16500010 | C21: ='Sched 28(BS) Juris sh 3 of 4'!C21 -> Prepaid Medical LTD | E21: ='Sched 28(BS) Detail sh 4 of 4'!S22 -> 62764 | F21: ='Sched 28(BS) Juris sh 3 of 4'!G21 -> 22 | G21: =LOOKUP(F21,'(WP) LVTS Alloc Factors'!$A$3:$B$24) -> 0.03864 | H21: 2425
A22: 9 | B22: ='Sched 28(BS) Juris sh 3 of 4'!B22 -> 16521000 | C22: ='Sched 28(BS) Juris sh 3 of 4'!C22 -> Prepaid Insurance | E22: ='Sched 28(BS) Detail sh 4 of 4'!S23 -> 487469 | F22: ='Sched 28(BS) Juris sh 3 of 4'!G22 -> 22 | G22: =LOOKUP(F22,'(WP) LVTS Alloc Factors'!$A$3:$B$24) -> 0.03864 | H22: 18836
A23: 10 | B23: ='Sched 28(BS) Juris sh 3 of 4'!B23 -> 16520000 | C23: ='Sched 28(BS) Juris sh 3 of 4'!C23 -> Prepayments-Excess Liability Insurance | E23: ='Sched 28(BS) Detail sh 4 of 4'!S24 -> 396932 | F23: ='Sched 28(BS) Juris sh 3 of 4'!G23 -> 22 | G23: =LOOKUP(F23,'(WP) LVTS Alloc Factors'!$A$3:$B$24) -> 0.03864 | H23: 15337
A24: 11 | B24: ='Sched 28(BS) Juris sh 3 of 4'!B24 -> 17401000 | C24: ='Sched 28(BS) Juris sh 3 of 4'!C24 -> Exchange Gas | E24: ='Sched 28(BS) Detail sh 4 of 4'!S25 -> 40 | F24: ='Sched 28(BS) Juris sh 3 of 4'!G24 -> 20 | G24: =LOOKUP(F24,'(WP) LVTS Alloc Factors'!$A$3:$B$24) -> 0 | H24: 0
A25: 12 | B25: ='Sched 28(BS) Juris sh 3 of 4'!B25 -> 18230005 | C25: ='Sched 28(BS) Juris sh 3 of 4'!C25 -> Reg Asset OPEB Transition | E25: ='Sched 28(BS) Detail sh 4 of 4'!S26 -> 215502 | F25: ='Sched 28(BS) Juris sh 3 of 4'!G25 -> 22 | G25: =LOOKUP(F25,'(WP) LVTS Alloc Factors'!$A$3:$B$24) -> 0.03864 | H25: 8327
A26: 13 | B26: ='Sched 28(BS) Juris sh 3 of 4'!B26 -> 18235105 | C26: ='Sched 28(BS) Juris sh 3 of 4'!C26 -> NC Reg Asset OPEB Regulatory | E26: ='Sched 28(BS) Detail sh 4 of 4'!S27 -> 3214570 | F26: ='Sched 28(BS) Juris sh 3 of 4'!G26 -> 22 | G26: =LOOKUP(F26,'(WP) LVTS Alloc Factors'!$A$3:$B$24) -> 0.03864 | H26: 124211
A27: 14 | B27: ='Sched 28(BS) Juris sh 3 of 4'!B27 -> 18320000, 18320001 | C27: ='Sched 28(BS) Juris sh 3 of 4'!C27 -> Preliminary Survey & Investigation | E27: ='Sched 28(BS) Detail sh 4 of 4'!S28 -> 4183543 | F27: ='Sched 28(BS) Juris sh 3 of 4'!G27 -> 17 | G27: =LOOKUP(F27,'(WP) LVTS Alloc Factors'!$A$3:$B$24) -> 0.07479 | H27: 312887
A28: 15 | B28: ='Sched 28(BS) Juris sh 3 of 4'!B28 -> 18600200 | C28: ='Sched 28(BS) Juris sh 3 of 4'!C28 -> Misc. Maintenance & Jobbing WIP | E28: ='Sched 28(BS) Detail sh 4 of 4'!S29 -> 5418 | F28: ='Sched 28(BS) Juris sh 3 of 4'!G28 -> 17 | G28: =LOOKUP(F28,'(WP) LVTS Alloc Factors'!$A$3:$B$24) -> 0.07479 | H28: 405
A29: 16 | B29: ='Sched 28(BS) Juris sh 3 of 4'!B29 -> 18608200 | C29: ='Sched 28(BS) Juris sh 3 of 4'!C29 -> Def Debit-Mutual Materials | E29: ='Sched 28(BS) Detail sh 4 of 4'!S30 -> 0 | F29: ='Sched 28(BS) Juris sh 3 of 4'!G29 -> 17 | G29: =LOOKUP(F29,'(WP) LVTS Alloc Factors'!$A$3:$B$24) -> 0.07479 | H29: =ROUND(E29*G29,0) -> 0
A30: 17 | B30: ='Sched 28(BS) Juris sh 3 of 4'!B30 -> 190*****-Various Sub Accounts | C30: ='Sched 28(BS) Juris sh 3 of 4'!C30 -> Accum Deferred Income Taxes (Excl NOL ADIT) | E30: ='Sched 28(BS) Detail sh 4 of 4'!S31 -> 6998154 | F30: ='Sched 28(BS) Juris sh 3 of 4'!G30 -> 17 | G30: =LOOKUP(F30,'(WP) LVTS Alloc Factors'!$A$3:$B$24) -> 0.07479 | H30: 523392
A31: 18 | B31: ='Sched 28(BS) Juris sh 3 of 4'!B31 -> Total Uses of Cash Working Capital | E31: =SUM(E14:E30) -> 15692349 | H31: =SUM(H14:H30) -> 1010764
A33: =A31+1 -> 19 | B33: ='Sched 28(BS) Juris sh 3 of 4'!B33 -> Sources of Cash Working Capital:
A34: =A33+1 -> 20 | B34: ='Sched 28(BS) Juris sh 3 of 4'!B34 -> 21905000, 21905010, 21905200, 21905220 | C34: ='Sched 28(BS) Juris sh 3 of 4'!C34 -> Pension/OPEB Bal/Adj Booked to OCI | E34: ='Sched 28(BS) Detail sh 4 of 4'!S35 -> 11395724 | F34: ='Sched 28(BS) Juris sh 3 of 4'!G34 -> 22 | G34: =LOOKUP(F34,'(WP) LVTS Alloc Factors'!$A$3:$B$24) -> 0.03864 | H34: =ROUND(E34*G34,0) -> 440331
A35: 21 | B35: ='Sched 28(BS) Juris sh 3 of 4'!B35 -> 21905020, 21905030, 21905230, 21905240 | C35: ='Sched 28(BS) Juris sh 3 of 4'!C35 -> Pension/OPEB Fed/St Tax Booked to OCI | E35: ='Sched 28(BS) Detail sh 4 of 4'!S36 -> -4412494 | F35: ='Sched 28(BS) Juris sh 3 of 4'!G35 -> 17 | G35: =LOOKUP(F35,'(WP) LVTS Alloc Factors'!$A$3:$B$24) -> 0.07479 | H35: -330010
A36: 22 | B36: ='Sched 28(BS) Juris sh 3 of 4'!B36 -> 22820000 | C36: ='Sched 28(BS) Juris sh 3 of 4'!C36 -> Provision for Injuries & Damages | E36: ='Sched 28(BS) Detail sh 4 of 4'!S37 -> -98984 | F36: ='Sched 28(BS) Juris sh 3 of 4'!G36 -> 22 | G36: =LOOKUP(F36,'(WP) LVTS Alloc Factors'!$A$3:$B$24) -> 0.03864 | H36: -3825
A37: 23 | B37: ='Sched 28(BS) Juris sh 3 of 4'!B37 -> 22830010 | C37: ='Sched 28(BS) Juris sh 3 of 4'!C37 -> Provision for Banked Vacation | E37: ='Sched 28(BS) Detail sh 4 of 4'!S38 -> -705450 | F37: ='Sched 28(BS) Juris sh 3 of 4'!G37 -> 22 | G37: =LOOKUP(F37,'(WP) LVTS Alloc Factors'!$A$3:$B$24) -> 0.03864 | H37: =ROUND(E37*G37,0) -> -27259
A38: 24 | B38: ='Sched 28(BS) Juris sh 3 of 4'!B38 -> 22833000 | C38: ='Sched 28(BS) Juris sh 3 of 4'!C38 -> Provisions for FAS 112 | E38: ='Sched 28(BS) Detail sh 4 of 4'!S39 -> -346616 | F38: ='Sched 28(BS) Juris sh 3 of 4'!G38 -> 22 | G38: =LOOKUP(F38,'(WP) LVTS Alloc Factors'!$A$3:$B$24) -> 0.03864 | H38: -13393
A39: 25 | B39: ='Sched 28(BS) Juris sh 3 of 4'!B39 -> 22838030 | C39: ='Sched 28(BS) Juris sh 3 of 4'!C39 -> Misc Op Res-NC OPEB Retire Cnt | E39: ='Sched 28(BS) Detail sh 4 of 4'!S40 -> 0 | F39: ='Sched 28(BS) Juris sh 3 of 4'!G39 -> 22 | G39: =LOOKUP(F39,'(WP) LVTS Alloc Factors'!$A$3:$B$24) -> 0.03864 | H39: 0
A40: =A39+1 -> 26 | B40: ='Sched 28(BS) Juris sh 3 of 4'!B40 -> 232 | C40: ='Sched 28(BS) Juris sh 3 of 4'!C40 -> A/P - CWIP (Acct 107) | E40: ='Sched 28(BS) Detail sh 4 of 4'!S41 -> -3361469.54 | F40: ='Sched 28(BS) Juris sh 3 of 4'!G40 -> 17 | G40: =LOOKUP(F40,'(WP) LVTS Alloc Factors'!$A$3:$B$24) -> 0.07479 | H40: -251404
A41: 27 | B41: ='Sched 28(BS) Juris sh 3 of 4'!B41 -> 234 | C41: ='Sched 28(BS) Juris sh 3 of 4'!C41 -> A/P Exchange Gas | E41: ='Sched 28(BS) Detail sh 4 of 4'!S42 -> -42375 | F41: ='Sched 28(BS) Juris sh 3 of 4'!G41 -> 20 | G41: =LOOKUP(F41,'(WP) LVTS Alloc Factors'!$A$3:$B$24) -> 0 | H41: 0
A42: 28 | B42: ='Sched 28(BS) Juris sh 3 of 4'!B42 -> 24103110, 24103120, 24103130, 24103140, 24103150 | C42: ='Sched 28(BS) Juris sh 3 of 4'!C42 -> Tax Collections Payable-Employee FIT/SIT/FICA | E42: ='Sched 28(BS) Detail sh 4 of 4'!S43 -> 0 | F42: ='Sched 28(BS) Juris sh 3 of 4'!G42 -> 17 | G42: =LOOKUP(F42,'(WP) LVTS Alloc Factors'!$A$3:$B$24) -> 0.07479 | H42: 0
A43: 29 | B43: ='Sched 28(BS) Juris sh 3 of 4'!B43 -> 24240050-R400 | C43: ='Sched 28(BS) Juris sh 3 of 4'!C43 -> Exchange gas - Borrowing | E43: ='Sched 28(BS) Detail sh 4 of 4'!S44 -> 323843 | F43: ='Sched 28(BS) Juris sh 3 of 4'!G43 -> 17 | G43: =LOOKUP(F43,'(WP) LVTS Alloc Factors'!$A$3:$B$24) -> 0.07479 | H43: 24220
A44: 30 | B44: ='Sched 28(BS) Juris sh 3 of 4'!B44 -> 24203200, 224203201 | C44: ='Sched 28(BS) Juris sh 3 of 4'!C44 -> Vacation Accrual | E44: ='Sched 28(BS) Detail sh 4 of 4'!S45 -> -2440988 | F44: ='Sched 28(BS) Juris sh 3 of 4'!G44 -> 2 | G44: =LOOKUP(F44,'(WP) LVTS Alloc Factors'!$A$3:$B$24) -> 6e-05 | H44: -146
A45: 31 | B45: ='Sched 28(BS) Juris sh 3 of 4'!B45 -> 24203000 | C45: ='Sched 28(BS) Juris sh 3 of 4'!C45 -> Accrued Liability - Profit Sharing | E45: ='Sched 28(BS) Detail sh 4 of 4'!S46 -> -245211 | F45: ='Sched 28(BS) Juris sh 3 of 4'!G45 -> 22 | G45: =LOOKUP(F45,'(WP) LVTS Alloc Factors'!$A$3:$B$24) -> 0.03864 | H45: =ROUND(E45*G45,0) -> -9475
A46: 32 | B46: ='Sched 28(BS) Juris sh 3 of 4'!B46 -> 24201629, 24201629-3027 | C46: ='Sched 28(BS) Juris sh 3 of 4'!C46 -> Accrued Liability - Unclaimed Accounts | E46: ='Sched 28(BS) Detail sh 4 of 4'!S47 -> -1281021 | F46: ='Sched 28(BS) Juris sh 3 of 4'!G46 -> 22 | G46: =LOOKUP(F46,'(WP) LVTS Alloc Factors'!$A$3:$B$24) -> 0.03864 | H46: -49499
A47: 33 | B47: ='Sched 28(BS) Juris sh 3 of 4'!B47 -> 24208000, 24208020 | C47: ='Sched 28(BS) Juris sh 3 of 4'!C47 -> Benefits - C.M.E.P. - Company Portion | E47: ='Sched 28(BS) Detail sh 4 of 4'!S48 -> -252187 | F47: ='Sched 28(BS) Juris sh 3 of 4'!G47 -> 22 | G47: =LOOKUP(F47,'(WP) LVTS Alloc Factors'!$A$3:$B$24) -> 0.03864 | H47: -9745
A48: 34 | B48: ='Sched 28(BS) Juris sh 3 of 4'!B48 -> 24202500-9257-N008 | C48: ='Sched 28(BS) Juris sh 3 of 4'!C48 -> Thrift Restoration Plan | E48: ='Sched 28(BS) Detail sh 4 of 4'!S49 -> 0 | F48: ='Sched 28(BS) Juris sh 3 of 4'!G48 -> 22 | G48: =LOOKUP(F48,'(WP) LVTS Alloc Factors'!$A$3:$B$24) -> 0.03864 | H48: 0
A49: 35 | B49: ='Sched 28(BS) Juris sh 3 of 4'!B49 -> 25300000 | C49: ='Sched 28(BS) Juris sh 3 of 4'!C49 -> Reclass Thrift Restoration Plan | E49: ='Sched 28(BS) Detail sh 4 of 4'!S50 -> 0 | F49: ='Sched 28(BS) Juris sh 3 of 4'!G49 -> 22 | G49: =LOOKUP(F49,'(WP) LVTS Alloc Factors'!$A$3:$B$24) -> 0.03864 | H49: =ROUND(E49*G49,0) -> 0
A50: 36 | B50: ='Sched 28(BS) Juris sh 3 of 4'!B50 -> 24204000, 24204080, 24204081, 24204082, 24204090, 24204091, 24204092, 24204210 | C50: ='Sched 28(BS) Juris sh 3 of 4'!C50 -> Benefits - Employee Payroll Deductions | E50: ='Sched 28(BS) Detail sh 4 of 4'!S51 -> -108384 | F50: ='Sched 28(BS) Juris sh 3 of 4'!G50 -> 22 | G50: =LOOKUP(F50,'(WP) LVTS Alloc Factors'!$A$3:$B$24) -> 0.03864 | H50: -4188
A51: 37 | B51: ='Sched 28(BS) Juris sh 3 of 4'!B51 -> 24211263 | C51: ='Sched 28(BS) Juris sh 3 of 4'!C51 -> Accd Liab-ST FAS112 | E51: ='Sched 28(BS) Detail sh 4 of 4'!S52 -> -61420 | F51: ='Sched 28(BS) Juris sh 3 of 4'!G51 -> 22 | G51: =LOOKUP(F51,'(WP) LVTS Alloc Factors'!$A$3:$B$24) -> 0.03864 | H51: -2373
A52: 38 | B52: ='Sched 28(BS) Juris sh 3 of 4'!B52 -> 24203300, 24203305 | C52: ='Sched 28(BS) Juris sh 3 of 4'!C52 -> Accr. Payroll - CWIP | E52: ='Sched 28(BS) Detail sh 4 of 4'!S53 -> -166894.5408 | F52: ='Sched 28(BS) Juris sh 3 of 4'!G52 -> 22 | G52: =LOOKUP(F52,'(WP) LVTS Alloc Factors'!$A$3:$B$24) -> 0.03864 | H52: -6449
A53: 39 | B53: ='Sched 28(BS) Juris sh 3 of 4'!B53 -> 22838020 | C53: ='Sched 28(BS) Juris sh 3 of 4'!C53 -> Accrued Pension Restoration Plan | E53: ='Sched 28(BS) Detail sh 4 of 4'!S54 -> -43 | F53: ='Sched 28(BS) Juris sh 3 of 4'!G53 -> 22 | G53: =LOOKUP(F53,'(WP) LVTS Alloc Factors'!$A$3:$B$24) -> 0.03864 | H53: =ROUND(E53*G53,0) -> -2
A54: 40 | B54: ='Sched 28(BS) Juris sh 3 of 4'!B54 -> 22839000 | C54: ='Sched 28(BS) Juris sh 3 of 4'!C54 -> Accrued Pension Restoration Plan - Current | E54: ='Sched 28(BS) Detail sh 4 of 4'!S55 -> 0 | F54: ='Sched 28(BS) Juris sh 3 of 4'!G54 -> 22 | G54: =LOOKUP(F54,'(WP) LVTS Alloc Factors'!$A$3:$B$24) -> 0.03864 | H54: 0
A55: 41 | B55: ='Sched 28(BS) Juris sh 3 of 4'!B55 -> 24203100 | C55: ='Sched 28(BS) Juris sh 3 of 4'!C55 -> Wages Payable-CIP, Bonus Portion | E55: ='Sched 28(BS) Detail sh 4 of 4'!S56 -> -1460487 | F55: ='Sched 28(BS) Juris sh 3 of 4'!G55 -> 22 | G55: =LOOKUP(F55,'(WP) LVTS Alloc Factors'!$A$3:$B$24) -> 0.03864 | H55: -56433
A56: 42 | B56: ='Sched 28(BS) Juris sh 3 of 4'!B56 -> 24250110, 24250110-3500 | C56: ='Sched 28(BS) Juris sh 3 of 4'!C56 -> HeatShare Customer Contributions | E56: ='Sched 28(BS) Detail sh 4 of 4'!S57 -> -2261 | F56: ='Sched 28(BS) Juris sh 3 of 4'!G56 -> 2 | G56: =LOOKUP(F56,'(WP) LVTS Alloc Factors'!$A$3:$B$24) -> 6e-05 | H56: 0
A57: 43 | B57: ='Sched 28(BS) Juris sh 3 of 4'!B57 -> 24250160 | C57: ='Sched 28(BS) Juris sh 3 of 4'!C57 -> Credits Deposits - Gas Supply | E57: ='Sched 28(BS) Detail sh 4 of 4'!S58 -> -230000 | F57: ='Sched 28(BS) Juris sh 3 of 4'!G57 -> 22 | G57: =LOOKUP(F57,'(WP) LVTS Alloc Factors'!$A$3:$B$24) -> 0.03864 | H57: -8887
A58: 44 | B58: ='Sched 28(BS) Juris sh 3 of 4'!B58 -> 22834010 | C58: ='Sched 28(BS) Juris sh 3 of 4'!C58 -> Accum Provisions OPEB- Active | E58: ='Sched 28(BS) Detail sh 4 of 4'!S59 -> -4320923 | F58: ='Sched 28(BS) Juris sh 3 of 4'!G58 -> 22 | G58: =LOOKUP(F58,'(WP) LVTS Alloc Factors'!$A$3:$B$24) -> 0.03864 | H58: =ROUND(E58*G58,0) -> -166960
A59: 45 | B59: ='Sched 28(BS) Juris sh 3 of 4'!B59 -> 22840010 | C59: ='Sched 28(BS) Juris sh 3 of 4'!C59 -> Banked Vacation | E59: ='Sched 28(BS) Detail sh 4 of 4'!S60 -> 0 | F59: ='Sched 28(BS) Juris sh 3 of 4'!G59 -> 2 | G59: =LOOKUP(F59,'(WP) LVTS Alloc Factors'!$A$3:$B$24) -> 6e-05 | H59: 0
A60: 46 | B60: ='Sched 28(BS) Juris sh 3 of 4'!B60 -> 22838000 | C60: ='Sched 28(BS) Juris sh 3 of 4'!C60 -> Accrued Long Term Pension Cost | E60: ='Sched 28(BS) Detail sh 4 of 4'!S61 -> -5201612 | F60: ='Sched 28(BS) Juris sh 3 of 4'!G60 -> 22 | G60: =LOOKUP(F60,'(WP) LVTS Alloc Factors'!$A$3:$B$24) -> 0.03864 | H60: -200990
A61: 47 | B61: ='Sched 28(BS) Juris sh 3 of 4'!B61 -> 22836010 | C61: ='Sched 28(BS) Juris sh 3 of 4'!C61 -> Accrued Long Term Pension Restoration - Current | E61: ='Sched 28(BS) Detail sh 4 of 4'!S62 -> 0 | F61: ='Sched 28(BS) Juris sh 3 of 4'!G61 -> 22 | G61: =LOOKUP(F61,'(WP) LVTS Alloc Factors'!$A$3:$B$24) -> 0.03864 | H61: =ROUND(E61*G61,0) -> 0
A62: 48 | B62: ='Sched 28(BS) Juris sh 3 of 4'!B62 -> 25304010-9014 | C62: ='Sched 28(BS) Juris sh 3 of 4'!C62 -> Def Credits-FAS112 | E62: ='Sched 28(BS) Detail sh 4 of 4'!S63 -> 0 | F62: ='Sched 28(BS) Juris sh 3 of 4'!G62 -> 22 | G62: =LOOKUP(F62,'(WP) LVTS Alloc Factors'!$A$3:$B$24) -> 0.03864 | H62: 0
A63: 49 | B63: ='Sched 28(BS) Juris sh 3 of 4'!B63 -> 25405150 | C63: ='Sched 28(BS) Juris sh 3 of 4'!C63 -> Reg Liab NC-OPEB Tracker | E63: ='Sched 28(BS) Detail sh 4 of 4'!S64 -> 0 | F63: ='Sched 28(BS) Juris sh 3 of 4'!G63 -> 22 | G63: =LOOKUP(F63,'(WP) LVTS Alloc Factors'!$A$3:$B$24) -> 0.03864 | H63: 0
A64: 50 | B64: ='Sched 28(BS) Juris sh 3 of 4'!B64 -> 28301000, 28302000, 28305000, 28306000 | C64: ='Sched 28(BS) Juris sh 3 of 4'!C64 -> Accumulated Deferred Income Taxes | E64: ='Sched 28(BS) Detail sh 4 of 4'!S65 -> 2520411 | F64: ='Sched 28(BS) Juris sh 3 of 4'!G64 -> 17 | G64: =LOOKUP(F64,'(WP) LVTS Alloc Factors'!$A$3:$B$24) -> 0.07479 | H64: 188502
A65: 51 | B65: ='Sched 28(BS) Juris sh 3 of 4'!B65 -> Total Sources of Cash Working Capital | E65: =SUM(E34:E64) -> -10498842.08 | H65: =SUM(H34:H64) -> -487985
A66: 52 | B66: ='Sched 28(BS) Juris sh 3 of 4'!B66 -> TOTAL USES / (SOURCES) CASH WORKING CAPITAL | E66: =E31+E65 -> 5193506.919 | H66: =H31+H65 -> 522779

Sheet Sched 28(BS) Juris sh 3 of 4
H1: ='(WP) Instructions & Input'!B11 -> Exhibit No.: ________ | L1: KY PSC Case No. 2021-00183
H2: ='(WP) Instructions & Input'!B12 -> Witness: L. A. Guilbert | L2: Staff 3-36
I3: ='(WP) Instructions & Input'!B7 -> Schedule 28 | L3: Attachment B
I4: Sheet 3
A5: ='(WP) Instructions & Input'!B2 -> Columbia Gas of Virginia, Inc.
A6: Cash Working Capital
A7: Balance Sheet Analysis -- Jurisdictional
A8: ='Sched 28(BS) Detail sh 4 of 4'!A8:S8 -> 13 Months Average December 31, 2017
A9: ='(WP) Instructions & Input'!B9 -> Case No. PUR-2018-00131
G10: Sch 40b
A11: Line | F11: 13 Mo. Avg. | G11: Alloc | H11: Juris. | I11: Juris.
A12: No. | B12: Account Number | C12: Description | F12: 12/31/2017 | G12: Factor | H12: % | I12: =F12 -> 12/31/2017
B13: Uses of Cash Working Capital:
A14: 1 | B14: ='Sched 28(BS) Detail sh 4 of 4'!B15 -> 12800000 | C14: ='Sched 28(BS) Detail sh 4 of 4'!C15 -> Funds Held in Trust | F14: ='Sched 28(BS) Detail sh 4 of 4'!S15 -> 44282 | G14: 22 | H14: =LOOKUP(G14,'(WP) Juris Alloc Factors'!$A$3:$B$24) -> 0.93417 | I14: =ROUND(F14*H14,0) -> 41367
A15: =A14+1 -> 2 | B15: ='Sched 28(BS) Detail sh 4 of 4'!B16 -> 14100000 | C15: ='Sched 28(BS) Detail sh 4 of 4'!C16 -> Notes Receivable - Employees | F15: ='Sched 28(BS) Detail sh 4 of 4'!S16 -> 0 | G15: 22 | H15: =LOOKUP(G15,'(WP) Juris Alloc Factors'!$A$3:$B$24) -> 0.93417 | I15: =ROUND(F15*H15,0) -> 0
A16: =A15+1 -> 3 | B16: ='Sched 28(BS) Detail sh 4 of 4'!B17 -> 14300180-3633,3638 | C16: ='Sched 28(BS) Detail sh 4 of 4'!C17 -> Other A/R - Employee Advances | F16: ='Sched 28(BS) Detail sh 4 of 4'!S17 -> 0 | G16: 22 | H16: =LOOKUP(G16,'(WP) Juris Alloc Factors'!$A$3:$B$24) -> 0.93417 | I16: =ROUND(F16*H16,0) -> 0
A17: =A16+1 -> 4 | B17: ='Sched 28(BS) Detail sh 4 of 4'!B18 -> 14300001-4525 | C17: ='Sched 28(BS) Detail sh 4 of 4'!C18 -> Other A/R - Emp. Temp. Exp. Adv. | F17: ='Sched 28(BS) Detail sh 4 of 4'!S18 -> 0 | G17: 22 | H17: =LOOKUP(G17,'(WP) Juris Alloc Factors'!$A$3:$B$24) -> 0.93417 | I17: 0
A18: 5 | B18: ='Sched 28(BS) Detail sh 4 of 4'!B19 -> 14302000-9605 | C18: ='Sched 28(BS) Detail sh 4 of 4'!C19 -> Income Tax Receivable - State | F18: ='Sched 28(BS) Detail sh 4 of 4'!S19 -> 0 | G18: 22 | H18: =LOOKUP(G18,'(WP) Juris Alloc Factors'!$A$3:$B$24) -> 0.93417 | I18: 0
A19: 6 | B19: ='Sched 28(BS) Detail sh 4 of 4'!B20 -> 14300001-3638 | C19: ='Sched 28(BS) Detail sh 4 of 4'!C20 -> Other A/R - Miscellaneous | F19: ='Sched 28(BS) Detail sh 4 of 4'!S20 -> 53471 | G19: 22 | H19: =LOOKUP(G19,'(WP) Juris Alloc Factors'!$A$3:$B$24) -> 0.93417 | I19: 49951
A20: 7 | B20: ='Sched 28(BS) Detail sh 4 of 4'!B21 -> 14300300 | C20: ='Sched 28(BS) Detail sh 4 of 4'!C21 -> Other AR-Rent Deposits | F20: ='Sched 28(BS) Detail sh 4 of 4'!S21 -> 30204 | G20: 22 | H20: =LOOKUP(G20,'(WP) Juris Alloc Factors'!$A$3:$B$24) -> 0.93417 | I20: =ROUND(F20*H20,0) -> 28216
A21: 8 | B21: ='Sched 28(BS) Detail sh 4 of 4'!B22 -> 16500010 | C21: ='Sched 28(BS) Detail sh 4 of 4'!C22 -> Prepaid Medical LTD | F21: ='Sched 28(BS) Detail sh 4 of 4'!S22 -> 62764 | G21: 22 | H21: =LOOKUP(G21,'(WP) Juris Alloc Factors'!$A$3:$B$24) -> 0.93417 | I21: 58632
A22: 9 | B22: ='Sched 28(BS) Detail sh 4 of 4'!B23 -> 16521000 | C22: ='Sched 28(BS) Detail sh 4 of 4'!C23 -> Prepaid Insurance | F22: ='Sched 28(BS) Detail sh 4 of 4'!S23 -> 487469 | G22: 22 | H22: =LOOKUP(G22,'(WP) Juris Alloc Factors'!$A$3:$B$24) -> 0.93417 | I22: 455379
A23: 10 | B23: ='Sched 28(BS) Detail sh 4 of 4'!B24 -> 16520000 | C23: ='Sched 28(BS) Detail sh 4 of 4'!C24 -> Prepayments-Excess Liability Insurance | F23: ='Sched 28(BS) Detail sh 4 of 4'!S24 -> 396932 | G23: 22 | H23: =LOOKUP(G23,'(WP) Juris Alloc Factors'!$A$3:$B$24) -> 0.93417 | I23: 370802
A24: 11 | B24: ='Sched 28(BS) Detail sh 4 of 4'!B25 -> 17401000 | C24: ='Sched 28(BS) Detail sh 4 of 4'!C25 -> Exchange Gas | F24: ='Sched 28(BS) Detail sh 4 of 4'!S25 -> 40 | G24: 20 | H24: =LOOKUP(G24,'(WP) Juris Alloc Factors'!$A$3:$B$24) -> 0.95444 | I24: 38
A25: 12 | B25: ='Sched 28(BS) Detail sh 4 of 4'!B26 -> 18230005 | C25: ='Sched 28(BS) Detail sh 4 of 4'!C26 -> Reg Asset OPEB Transition | F25: ='Sched 28(BS) Detail sh 4 of 4'!S26 -> 215502 | G25: 22 | H25: =LOOKUP(G25,'(WP) Juris Alloc Factors'!$A$3:$B$24) -> 0.93417 | I25: 201316
A26: 13 | B26: ='Sched 28(BS) Detail sh 4 of 4'!B27 -> 18235105 | C26: ='Sched 28(BS) Detail sh 4 of 4'!C27 -> NC Reg Asset OPEB Regulatory | F26: ='Sched 28(BS) Detail sh 4 of 4'!S27 -> 3214570 | G26: 22 | H26: =LOOKUP(G26,'(WP) Juris Alloc Factors'!$A$3:$B$24) -> 0.93417 | I26: 3002955
A27: 14 | B27: ='Sched 28(BS) Detail sh 4 of 4'!B28 -> 18320000, 18320001 | C27: ='Sched 28(BS) Detail sh 4 of 4'!C28 -> Preliminary Survey & Investigation | F27: ='Sched 28(BS) Detail sh 4 of 4'!S28 -> 4183543 | G27: 17 | H27: =LOOKUP(G27,'(WP) Juris Alloc Factors'!$A$3:$B$24) -> 0.88551 | I27: 3704569
A28: 15 | B28: ='Sched 28(BS) Detail sh 4 of 4'!B29 -> 18600200 | C28: ='Sched 28(BS) Detail sh 4 of 4'!C29 -> Misc. Maintenance & Jobbing WIP | F28: ='Sched 28(BS) Detail sh 4 of 4'!S29 -> 5418 | G28: 17 | H28: =LOOKUP(G28,'(WP) Juris Alloc Factors'!$A$3:$B$24) -> 0.88551 | I28: 4798
A29: 16 | B29: ='Sched 28(BS) Detail sh 4 of 4'!B30 -> 18608200 | C29: ='Sched 28(BS) Detail sh 4 of 4'!C30 -> Def Debit-Mutual Materials | F29: ='Sched 28(BS) Detail sh 4 of 4'!S30 -> 0 | G29: 17 | H29: =LOOKUP(G29,'(WP) Juris Alloc Factors'!$A$3:$B$24) -> 0.88551 | I29: =ROUND(F29*H29,0) -> 0
A30: 17 | B30: ='Sched 28(BS) Detail sh 4 of 4'!B31 -> 190*****-Various Sub Accounts | C30: ='Sched 28(BS) Detail sh 4 of 4'!C31 -> Accum Deferred Income Taxes (Excl NOL ADIT) | F30: ='Sched 28(BS) Detail sh 4 of 4'!S31 -> 6998154 | G30: 17 | H30: =LOOKUP(G30,'(WP) Juris Alloc Factors'!$A$3:$B$24) -> 0.88551 | I30: 6196935
A31: 18 | B31: Total Uses of Cash Working Capital | F31: =SUM(F14:F30) -> 15692349 | I31: =SUM(I14:I30) -> 14114958
A33: =A31+1 -> 19 | B33: Sources of Cash Working Capital:
A34: =A33+1 -> 20 | B34: ='Sched 28(BS) Detail sh 4 of 4'!B35 -> 21905000, 21905010, 21905200, 21905220 | C34: ='Sched 28(BS) Detail sh 4 of 4'!C35 -> Pension/OPEB Bal/Adj Booked to OCI | F34: ='Sched 28(BS) Detail sh 4 of 4'!S35 -> 11395724 | G34: 22 | H34: =LOOKUP(G34,'(WP) Juris Alloc Factors'!$A$3:$B$24) -> 0.93417 | I34: =ROUND(F34*H34,0) -> 10645543
A35: 21 | B35: ='Sched 28(BS) Detail sh 4 of 4'!B36 -> 21905020, 21905030, 21905230, 21905240 | C35: ='Sched 28(BS) Detail sh 4 of 4'!C36 -> Pension/OPEB Fed/St Tax Booked to OCI | F35: ='Sched 28(BS) Detail sh 4 of 4'!S36 -> -4412494 | G35: 17 | H35: =LOOKUP(G35,'(WP) Juris Alloc Factors'!$A$3:$B$24) -> 0.88551 | I35: -3907308
A36: 22 | B36: ='Sched 28(BS) Detail sh 4 of 4'!B37 -> 22820000 | C36: ='Sched 28(BS) Detail sh 4 of 4'!C37 -> Provision for Injuries & Damages | F36: ='Sched 28(BS) Detail sh 4 of 4'!S37 -> -98984 | G36: 22 | H36: =LOOKUP(G36,'(WP) Juris Alloc Factors'!$A$3:$B$24) -> 0.93417 | I36: -92468
A37: 23 | B37: ='Sched 28(BS) Detail sh 4 of 4'!B38 -> 22830010 | C37: ='Sched 28(BS) Detail sh 4 of 4'!C38 -> Provision for Banked Vacation | F37: ='Sched 28(BS) Detail sh 4 of 4'!S38 -> -705450 | G37: 22 | H37: =LOOKUP(G37,'(WP) Juris Alloc Factors'!$A$3:$B$24) -> 0.93417 | I37: =ROUND(F37*H37,0) -> -659010
A38: 24 | B38: ='Sched 28(BS) Detail sh 4 of 4'!B39 -> 22833000 | C38: ='Sched 28(BS) Detail sh 4 of 4'!C39 -> Provisions for FAS 112 | F38: ='Sched 28(BS) Detail sh 4 of 4'!S39 -> -346616 | G38: 22 | H38: =LOOKUP(G38,'(WP) Juris Alloc Factors'!$A$3:$B$24) -> 0.93417 | I38: -323798
A39: 25 | B39: ='Sched 28(BS) Detail sh 4 of 4'!B40 -> 22838030 | C39: ='Sched 28(BS) Detail sh 4 of 4'!C40 -> Misc Op Res-NC OPEB Retire Cnt | F39: ='Sched 28(BS) Detail sh 4 of 4'!S40 -> 0 | G39: 22 | H39: =LOOKUP(G39,'(WP) Juris Alloc Factors'!$A$3:$B$24) -> 0.93417 | I39: 0
A40: =A39+1 -> 26 | B40: ='Sched 28(BS) Detail sh 4 of 4'!B41 -> 232 | C40: ='Sched 28(BS) Detail sh 4 of 4'!C41 -> A/P - CWIP (Acct 107) | F40: ='Sched 28(BS) Detail sh 4 of 4'!S41 -> -3361469.54 | G40: 17 | H40: =LOOKUP(G40,'(WP) Juris Alloc Factors'!$A$3:$B$24) -> 0.88551 | I40: -2976615
A41: 27 | B41: ='Sched 28(BS) Detail sh 4 of 4'!B42 -> 234 | C41: ='Sched 28(BS) Detail sh 4 of 4'!C42 -> A/P Exchange Gas | F41: ='Sched 28(BS) Detail sh 4 of 4'!S42 -> -42375 | G41: 20 | H41: =LOOKUP(G41,'(WP) Juris Alloc Factors'!$A$3:$B$24) -> 0.95444 | I41: -40444
A42: 28 | B42: ='Sched 28(BS) Detail sh 4 of 4'!B43 -> 24103110, 24103120, 24103130, 24103140, 24103150 | C42: ='Sched 28(BS) Detail sh 4 of 4'!C43 -> Tax Collections Payable-Employee FIT/SIT/FICA | F42: ='Sched 28(BS) Detail sh 4 of 4'!S43 -> 0 | G42: 17 | H42: =LOOKUP(G42,'(WP) Juris Alloc Factors'!$A$3:$B$24) -> 0.88551 | I42: 0
A43: 29 | B43: ='Sched 28(BS) Detail sh 4 of 4'!B44 -> 24240050-R400 | C43: ='Sched 28(BS) Detail sh 4 of 4'!C44 -> Exchange gas - Borrowing | F43: ='Sched 28(BS) Detail sh 4 of 4'!S44 -> 323843 | G43: 17 | H43: =LOOKUP(G43,'(WP) Juris Alloc Factors'!$A$3:$B$24) -> 0.88551 | I43: 286766
A44: 30 | B44: ='Sched 28(BS) Detail sh 4 of 4'!B45 -> 24203200, 224203201 | C44: ='Sched 28(BS) Detail sh 4 of 4'!C45 -> Vacation Accrual | F44: ='Sched 28(BS) Detail sh 4 of 4'!S45 -> -2440988 | G44: 2 | H44: =LOOKUP(G44,'(WP) Juris Alloc Factors'!$A$3:$B$24) -> 0.99367 | I44: -2425537
A45: 31 | B45: ='Sched 28(BS) Detail sh 4 of 4'!B46 -> 24203000 | C45: ='Sched 28(BS) Detail sh 4 of 4'!C46 -> Accrued Liability - Profit Sharing | F45: ='Sched 28(BS) Detail sh 4 of 4'!S46 -> -245211 | G45: 22 | H45: =LOOKUP(G45,'(WP) Juris Alloc Factors'!$A$3:$B$24) -> 0.93417 | I45: =ROUND(F45*H45,0) -> -229069
A46: 32 | B46: ='Sched 28(BS) Detail sh 4 of 4'!B47 -> 24201629, 24201629-3027 | C46: ='Sched 28(BS) Detail sh 4 of 4'!C47 -> Accrued Liability - Unclaimed Accounts | F46: ='Sched 28(BS) Detail sh 4 of 4'!S47 -> -1281021 | G46: 22 | H46: =LOOKUP(G46,'(WP) Juris Alloc Factors'!$A$3:$B$24) -> 0.93417 | I46: -1196691
A47: 33 | B47: ='Sched 28(BS) Detail sh 4 of 4'!B48 -> 24208000, 24208020 | C47: ='Sched 28(BS) Detail sh 4 of 4'!C48 -> Benefits - C.M.E.P. - Company Portion | F47: ='Sched 28(BS) Detail sh 4 of 4'!S48 -> -252187 | G47: 22 | H47: =LOOKUP(G47,'(WP) Juris Alloc Factors'!$A$3:$B$24) -> 0.93417 | I47: -235586
A48: 34 | B48: ='Sched 28(BS) Detail sh 4 of 4'!B49 -> 24202500-9257-N008 | C48: ='Sched 28(BS) Detail sh 4 of 4'!C49 -> Thrift Restoration Plan | F48: ='Sched 28(BS) Detail sh 4 of 4'!S49 -> 0 | G48: 22 | H48: =LOOKUP(G48,'(WP) Juris Alloc Factors'!$A$3:$B$24) -> 0.93417 | I48: 0
A49: 35 | B49: ='Sched 28(BS) Detail sh 4 of 4'!B50 -> 25300000 | C49: ='Sched 28(BS) Detail sh 4 of 4'!C50 -> Reclass Thrift Restoration Plan | F49: ='Sched 28(BS) Detail sh 4 of 4'!S50 -> 0 | G49: 22 | H49: =LOOKUP(G49,'(WP) Juris Alloc Factors'!$A$3:$B$24) -> 0.93417 | I49: =ROUND(F49*H49,0) -> 0
A50: 36 | B50: ='Sched 28(BS) Detail sh 4 of 4'!B51 -> 24204000, 24204080, 24204081, 24204082, 24204090, 24204091, 24204092, 24204210 | C50: ='Sched 28(BS) Detail sh 4 of 4'!C51 -> Benefits - Employee Payroll Deductions | F50: ='Sched 28(BS) Detail sh 4 of 4'!S51 -> -108384 | G50: 22 | H50: =LOOKUP(G50,'(WP) Juris Alloc Factors'!$A$3:$B$24) -> 0.93417 | I50: -101249
A51: 37 | B51: ='Sched 28(BS) Detail sh 4 of 4'!B52 -> 24211263 | C51: ='Sched 28(BS) Detail sh 4 of 4'!C52 -> Accd Liab-ST FAS112 | F51: ='Sched 28(BS) Detail sh 4 of 4'!S52 -> -61420 | G51: 22 | H51: =LOOKUP(G51,'(WP) Juris Alloc Factors'!$A$3:$B$24) -> 0.93417 | I51: -57377
A52: 38 | B52: ='Sched 28(BS) Detail sh 4 of 4'!B53 -> 24203300, 24203305 | C52: ='Sched 28(BS) Detail sh 4 of 4'!C53 -> Accr. Payroll - CWIP | F52: ='Sched 28(BS) Detail sh 4 of 4'!S53 -> -166894.5408 | G52: 22 | H52: =LOOKUP(G52,'(WP) Juris Alloc Factors'!$A$3:$B$24) -> 0.93417 | I52: -155908
A53: 39 | B53: ='Sched 28(BS) Detail sh 4 of 4'!B54 -> 22838020 | C53: ='Sched 28(BS) Detail sh 4 of 4'!C54 -> Accrued Pension Restoration Plan | F53: ='Sched 28(BS) Detail sh 4 of 4'!S54 -> -43 | G53: 22 | H53: =LOOKUP(G53,'(WP) Juris Alloc Factors'!$A$3:$B$24) -> 0.93417 | I53: =ROUND(F53*H53,0) -> -40
A54: 40 | B54: ='Sched 28(BS) Detail sh 4 of 4'!B55 -> 22839000 | C54: ='Sched 28(BS) Detail sh 4 of 4'!C55 -> Accrued Pension Restoration Plan - Current | F54: ='Sched 28(BS) Detail sh 4 of 4'!S55 -> 0 | G54: 22 | H54: =LOOKUP(G54,'(WP) Juris Alloc Factors'!$A$3:$B$24) -> 0.93417 | I54: 0
A55: 41 | B55: ='Sched 28(BS) Detail sh 4 of 4'!B56 -> 24203100 | C55: ='Sched 28(BS) Detail sh 4 of 4'!C56 -> Wages Payable-CIP, Bonus Portion | F55: ='Sched 28(BS) Detail sh 4 of 4'!S56 -> -1460487 | G55: 22 | H55: =LOOKUP(G55,'(WP) Juris Alloc Factors'!$A$3:$B$24) -> 0.93417 | I55: -1364343
A56: =A55+1 -> 42 | B56: ='Sched 28(BS) Detail sh 4 of 4'!B57 -> 24250110, 24250110-3500 | C56: ='Sched 28(BS) Detail sh 4 of 4'!C57 -> HeatShare Customer Contributions | F56: ='Sched 28(BS) Detail sh 4 of 4'!S57 -> -2261 | G56: 2 | H56: =LOOKUP(G56,'(WP) Juris Alloc Factors'!$A$3:$B$24) -> 0.99367 | I56: -2247
A57: 43 | B57: ='Sched 28(BS) Detail sh 4 of 4'!B58 -> 24250160 | C57: ='Sched 28(BS) Detail sh 4 of 4'!C58 -> Credits Deposits - Gas Supply | F57: ='Sched 28(BS) Detail sh 4 of 4'!S58 -> -230000 | G57: 22 | H57: =LOOKUP(G57,'(WP) Juris Alloc Factors'!$A$3:$B$24) -> 0.93417 | I57: -214859
A58: 44 | B58: ='Sched 28(BS) Detail sh 4 of 4'!B59 -> 22834010 | C58: ='Sched 28(BS) Detail sh 4 of 4'!C59 -> Accum Provisions OPEB- Active | F58: ='Sched 28(BS) Detail sh 4 of 4'!S59 -> -4320923 | G58: 22 | H58: =LOOKUP(G58,'(WP) Juris Alloc Factors'!$A$3:$B$24) -> 0.93417 | I58: =ROUND(F58*H58,0) -> -4036477
A59: 45 | B59: ='Sched 28(BS) Detail sh 4 of 4'!B60 -> 22840010 | C59: ='Sched 28(BS) Detail sh 4 of 4'!C60 -> Banked Vacation | F59: ='Sched 28(BS) Detail sh 4 of 4'!S60 -> 0 | G59: 2 | H59: =LOOKUP(G59,'(WP) Juris Alloc Factors'!$A$3:$B$24) -> 0.99367 | I59: 0
A60: 46 | B60: ='Sched 28(BS) Detail sh 4 of 4'!B61 -> 22838000 | C60: ='Sched 28(BS) Detail sh 4 of 4'!C61 -> Accrued Long Term Pension Cost | F60: ='Sched 28(BS) Detail sh 4 of 4'!S61 -> -5201612 | G60: 22 | H60: =LOOKUP(G60,'(WP) Juris Alloc Factors'!$A$3:$B$24) -> 0.93417 | I60: -4859190
A61: 47 | B61: ='Sched 28(BS) Detail sh 4 of 4'!B62 -> 22836010 | C61: ='Sched 28(BS) Detail sh 4 of 4'!C62 -> Accrued Long Term Pension Restoration - Current | F61: ='Sched 28(BS) Detail sh 4 of 4'!S62 -> 0 | G61: 22 | H61: =LOOKUP(G61,'(WP) Juris Alloc Factors'!$A$3:$B$24) -> 0.93417 | I61: 0
A62: 48 | B62: ='Sched 28(BS) Detail sh 4 of 4'!B63 -> 25304010-9014 | C62: ='Sched 28(BS) Detail sh 4 of 4'!C63 -> Def Credits-FAS112 | F62: ='Sched 28(BS) Detail sh 4 of 4'!S63 -> 0 | G62: 22 | H62: =LOOKUP(G62,'(WP) Juris Alloc Factors'!$A$3:$B$24) -> 0.93417 | I62: 0
A63: 49 | B63: ='Sched 28(BS) Detail sh 4 of 4'!B64 -> 25405150 | C63: ='Sched 28(BS) Detail sh 4 of 4'!C64 -> Reg Liab NC-OPEB Tracker | F63: ='Sched 28(BS) Detail sh 4 of 4'!S64 -> 0 | G63: 22 | H63: =LOOKUP(G63,'(WP) Juris Alloc Factors'!$A$3:$B$24) -> 0.93417 | I63: 0
A64: 50 | B64: ='Sched 28(BS) Detail sh 4 of 4'!B65 -> 28301000, 28302000, 28305000, 28306000 | C64: ='Sched 28(BS) Detail sh 4 of 4'!C65 -> Accumulated Deferred Income Taxes | F64: ='Sched 28(BS) Detail sh 4 of 4'!S65 -> 2520411 | G64: 17 | H64: =LOOKUP(G64,'(WP) Juris Alloc Factors'!$A$3:$B$24) -> 0.88551 | I64: 2231849 | J64: =H64+'Sched 28(BS) LVTS sh 2 of 4'!G64 -> 0.9603
A65: 51 | B65: Total Sources of Cash Working Capital | F65: =SUM(F34:F64) -> -10498842.08 | I65: =SUM(I34:I64) -> -9714058
A66: =A65+1 -> 52 | B66: TOTAL USES / (SOURCES) CASH WORKING CAPITAL | F66: =F31+F65 -> 5193506.919 | I66: =I31+I65 -> 4400900

Sheet Sched 28(BS) Detail sh 4 of 4
R1: ='(WP) Instructions & Input'!B11 -> Exhibit No.: ________ | X1: KY PSC Case No. 2021-00183
R2: ='(WP) Instructions & Input'!B12 -> Witness: L. A. Guilbert | X2: Staff 3-36
S3: ='Sched 28(BS) Juris sh 3 of 4'!I3 -> Schedule 28 | X3: Attachment B
S4: Sheet 4
A5: ='Sched 28(BS) Juris sh 3 of 4'!A5:I5 -> Columbia Gas of Virginia, Inc.
A6: ='Sched 28(BS) Juris sh 3 of 4'!A6:I6 -> Cash Working Capital
A7: Balance Sheet Analysis -- Total Company Detail | V7: = new accounts
A8: 13 Months Average December 31, 2017
A9: ='Sched 28(BS) Juris sh 3 of 4'!A9:I9 -> Case No. PUR-2018-00131
R10: 13 Month | S10: 13 Month
A11: Line | R11: Total | S11: Average
A12: No. | B12: Account | C12: Description | E12: 2016-12-31 | F12: 2017-01-31 | G12: =F12+28 -> 2017-02-28 | H12: =G12+31 -> 2017-03-31 | I12: =H12+30 -> 2017-04-30 | J12: =I12+31 -> 2017-05-31 | K12: =J12+30 -> 2017-06-30 | L12: =K12+31 -> 2017-07-31 | M12: =L12+31 -> 2017-08-31 | N12: =M12+30 -> 2017-09-30 | O12: =N12+31 -> 2017-10-31 | P12: =O12+30 -> 2017-11-30 | Q12: =P12+31 -> 2017-12-31 | R12: =Q12 -> 2017-12-31 | S12: =R12 -> 2017-12-31
E13: (1) | F13: (2) | G13: (3) | H13: (4) | I13: (5) | J13: (6) | K13: (7) | L13: (8) | M13: (9) | N13: (10) | O13: (11) | P13: (12) | Q13: (13) | R13: (14) | S13: (15)
B14: Uses of Cash Working Capital: | E14: ($) | F14: ($) | G14: ($) | H14: ($) | I14: ($) | J14: ($) | K14: ($) | L14: ($) | M14: ($) | N14: ($) | O14: ($) | P14: ($) | Q14: ($) | R14: ($) | S14: ($)
A15: 1 | B15: 12800000 | C15: Funds Held in Trust | E15: 0 | F15: 0 | G15: 0 | H15: 0 | I15: 0 | J15: 0 | K15: 0 | L15: 0 | M15: 0 | N15: 0 | O15: 0 | P15: 0 | Q15: 575661 | R15: =SUM(E15:Q15) -> 575661 | S15: =ROUND(R15/13,0) -> 44282
A16: 2 | B16: 14100000 | C16: Notes Receivable - Employees | E16: 0 | F16: 0 | G16: 0 | H16: 0 | I16: 0 | J16: 0 | K16: 0 | L16: 0 | M16: 0 | N16: 0 | O16: 0 | P16: 0 | Q16: 0 | R16: =SUM(E16:Q16) -> 0 | S16: =ROUND(R16/13,0) -> 0
A17: =A16+1 -> 3 | B17: 14300180-3633,3638 | C17: Other A/R - Employee Advances | E17: 0 | F17: 0 | G17: 0 | H17: 0 | I17: 0 | J17: 0 | K17: 0 | L17: 0 | M17: 0 | N17: 0 | O17: 0 | P17: 0 | Q17: 0 | R17: =SUM(E17:Q17) -> 0 | S17: =ROUND(R17/13,0) -> 0
A18: =A17+1 -> 4 | B18: 14300001-4525 | C18: Other A/R - Emp. Temp. Exp. Adv. | E18: 0 | F18: 0 | G18: 0 | H18: 0 | I18: 0 | J18: 0 | K18: 0 | L18: 0 | M18: 0 | N18: 0 | O18: 0 | P18: 0 | Q18: 0 | R18: 0 | S18: 0
A19: 5 | B19: 14302000-9605 | C19: Income Tax Receivable - State | E19: 0 | F19: 0 | G19: 0 | H19: 0 | I19: 0 | J19: 0 | K19: 0 | L19: 0 | M19: 0 | N19: 0 | O19: 0 | P19: 0 | Q19: 0 | R19: 0 | S19: 0
A20: 6 | B20: 14300001-3638 | C20: Other A/R - Miscellaneous | E20: -5379.29 | F20: -6757.94 | G20: -6757.94 | H20: -11547.94 | I20: -7357.94 | J20: -7357.94 | K20: -7357.94 | L20: -7357.94 | M20: -7357.94 | N20: -7357.94 | O20: -7357.94 | P20: -7357.94 | Q20: 784434.06 | R20: =SUM(E20:Q20) -> 695127.43 | S20: =ROUND(R20/13,0) -> 53471
A21: 7 | B21: 14300300 | C21: Other AR-Rent Deposits | E21: 30203.67 | F21: 30203.67 | G21: 30203.67 | H21: 30203.67 | I21: 30203.67 | J21: 30203.67 | K21: 30203.67 | L21: 30203.67 | M21: 30203.67 | N21: 30203.67 | O21: 30203.67 | P21: 30203.67 | Q21: 30203.67 | R21: 392647.71 | S21: 30204
A22: 8 | B22: 16500010 | C22: Prepaid Medical LTD | E22: 0 | F22: 0 | G22: 147756.15 | H22: 131053.59 | I22: 116492.08 | J22: 101930.57 | K22: 87369.06 | L22: 72807.55 | M22: 58246.04 | N22: 43684.53 | O22: 29123.02 | P22: 21515.13 | Q22: 5960.27 | R22: 815937.99 | S22: 62764
A23: 9 | B23: 16521000 | C23: Prepaid Insurance | E23: 561990 | F23: 480854 | G23: 399718 | H23: 318582 | I23: 237446 | J23: 156310 | K23: 657920.53 | L23: 672294 | M23: 635158 | N23: 556090 | O23: 484968.99 | P23: 627386 | Q23: 548382 | R23: =SUM(E23:Q23) -> 6337099.52 | S23: =ROUND(R23/13,0) -> 487469
A24: 10 | B24: 16520000 | C24: Prepayments-Excess Liability Insurance | E24: 354397 | F24: 295243 | G24: 402443.83 | H24: 326654.34 | I24: 250864.85 | J24: 175075.36 | K24: 107545.87 | L24: 719001.38 | M24: 644504.89 | N24: 591553.4 | O24: 509861.91 | P24: 432516.42 | Q24: 350449 | R24: 5160111.25 | S24: 396932
A25: 11 | B25: 17401000 | C25: Exchange Gas | E25: 30 | F25: 98 | G25: 129 | H25: 121 | I25: 43 | J25: 0 | K25: 0 | L25: 0 | M25: 9 | N25: 48 | O25: 12 | P25: 13 | Q25: 16 | R25: 519 | S25: 40
A26: 12 | B26: 18230005 | C26: Reg Asset OPEB Transition | E26: 215502 | F26: 215502 | G26: 215502 | H26: 215502 | I26: 215502 | J26: 215502 | K26: 215502 | L26: 215502 | M26: 215502 | N26: 215502 | O26: 215502 | P26: 215502 | Q26: 215502 | R26: 2801526 | S26: 215502
A27: 13 | B27: 18235105 | C27: NC Reg Asset OPEB Regulatory | E27: 3322321.14 | F27: 3304362.64 | G27: 3286404.14 | H27: 3268445.64 | I27: 3250487.14 | J27: 3232528.64 | K27: 3214570.14 | L27: 3196611.64 | M27: 3178653.14 | N27: 3160694.64 | O27: 3142736.14 | P27: 3124777.64 | Q27: 3106819.14 | R27: 41789411.82 | S27: 3214570
A28: 14 | B28: 18320000, 18320001 | C28: Preliminary Survey & Investigation | E28: =3659668.98+172183.7-E86 -> 3831852.68 | F28: 4147366.45 | G28: 3581479.11 | H28: 3941223.33 | I28: 3931310.41 | J28: 3921510.47 | K28: 4083060.51 | L28: 4222769.22 | M28: 5190972.33 | N28: 5209784.91 | O28: 4969113.33 | P28: =3831852.68+476873.22 -> 4308725.9 | Q28: 3046894 | R28: 54386062.65 | S28: 4183543
A29: 15 | B29: 18600200 | C29: Misc. Maintenance & Jobbing WIP | E29: 6988.44 | F29: 6988.44 | G29: 6988.44 | H29: 6988.44 | I29: 4720.64 | J29: 4720.64 | K29: 4720.64 | L29: 4720.64 | M29: 4720.64 | N29: 4720.64 | O29: 4720.64 | P29: 4720.64 | Q29: 4720.64 | R29: 70439.52 | S29: 5418
A30: 16 | B30: 18608200 | C30: Def Debit-Mutual Materials | E30: 0 | F30: 0 | G30: 0 | H30: 0 | I30: 0 | J30: 0 | K30: 0 | L30: 0 | M30: 0 | N30: 0 | O30: 0 | P30: 0 | Q30: 0 | R30: =SUM(E30:Q30) -> 0 | S30: =ROUND(R30/13,0) -> 0
A31: 17 | B31: 190*****-Various Sub Accounts | C31: Accum Deferred Income Taxes (Excl NOL ADIT) | E31: 8407824 | F31: 8485119 | G31: 7441124 | H31: 6667642 | I31: 6339991 | J31: 5949693 | K31: 5557936 | L31: 7461927 | M31: 6857207 | N31: 6375444 | O31: 5542795 | P31: 5003307 | Q31: 10885993 | R31: 90976002 | S31: 6998154
A32: 18 | C32: Total Uses of Cash Working Capital | E32: =SUM(E15:E31) -> 16725729.64 | F32: =SUM(F15:F31) -> 16958979.26 | G32: 15504990.4 | H32: 14894868.07 | I32: 14369702.85 | J32: 13780116.41 | K32: 13951470.48 | L32: 16588479.16 | M32: 16807818.77 | N32: 16180367.85 | O32: 14921678.76 | P32: 13761309.46 | Q32: 19555034.78 | R32: 204000545.9 | S32: 15692349
A34: =A32+1 -> 19 | B34: Sources of Cash Working Capital:
A35: =A34+1 -> 20 | B35: 21905000, 21905010, 21905200, 21905220 | C35: Pension/OPEB Bal/Adj Booked to OCI | E35: 12275614 | F35: 12184494.42 | G35: 12093374.84 | H35: 12002255.26 | I35: 11911135.68 | J35: 11820016.1 | K35: 11728896.52 | L35: 11637776.94 | M35: 11546657.36 | N35: 10513324.53 | O35: 10437485.7 | P35: =14406495-1873654-2130881-40313.13 -> 10361646.87 | Q35: 9631731 | R35: =SUM(E35:Q35) -> 148144409.2 | S35: =ROUND(R35/13,0) -> 11395724
A36: =A35+1 -> 21 | B36: 21905020, 21905030, 21905230, 21905240 | C36: Pension/OPEB Fed/St Tax Booked to OCI | E36: -4775209.54 | F36: -4739764.03 | G36: -4704318.51 | H36: -4668873 | I36: -4633427.48 | J36: -4597981.97 | K36: -4562536.45 | L36: -4257090.93 | M36: -4491645.41 | N36: -4089678.94 | O36: -4060177.54 | P36: =-4123306.32-751970.12+714325.92+130272.98 -> -4030677.54 | Q36: -3751038.54 | R36: =SUM(E36:Q36) -> -57362419.88 | S36: =ROUND(R36/13,0) -> -4412494
A37: 22 | B37: 22820000 | C37: Provision for Injuries & Damages | E37: -109250 | F37: -90549 | G37: -100671 | H37: -100494 | I37: -75799 | J37: -80918 | K37: -98757 | L37: -88457 | M37: -97559 | N37: -148199 | O37: -122244 | P37: -97829 | Q37: -76062 | R37: -1286788 | S37: -98984
A38: 23 | B38: 22830010 | C38: Provision for Banked Vacation | E38: -650796.91 | F38: -629188.47 | G38: -629188.47 | H38: -716935.46 | I38: -716935.46 | J38: -717397.12 | K38: -729904.53 | L38: -729950.73 | M38: -729968.4 | N38: -729662.64 | O38: -730276.4 | P38: -730276.4 | Q38: -730375.4 | R38: =SUM(E38:Q38) -> -9170856.39 | S38: =ROUND(R38/13,0) -> -705450
A39: 24 | B39: 22833000 | C39: Provisions for FAS 112 | E39: -327065 | F39: -327065 | G39: -327065 | H39: -327065 | I39: -327065 | J39: -327065 | K39: -327065 | L39: -327065 | M39: -327065 | N39: -327065 | O39: -327065 | P39: -454147.81 | Q39: -454147.81 | R39: -4506010.62 | S39: -346616
A40: 25 | B40: 22838030 | C40: Misc Op Res-NC OPEB Retire Cnt | E40: 0 | F40: 0 | G40: 0 | H40: 0 | I40: 0 | J40: 0 | K40: 0 | L40: 0 | M40: 0 | N40: 0 | O40: 0 | P40: 0 | Q40: 0 | R40: 0 | S40: 0
A41: 26 | B41: 232 | C41: A/P - CWIP (Acct 107) | E41: NA | F41: NA | G41: NA | H41: NA | I41: NA | J41: NA | K41: NA | L41: NA | M41: NA | N41: NA | O41: NA | P41: NA | Q41: NA | R41: -3361469.54 | S41: =R41 -> -3361469.54
A42: 27 | B42: 234 | C42: A/P Exchange Gas | E42: -3.090410959 | F42: 0 | G42: -453656 | H42: 0 | I42: 0 | J42: -97212 | K42: -0.2060273973 | L42: -0.2060273973 | M42: -0.2060273973 | N42: -0.2060273973 | O42: -0.2060273973 | P42: -0.2060273973 | Q42: -0.2060273973 | R42: -550872.5326 | S42: -42375
A43: 28 | B43: 24103110, 24103120, 24103130, 24103140, 24103150 | C43: Tax Collections Payable-Employee FIT/SIT/FICA | E43: 0 | F43: 0 | G43: 0 | H43: 0 | I43: 0 | J43: 0 | K43: 0 | L43: 0 | M43: 0 | N43: 0 | O43: 0 | P43: 0 | Q43: 0 | R43: 0 | S43: 0
A44: 29 | B44: 24240050-R400 | C44: Exchange gas - Borrowing | E44: 2027818.5 | F44: 2027818.5 | G44: 1831578 | H44: -1112611.5 | I44: 0 | J44: -470502.5 | K44: 733590 | L44: 849524 | M44: -2558520 | N44: 0 | O44: 0 | P44: 0 | Q44: 881268 | R44: 4209963 | S44: 323843
A45: 30 | B45: 24203200, 224203201 | C45: Vacation Accrual | E45: -2378496.21 | F45: -2392547.35 | G45: -2525756.4 | H45: -2373237.02 | I45: -2402113.03 | J45: -2456932.9 | K45: -2535183.28 | L45: -2523130.08 | M45: -2470101.79 | N45: -2494329.03 | O45: -2437705.7 | P45: =-779484.24-1615467.18 -> -2394951.42 | Q45: =-576128.92-1772224.46 -> -2348353.38 | R45: -31732837.59 | S45: -2440988
A46: 31 | B46: 24203000 | C46: Accrued Liability - Profit Sharing | E46: -248003 | F46: -269364 | G46: -290725 | H46: -64083 | I46: -85444 | J46: -106805 | K46: -201152 | L46: -234677 | M46: -268202 | N46: -301727 | O46: -335252 | P46: -368777 | Q46: -413526.39 | R46: =SUM(E46:Q46) -> -3187737.39 | S46: =ROUND(R46/13,0) -> -245211
A47: 32 | B47: 24201629, 24201629-3027 | C47: Accrued Liability - Unclaimed Accounts | E47: -1211567.57 | F47: -1249037.79 | G47: -1278173.16 | H47: -1315937.69 | I47: -1315156.28 | J47: -1314066.27 | K47: -1337202.44 | L47: -1348585.61 | M47: -1361121.95 | N47: -1375266.25 | O47: -1145430.33 | P47: -1188947.4 | Q47: -1212778.99 | R47: -16653271.73 | S47: -1281021
A48: 33 | B48: 24208000, 24208020 | C48: Benefits - C.M.E.P. - Company Portion | E48: =-232167.85-29744.93 -> -261912.78 | F48: -246583.98 | G48: -246583.98 | H48: -246583.98 | I48: -246583.98 | J48: -246583.98 | K48: -246583.98 | L48: -246583.98 | M48: -246583.98 | N48: -246583.98 | O48: -246583.98 | P48: =-243350.62-31985.5 -> -275336.12 | Q48: =-243350.62-31985.5 -> -275336.12 | R48: -3278424.82 | S48: -252187
A49: 34 | B49: 24202500-9257-N008 | C49: Thrift Restoration Plan | E49: 0 | F49: 0 | G49: 0 | H49: 0 | I49: 0 | J49: 0 | K49: 0 | L49: 0 | M49: 0 | N49: 0 | O49: 0 | P49: 0 | Q49: 0 | R49: 0 | S49: 0
A50: 35 | B50: 25300000 | C50: Reclass Thrift Restoration Plan | E50: 0 | F50: 0 | G50: 0 | H50: 0 | I50: 0 | J50: 0 | K50: 0 | L50: 0 | M50: 0 | N50: 0 | O50: 0 | P50: 0 | Q50: 0 | R50: =SUM(E50:Q50) -> 0 | S50: =ROUND(R50/13,0) -> 0
A51: 36 | B51: 24204000, 24204080, 24204081, 24204082, 24204090, 24204091, 24204092, 24204210 | C51: Benefits - Employee Payroll Deductions | E51: -62908.58 | F51: 337699.63 | G51: -142414.41 | H51: -211472.23 | I51: -175620.71 | J51: -192708.77 | K51: -133266.89 | L51: -116247.99 | M51: -136789.52 | N51: -192352.43 | O51: -183519.18 | P51: =-317.49-11047.65-46312.71-3999.98-975-809.67-55643.11-14244 -> -133349.61 | Q51: =10.5-800-715.67-43253.81-21281 -> -66039.98 | R51: -1408990.67 | S51: -108384
A52: 37 | B52: 24211263 | C52: Accd Liab-ST FAS112 | E52: -57669 | F52: -57669 | G52: -57669 | H52: -57669 | I52: -57669 | J52: -57669 | K52: -57669 | L52: -57669 | M52: -57669 | N52: -57669 | O52: -57669 | P52: -82048.7 | Q52: -82048.7 | R52: -798456.4 | S52: -61420
A53: 38 | B53: 24203300, 24203305 | C53: Accr. Payroll - CWIP | E53: NA | F53: NA | G53: NA | H53: NA | I53: NA | J53: NA | K53: NA | L53: NA | M53: NA | N53: NA | O53: NA | P53: NA | Q53: =-'(WP) Accr. Payroll CWIP'!J20 -> -166894.5408 | R53: -166894.5408 | S53: =R53 -> -166894.5408
A54: 39 | B54: 22838020 | C54: Accrued Pension Restoration Plan | E54: 0 | F54: 0 | G54: 0 | H54: 0 | I54: 0 | J54: 0 | K54: 0 | L54: 0 | M54: 0 | N54: 0 | O54: 0 | P54: 0 | Q54: -554 | R54: =SUM(E54:Q54) -> -554 | S54: =ROUND(R54/13,0) -> -43
A55: 40 | B55: 22839000 | C55: Accrued Pension Restoration Plan - Current | E55: 0 | F55: 0 | G55: 0 | H55: 0 | I55: 0 | J55: 0 | K55: 0 | L55: 0 | M55: 0 | N55: 0 | O55: 0 | P55: 0 | Q55: 0 | R55: 0 | S55: 0
A56: 41 | B56: 24203100 | C56: Wages Payable-CIP, Bonus Portion | E56: -1799317.88 | F56: -1931318.88 | G56: -1104244.63 | H56: -396002.5 | I56: -528003.5 | J56: -660004.5 | K56: -971021.5 | L56: -1357007.5 | M56: -1550865.5 | N56: -1846270.5 | O56: -2051411.5 | P56: -2272105.5 | Q56: -2518752.33 | R56: -18986326.22 | S56: -1460487
A57: 42 | B57: 24250110, 24250110-3500 | C57: HeatShare Customer Contributions | E57: -2234.88 | F57: -2625.44 | G57: -2204.5 | H57: -2288.44 | I57: -2173.44 | J57: -2353.94 | K57: -2171.38 | L57: -2182.94 | M57: -2209.5 | N57: -2137.94 | O57: -2507.25 | P57: -2200.94 | Q57: -2105.94 | R57: -29396.53 | S57: -2261
A58: 43 | B58: 24250160 | C58: Credits Deposits - Gas Supply | E58: -225000.01 | F58: -225000.01 | G58: -225000.01 | H58: -225000.01 | I58: -225000.01 | J58: -230000.01 | K58: -225000.01 | L58: -225000.01 | M58: -225000.01 | N58: -240000 | O58: -240000 | P58: -240000 | Q58: -240000 | R58: -2990000.09 | S58: -230000
A59: 44 | B59: 22834010 | C59: Accum Provisions OPEB- Active | E59: -2544724 | F59: -2510298.97 | G59: -2422780.9 | H59: -2384237.74 | I59: -2338236.67 | J59: -2309712.24 | K59: -2276602.91 | L59: -2290420.6 | M59: -2223690.53 | N59: -2217637.66 | O59: -2150369.55 | P59: -2128284.29 | Q59: -28375000 | R59: -56171996.06 | S59: -4320923
A60: 45 | B60: 22840010 | C60: Banked Vacation | E60: 0 | F60: 0 | G60: 0 | H60: 0 | I60: 0 | J60: 0 | K60: 0 | L60: 0 | M60: 0 | N60: 0 | O60: 0 | P60: 0 | Q60: 0 | R60: 0 | S60: 0
A61: 46 | B61: 22838000 | C61: Accrued Long Term Pension Cost | E61: -7284002 | F61: -7266524.42 | G61: -7249046.84 | H61: -7231569.26 | I61: -7214091.68 | J61: -7196614.1 | K61: -7179136.52 | L61: -7112255.94 | M61: -7094778.36 | N61: -992391.61 | O61: -930618.86 | P61: -868846.11 | Q61: -1084 | R61: -67620959.7 | S61: -5201612
A62: 47 | B62: 22836010 | C62: Accrued Long Term Pension Restoration - Current | E62: 0 | F62: 0 | G62: 0 | H62: 0 | I62: 0 | J62: 0 | K62: 0 | L62: 0 | M62: 0 | N62: 0 | O62: 0 | P62: 0 | Q62: 0 | R62: 0 | S62: 0
A63: 48 | B63: 25304010-9014 | C63: Def Credits-FAS112 | E63: 0 | F63: 0 | G63: 0 | H63: 0 | I63: 0 | J63: 0 | K63: 0 | L63: 0 | M63: 0 | N63: 0 | O63: 0 | P63: 0 | Q63: 0 | R63: 0 | S63: 0
A64: 49 | B64: 25405150 | C64: Reg Liab NC-OPEB Tracker | E64: 0 | F64: 0 | G64: 0 | H64: 0 | I64: 0 | J64: 0 | K64: 0 | L64: 0 | M64: 0 | N64: 0 | O64: 0 | P64: 0 | Q64: 0 | R64: 0 | S64: 0
A65: 50 | B65: 28301000, 28302000, 28305000, 28306000 | C65: Accumulated Deferred Income Taxes | E65: 2924689 | F65: 3075289 | G65: 2858338 | H65: 3469337 | I65: 3736454 | J65: 3373787 | K65: 3356478 | L65: 3274052 | M65: 3348623 | N65: 1465589 | O65: 1300557 | P65: 279731 | Q65: 302422 | R65: 32765346 | S65: 2520411
A66: 51 | C66: Total Sources of Cash Working Capital | E66: =SUM(E35:E65) -> -4710038.95 | F66: -4312234.79 | G66: -4976206.97 | H66: -5962467.57 | I66: -4695729.56 | J66: -5870724.2 | K66: -5064288.576 | L66: -5154971.576 | M66: -8946489.796 | N66: -3282057.656 | O66: -3282787.796 | P66: -4626400.176 | Q66: -29898677.33 | R66: -94144544.48 | S66: -10498842.08
A67: 52 | B67: TOTAL USES / (SOURCES) CASH | E67: =E32+E66 -> 12015690.69 | F67: 12646744.47 | G67: 10528783.43 | H67: 8932400.5 | I67: 9673973.29 | J67: 7909392.21 | K67: 8887181.904 | L67: 11433507.58 | M67: 7861328.974 | N67: 12898310.19 | O67: 11638890.96 | P67: 9134909.284 | Q67: -10343642.55 | R67: 109856001.4 | S67: 5193506.919
E71: =E12 -> 2016-12-31 | F71: 2017-01-31 | G71: 2017-02-28 | H71: 2017-03-31 | I71: 2017-04-30 | J71: 2017-05-31 | K71: 2017-06-30 | L71: 2017-07-31 | M71: 2017-08-31 | N71: 2017-09-30 | O71: 2017-10-31 | P71: 2017-11-30 | Q71: 2017-12-31 | R71: 2017-12-31 | S71: 2017-12-31 | T71: 00:00:00
E72: (1) | F72: (2) | G72: (3) | H72: (4) | I72: (5) | J72: (6) | K72: (7) | L72: (8) | M72: (9) | N72: (10) | O72: (11) | P72: (12) | Q72: (13) | R72: (14) | S72: (15)
E73: ($) | F73: ($) | G73: ($) | H73: ($) | I73: ($) | J73: ($) | K73: ($) | L73: ($) | M73: ($) | N73: ($) | O73: ($) | P73: ($) | Q73: ($) | R73: ($) | S73: ($)
B75: 183 | C75: 18320000, 18320001 | D75: Preliminary Survey & Investigation | E75: 0 | F75: 0 | G75: 0 | H75: 0 | I75: 0 | J75: 0 | K75: 0 | L75: 0 | M75: 0 | N75: 0 | O75: 0 | P75: 0 | Q75: 0 | R75: =SUM(E75:Q75) -> 0 | S75: =ROUND(R75/13,0) -> 0
B76: 186-0001 | C76: 18600200 | D76: Misc. Maintenance & Jobbing WIP | E76: 0 | F76: 0 | G76: 0 | H76: 0 | I76: 0 | J76: 0 | K76: 0 | L76: 0 | M76: 0 | N76: 0 | O76: 0 | P76: 0 | Q76: 0 | R76: =SUM(E76:Q76) -> 0 | S76: =ROUND(R76/13,0) -> 0
E77: =SUM(E75:E76) -> 0 | F77: 0 | G77: 0 | H77: 0 | I77: 0 | J77: 0 | K77: 0 | L77: 0 | M77: 0 | N77: 0 | O77: 0 | P77: 0 | Q77: 0 | R77: 0 | S77: 0
B80: 183 | C80: 18320000, 18320001 | D80: Preliminary Survey & Investigation | E80: 0 | F80: 0 | G80: 0 | H80: 0 | I80: 0 | J80: 0 | K80: 0 | L80: 0 | M80: 0 | N80: 0 | O80: 0 | P80: 0 | Q80: 0 | R80: =SUM(E80:Q80) -> 0 | S80: =ROUND(R80/13,0) -> 0
B81: 186-0001 | C81: 18600200 | D81: Misc. Maintenance & Jobbing WIP | E81: 0 | F81: 0 | G81: 0 | H81: 0 | I81: 0 | J81: 0 | K81: 0 | L81: 0 | M81: 0 | N81: 0 | O81: 0 | P81: 0 | Q81: 0 | R81: =SUM(E81:Q81) -> 0 | S81: =ROUND(R81/13,0) -> 0
E82: =SUM(E80:E81) -> 0 | F82: 0 | G82: 0 | H82: 0 | I82: 0 | J82: 0 | K82: 0 | L82: 0 | M82: 0 | N82: 0 | O82: 0 | P82: 0 | Q82: 0 | R82: 0 | S82: 0
B86: 183 | C86: 18320000, 18320001 | D86: Preliminary Survey & Investigation | E86: =E75++E80 -> 0 | F86: =F75++F80 -> 0 | G86: 0 | H86: 0 | I86: 0 | J86: 0 | K86: 0 | L86: 0 | M86: 0 | N86: 0 | O86: 0 | P86: 0 | Q86: 0 | R86: 0 | S86: =ROUND(R86/13,0) -> 0
B87: 186-0001 | C87: 18600200 | D87: Misc. Maintenance & Jobbing WIP | E87: =E76+E81 -> 0 | F87: =F76+F81 -> 0 | G87: 0 | H87: 0 | I87: 0 | J87: 0 | K87: 0 | L87: 0 | M87: 0 | N87: 0 | O87: 0 | P87: 0 | Q87: 0 | R87: 0 | S87: =ROUND(R87/13,0) -> 0
E88: =SUM(E86:E87) -> 0 | F88: =SUM(F86:F87) -> 0 | G88: 0 | H88: 0 | I88: 0 | J88: 0 | K88: 0 | L88: 0 | M88: 0 | N88: 0 | O88: 0 | P88: 0 | Q88: 0 | R88: =SUM(R86:R87) -> 0 | S88: =SUM(S86:S87) -> 0

Sheet (WP) 3c bill lag DIS
F1: ='(WP) Instructions & Input'!B11 -> Exhibit No.: ________ | H1: Pull from Meter Reading | L1: KY PSC Case No. 2021-00183
F2: ='(WP) Instructions & Input'!B12 -> Witness: L. A. Guilbert | L2: Staff 3-36
F3: ='(WP) Instructions & Input'!B6 -> Schedule 27 | L3: Attachment B
F4: Sheet 3c
A5: ='(WP) Instructions & Input'!B2 -> Columbia Gas of Virginia, Inc.
A6: ='(WP) Instructions & Input'!B3 -> Analysis of Cash Working Capital Requirement
A7: Billing Lag Calculation
A8: DIS
A9: ='(WP) Instructions & Input'!B4 -> TME: December 31, 2017
A11: Line | B11: Billing | C11: Meter Reading | D11: Bill Release
A12: No. | B12: Unit | C12: Date | D12: Date | E12: Days
C13: (1) | D13: (2) | E13: (3)=(2)-(1)
A15: =A14+1 -> 1 | B15: 1 | C15: 2016-12-30 | D15: 2017-01-03 | E15: =D15-C15 -> 4
A16: 2 | B16: 2 | C16: 2017-01-03 | D16: 2017-01-04 | E16: 1
A17: 3 | B17: 3 | C17: 2017-01-04 | D17: 2017-01-05 | E17: 1
A18: 4 | B18: 4 | C18: 2017-01-05 | D18: 2017-01-06 | E18: 1
A19: 5 | B19: 5 | C19: 2017-01-06 | D19: 2017-01-09 | E19: 3
A20: 6 | B20: 6 | C20: 2017-01-09 | D20: 2017-01-10 | E20: 1
A21: 7 | B21: 7 | C21: 2017-01-10 | D21: 2017-01-11 | E21: 1
A22: 8 | B22: 8 | C22: 2017-01-11 | D22: 2017-01-12 | E22: 1
A23: 9 | B23: 9 | C23: 2017-01-12 | D23: 2017-01-13 | E23: 1
A24: 10 | B24: 10 | C24: 2017-01-13 | D24: 2017-01-16 | E24: 3
A25: 11 | B25: 11 | C25: 2017-01-16 | D25: 2017-01-17 | E25: 1
A26: 12 | B26: 12 | C26: 2017-01-17 | D26: 2017-01-18 | E26: 1
A27: 13 | B27: 13 | C27: 2017-01-18 | D27: 2017-01-19 | E27: 1
A28: 14 | B28: 14 | C28: 2017-01-19 | D28: 2017-01-20 | E28: 1
A29: 15 | B29: 15 | C29: 2017-01-20 | D29: 2017-01-23 | E29: 3
A30: 16 | B30: 16 | C30: 2017-01-23 | D30: 2017-01-24 | E30: 1
A31: 17 | B31: 17 | C31: 2017-01-24 | D31: 2017-01-25 | E31: 1
A32: 18 | B32: 18 | C32: 2017-01-25 | D32: 2017-01-26 | E32: 1
A33: 19 | B33: 19 | C33: 2017-01-26 | D33: 2017-01-27 | E33: 1
A34: 20 | B34: 20 | C34: 2017-01-27 | D34: 2017-01-30 | E34: 3
A35: 21 | B35: 21 | C35: 2017-01-30 | D35: 2017-01-31 | E35: 1
A36: 22 | B36: 1 | C36: 2017-01-31 | D36: 2017-02-01 | E36: 1
A37: 23 | B37: 2 | C37: 2017-02-01 | D37: 2017-02-02 | E37: 1
A38: 24 | B38: 3 | C38: 2017-02-02 | D38: 2017-02-03 | E38: 1
A39: 25 | B39: 4 | C39: 2017-02-03 | D39: 2017-02-06 | E39: 3
A40: 26 | B40: 5 | C40: 2017-02-06 | D40: 2017-02-07 | E40: 1
A41: 27 | B41: 6 | C41: 2017-02-07 | D41: 2017-02-08 | E41: 1
A42: 28 | B42: 7 | C42: 2017-02-08 | D42: 2017-02-09 | E42: 1
A43: 29 | B43: 8 | C43: 2017-02-09 | D43: 2017-02-10 | E43: 1
A44: 30 | B44: 9 | C44: 2017-02-10 | D44: 2017-02-13 | E44: 3
A45: 31 | B45: 10 | C45: 2017-02-13 | D45: 2017-02-14 | E45: 1
A46: 32 | B46: 11 | C46: 2017-02-14 | D46: 2017-02-15 | E46: 1
A47: 33 | B47: 12 | C47: 2017-02-15 | D47: 2017-02-16 | E47: 1
A48: 34 | B48: 13 | C48: 2017-02-16 | D48: 2017-02-17 | E48: 1
A49: 35 | B49: 14 | C49: 2017-02-17 | D49: 2017-02-20 | E49: 3
A50: 36 | B50: 15 | C50: 2017-02-20 | D50: 2017-02-21 | E50: 1
A51: 37 | B51: 16 | C51: 2017-02-21 | D51: 2017-02-22 | E51: 1
A52: 38 | B52: 17 | C52: 2017-02-22 | D52: 2017-02-23 | E52: 1
A53: 39 | B53: 18 | C53: 2017-02-23 | D53: 2017-02-24 | E53: 1
A54: 40 | B54: 19 | C54: 2017-02-24 | D54: 2017-02-27 | E54: 3
A55: 41 | B55: 20 | C55: 2017-02-27 | D55: 2017-02-28 | E55: 1
A56: 42 | B56: 21 | C56: 2017-02-28 | D56: 2017-03-01 | E56: 1
A57: 43 | B57: 1 | C57: 2017-03-01 | D57: 2017-03-02 | E57: 1
A58: 44 | B58: 2 | C58: 2017-03-02 | D58: 2017-03-03 | E58: 1
A59: 45 | B59: 3 | C59: 2017-03-03 | D59: 2017-03-06 | E59: 3
A60: 46 | B60: 4 | C60: 2017-03-06 | D60: 2017-03-07 | E60: 1
A61: 47 | B61: 5 | C61: 2017-03-07 | D61: 2017-03-08 | E61: 1
A62: 48 | B62: 6 | C62: 2017-03-08 | D62: 2017-03-09 | E62: 1
A63: 49 | B63: 7 | C63: 2017-03-09 | D63: 2017-03-10 | E63: 1
A64: 50 | B64: 8 | C64: 2017-03-10 | D64: 2017-03-13 | E64: 3
A65: 51 | B65: 9 | C65: 2017-03-13 | D65: 2017-03-14 | E65: 1
A66: 52 | B66: 10 | C66: 2017-03-14 | D66: 2017-03-15 | E66: 1
A67: 53 | B67: 11 | C67: 2017-03-15 | D67: 2017-03-16 | E67: 1
A68: 54 | B68: 12 | C68: 2017-03-16 | D68: 2017-03-17 | E68: 1
A69: 55 | B69: 13 | C69: 2017-03-17 | D69: 2017-03-20 | E69: 3
A70: 56 | B70: 14 | C70: 2017-03-20 | D70: 2017-03-21 | E70: 1
A71: 57 | B71: 15 | C71: 2017-03-21 | D71: 2017-03-22 | E71: 1
A72: 58 | B72: 16 | C72: 2017-03-22 | D72: 2017-03-23 | E72: 1
A73: 59 | B73: 17 | C73: 2017-03-23 | D73: 2017-03-24 | E73: 1
A74: 60 | B74: 18 | C74: 2017-03-24 | D74: 2017-03-27 | E74: 3
A75: 61 | B75: 19 | C75: 2017-03-27 | D75: 2017-03-28 | E75: 1
A76: 62 | B76: 20 | C76: 2017-03-28 | D76: 2017-03-29 | E76: 1
A77: 63 | B77: 21 | C77: 2017-03-29 | D77: 2017-03-30 | E77: 1
A78: 64 | B78: 1 | C78: 2017-03-30 | D78: 2017-03-31 | E78: 1
A79: =A78+1 -> 65 | B79: 2 | C79: 2017-03-31 | D79: 2017-04-03 | E79: =D79-C79 -> 3
A80: 66 | B80: 3 | C80: 2017-04-03 | D80: 2017-04-04 | E80: 1
A81: 67 | B81: 4 | C81: 2017-04-04 | D81: 2017-04-05 | E81: 1
A82: 68 | B82: 5 | C82: 2017-04-05 | D82: 2017-04-06 | E82: 1
A83: 69 | B83: 6 | C83: 2017-04-06 | D83: 2017-04-07 | E83: 1
A84: 70 | B84: 7 | C84: 2017-04-07 | D84: 2017-04-10 | E84: 3
A85: 71 | B85: 8 | C85: 2017-04-10 | D85: 2017-04-11 | E85: 1
A86: 72 | B86: 9 | C86: 2017-04-11 | D86: 2017-04-12 | E86: 1
A87: 73 | B87: 10 | C87: 2017-04-12 | D87: 2017-04-13 | E87: 1
A88: 74 | B88: 11 | C88: 2017-04-13 | D88: 2017-04-17 | E88: 4
A89: 75 | B89: 12 | C89: 2017-04-17 | D89: 2017-04-18 | E89: 1
A90: 76 | B90: 13 | C90: 2017-04-18 | D90: 2017-04-19 | E90: 1
A91: 77 | B91: 14 | C91: 2017-04-19 | D91: 2017-04-20 | E91: 1
A92: 78 | B92: 15 | C92: 2017-04-20 | D92: 2017-04-21 | E92: 1
A93: 79 | B93: 16 | C93: 2017-04-21 | D93: 2017-04-24 | E93: 3
A94: 80 | B94: 17 | C94: 2017-04-24 | D94: 2017-04-25 | E94: 1
A95: 81 | B95: 18 | C95: 2017-04-25 | D95: 2017-04-26 | E95: 1
A96: 82 | B96: 19 | C96: 2017-04-26 | D96: 2017-04-27 | E96: 1
A97: 83 | B97: 20 | C97: 2017-04-27 | D97: 2017-04-28 | E97: 1
A98: 84 | B98: 21 | C98: 2017-04-28 | D98: 2017-05-01 | E98: 3
A99: 85 | B99: 1 | C99: 2017-05-01 | D99: 2017-05-02 | E99: 1
A100: 86 | B100: 2 | C100: 2017-05-02 | D100: 2017-05-03 | E100: 1
A101: 87 | B101: 3 | C101: 2017-05-03 | D101: 2017-05-04 | E101: 1
A102: 88 | B102: 4 | C102: 2017-05-04 | D102: 2017-05-05 | E102: 1
A103: 89 | B103: 5 | C103: 2017-05-05 | D103: 2017-05-08 | E103: 3
A104: 90 | B104: 6 | C104: 2017-05-08 | D104: 2017-05-09 | E104: 1
A105: 91 | B105: 7 | C105: 2017-05-09 | D105: 2017-05-10 | E105: 1
A106: 92 | B106: 8 | C106: 2017-05-10 | D106: 2017-05-11 | E106: 1
A107: 93 | B107: 9 | C107: 2017-05-11 | D107: 2017-05-12 | E107: 1
A108: 94 | B108: 10 | C108: 2017-05-12 | D108: 2017-05-15 | E108: 3
A109: 95 | B109: 11 | C109: 2017-05-15 | D109: 2017-05-16 | E109: 1
A110: 96 | B110: 12 | C110: 2017-05-16 | D110: 2017-05-17 | E110: 1
A111: 97 | B111: 13 | C111: 2017-05-17 | D111: 2017-05-18 | E111: 1
A112: 98 | B112: 14 | C112: 2017-05-18 | D112: 2017-05-19 | E112: 1
A113: 99 | B113: 15 | C113: 2017-05-19 | D113: 2017-05-22 | E113: 3
A114: 100 | B114: 16 | C114: 2017-05-22 | D114: 2017-05-23 | E114: 1
A115: 101 | B115: 17 | C115: 2017-05-23 | D115: 2017-05-24 | E115: 1
A116: 102 | B116: 18 | C116: 2017-05-24 | D116: 2017-05-25 | E116: 1
A117: 103 | B117: 19 | C117: 2017-05-25 | D117: 2017-05-26 | E117: 1
A118: 104 | B118: 20 | C118: 2017-05-26 | D118: 2017-05-30 | E118: 4
A119: 105 | B119: 21 | C119: 2017-05-30 | D119: 2017-05-31 | E119: 1
A120: 106 | B120: 1 | C120: 2017-05-31 | D120: 2017-06-01 | E120: 1
A121: 107 | B121: 2 | C121: 2017-06-01 | D121: 2017-06-02 | E121: 1
A122: 108 | B122: 3 | C122: 2017-06-02 | D122: 2017-06-05 | E122: 3
A123: 109 | B123: 4 | C123: 2017-06-05 | D123: 2017-06-06 | E123: 1
A124: 110 | B124: 5 | C124: 2017-06-06 | D124: 2017-06-07 | E124: 1
A125: 111 | B125: 6 | C125: 2017-06-07 | D125: 2017-06-08 | E125: 1
A126: 112 | B126: 7 | C126: 2017-06-08 | D126: 2017-06-09 | E126: 1
A127: 113 | B127: 8 | C127: 2017-06-09 | D127: 2017-06-12 | E127: 3
A128: 114 | B128: 9 | C128: 2017-06-12 | D128: 2017-06-13 | E128: 1
A129: 115 | B129: 10 | C129: 2017-06-13 | D129: 2017-06-14 | E129: 1
A130: 116 | B130: 11 | C130: 2017-06-14 | D130: 2017-06-15 | E130: 1
A131: 117 | B131: 12 | C131: 2017-06-15 | D131: 2017-06-16 | E131: 1
A132: 118 | B132: 13 | C132: 2017-06-16 | D132: 2017-06-19 | E132: 3
A133: 119 | B133: 14 | C133: 2017-06-19 | D133: 2017-06-20 | E133: 1
A134: 120 | B134: 15 | C134: 2017-06-20 | D134: 2017-06-21 | E134: 1
A135: 121 | B135: 16 | C135: 2017-06-21 | D135: 2017-06-22 | E135: 1
A136: 122 | B136: 17 | C136: 2017-06-22 | D136: 2017-06-23 | E136: 1
A137: 123 | B137: 18 | C137: 2017-06-23 | D137: 2017-06-26 | E137: 3
A138: 124 | B138: 19 | C138: 2017-06-26 | D138: 2017-06-27 | E138: 1
A139: 125 | B139: 20 | C139: 2017-06-27 | D139: 2017-06-28 | E139: 1
A140: 126 | B140: 21 | C140: 2017-06-28 | D140: 2017-06-29 | E140: 1
A141: 127 | B141: 1 | C141: 2017-06-29 | D141: 2017-06-30 | E141: 1
A142: 128 | B142: 2 | C142: 2017-06-30 | D142: 2017-07-03 | E142: 3
A143: =A142+1 -> 129 | B143: 3 | C143: 2017-07-03 | D143: 2017-07-05 | E143: =D143-C143 -> 2
A144: 130 | B144: 4 | C144: 2017-07-05 | D144: 2017-07-06 | E144: 1
A145: 131 | B145: 5 | C145: 2017-07-06 | D145: 2017-07-07 | E145: 1
A146: 132 | B146: 6 | C146: 2017-07-07 | D146: 2017-07-10 | E146: 3
A147: 133 | B147: 7 | C147: 2017-07-10 | D147: 2017-07-11 | E147: 1
A148: 134 | B148: 8 | C148: 2017-07-11 | D148: 2017-07-12 | E148: 1
A149: 135 | B149: 9 | C149: 2017-07-12 | D149: 2017-07-13 | E149: 1
A150: 136 | B150: 10 | C150: 2017-07-13 | D150: 2017-07-14 | E150: 1
A151: 137 | B151: 11 | C151: 2017-07-14 | D151: 2017-07-17 | E151: 3
A152: 138 | B152: 12 | C152: 2017-07-17 | D152: 2017-07-18 | E152: 1
A153: 139 | B153: 13 | C153: 2017-07-18 | D153: 2017-07-19 | E153: 1
A154: 140 | B154: 14 | C154: 2017-07-19 | D154: 2017-07-20 | E154: 1
A155: 141 | B155: 15 | C155: 2017-07-20 | D155: 2017-07-21 | E155: 1
A156: 142 | B156: 16 | C156: 2017-07-21 | D156: 2017-07-24 | E156: 3
A157: 143 | B157: 17 | C157: 2017-07-24 | D157: 2017-07-25 | E157: 1
A158: 144 | B158: 18 | C158: 2017-07-25 | D158: 2017-07-26 | E158: 1
A159: 145 | B159: 19 | C159: 2017-07-26 | D159: 2017-07-27 | E159: 1
A160: 146 | B160: 20 | C160: 2017-07-27 | D160: 2017-07-28 | E160: 1
A161: 147 | B161: 21 | C161: 2017-07-28 | D161: 2017-07-31 | E161: 3
A162: 148 | B162: 1 | C162: 2017-07-31 | D162: 2017-08-01 | E162: 1
A163: 149 | B163: 2 | C163: 2017-08-01 | D163: 2017-08-02 | E163: 1
A164: 150 | B164: 3 | C164: 2017-08-02 | D164: 2017-08-03 | E164: 1
A165: 151 | B165: 4 | C165: 2017-08-03 | D165: 2017-08-04 | E165: 1
A166: 152 | B166: 5 | C166: 2017-08-04 | D166: 2017-08-07 | E166: 3
A167: 153 | B167: 6 | C167: 2017-08-07 | D167: 2017-08-08 | E167: 1
A168: 154 | B168: 7 | C168: 2017-08-08 | D168: 2017-08-09 | E168: 1
A169: 155 | B169: 8 | C169: 2017-08-09 | D169: 2017-08-10 | E169: 1
A170: 156 | B170: 9 | C170: 2017-08-10 | D170: 2017-08-11 | E170: 1
A171: 157 | B171: 10 | C171: 2017-08-11 | D171: 2017-08-14 | E171: 3
A172: 158 | B172: 11 | C172: 2017-08-14 | D172: 2017-08-15 | E172: 1
A173: 159 | B173: 12 | C173: 2017-08-15 | D173: 2017-08-16 | E173: 1
A174: 160 | B174: 13 | C174: 2017-08-16 | D174: 2017-08-17 | E174: 1
A175: 161 | B175: 14 | C175: 2017-08-17 | D175: 2017-08-18 | E175: 1
A176: 162 | B176: 15 | C176: 2017-08-18 | D176: 2017-08-21 | E176: 3
A177: 163 | B177: 16 | C177: 2017-08-21 | D177: 2017-08-22 | E177: 1
A178: 164 | B178: 17 | C178: 2017-08-22 | D178: 2017-08-23 | E178: 1
A179: 165 | B179: 18 | C179: 2017-08-23 | D179: 2017-08-24 | E179: 1
A180: 166 | B180: 19 | C180: 2017-08-24 | D180: 2017-08-25 | E180: 1
A181: 167 | B181: 20 | C181: 2017-08-25 | D181: 2017-08-28 | E181: 3
A182: 168 | B182: 21 | C182: 2017-08-28 | D182: 2017-08-29 | E182: 1
A183: 169 | B183: 1 | C183: 2017-08-29 | D183: 2017-08-30 | E183: 1
A184: 170 | B184: 2 | C184: 2017-08-30 | D184: 2017-08-31 | E184: 1
A185: 171 | B185: 3 | C185: 2017-08-31 | D185: 2017-09-01 | E185: 1
A186: 172 | B186: 4 | C186: 2017-09-01 | D186: 2017-09-05 | E186: 4
A187: 173 | B187: 5 | C187: 2017-09-05 | D187: 2017-09-06 | E187: 1
A188: 174 | B188: 6 | C188: 2017-09-06 | D188: 2017-09-07 | E188: 1
A189: 175 | B189: 7 | C189: 2017-09-07 | D189: 2017-09-08 | E189: 1
A190: 176 | B190: 8 | C190: 2017-09-08 | D190: 2017-09-11 | E190: 3
A191: 177 | B191: 9 | C191: 2017-09-11 | D191: 2017-09-12 | E191: 1
A192: 178 | B192: 10 | C192: 2017-09-12 | D192: 2017-09-13 | E192: 1
A193: 179 | B193: 11 | C193: 2017-09-13 | D193: 2017-09-14 | E193: 1
A194: 180 | B194: 12 | C194: 2017-09-14 | D194: 2017-09-15 | E194: 1
A195: 181 | B195: 13 | C195: 2017-09-15 | D195: 2017-09-18 | E195: 3
A196: 182 | B196: 14 | C196: 2017-09-18 | D196: 2017-09-19 | E196: 1
A197: 183 | B197: 15 | C197: 2017-09-19 | D197: 2017-09-20 | E197: 1
A198: 184 | B198: 16 | C198: 2017-09-20 | D198: 2017-09-21 | E198: 1
A199: 185 | B199: 17 | C199: 2017-09-21 | D199: 2017-09-22 | E199: 1
A200: 186 | B200: 18 | C200: 2017-09-22 | D200: 2017-09-25 | E200: 3
A201: 187 | B201: 19 | C201: 2017-09-25 | D201: 2017-09-26 | E201: 1
A202: 188 | B202: 20 | C202: 2017-09-26 | D202: 2017-09-27 | E202: 1
... 65 more rows

Sheet (WP) 3c bill lag GTS
F1: ='(WP) Instructions & Input'!B11 -> Exhibit No.: ________ | G1: From GTSERV1A | I1: Make 1 tab in GTSERV1A for whole year for CVA- remove titles | O1: KY PSC Case No. 2021-00183
F2: ='(WP) Instructions & Input'!B12 -> Witness: L. A. Guilbert | I2: Data - Text to Columns | O2: Staff 3-36
F3: ='(WP) Instructions & Input'!B6 -> Schedule 27 | O3: Attachment B
F4: Sheet 3c
A5: ='(WP) Instructions & Input'!B2 -> Columbia Gas of Virginia, Inc.
A6: ='(WP) Instructions & Input'!B3 -> Analysis of Cash Working Capital Requirement
A7: Billing Lag Calculation
A8: GTS
A9: ='(WP) Instructions & Input'!B4 -> TME: December 31, 2017
A11: Line | B11: Meter Reading | C11: Billing | E11: Total Billing | F11: Weighted
A12: No. | B12: Date | C12: Date | D12: Days | E12: Amount | F12: Amount
B13: (1) | C13: (2) | D13: (3)=(2)-(1) | E13: (4) | F13: (5)
A15: =A14+1 -> 1 | B15: 2017-02-01 | C15: 2017-02-09 | D15: =C15-B15 -> 8 | E15: 14775.28 | F15: =E15*D15 -> 118202.24
A16: 2 | B16: 2017-02-01 | C16: 2017-02-09 | D16: 8 | E16: 5171.87 | F16: 41374.96
A17: 3 | B17: 2017-02-01 | C17: 2017-02-09 | D17: 8 | E17: 7492.92 | F17: 59943.36
A18: 4 | B18: 2017-02-01 | C18: 2017-02-09 | D18: 8 | E18: 5364.4 | F18: 42915.2
A19: 5 | B19: 2017-02-01 | C19: 2017-02-09 | D19: 8 | E19: 4096.69 | F19: 32773.52
A20: 6 | B20: 2017-02-01 | C20: 2017-02-09 | D20: 8 | E20: 5509.01 | F20: 44072.08
A21: 7 | B21: 2017-02-01 | C21: 2017-02-09 | D21: 8 | E21: 17355.03 | F21: 138840.24
A22: 8 | B22: 2017-02-01 | C22: 2017-02-09 | D22: 8 | E22: 766.54 | F22: 6132.32
A23: 9 | B23: 2017-02-01 | C23: 2017-02-09 | D23: 8 | E23: 3170.14 | F23: 25361.12
A24: 10 | B24: 2017-02-01 | C24: 2017-02-09 | D24: 8 | E24: 5373.83 | F24: 42990.64
A25: 11 | B25: 2017-02-01 | C25: 2017-02-09 | D25: 8 | E25: 1307.89 | F25: 10463.12
A26: 12 | B26: 2017-02-01 | C26: 2017-02-09 | D26: 8 | E26: 3793.77 | F26: 30350.16
A27: 13 | B27: 2017-02-01 | C27: 2017-02-09 | D27: 8 | E27: 6670.13 | F27: 53361.04
A28: 14 | B28: 2017-02-01 | C28: 2017-02-09 | D28: 8 | E28: 65927.95 | F28: 527423.6
A29: 15 | B29: 2017-02-01 | C29: 2017-02-09 | D29: 8 | E29: 9146.43 | F29: 73171.44
A30: 16 | B30: 2017-02-01 | C30: 2017-02-09 | D30: 8 | E30: 5458.41 | F30: 43667.28
A31: 17 | B31: 2017-02-01 | C31: 2017-02-09 | D31: 8 | E31: 5852.63 | F31: 46821.04
A32: 18 | B32: 2017-02-01 | C32: 2017-02-09 | D32: 8 | E32: 2726.66 | F32: 21813.28
A33: 19 | B33: 2017-02-01 | C33: 2017-02-09 | D33: 8 | E33: 2044.88 | F33: 16359.04
A34: 20 | B34: 2017-02-01 | C34: 2017-02-09 | D34: 8 | E34: 9086.16 | F34: 72689.28
A35: 21 | B35: 2017-02-01 | C35: 2017-02-09 | D35: 8 | E35: 16796.1 | F35: 134368.8
A36: 22 | B36: 2017-02-01 | C36: 2017-02-09 | D36: 8 | E36: 1974.6 | F36: 15796.8
A37: 23 | B37: 2017-02-01 | C37: 2017-02-09 | D37: 8 | E37: 1749.51 | F37: 13996.08
A38: 24 | B38: 2017-02-01 | C38: 2017-02-09 | D38: 8 | E38: 7269.76 | F38: 58158.08
A39: 25 | B39: 2017-02-01 | C39: 2017-02-09 | D39: 8 | E39: 34973.62 | F39: =E39*D39 -> 279788.96
A40: 26 | B40: 2017-02-01 | C40: 2017-02-09 | D40: 8 | E40: 2304.99 | F40: 18439.92
A41: 27 | B41: 2017-02-01 | C41: 2017-02-09 | D41: 8 | E41: 10437.07 | F41: 83496.56
A42: 28 | B42: 2017-02-01 | C42: 2017-02-09 | D42: 8 | E42: 1218.14 | F42: 9745.12
A43: 29 | B43: 2017-02-01 | C43: 2017-02-09 | D43: 8 | E43: 3500 | F43: 28000
A44: 30 | B44: 2017-02-01 | C44: 2017-02-09 | D44: 8 | E44: 2538.44 | F44: 20307.52
A45: 31 | B45: 2017-02-01 | C45: 2017-02-09 | D45: 8 | E45: 4211.4 | F45: 33691.2
A46: 32 | B46: 2017-02-01 | C46: 2017-02-09 | D46: 8 | E46: 2871.26 | F46: 22970.08
A47: 33 | B47: 2017-02-01 | C47: 2017-02-09 | D47: 8 | E47: 3758.22 | F47: 30065.76
A48: 34 | B48: 2017-02-01 | C48: 2017-02-09 | D48: 8 | E48: 2410.81 | F48: 19286.48
A49: 35 | B49: 2017-02-01 | C49: 2017-02-09 | D49: 8 | E49: 2531.98 | F49: 20255.84
A50: 36 | B50: 2017-02-01 | C50: 2017-02-09 | D50: 8 | E50: 16520.86 | F50: 132166.88
A51: 37 | B51: 2017-02-01 | C51: 2017-02-09 | D51: 8 | E51: 10380.81 | F51: 83046.48
A52: 38 | B52: 2017-02-01 | C52: 2017-02-09 | D52: 8 | E52: 7644.72 | F52: 61157.76
A53: 39 | B53: 2017-02-01 | C53: 2017-02-09 | D53: 8 | E53: 11711.09 | F53: 93688.72
A54: 40 | B54: 2017-02-01 | C54: 2017-02-09 | D54: 8 | E54: 233500 | F54: 1868000
A55: 41 | B55: 2017-02-01 | C55: 2017-02-09 | D55: 8 | E55: 19103.75 | F55: 152830
A56: 42 | B56: 2017-02-01 | C56: 2017-02-09 | D56: 8 | E56: 6200.78 | F56: 49606.24
A57: 43 | B57: 2017-02-01 | C57: 2017-02-09 | D57: 8 | E57: 6599.52 | F57: 52796.16
A58: 44 | B58: 2017-02-01 | C58: 2017-02-09 | D58: 8 | E58: 9137.75 | F58: 73102
A59: 45 | B59: 2017-02-01 | C59: 2017-02-09 | D59: 8 | E59: 4794.63 | F59: 38357.04
A60: 46 | B60: 2017-02-01 | C60: 2017-02-09 | D60: 8 | E60: 1691.1 | F60: 13528.8
A61: 47 | B61: 2017-02-01 | C61: 2017-02-09 | D61: 8 | E61: 2541.68 | F61: 20333.44
A62: 48 | B62: 2017-02-01 | C62: 2017-02-09 | D62: 8 | E62: 5826.2 | F62: 46609.6
A63: 49 | B63: 2017-02-01 | C63: 2017-02-09 | D63: 8 | E63: 2589.34 | F63: 20714.72
A64: 50 | B64: 2017-02-01 | C64: 2017-02-09 | D64: 8 | E64: 3189.53 | F64: 25516.24
A65: 51 | B65: 2017-02-01 | C65: 2017-02-09 | D65: 8 | E65: 15734.79 | F65: 125878.32
A66: 52 | B66: 2017-02-01 | C66: 2017-02-09 | D66: 8 | E66: 550 | F66: 4400
A67: 53 | B67: 2017-02-01 | C67: 2017-02-09 | D67: 8 | E67: 12925.6 | F67: 103404.8
A68: 54 | B68: 2017-02-01 | C68: 2017-02-09 | D68: 8 | E68: 5226.57 | F68: 41812.56
A69: 55 | B69: 2017-02-01 | C69: 2017-02-09 | D69: 8 | E69: 22788.99 | F69: 182311.92
A70: 56 | B70: 2017-02-01 | C70: 2017-02-09 | D70: 8 | E70: 4198.47 | F70: 33587.76
A71: 57 | B71: 2017-02-01 | C71: 2017-02-09 | D71: 8 | E71: 5766.16 | F71: 46129.28
A72: 58 | B72: 2017-02-01 | C72: 2017-02-09 | D72: 8 | E72: 1645.52 | F72: 13164.16
A73: 59 | B73: 2017-02-01 | C73: 2017-02-09 | D73: 8 | E73: 7063.97 | F73: 56511.76
A74: 60 | B74: 2017-02-01 | C74: 2017-02-09 | D74: 8 | E74: 12525.01 | F74: 100200.08
A75: 61 | B75: 2017-02-01 | C75: 2017-02-09 | D75: 8 | E75: 7451.01 | F75: 59608.08
A76: 62 | B76: 2017-02-01 | C76: 2017-02-09 | D76: 8 | E76: 7376.24 | F76: 59009.92
A77: 63 | B77: 2017-02-01 | C77: 2017-02-09 | D77: 8 | E77: 14707.73 | F77: 117661.84
A78: 64 | B78: 2017-02-01 | C78: 2017-02-09 | D78: =C78-B78 -> 8 | E78: 3674.21 | F78: =E78*D78 -> 29393.68
A79: =A78+1 -> 65 | B79: 2017-02-01 | C79: 2017-02-09 | D79: 8 | E79: 2308.22 | F79: 18465.76
A80: 66 | B80: 2017-02-01 | C80: 2017-02-09 | D80: 8 | E80: 6505.88 | F80: 52047.04
A81: 67 | B81: 2017-02-01 | C81: 2017-02-09 | D81: 8 | E81: 1968.9 | F81: 15751.2
A82: 68 | B82: 2017-02-01 | C82: 2017-02-09 | D82: 8 | E82: 21666.03 | F82: 173328.24
A83: 69 | B83: 2017-02-01 | C83: 2017-02-09 | D83: 8 | E83: 7596.76 | F83: 60774.08
A84: 70 | B84: 2017-02-01 | C84: 2017-02-09 | D84: 8 | E84: 11284.01 | F84: 90272.08
A85: 71 | B85: 2017-02-01 | C85: 2017-02-09 | D85: 8 | E85: 2594.99 | F85: 20759.92
A86: 72 | B86: 2017-02-01 | C86: 2017-02-09 | D86: 8 | E86: 2896.3 | F86: 23170.4
A87: 73 | B87: 2017-02-01 | C87: 2017-02-09 | D87: 8 | E87: 4137.89 | F87: 33103.12
A88: 74 | B88: 2017-02-01 | C88: 2017-02-09 | D88: 8 | E88: 8801.1 | F88: 70408.8
A89: 75 | B89: 2017-02-01 | C89: 2017-02-09 | D89: 8 | E89: 4793.82 | F89: 38350.56
A90: 76 | B90: 2017-02-01 | C90: 2017-02-09 | D90: 8 | E90: 3233.96 | F90: 25871.68
A91: 77 | B91: 2017-02-01 | C91: 2017-02-09 | D91: 8 | E91: 48386.95 | F91: 387095.6
A92: 78 | B92: 2017-02-01 | C92: 2017-02-09 | D92: 8 | E92: 2012.57 | F92: 16100.56
A93: 79 | B93: 2017-02-01 | C93: 2017-02-09 | D93: 8 | E93: 3205.69 | F93: 25645.52
A94: 80 | B94: 2017-02-01 | C94: 2017-02-09 | D94: 8 | E94: 2097.39 | F94: 16779.12
A95: 81 | B95: 2017-02-01 | C95: 2017-02-09 | D95: 8 | E95: 2508.56 | F95: 20068.48
A96: 82 | B96: 2017-02-01 | C96: 2017-02-09 | D96: 8 | E96: 7463.47 | F96: 59707.76
A97: 83 | B97: 2017-02-01 | C97: 2017-02-09 | D97: 8 | E97: 16031.26 | F97: 128250.08
A98: 84 | B98: 2017-02-01 | C98: 2017-02-09 | D98: 8 | E98: 6402.04 | F98: 51216.32
A99: 85 | B99: 2017-02-01 | C99: 2017-02-09 | D99: 8 | E99: 2707.27 | F99: 21658.16
A100: 86 | B100: 2017-02-01 | C100: 2017-02-09 | D100: 8 | E100: 7746.29 | F100: 61970.32
A101: 87 | B101: 2017-02-01 | C101: 2017-02-09 | D101: 8 | E101: 20138.39 | F101: 161107.12
A102: 88 | B102: 2017-02-01 | C102: 2017-02-09 | D102: 8 | E102: 3336.55 | F102: 26692.4
A103: 89 | B103: 2017-02-01 | C103: 2017-02-09 | D103: 8 | E103: 17231.73 | F103: 137853.84
A104: 90 | B104: 2017-02-01 | C104: 2017-02-09 | D104: 8 | E104: 5048.28 | F104: 40386.24
A105: 91 | B105: 2017-02-01 | C105: 2017-02-09 | D105: 8 | E105: 7121.74 | F105: 56973.92
A106: 92 | B106: 2017-02-01 | C106: 2017-02-09 | D106: 8 | E106: 12138.54 | F106: 97108.32
A107: 93 | B107: 2017-02-01 | C107: 2017-02-09 | D107: 8 | E107: 6693.92 | F107: 53551.36
A108: 94 | B108: 2017-02-01 | C108: 2017-02-09 | D108: 8 | E108: 3592.62 | F108: 28740.96
A109: 95 | B109: 2017-02-01 | C109: 2017-02-09 | D109: 8 | E109: 9060.34 | F109: 72482.72
A110: 96 | B110: 2017-02-01 | C110: 2017-02-09 | D110: 8 | E110: 63068.01 | F110: 504544.08
A111: 97 | B111: 2017-02-01 | C111: 2017-02-09 | D111: 8 | E111: 8183.18 | F111: 65465.44
A112: 98 | B112: 2017-02-01 | C112: 2017-02-09 | D112: 8 | E112: 13224.14 | F112: 105793.12
A113: 99 | B113: 2017-02-01 | C113: 2017-02-09 | D113: 8 | E113: 2345.38 | F113: 18763.04
A114: 100 | B114: 2017-02-01 | C114: 2017-02-09 | D114: 8 | E114: 3056.24 | F114: 24449.92
A115: 101 | B115: 2017-02-01 | C115: 2017-02-09 | D115: 8 | E115: 2520.67 | F115: 20165.36
A116: 102 | B116: 2017-02-01 | C116: 2017-02-09 | D116: 8 | E116: 7632.64 | F116: 61061.12
A117: 103 | B117: 2017-02-01 | C117: 2017-02-09 | D117: 8 | E117: 17117.9 | F117: 136943.2
A118: 104 | B118: 2017-02-01 | C118: 2017-02-09 | D118: 8 | E118: 5670.25 | F118: 45362
A119: 105 | B119: 2017-02-01 | C119: 2017-02-09 | D119: 8 | E119: 23730.86 | F119: 189846.88
A120: 106 | B120: 2017-02-01 | C120: 2017-02-09 | D120: 8 | E120: 8396.14 | F120: 67169.12
A121: 107 | B121: 2017-02-01 | C121: 2017-02-09 | D121: 8 | E121: 2510.17 | F121: 20081.36
A122: 108 | B122: 2017-02-01 | C122: 2017-02-09 | D122: 8 | E122: 28762.25 | F122: 230098
A123: 109 | B123: 2017-02-01 | C123: 2017-02-09 | D123: 8 | E123: 3727.53 | F123: 29820.24
A124: 110 | B124: 2017-02-01 | C124: 2017-02-09 | D124: 8 | E124: 574.22 | F124: 4593.76
A125: 111 | B125: 2017-02-01 | C125: 2017-02-09 | D125: 8 | E125: 15128.03 | F125: 121024.24
A126: 112 | B126: 2017-02-01 | C126: 2017-02-09 | D126: 8 | E126: 3053.01 | F126: 24424.08
A127: 113 | B127: 2017-02-01 | C127: 2017-02-10 | D127: 9 | E127: 1550.07 | F127: 13950.63
A128: 114 | B128: 2017-02-01 | C128: 2017-02-09 | D128: 8 | E128: 5268.86 | F128: 42150.88
A129: 115 | B129: 2017-02-01 | C129: 2017-02-09 | D129: 8 | E129: 1849.24 | F129: 14793.92
A130: 116 | B130: 2017-02-01 | C130: 2017-02-09 | D130: 8 | E130: 2031.15 | F130: 16249.2
A131: 117 | B131: 2017-02-01 | C131: 2017-02-09 | D131: 8 | E131: 2633.76 | F131: 21070.08
A132: 118 | B132: 2017-02-01 | C132: 2017-02-09 | D132: 8 | E132: 8882.49 | F132: 71059.92
A133: 119 | B133: 2017-02-01 | C133: 2017-02-09 | D133: 8 | E133: 1645.52 | F133: 13164.16
A134: 120 | B134: 2017-02-01 | C134: 2017-02-09 | D134: 8 | E134: 550 | F134: 4400
A135: 121 | B135: 2017-02-01 | C135: 2017-02-09 | D135: 8 | E135: 1168.28 | F135: 9346.24
A136: 122 | B136: 2017-02-01 | C136: 2017-02-09 | D136: 8 | E136: 6359.75 | F136: 50878
A137: 123 | B137: 2017-02-01 | C137: 2017-02-09 | D137: 8 | E137: 2391.42 | F137: 19131.36
A138: 124 | B138: 2017-02-01 | C138: 2017-02-09 | D138: 8 | E138: 2386.58 | F138: 19092.64
A139: 125 | B139: 2017-02-01 | C139: 2017-02-09 | D139: 8 | E139: 1907.64 | F139: 15261.12
A140: 126 | B140: 2017-02-01 | C140: 2017-02-09 | D140: 8 | E140: 12942.99 | F140: 103543.92
A141: 127 | B141: 2017-01-03 | C141: 2017-02-09 | D141: 37 | E141: 3547.87 | F141: 131271.19
A142: 128 | B142: 2017-02-01 | C142: 2017-02-09 | D142: =C142-B142 -> 8 | E142: 18692.09 | F142: =E142*D142 -> 149536.72
A143: =A142+1 -> 129 | B143: 2017-02-01 | C143: 2017-02-09 | D143: 8 | E143: 9046.37 | F143: 72370.96
A144: 130 | B144: 2017-02-01 | C144: 2017-02-09 | D144: 8 | E144: 1639.82 | F144: 13118.56
A145: 131 | B145: 2017-02-01 | C145: 2017-02-09 | D145: 8 | E145: 40779.16 | F145: 326233.28
A146: 132 | B146: 2017-02-01 | C146: 2017-02-09 | D146: 8 | E146: 24810.57 | F146: 198484.56
A147: 133 | B147: 2017-02-01 | C147: 2017-02-09 | D147: 8 | E147: 9770.23 | F147: 78161.84
A148: 134 | B148: 2017-02-01 | C148: 2017-02-09 | D148: 8 | E148: 3634.63 | F148: 29077.04
A149: 135 | B149: 2017-01-31 | C149: 2017-02-09 | D149: 9 | E149: 29006.85 | F149: 261061.65
A150: 136 | B150: 2017-02-01 | C150: 2017-02-09 | D150: 8 | E150: 7367.94 | F150: 58943.52
A151: 137 | B151: 2017-02-01 | C151: 2017-02-09 | D151: 8 | E151: 602.71 | F151: 4821.68
A152: 138 | B152: 2017-02-01 | C152: 2017-02-09 | D152: 8 | E152: 550 | F152: 4400
A153: 139 | B153: 2017-02-01 | C153: 2017-02-09 | D153: 8 | E153: 4091.84 | F153: 32734.72
A154: 140 | B154: 2017-02-01 | C154: 2017-02-09 | D154: 8 | E154: 18001.75 | F154: 144014
A155: 141 | B155: 2017-02-01 | C155: 2017-02-09 | D155: 8 | E155: 4953.02 | F155: 39624.16
A156: 142 | B156: 2017-02-01 | C156: 2017-02-09 | D156: 8 | E156: 5178.33 | F156: 41426.64
A157: 143 | B157: 2017-02-01 | C157: 2017-02-09 | D157: 8 | E157: 4473.93 | F157: 35791.44
A158: 144 | B158: 2017-02-01 | C158: 2017-02-09 | D158: 8 | E158: 8240.19 | F158: 65921.52
A159: 145 | B159: 2017-02-01 | C159: 2017-02-09 | D159: 8 | E159: 2666.08 | F159: 21328.64
A160: 146 | B160: 2017-02-01 | C160: 2017-02-09 | D160: 8 | E160: 18577.75 | F160: 148622
A161: 147 | B161: 2017-02-01 | C161: 2017-02-09 | D161: 8 | E161: 20010.15 | F161: 160081.2
A162: 148 | B162: 2017-02-01 | C162: 2017-02-09 | D162: 8 | E162: 19091.2 | F162: 152729.6
A163: 149 | B163: 2017-02-01 | C163: 2017-02-09 | D163: 8 | E163: 3935.13 | F163: 31481.04
A164: 150 | B164: 2017-02-01 | C164: 2017-02-09 | D164: 8 | E164: 8664.24 | F164: 69313.92
A165: 151 | B165: 2017-02-01 | C165: 2017-02-09 | D165: 8 | E165: 6914.44 | F165: 55315.52
A166: 152 | B166: 2017-02-01 | C166: 2017-02-09 | D166: 8 | E166: 8682.74 | F166: 69461.92
A167: 153 | B167: 2017-02-01 | C167: 2017-02-09 | D167: 8 | E167: 5572.45 | F167: 44579.6
A168: 154 | B168: 2017-02-01 | C168: 2017-02-10 | D168: 9 | E168: 7750.82 | F168: 69757.38
A169: 155 | B169: 2017-02-01 | C169: 2017-02-09 | D169: 8 | E169: 5285.47 | F169: 42283.76
A170: 156 | B170: 2017-02-01 | C170: 2017-02-09 | D170: 8 | E170: 3095.02 | F170: 24760.16
A171: 157 | B171: 2017-02-01 | C171: 2017-02-09 | D171: 8 | E171: 5226.95 | F171: 41815.6
A172: 158 | B172: 2017-02-01 | C172: 2017-02-09 | D172: 8 | E172: 5916.44 | F172: 47331.52
A173: 159 | B173: 2017-02-01 | C173: 2017-02-09 | D173: 8 | E173: 5159.01 | F173: 41272.08
A174: 160 | B174: 2017-02-01 | C174: 2017-02-09 | D174: 8 | E174: 1538.67 | F174: 12309.36
A175: 161 | B175: 2017-02-01 | C175: 2017-02-09 | D175: 8 | E175: 550 | F175: 4400
A176: 162 | B176: 2017-02-01 | C176: 2017-02-09 | D176: 8 | E176: 2447.16 | F176: 19577.28
A177: 163 | B177: 2017-02-01 | C177: 2017-02-09 | D177: 8 | E177: 4784.13 | F177: 38273.04
A178: 164 | B178: 2017-02-01 | C178: 2017-02-09 | D178: 8 | E178: 25775.45 | F178: 206203.6
A179: 165 | B179: 2017-02-01 | C179: 2017-02-09 | D179: 8 | E179: 6348.42 | F179: 50787.36
A180: 166 | B180: 2017-02-01 | C180: 2017-02-09 | D180: 8 | E180: 1537.25 | F180: 12298
A181: 167 | B181: 2017-02-01 | C181: 2017-02-09 | D181: 8 | E181: 5561.88 | F181: 44495.04
A182: 168 | B182: 2017-02-01 | C182: 2017-02-09 | D182: 8 | E182: 2359.11 | F182: 18872.88
A183: 169 | B183: 2017-02-01 | C183: 2017-02-09 | D183: 8 | E183: 6025.95 | F183: 48207.6
A184: 170 | B184: 2017-02-01 | C184: 2017-02-09 | D184: 8 | E184: 16661.81 | F184: 133294.48
A185: 171 | B185: 2017-02-01 | C185: 2017-02-09 | D185: 8 | E185: 5886.24 | F185: 47089.92
A186: 172 | B186: 2017-02-01 | C186: 2017-02-09 | D186: 8 | E186: 4362.46 | F186: 34899.68
A187: 173 | B187: 2017-02-01 | C187: 2017-02-09 | D187: 8 | E187: 3485.99 | F187: 27887.92
A188: 174 | B188: 2017-02-01 | C188: 2017-02-09 | D188: 8 | E188: 8865.12 | F188: 70920.96
A189: 175 | B189: 2017-02-01 | C189: 2017-02-09 | D189: 8 | E189: 2265.41 | F189: 18123.28
A190: 176 | B190: 2017-02-01 | C190: 2017-02-09 | D190: 8 | E190: 2447.97 | F190: 19583.76
A191: 177 | B191: 2017-02-01 | C191: 2017-02-09 | D191: 8 | E191: 2920.53 | F191: 23364.24
A192: 178 | B192: 2017-02-01 | C192: 2017-02-09 | D192: 8 | E192: 2730.7 | F192: 21845.6
A193: 179 | B193: 2017-02-01 | C193: 2017-02-09 | D193: 8 | E193: 3407.64 | F193: 27261.12
A194: 180 | B194: 2017-02-01 | C194: 2017-02-09 | D194: 8 | E194: 5326.63 | F194: 42613.04
A195: 181 | B195: 2017-02-01 | C195: 2017-02-09 | D195: 8 | E195: 4297.83 | F195: 34382.64
A196: 182 | B196: 2017-02-01 | C196: 2017-02-09 | D196: 8 | E196: 3754.18 | F196: 30033.44
A197: 183 | B197: 2017-02-01 | C197: 2017-02-09 | D197: 8 | E197: 550 | F197: 4400
A198: 184 | B198: 2017-02-01 | C198: 2017-02-09 | D198: 8 | E198: 4080.53 | F198: 32644.24
A199: 185 | B199: 2017-02-01 | C199: 2017-02-09 | D199: 8 | E199: 10689.94 | F199: 85519.52
A200: 186 | B200: 2017-02-01 | C200: 2017-02-09 | D200: 8 | E200: 586761.85 | F200: 4694094.8
A201: 187 | B201: 2017-02-01 | C201: 2017-02-09 | D201: 8 | E201: 2269.45 | F201: 18155.6
A202: 188 | B202: 2017-02-01 | C202: 2017-02-09 | D202: 8 | E202: 2742.82 | F202: 21942.56
... 2733 more rows

Sheet (WP) 3c bill lag GMB
I1: ='(WP) Instructions & Input'!B11 -> Exhibit No.: ________ | J1: Copy in GMB VA 2017 | N1: KY PSC Case No. 2021-00183
I2: ='(WP) Instructions & Input'!B12 -> Witness: L. A. Guilbert | N2: Staff 3-36
I3: ='(WP) Instructions & Input'!B6 -> Schedule 27 | N3: Attachment B
I4: Sheet 3c
A5: ='(WP) Instructions & Input'!B2 -> Columbia Gas of Virginia, Inc.
A6: ='(WP) Instructions & Input'!B3 -> Analysis of Cash Working Capital Requirement
A7: Billing Lag Calculation
A8: GMB
A9: ='(WP) Instructions & Input'!B4 -> TME: December 31, 2017
A11: Line | B11: PCID | C11: Meter Read | D11: Billing | F11: Billing | G11: Weighted
A12: No. | B12: No. | C12: Date | D12: Date | E12: Days | F12: Amount | G12: Amount
C13: (1) | D13: (2) | E13: (3)=(2)-(1) | F13: (4) | G13: (5)
A15: 1 | B15: 13406993001 | C15: 2017-01-26 | D15: 2017-02-01 | E15: =D15-C15 -> 6 | F15: 16353.12 | G15: =F15*E15 -> 98118.72
A16: =A15+1 -> 2 | B16: 14874945001 | C16: 2017-01-26 | D16: 2017-02-01 | E16: 6 | F16: 14368.24 | G16: 86209.44
A17: =A16+1 -> 3 | B17: 10797435004 | C17: 2017-01-27 | D17: 2017-02-01 | E17: 5 | F17: 10235.81 | G17: 51179.05
A18: 4 | B18: 12742978002 | C18: 2017-01-27 | D18: 2017-02-01 | E18: 5 | F18: 3178.79 | G18: 15893.95
A19: 5 | B19: 12986270001 | C19: 2017-01-27 | D19: 2017-02-06 | E19: 10 | F19: 1326.68 | G19: 13266.8
A20: 6 | B20: 12986274001 | C20: 2017-01-27 | D20: 2017-02-15 | E20: 19 | F20: 2812.92 | G20: 53445.48
A21: 7 | B21: 12986280001 | C21: 2017-01-27 | D21: 2017-02-06 | E21: 10 | F21: 2442.94 | G21: 24429.4
A22: 8 | B22: 12986284001 | C22: 2017-01-27 | D22: 2017-02-06 | E22: 10 | F22: 10405.6 | G22: 104056
A23: 9 | B23: 13199467002 | C23: 2017-01-27 | D23: 2017-02-01 | E23: 5 | F23: 4421.24 | G23: 22106.2
A24: 10 | B24: 12986231001 | C24: 2017-01-30 | D24: 2017-02-06 | E24: 7 | F24: 9158.93 | G24: 64112.51
A25: 11 | B25: 12986243001 | C25: 2017-01-30 | D25: 2017-02-06 | E25: 7 | F25: 6476.05 | G25: 45332.35
A26: 12 | B26: 12986245001 | C26: 2017-01-30 | D26: 2017-02-06 | E26: 7 | F26: 5845.86 | G26: 40921.02
A27: 13 | B27: 12986256002 | C27: 2017-01-30 | D27: 2017-02-06 | E27: 7 | F27: 838.5 | G27: 5869.5
A28: 14 | B28: 12986261001 | C28: 2017-01-30 | D28: 2017-02-06 | E28: 7 | F28: 6178.99 | G28: 43252.93
A29: 15 | B29: 12986297001 | C29: 2017-01-30 | D29: 2017-02-02 | E29: 3 | F29: 3563.51 | G29: 10690.53
A30: 16 | B30: 12986344001 | C30: 2017-01-30 | D30: 2017-02-06 | E30: 7 | F30: 24.96 | G30: 174.72
A31: 17 | B31: 13623084001 | C31: 2017-01-30 | D31: 2017-02-01 | E31: 2 | F31: 3270.24 | G31: 6540.48
A32: 18 | B32: 14326140002 | C32: 2017-01-30 | D32: 2017-02-01 | E32: 2 | F32: 1302.74 | G32: 2605.48
A33: 19 | B33: 10785576002 | C33: 2017-02-01 | D33: 2017-02-01 | E33: 0 | F33: 2668.59 | G33: 0
A34: 20 | B34: 10798246004 | C34: 2017-02-01 | D34: 2017-02-01 | E34: 0 | F34: 27363.38 | G34: 0
A35: 21 | B35: 10827054002 | C35: 2017-02-01 | D35: 2017-02-01 | E35: 0 | F35: 624.22 | G35: 0
A36: 22 | B36: 10862587002 | C36: 2017-02-01 | D36: 2017-02-06 | E36: 5 | F36: 4120.76 | G36: 20603.8
A37: 23 | B37: 12820650002 | C37: 2017-02-01 | D37: 2017-02-15 | E37: 14 | F37: 2826.87 | G37: 39576.18
A38: 24 | B38: 12850260002 | C38: 2017-02-01 | D38: 2017-02-01 | E38: 0 | F38: 135643.2 | G38: 0
A39: 25 | B39: 12857258001 | C39: 2017-02-01 | D39: 2017-02-14 | E39: 13 | F39: 1666.65 | G39: 21666.45
A40: 26 | B40: 12857266001 | C40: 2017-02-01 | D40: 2017-02-01 | E40: 0 | F40: 9453.84 | G40: 0
A41: 27 | B41: 12986160001 | C41: 2017-02-01 | D41: 2017-02-08 | E41: 7 | F41: 4086.96 | G41: 28608.72
A42: 28 | B42: 12986167002 | C42: 2017-02-01 | D42: 2017-02-08 | E42: 7 | F42: 923.86 | G42: 6467.02
A43: 29 | B43: 12986178001 | C43: 2017-02-01 | D43: 2017-02-02 | E43: 1 | F43: 4415.18 | G43: 4415.18
A44: 30 | B44: 12986199001 | C44: 2017-02-01 | D44: 2017-02-02 | E44: 1 | F44: 2495.53 | G44: 2495.53
A45: 31 | B45: 12986232001 | C45: 2017-02-01 | D45: 2017-02-06 | E45: 5 | F45: 28483.65 | G45: 142418.25
A46: 32 | B46: 12986234002 | C46: 2017-02-01 | D46: 2017-02-01 | E46: 0 | F46: 8533.85 | G46: 0
A47: 33 | B47: 12986254002 | C47: 2017-02-01 | D47: 2017-02-06 | E47: 5 | F47: 2098.6 | G47: 10493
A48: 34 | B48: 12986283002 | C48: 2017-02-01 | D48: 2017-02-01 | E48: 0 | F48: 7060.2 | G48: 0
A49: 35 | B49: 12986286006 | C49: 2017-02-01 | D49: 2017-02-09 | E49: 8 | F49: 248490.88 | G49: 1987927.04
A50: 36 | B50: 12986290001 | C50: 2017-02-01 | D50: 2017-02-01 | E50: 0 | F50: 15289.5 | G50: 0
A51: 37 | B51: 12986299002 | C51: 2017-02-01 | D51: 2017-02-01 | E51: 0 | F51: 14954.65 | G51: 0
A52: 38 | B52: 12986333003 | C52: 2017-02-01 | D52: 2017-02-06 | E52: 5 | F52: 4118.68 | G52: 20593.4
A53: 39 | B53: 12986348001 | C53: 2017-02-01 | D53: 2017-02-14 | E53: 13 | F53: 291.49 | G53: 3789.37
A54: 40 | B54: 12986354001 | C54: 2017-02-01 | D54: 2017-02-01 | E54: 0 | F54: 9635.48 | G54: 0
A55: 41 | B55: 12986355001 | C55: 2017-02-01 | D55: 2017-02-01 | E55: 0 | F55: 7155.15 | G55: 0
A56: 42 | B56: 12986369001 | C56: 2017-02-01 | D56: 2017-02-01 | E56: 0 | F56: 1176.06 | G56: 0
A57: 43 | B57: 13377149010 | C57: 2017-02-01 | D57: 2017-02-01 | E57: 0 | F57: 17088.8 | G57: 0
A58: 44 | B58: 13385883005 | C58: 2017-02-01 | D58: 2017-02-02 | E58: 1 | F58: 5547.89 | G58: 5547.89
A59: 45 | B59: 13668225002 | C59: 2017-02-01 | D59: 2017-02-01 | E59: 0 | F59: 3925.92 | G59: 0
A60: 46 | B60: 13842561002 | C60: 2017-02-01 | D60: 2017-02-01 | E60: 0 | F60: 8329.32 | G60: 0
A61: 47 | B61: 13874221011 | C61: 2017-02-01 | D61: 2017-02-06 | E61: 5 | F61: 26.89 | G61: 134.45
A62: 48 | B62: 13918011002 | C62: 2017-02-01 | D62: 2017-02-01 | E62: 0 | F62: 7964.62 | G62: 0
A63: 49 | B63: 13962617002 | C63: 2017-02-01 | D63: 2017-02-01 | E63: 0 | F63: 717.47 | G63: 0
A64: 50 | B64: 14157623001 | C64: 2017-02-01 | D64: 2017-02-01 | E64: 0 | F64: 24.96 | G64: 0
A65: 51 | B65: 14196923002 | C65: 2017-02-01 | D65: 2017-02-01 | E65: 0 | F65: 8161.85 | G65: 0
A66: 52 | B66: 14218874001 | C66: 2017-02-01 | D66: 2017-02-01 | E66: 0 | F66: 709.7 | G66: 0
A67: 53 | B67: 14437109001 | C67: 2017-02-01 | D67: 2017-02-06 | E67: 5 | F67: 4537.17 | G67: 22685.85
A68: 54 | B68: 14639261001 | C68: 2017-02-01 | D68: 2017-02-01 | E68: 0 | F68: 24251.9 | G68: 0
A69: 55 | B69: 14646199003 | C69: 2017-02-01 | D69: 2017-02-01 | E69: 0 | F69: 65117.14 | G69: 0
A70: 56 | B70: 14714034002 | C70: 2017-02-01 | D70: 2017-02-01 | E70: 0 | F70: 76294.13 | G70: 0
A71: 57 | B71: 14730567001 | C71: 2017-02-01 | D71: 2017-02-09 | E71: 8 | F71: 29.95 | G71: 239.6
A72: 58 | B72: 14973866002 | C72: 2017-02-01 | D72: 2017-02-06 | E72: 5 | F72: 42967.58 | G72: 214837.9
A73: 59 | B73: 15270913001 | C73: 2017-02-01 | D73: 2017-02-02 | E73: 1 | F73: 116.62 | G73: 116.62
A74: 60 | B74: 15318478001 | C74: 2017-02-01 | D74: 2017-02-01 | E74: 0 | F74: 4662.29 | G74: 0
A75: 61 | B75: 15495857002 | C75: 2017-02-01 | D75: 2017-02-06 | E75: 5 | F75: 1059.08 | G75: 5295.4
A76: 62 | B76: 15716480002 | C76: 2017-02-01 | D76: 2017-02-09 | E76: 8 | F76: 813.3 | G76: 6506.4
A77: 63 | B77: 15745313001 | C77: 2017-02-01 | D77: 2017-02-01 | E77: 0 | F77: 31213.47 | G77: 0
A78: 64 | B78: 15767418001 | C78: 2017-02-01 | D78: 2017-02-02 | E78: 1 | F78: 6159.14 | G78: 6159.14
A79: 65 | B79: 15900074001 | C79: 2017-02-01 | D79: 2017-02-02 | E79: =D79-C79 -> 1 | F79: 20288.23 | G79: =F79*E79 -> 20288.23
A80: 66 | B80: 16041050001 | C80: 2017-02-01 | D80: 2017-02-01 | E80: 0 | F80: 2681.91 | G80: 0
A81: =A80+1 -> 67 | B81: 16783564001 | C81: 2017-02-01 | D81: 2017-02-01 | E81: 0 | F81: 3364.55 | G81: 0
A82: 68 | B82: 16792150001 | C82: 2017-02-01 | D82: 2017-02-02 | E82: 1 | F82: 17061.73 | G82: 17061.73
A83: 69 | B83: 16827553001 | C83: 2017-02-01 | D83: 2017-02-01 | E83: 0 | F83: 11180.4 | G83: 0
A84: 70 | B84: 16843482003 | C84: 2017-02-01 | D84: 2017-02-01 | E84: 0 | F84: 4449.4 | G84: 0
A85: 71 | B85: 17272882002 | C85: 2017-02-01 | D85: 2017-02-01 | E85: 0 | F85: 3645.47 | G85: 0
A86: 72 | B86: 18548560002 | C86: 2017-02-01 | D86: 2017-02-01 | E86: 0 | F86: 44406.77 | G86: 0
A87: 73 | B87: 18793786002 | C87: 2017-02-01 | D87: 2017-02-06 | E87: 5 | F87: 65.75 | G87: 328.75
A88: 74 | B88: 18807150001 | C88: 2017-02-01 | D88: 2017-02-01 | E88: 0 | F88: 566.71 | G88: 0
A89: 75 | B89: 18822480001 | C89: 2017-02-01 | D89: 2017-02-02 | E89: 1 | F89: 4025.18 | G89: 4025.18
A90: 76 | B90: 18995444001 | C90: 2017-02-01 | D90: 2017-02-01 | E90: 0 | F90: 7130.34 | G90: 0
A91: 77 | B91: 19032957003 | C91: 2017-02-01 | D91: 2017-02-06 | E91: 5 | F91: 1424.48 | G91: 7122.4
A92: 78 | B92: 19182563001 | C92: 2017-02-01 | D92: 2017-02-01 | E92: 0 | F92: 25561.98 | G92: 0
A93: 79 | B93: 19212937001 | C93: 2017-02-01 | D93: 2017-02-01 | E93: 0 | F93: 33922.84 | G93: 0
A94: 80 | B94: 19283985001 | C94: 2017-02-01 | D94: 2017-02-01 | E94: 0 | F94: 242.59 | G94: 0
A95: 81 | B95: 19293933001 | C95: 2017-02-01 | D95: 2017-02-01 | E95: 0 | F95: 53090.46 | G95: 0
A96: 82 | B96: 19438726001 | C96: 2017-02-01 | D96: 2017-02-06 | E96: 5 | F96: 298.97 | G96: 1494.85
A97: 83 | B97: 19494605002 | C97: 2017-02-01 | D97: 2017-02-01 | E97: 0 | F97: 6411.72 | G97: 0
A98: 84 | B98: 19585931001 | C98: 2017-02-01 | D98: 2017-02-10 | E98: 9 | F98: 19151.3 | G98: 172361.7
A99: 85 | B99: 19619172001 | C99: 2017-02-01 | D99: 2017-02-10 | E99: 9 | F99: 17643.68 | G99: 158793.12
A100: 86 | B100: 19741718001 | C100: 2017-02-01 | D100: 2017-02-01 | E100: 0 | F100: 21142.62 | G100: 0
A101: 87 | B101: 19831353001 | C101: 2017-02-01 | D101: 2017-02-06 | E101: 5 | F101: 14516.53 | G101: 72582.65
A102: 88 | B102: 19845249001 | C102: 2017-02-01 | D102: 2017-02-02 | E102: 1 | F102: 16897.58 | G102: 16897.58
A103: 89 | B103: 19983090002 | C103: 2017-02-01 | D103: 2017-02-01 | E103: 0 | F103: 6941.51 | G103: 0
A104: 90 | B104: 20007562001 | C104: 2017-02-01 | D104: 2017-02-01 | E104: 0 | F104: 38042.23 | G104: 0
A105: 91 | B105: 20010667016 | C105: 2017-02-01 | D105: 2017-02-01 | E105: 0 | F105: 3987.39 | G105: 0
A106: 92 | B106: 20010667015 | C106: 2017-02-01 | D106: 2017-02-02 | E106: 1 | F106: 8503.46 | G106: 8503.46
A107: 93 | B107: 20010667014 | C107: 2017-02-01 | D107: 2017-02-01 | E107: 0 | F107: 4709.81 | G107: 0
A108: 94 | B108: 12986344001 | C108: 2017-02-27 | D108: 2017-03-07 | E108: 8 | F108: 24.96 | G108: 199.68
A109: 95 | B109: 13406993001 | C109: 2017-02-27 | D109: 2017-03-06 | E109: 7 | F109: 16545.42 | G109: 115817.94
A110: 96 | B110: 14874945001 | C110: 2017-02-27 | D110: 2017-03-01 | E110: 2 | F110: 15197.71 | G110: 30395.42
A111: 97 | B111: 10797435004 | C111: 2017-02-28 | D111: 2017-03-01 | E111: 1 | F111: 10786.65 | G111: 10786.65
A112: 98 | B112: 12742978002 | C112: 2017-02-28 | D112: 2017-03-01 | E112: 1 | F112: 3311.88 | G112: 3311.88
A113: 99 | B113: 12986231001 | C113: 2017-02-28 | D113: 2017-03-07 | E113: 7 | F113: 6539.21 | G113: 45774.47
A114: 100 | B114: 12986243001 | C114: 2017-02-28 | D114: 2017-03-07 | E114: 7 | F114: 5002.59 | G114: 35018.13
A115: 101 | B115: 12986245001 | C115: 2017-02-28 | D115: 2017-03-07 | E115: 7 | F115: 3705.21 | G115: 25936.47
A116: 102 | B116: 12986256002 | C116: 2017-02-28 | D116: 2017-03-07 | E116: 7 | F116: 734.28 | G116: 5139.96
A117: 103 | B117: 12986261001 | C117: 2017-02-28 | D117: 2017-03-07 | E117: 7 | F117: 4223.8 | G117: 29566.6
A118: 104 | B118: 12986270001 | C118: 2017-02-28 | D118: 2017-03-06 | E118: 6 | F118: 1173.24 | G118: 7039.44
A119: 105 | B119: 12986280001 | C119: 2017-02-28 | D119: 2017-03-06 | E119: 6 | F119: 2639.35 | G119: 15836.1
A120: 106 | B120: 12986284001 | C120: 2017-02-28 | D120: 2017-03-06 | E120: 6 | F120: 8406.77 | G120: 50440.62
A121: 107 | B121: 12986297001 | C121: 2017-02-28 | D121: 2017-03-06 | E121: 6 | F121: 2759.44 | G121: 16556.64
A122: 108 | B122: 13199467002 | C122: 2017-02-28 | D122: 2017-03-01 | E122: 1 | F122: 4576.84 | G122: 4576.84
A123: 109 | B123: 13623084001 | C123: 2017-02-28 | D123: 2017-03-01 | E123: 1 | F123: 2282.15 | G123: 2282.15
A124: 110 | B124: 14326140002 | C124: 2017-02-28 | D124: 2017-03-01 | E124: 1 | F124: 1005.1 | G124: 1005.1
A125: 111 | B125: 10785576002 | C125: 2017-03-01 | D125: 2017-03-01 | E125: 0 | F125: 1845.27 | G125: 0
A126: 112 | B126: 10798246004 | C126: 2017-03-01 | D126: 2017-03-01 | E126: 0 | F126: 25305.11 | G126: 0
A127: 113 | B127: 10827054002 | C127: 2017-03-01 | D127: 2017-03-02 | E127: 1 | F127: 366.2 | G127: 366.2
A128: 114 | B128: 10862587002 | C128: 2017-03-01 | D128: 2017-03-02 | E128: 1 | F128: 3261.35 | G128: 3261.35
A129: 115 | B129: 12820650002 | C129: 2017-03-01 | D129: 2017-03-01 | E129: 0 | F129: 8014.9 | G129: 0
A130: 116 | B130: 12850260002 | C130: 2017-03-01 | D130: 2017-03-03 | E130: 2 | F130: 124491.7 | G130: 248983.4
A131: 117 | B131: 12857258001 | C131: 2017-03-01 | D131: 2017-03-01 | E131: 0 | F131: 551.21 | G131: 0
A132: 118 | B132: 12857266001 | C132: 2017-03-01 | D132: 2017-03-01 | E132: 0 | F132: 6611.04 | G132: 0
A133: 119 | B133: 12986160001 | C133: 2017-03-01 | D133: 2017-03-02 | E133: 1 | F133: 3173.1 | G133: 3173.1
A134: 120 | B134: 12986167002 | C134: 2017-03-01 | D134: 2017-03-03 | E134: 2 | F134: 526.65 | G134: 1053.3
A135: 121 | B135: 12986178001 | C135: 2017-03-01 | D135: 2017-03-02 | E135: 1 | F135: 2664.61 | G135: 2664.61
A136: 122 | B136: 12986199001 | C136: 2017-03-01 | D136: 2017-03-02 | E136: 1 | F136: 2181.01 | G136: 2181.01
A137: 123 | B137: 12986232001 | C137: 2017-03-01 | D137: 2017-03-01 | E137: 0 | F137: 20207.4 | G137: 0
A138: 124 | B138: 12986234002 | C138: 2017-03-01 | D138: 2017-03-01 | E138: 0 | F138: 6869.55 | G138: 0
A139: 125 | B139: 12986254002 | C139: 2017-03-01 | D139: 2017-03-07 | E139: 6 | F139: 1285.12 | G139: 7710.72
A140: 126 | B140: 12986274001 | C140: 2017-03-01 | D140: 2017-03-16 | E140: 15 | F140: 1790.27 | G140: 26854.05
A141: 127 | B141: 12986283002 | C141: 2017-03-01 | D141: 2017-03-01 | E141: 0 | F141: 5329.95 | G141: 0
A142: 128 | B142: 12986286006 | C142: 2017-03-01 | D142: 2017-03-03 | E142: 2 | F142: 207066.9 | G142: 414133.8
A143: 129 | B143: 12986290001 | C143: 2017-03-01 | D143: 2017-03-01 | E143: =D143-C143 -> 0 | F143: 10793.45 | G143: =F143*E143 -> 0
A144: 130 | B144: 12986299002 | C144: 2017-03-01 | D144: 2017-03-01 | E144: 0 | F144: 12735.45 | G144: 0
A145: =A144+1 -> 131 | B145: 12986333003 | C145: 2017-03-01 | D145: 2017-03-01 | E145: 0 | F145: 3255.71 | G145: 0
A146: 132 | B146: 12986348001 | C146: 2017-03-01 | D146: 2017-03-10 | E146: 9 | F146: 173.57 | G146: 1562.13
A147: 133 | B147: 12986354001 | C147: 2017-03-01 | D147: 2017-03-01 | E147: 0 | F147: 7136.68 | G147: 0
A148: 134 | B148: 12986355001 | C148: 2017-03-01 | D148: 2017-03-13 | E148: 12 | F148: 4681.67 | G148: 56180.04
A149: 135 | B149: 12986369001 | C149: 2017-03-01 | D149: 2017-03-10 | E149: 9 | F149: 1224.94 | G149: 11024.46
A150: 136 | B150: 13377149010 | C150: 2017-03-01 | D150: 2017-03-01 | E150: 0 | F150: 15231.33 | G150: 0
A151: 137 | B151: 13385883005 | C151: 2017-03-01 | D151: 2017-03-01 | E151: 0 | F151: 3739.79 | G151: 0
A152: 138 | B152: 13668225002 | C152: 2017-03-01 | D152: 2017-03-03 | E152: 2 | F152: 1980.13 | G152: 3960.26
A153: 139 | B153: 13842561002 | C153: 2017-03-01 | D153: 2017-03-01 | E153: 0 | F153: 5499.13 | G153: 0
A154: 140 | B154: 13874221011 | C154: 2017-03-01 | D154: 2017-03-02 | E154: 1 | F154: 26.89 | G154: 26.89
A155: 141 | B155: 13918011002 | C155: 2017-03-01 | D155: 2017-03-01 | E155: 0 | F155: 5921.66 | G155: 0
A156: 142 | B156: 13962617002 | C156: 2017-03-01 | D156: 2017-03-03 | E156: 2 | F156: 1043.91 | G156: 2087.82
A157: 143 | B157: 14157623001 | C157: 2017-03-01 | D157: 2017-03-02 | E157: 1 | F157: 24.96 | G157: 24.96
A158: 144 | B158: 14196923002 | C158: 2017-03-01 | D158: 2017-03-01 | E158: 0 | F158: 6587.22 | G158: 0
A159: 145 | B159: 14218874001 | C159: 2017-03-01 | D159: 2017-03-01 | E159: 0 | F159: 482.33 | G159: 0
A160: 146 | B160: 14437109001 | C160: 2017-03-01 | D160: 2017-03-07 | E160: 6 | F160: 3113.91 | G160: 18683.46
A161: 147 | B161: 14639261001 | C161: 2017-03-01 | D161: 2017-03-01 | E161: 0 | F161: 18258.26 | G161: 0
A162: 148 | B162: 14646199003 | C162: 2017-03-01 | D162: 2017-03-01 | E162: 0 | F162: 50872.44 | G162: 0
A163: 149 | B163: 14714034002 | C163: 2017-03-01 | D163: 2017-03-01 | E163: 0 | F163: 58361.38 | G163: 0
A164: 150 | B164: 14730567001 | C164: 2017-03-01 | D164: 2017-03-10 | E164: 9 | F164: 29.95 | G164: 269.55
A165: 151 | B165: 14973866002 | C165: 2017-03-01 | D165: 2017-03-13 | E165: 12 | F165: 42990.28 | G165: 515883.36
A166: 152 | B166: 15270913001 | C166: 2017-03-01 | D166: 2017-03-10 | E166: 9 | F166: 103.93 | G166: 935.37
A167: 153 | B167: 15318478001 | C167: 2017-03-01 | D167: 2017-03-01 | E167: 0 | F167: 3478.97 | G167: 0
A168: 154 | B168: 15495857002 | C168: 2017-03-01 | D168: 2017-03-03 | E168: 2 | F168: 1021.43 | G168: 2042.86
A169: 155 | B169: 15716480002 | C169: 2017-03-01 | D169: 2017-03-13 | E169: 12 | F169: 749.53 | G169: 8994.36
A170: 156 | B170: 15745313001 | C170: 2017-03-01 | D170: 2017-03-01 | E170: 0 | F170: 27725.55 | G170: 0
A171: 157 | B171: 15767418001 | C171: 2017-03-01 | D171: 2017-03-03 | E171: 2 | F171: 4335.64 | G171: 8671.28
A172: 158 | B172: 15900074001 | C172: 2017-03-01 | D172: 2017-03-01 | E172: 0 | F172: 15442.01 | G172: 0
A173: 159 | B173: 16041050001 | C173: 2017-03-01 | D173: 2017-03-01 | E173: 0 | F173: 2001.37 | G173: 0
A174: 160 | B174: 16783564001 | C174: 2017-03-01 | D174: 2017-03-01 | E174: 0 | F174: 1805.19 | G174: 0
A175: 161 | B175: 16792150001 | C175: 2017-03-01 | D175: 2017-03-02 | E175: 1 | F175: 13520.64 | G175: 13520.64
A176: 162 | B176: 16827553001 | C176: 2017-03-01 | D176: 2017-03-01 | E176: 0 | F176: 9693.07 | G176: 0
A177: 163 | B177: 16843482003 | C177: 2017-03-01 | D177: 2017-03-01 | E177: 0 | F177: 3988.22 | G177: 0
A178: 164 | B178: 17272882002 | C178: 2017-03-01 | D178: 2017-03-02 | E178: 1 | F178: 2829.27 | G178: 2829.27
A179: 165 | B179: 18548560002 | C179: 2017-03-01 | D179: 2017-03-01 | E179: 0 | F179: 28390.99 | G179: 0
A180: 166 | B180: 18793786002 | C180: 2017-03-01 | D180: 2017-03-01 | E180: 0 | F180: 85.65 | G180: 0
A181: 167 | B181: 18807150001 | C181: 2017-03-01 | D181: 2017-03-13 | E181: 12 | F181: 903.29 | G181: 10839.48
A182: 168 | B182: 18822480001 | C182: 2017-03-01 | D182: 2017-03-03 | E182: 2 | F182: 1533.35 | G182: 3066.7
A183: 169 | B183: 18995444001 | C183: 2017-03-01 | D183: 2017-03-01 | E183: 0 | F183: 4802.48 | G183: 0
A184: 170 | B184: 19032957003 | C184: 2017-03-01 | D184: 2017-03-13 | E184: 12 | F184: 1126.93 | G184: 13523.16
A185: 171 | B185: 19182563001 | C185: 2017-03-01 | D185: 2017-03-01 | E185: 0 | F185: 24195.5 | G185: 0
A186: 172 | B186: 19212937001 | C186: 2017-03-01 | D186: 2017-03-01 | E186: 0 | F186: 29113.58 | G186: 0
A187: 173 | B187: 19283985001 | C187: 2017-03-01 | D187: 2017-03-01 | E187: 0 | F187: 648.41 | G187: 0
A188: 174 | B188: 19293933001 | C188: 2017-03-01 | D188: 2017-03-01 | E188: 0 | F188: 56278.32 | G188: 0
A189: 175 | B189: 19438726001 | C189: 2017-03-01 | D189: 2017-03-03 | E189: 2 | F189: 196.13 | G189: 392.26
A190: 176 | B190: 19494605002 | C190: 2017-03-01 | D190: 2017-03-16 | E190: 15 | F190: 7112.35 | G190: 106685.25
A191: 177 | B191: 19585931001 | C191: 2017-03-01 | D191: 2017-03-01 | E191: 0 | F191: 16616.37 | G191: 0
A192: 178 | B192: 19619172001 | C192: 2017-03-01 | D192: 2017-03-01 | E192: 0 | F192: 14754.57 | G192: 0
A193: 179 | B193: 19741718001 | C193: 2017-03-01 | D193: 2017-03-01 | E193: 0 | F193: 15251.66 | G193: 0
A194: 180 | B194: 19831353001 | C194: 2017-03-01 | D194: 2017-03-01 | E194: 0 | F194: 11579.7 | G194: 0
A195: 181 | B195: 19845249001 | C195: 2017-03-01 | D195: 2017-03-02 | E195: 1 | F195: 13631.02 | G195: 13631.02
A196: 182 | B196: 19983090002 | C196: 2017-03-01 | D196: 2017-03-01 | E196: 0 | F196: 16213.93 | G196: 0
A197: 183 | B197: 20007562001 | C197: 2017-03-01 | D197: 2017-03-02 | E197: 1 | F197: 26248.68 | G197: 26248.68
A198: 184 | B198: 20010667016 | C198: 2017-03-01 | D198: 2017-03-01 | E198: 0 | F198: 3861.69 | G198: 0
A199: 185 | B199: 20010667015 | C199: 2017-03-01 | D199: 2017-03-02 | E199: 1 | F199: 6752.43 | G199: 6752.43
A200: 186 | B200: 20010667014 | C200: 2017-03-01 | D200: 2017-03-01 | E200: 0 | F200: 3515.6 | G200: 0
A201: 187 | B201: 20100690001 | C201: 2017-03-01 | D201: 2017-03-17 | E201: 16 | F201: 473.09 | G201: 7569.44
A202: 188 | B202: 13406993001 | C202: 2017-03-27 | D202: 2017-04-03 | E202: 7 | F202: 3388.49 | G202: 23719.43
... 938 more rows

Sheet (WP) Sh 5 - payroll
E1: ='(WP) Instructions & Input'!B11 -> Exhibit No.: ________
E2: ='(WP) Instructions & Input'!B12 -> Witness: L. A. Guilbert
F3: ='(WP) Instructions & Input'!B6 -> Schedule 27
F4: Sheet 5
J7: KY PSC Case No. 2021-00183
A8: ='(WP) Instructions & Input'!B2 -> Columbia Gas of Virginia, Inc. | J8: Staff 3-36
A9: ='(WP) Instructions & Input'!B3 -> Analysis of Cash Working Capital Requirement | J9: Attachment B
A10: Payroll Costs
A11: ='(WP) Instructions & Input'!B4 -> TME: December 31, 2017
A12: ='(WP) Instructions & Input'!B9 -> Case No. PUR-2018-00131
F14: Dollar
A15: Line | D15: Payroll | E15: Lead | F15: Lead
A16: No. | B16: Description | C16: Reference | D16: Costs | E16: Days | F16: Days
D17: (1) | E17: (2) | F17: (3=1*2)
D18: $ | F18: $
A20: 1 | B20: Bi-Weekly: | C20: Sheet 5a | D20: ='Sh 5a - bi-pay'!G46 -> 21614640 | E20: =F20/D20 -> 5.880290164 | F20: ='Sh 5a - bi-pay'!H46 -> 127100355
A21: =A20+1 -> 2 | B21: Monthly: | C21: Sheet 5b | D21: ='Sh 5b - month-pay'!F32 -> 8272900 | E21: =F21/D21 -> 14.70353818 | F21: ='Sh 5b - month-pay'!G32 -> 121640901
A23: =A21+1 -> 3 | C23: Total Payroll Costs | D23: =D20+D21 -> 29887540 | E23: =ROUND(F23/D23,2) -> 8.32 | F23: =F20+F21 -> 248741256

Sheet (WP) Sh 13-Money Pool Int.
F1: ='(WP) Instructions & Input'!B11 -> Exhibit No.: ________ | I1: Source: GENACCT\CDC\FINMPL - Finance Money Pool\2017 | Q1: KY PSC Case No. 2021-00183
F2: ='(WP) Instructions & Input'!B12 -> Witness: L. A. Guilbert | Q2: Staff 3-36
G3: ='(WP) Instructions & Input'!B6 -> Schedule 27 | Q3: Attachment B
F4: (Backup) Sheet 13
A7: ='(WP) Instructions & Input'!B2 -> Columbia Gas of Virginia, Inc.
A8: ='Sh 13 - int'!A7:E7 -> Analysis of Cash Working Capital Requirement
A9: Money Pool Interest
A10: ='(WP) Instructions & Input'!B4 -> TME: December 31, 2017
A12: Line | B12: End of | C12: Payment | D12: Midpoint | E12: Lead | F12: Amount | G12: Weighted
A13: No. | B13: Period | C13: Date | D13: of Service | E13: Days | F13: Paid | G13: Tax Dollars
B14: (1) | C14: (2) | D14: (3) | E14: (4)=(1-2+3) | F14: (5) | G14: (6)=4*5)
F15: $
A17: 1 | B17: 2016-12-31 | C17: 2017-01-03 | D17: 15.5 | E17: =C17-B17+D17 -> 18.5 | F17: 79207.89 | G17: =ROUND(E17*F17,0) -> 1465346
A18: =A17+1 -> 2 | B18: 2017-01-31 | C18: 2017-02-01 | D18: 15.5 | E18: 16.5 | F18: 51737.82 | G18: 853674
A19: 3 | B19: 2017-02-28 | C19: 2017-03-01 | D19: 14 | E19: 15 | F19: 24674.03 | G19: 370110
A20: 4 | B20: 2017-03-31 | C20: 2017-04-03 | D20: 15.5 | E20: 18.5 | F20: 13082.69 | G20: 242030
A21: 5 | B21: 2017-04-30 | C21: 2017-05-01 | D21: 15 | E21: 16 | F21: 5618.72 | G21: 89900
A22: 6 | B22: 2017-05-31 | C22: 2017-06-01 | D22: 15.5 | E22: 16.5 | F22: 7928.43 | G22: 130819
A23: 7 | B23: 2017-06-30 | C23: 2017-07-03 | D23: 15 | E23: 18 | F23: 24412.37 | G23: 439423
A24: 8 | B24: 2017-07-31 | C24: 2017-08-01 | D24: 15.5 | E24: 16.5 | F24: 15721.43 | G24: 259404
A25: 9 | B25: 2017-08-31 | C25: 2017-09-01 | D25: 15.5 | E25: 16.5 | F25: 32220.99 | G25: 531646
A26: 10 | B26: 2017-09-30 | C26: 2017-10-02 | D26: 15 | E26: 17 | F26: 47178.35 | G26: 802032
A27: 11 | B27: 2017-10-31 | C27: 2017-11-01 | D27: 15.5 | E27: 16.5 | F27: 41554.64 | G27: 685652
A28: 12 | B28: 2017-11-30 | C28: 2017-12-01 | D28: 15 | E28: 16 | F28: 52203.04 | G28: 835249
A30: =A28+1 -> 13 | E30: =ROUND(G30/F30,2) -> 16.95 | F30: =SUM(F16:F28) -> 395540.4 | G30: =SUM(G15:G28) -> 6705285
A32: Source: Intrasystem non-cash transaction report (Chuck).

Sheet (WP) Customer Utility Taxes
A1: Columbia Gas of Virginia, Inc. | S1: KY PSC Case No. 2021-00183
A2: Analysis of Cash Working Capital Requirement | S2: Staff 3-36
A3: Twelve Months Ended December 31, 2017 | S3: Attachment B
A4: Customer Utility Service Tax
A5: ='(WP) Instructions & Input'!B9 -> Case No. PUR-2018-00131
A7: Paid on: | C7: 2017-02-09 | D7: 2017-03-09 | E7: 2017-04-12 | F7: 2017-05-10 | G7: 2017-06-13 | H7: 2017-07-14 | I7: 2017-08-14 | J7: 2017-09-08 | K7: 2017-10-09 | L7: 2017-11-08 | M7: 2017-12-08 | N7: 2018-01-12 | O7: TOTALS
A8: For Consumption in: | C8: 2017-01-31 | D8: 2017-02-28 | E8: 2017-03-31 | F8: 2017-04-30 | G8: 2017-05-31 | H8: 2017-06-30 | I8: 2017-07-31 | J8: 2017-08-31 | K8: 2017-09-30 | L8: 2017-10-31 | M8: 2017-11-30 | N8: 2017-12-31
A10: Utility Service Tax
A11: ALBEMARLE | B11: COUNTY | C11: 770.38 | D11: 766.26 | E11: 688.98 | F11: 721.35 | G11: 520.84 | H11: 483.74 | I11: 470.71 | J11: 478.48 | K11: 478.41 | L11: 468.32 | M11: 501.28 | N11: 758.09 | O11: =SUM(C11:N11) -> 7106.84
A12: ALLEGHENY | B12: COUNTY | C12: 2395.97 | D12: 2263.12 | E12: 2168.06 | F12: 1933.57 | G12: 1516.71 | H12: 1399.11 | I12: 1475.68 | J12: 1478.57 | K12: 1546.41 | L12: 1539.78 | M12: 1664.97 | N12: 2164.87 | O12: =SUM(C12:N12) -> 21546.82
A13: ALTA VISTA | B13: CITY | C13: 923.1 | D13: 919.45 | E13: 924.36 | F13: 905.5 | G13: 851.72 | H13: 828.15 | I13: 806.45 | J13: 823.2 | K13: 829.05 | L13: 827.9 | M13: 900.6 | N13: 921.95 | O13: 10461.43
A14: AMHERST | B14: COUNTY | C14: 1435.94 | D14: 1398.14 | E14: 1324.11 | F14: 1362.67 | G14: 943.49 | H14: 899.86 | I14: 849.07 | J14: 837.66 | K14: 829.76 | L14: 851.8 | M14: 959.67 | N14: 1204.07 | O14: 12896.24
A15: APPOMATTOX | B15: COUNTY | C15: 0 | D15: 0 | E15: 0 | F15: 0 | G15: 0 | H15: 0 | I15: 0 | J15: 0 | K15: 0 | L15: 0 | M15: 0 | N15: 0 | O15: 0
A16: AUGUSTA | B16: COUNTY | C16: 0 | D16: 0 | E16: 0 | F16: 0 | G16: 0 | H16: 0 | I16: 0 | J16: 0 | K16: 0 | L16: 0 | M16: 0 | N16: 0 | O16: 0
A17: BEDFORD | B17: COUNTY | C17: 2173.63 | D17: 2007.05 | E17: 1964.11 | F17: 1642.07 | G17: 1534.22 | H17: 1453.83 | I17: 1457.82 | J17: 1446.29 | K17: 1416.17 | L17: 1478.49 | M17: 1764.14 | N17: 2092.67 | O17: 20430.49
A18: BOTETOURT | B18: COUNTY | C18: 0 | D18: 0 | E18: 0 | F18: 0 | G18: 0 | H18: 0 | I18: 0 | J18: 0 | K18: 0 | L18: 0 | M18: 0 | N18: 0 | O18: 0
A19: BRIDGEWATER | B19: CITY | C19: 1892.38 | D19: 1784.14 | E19: 1509.73 | F19: 1710.5 | G19: 1274.49 | H19: 1155.29 | I19: 987.59 | J19: 1085.82 | K19: 1159.88 | L19: 1092.82 | M19: 1271.98 | N19: 1553.07 | O19: 16477.69
A20: BROADWAY | B20: CITY | C20: 833.09 | D20: 846.88 | E20: 775.08 | F20: 767.36 | G20: 603.41 | H20: 562.46 | I20: 530.69 | J20: 523.89 | K20: 502.73 | L20: 532.04 | M20: 552.19 | N20: 741.04 | O20: 7770.86
A21: BROOKNEAL | B21: CITY | C21: 0 | D21: 0 | E21: 0 | F21: 0 | G21: 0 | H21: 0 | I21: 0 | J21: 0 | K21: 0 | L21: 0 | M21: 0 | N21: 0 | O21: 0
A22: BRUNSWICK | B22: COUNTY | C22: 94 | D22: 79 | E22: 79 | F22: 94 | G22: 73.66 | H22: 70.56 | I22: 62.8 | J22: 62.5 | K22: 57.8 | L22: 63.71 | M22: 70.25 | N22: 94 | O22: 901.28
A23: BUCHANAN | B23: COUNTY | C23: 0 | D23: 0 | E23: 0 | F23: 0 | G23: 0 | H23: 0 | I23: 0 | J23: 0 | K23: 0 | L23: 0 | M23: 0 | N23: 0 | O23: 0
A24: BUCKINGHAM | B24: COUNTY | C24: 0 | D24: 0 | E24: 0 | F24: 0 | G24: 0 | H24: 0 | I24: 0 | J24: 0 | K24: 0 | L24: 0 | M24: 0 | N24: 0 | O24: =SUM(C24:N24) -> 0
A25: BUENA VISTA | B25: CITY | C25: 7460.67 | D25: 7349.69 | E25: 7224.51 | F25: 6382.12 | G25: 6115.69 | H25: 5949.65 | I25: 6031.05 | J25: 5932.98 | K25: 5831.47 | L25: 6060.27 | M25: 6806.34 | N25: 7366.15 | O25: 78510.59
A26: CAMPBELL | B26: COUNTY | C26: 33 | D26: 30 | E26: 30 | F26: 30 | G26: 29.85 | H26: 29.6 | I26: 29.45 | J26: 29.1 | K26: 29.45 | L26: 29.65 | M26: 29.6 | N26: 29.75 | O26: 359.45
A27: CAROLINE | B27: CITY | C27: 1106.09 | D27: 1058.87 | E27: 1117.62 | F27: 1111.64 | G27: 1099.35 | H27: 1106.92 | I27: 1133.11 | J27: 1117.65 | K27: 1111.18 | L27: 1120.97 | M27: 1161.83 | N27: 1164.78 | O27: 13410.01
A28: CHASE | B28: CITY | C28: 1114.85 | D28: 1119.2 | E28: 1015.01 | F28: 1024.34 | G28: 789.13 | H28: 740.13 | I28: 696.17 | J28: 675.46 | K28: 669.9 | L28: 704.88 | M28: 728.3 | N28: 978.19 | O28: 10255.56
A29: CHATHAM | B29: CITY | C29: 453.52 | D29: 421.95 | E29: 416.36 | F29: 335.52 | G29: 310.25 | H29: 308.14 | I29: 311.33 | J29: 310.83 | K29: 310.24 | L29: 307.31 | M29: 408.66 | N29: 455.46 | O29: 4349.57
A30: CHESAPEAKE | B30: CITY | C30: 72813.78 | D30: 68237.23 | E30: 62958.63 | F30: 57327.02 | G30: 46553.31 | H30: 44881.3 | I30: 44234.89 | J30: 44035.77 | K30: 43469.25 | L30: 44376.85 | M30: 50092.92 | N30: 64961.17 | O30: 643942.12
A31: CHESTERFIELD | B31: COUNTY | C31: 114496.39 | D31: 110791.51 | E31: 108697.2 | F31: 104210.06 | G31: 100605.28 | H31: 100607.58 | I31: 99652.27 | J31: 99419.87 | K31: 100522.61 | L31: 100642.89 | M31: 105262.05 | N31: 114032.31 | O31: 1258940.02
A32: CLIFTON FORGE | B32: CITY | C32: 5086.64 | D32: 5019.66 | E32: 4853.32 | F32: 4652.51 | G32: 3975.99 | H32: 3721.2 | I32: 3530.64 | J32: 3498.78 | K32: 3564.44 | L32: 3625.87 | M32: 4198.38 | N32: 4843.28 | O32: 50570.71
A33: COLONIAL HEIGHTS | B33: CITY | C33: 26275.42 | D33: 23788.71 | E33: 21513.75 | F33: 21350.34 | G33: 17728.51 | H33: 16739.7 | I33: 16336.53 | J33: 16251.45 | K33: 15896.6 | L33: 16301.31 | M33: 17568.21 | N33: 22328.88 | O33: 232079.41
A34: COVINGTON | B34: CITY | C34: 19348.05 | D34: 18829.05 | E34: 15399.77 | F34: 14025.84 | G34: 8169.96 | H34: 5748.2 | I34: 4143.13 | J34: 3931.52 | K34: 4445.71 | L34: 4576.64 | M34: 7377.49 | N34: 15262.96 | O34: 121258.32
A35: CULPEPER TOWN | B35: CITY | C35: 0 | D35: 0 | E35: 0 | F35: 0 | G35: 0 | H35: 0 | I35: 0 | J35: 0 | K35: 0 | L35: 0 | M35: 0 | N35: 0 | O35: 0
A36: CULPEPER CO | B36: COUNTY | C36: 0 | D36: 0 | E36: 0 | F36: 0 | G36: 0 | H36: 0 | I36: 0 | J36: 0 | K36: 0 | L36: 0 | M36: 0 | N36: 0 | O36: 0
A37: DAYTON | B37: CITY | C37: 127.85 | D37: 111.05 | E37: 107.33 | F37: 105.47 | G37: 73.19 | H37: 57.54 | I37: 57.45 | J37: 55.54 | K37: 57.85 | L37: 58.58 | M37: 78.88 | N37: 111.41 | O37: 1002.14
A38: DICKENSON | B38: COUNTY | C38: 0 | D38: 0 | E38: 0 | F38: 0 | G38: 0 | H38: 0 | I38: 0 | J38: 0 | K38: 0 | L38: 0 | M38: 0 | N38: 0 | O38: 0
A39: DINWIDDIE | B39: COUNTY | C39: 1841.94 | D39: 1878.63 | E39: 1779.01 | F39: 1742.62 | G39: 1439.35 | H39: 1359.21 | I39: 1317.01 | J39: 1301.7 | K39: 1290.48 | L39: 1321.49 | M39: 1423.41 | N39: 1742.38 | O39: 18437.23
A40: DUMFRIES | B40: CITY | C40: 2757.6 | D40: 2774.11 | E40: 2719.52 | F40: 2690.28 | G40: 2413.24 | H40: 2342.59 | I40: 2177.62 | J40: 2176.88 | K40: 2171.98 | L40: 2208.53 | M40: 2328.34 | N40: 2718.37 | O40: 29479.06
A41: FAIRFAX | B41: COUNTY | C41: 67776.02 | D41: 63226.3 | E41: 59781.54 | F41: 43993.21 | G41: 30780.02 | H41: 26362.49 | I41: 22478.32 | J41: 22184.41 | K41: 22865.64 | L41: 23254.03 | M41: 42211.21 | N41: 65053.65 | O41: 489966.84
A42: FAUQUIER | B42: COUNTY | C42: 10947.08 | D42: 10405.49 | E42: 10314.93 | F42: 9564.75 | G42: 8884.28 | H42: 8616.23 | I42: 8504.05 | J42: 8509.77 | K42: 8582.52 | L42: 8701.6 | M42: 9575.23 | N42: 10654.96 | O42: 113260.89
A43: FLUVANNA | B43: COUNTY | C43: 0 | D43: 0 | E43: 0 | F43: 0 | G43: 0 | H43: 0 | I43: 0 | J43: 0 | K43: 0 | L43: 0 | M43: 0 | N43: 0
A44: FREDERICKSBURG | B44: CITY | C44: 53259.23 | D44: 48344.07 | E44: 43271.77 | F44: 40037.82 | G44: 30954.78 | H44: 28755.6 | I44: 27172.04 | J44: 26287.57 | K44: 26738.15 | L44: 27732.14 | M44: 31542.46 | N44: 44937.82 | O44: 429033.45
A45: GILES | B45: COUNTY | C45: 0 | D45: 0 | E45: 0 | F45: 0 | G45: 0 | H45: 0 | I45: 0 | J45: 0 | K45: 0 | L45: 0 | M45: 0 | N45: 0 | O45: 0
A46: GLASGLOW | B46: CITY | C46: 0 | D46: 0 | E46: 0 | F46: 0 | G46: 0 | H46: 0 | I46: 0 | J46: 0 | K46: 0 | L46: 0 | M46: 0 | N46: 0 | O46: 0
A47: GOOCHLAND | B47: COUNTY | C47: 2139 | D47: 2161.21 | E47: 2145.75 | F47: 2150.73 | G47: 2139.15 | H47: 2171.94 | I47: 2152.97 | J47: 2140.01 | K47: 2152.77 | L47: 2174.53 | M47: 2202.34 | N47: 2212.72 | O47: 25943.12
A48: GORDONSVILLE | B48: CITY | C48: 332.51 | D48: 336.33 | E48: 339.39 | F48: 341.29 | G48: 326 | H48: 315.16 | I48: 297.98 | J48: 284.86 | K48: 297.14 | L48: 297.66 | M48: 259.75 | N48: 312.08 | O48: 3740.15
A49: GREENE | B49: COUNTY | C49: 0 | D49: 0 | E49: 0 | F49: 0 | G49: 0 | H49: 0 | I49: 0 | J49: 0 | K49: 0 | L49: 0 | M49: 0 | N49: 0 | O49: 0
A50: GREENSVILLE | B50: COUNTY | C50: 34.97 | D50: 34.99 | E50: 34.99 | F50: 34.99 | G50: 34.99 | H50: 34.99 | I50: 34.99 | J50: 34.99 | K50: 34.99 | L50: 34.99 | M50: 35 | N50: 35 | O50: 419.88
A51: HALIFAX COUNTY | B51: COUNTY | C51: 7827.13 | D51: 8312.12 | E51: 7280.3 | F51: 7352.19 | G51: 3935.77 | H51: 5307.38 | I51: 5059.29 | J51: 4853.28 | K51: 5159.13 | L51: 5212.42 | M51: 7148.66 | N51: 8772.27 | O51: 76219.94
A52: HALIFAX CITY | B52: CITY | C52: 2348.63 | D52: 2369.3 | E52: 1969.86 | F52: 2220.16 | G52: 1577.03 | H52: 1735.15 | I52: 1790.54 | J52: 1724.17 | K52: 1759.54 | L52: 1851.43 | M52: 1986.33 | N52: 2147.06 | O52: 23479.2
A53: HARRISONBURG | B53: CITY | C53: 17631.2 | D53: 17414.36 | E53: 16169.56 | F53: 15889.5 | G53: 11891.46 | H53: 10808.69 | I53: 9825.65 | J53: 9665.74 | K53: 9424.79 | L53: 9954.15 | M53: 11214.75 | N53: 15727.52 | O53: 155617.37
A54: HAYMARKET | B54: CITY | C54: 3923.38 | D54: 3655.26 | E54: 3218.74 | F54: 2523.7 | G54: 1973.51 | H54: 2164.41 | I54: 2093.17 | J54: 2129.44 | K54: 1994.72 | L54: 2067.73 | M54: 2769.79 | N54: 3584.53 | O54: 32098.38
A55: HERNDON | B55: CITY | C55: 19158.3 | D55: 18741.66 | E55: 18310.94 | F55: 16626.98 | G55: 15713.32 | H55: 15532.2 | I55: 14990.48 | J55: 15003.45 | K55: 14824.55 | L55: 15203.65 | M55: 17157.32 | N55: 18970.45 | O55: 200233.3
A56: HOPEWELL | B56: CITY | C56: 6544.9 | D56: 6525.96 | E56: 6411.2 | F56: 6410.48 | G56: 6373.33 | H56: 6333.35 | I56: 6188 | J56: 6288.15 | K56: 5716.76 | L56: 6037.64 | M56: 6294.46 | N56: 6447.82 | O56: 75572.05
A57: HURT | B57: CITY | C57: 57 | D57: 57 | E57: 57 | F57: 57 | G57: 56.6 | H57: 54.55 | I57: 54.25 | J57: 53.85 | K57: 54.7 | L57: 56.15 | M57: 57 | N57: 57 | O57: 672.1
A58: IRON GATE | B58: CITY | C58: 0 | D58: 0 | E58: 0 | F58: 0 | G58: 0 | H58: 0 | I58: 0 | J58: 0 | K58: 0 | L58: 0 | M58: 0 | N58: 0 | O58: 0
A59: ISLE OF WIGHT | B59: COUNTY | C59: 9292.78 | D59: 8822.86 | E59: 8529.67 | F59: 7942.37 | G59: 7674.94 | H59: 7739.08 | I59: 7742.08 | J59: 7722.76 | K59: 7629.17 | L59: 7695.98 | M59: 8219.61 | N59: 9105.05 | O59: 98116.35
A60: LAWRENCEVILLE | B60: CITY | C60: 1202.92 | D60: 1262.92 | E60: 1146.88 | F60: 1095.39 | G60: 663.31 | H60: 595.89 | I60: 572.76 | J60: 566.9 | K60: 580.95 | L60: 589.96 | M60: 659.71 | N60: 1073.67 | O60: 10011.26
A61: LEXINGTON | B61: CITY | C61: 11542.76 | D61: 10460.9 | E61: 9912.13 | F61: 8665.03 | G61: 7635.17 | H61: 6885.78 | I61: 6758.06 | J61: 6609.6 | K61: 6925.5 | L61: 7108.96 | M61: 8727.08 | N61: 10625.42 | O61: 101856.39
A62: LOUDOUN | B62: COUNTY | C62: 14064.17 | D62: 13706.64 | E62: 13522.24 | F62: 10066.41 | G62: 8397.87 | H62: 7415.25 | I62: 6624.75 | J62: 6584.07 | K62: 7250.15 | L62: 7591.94 | M62: 13171.06 | N62: 15066.96 | O62: 123461.51
A63: LOUISA | B63: COUNTY | C63: 368.47 | D63: 382.27 | E63: 362.6 | F63: 374.63 | G63: 304.49 | H63: 282.23 | I63: 270.51 | J63: 269.21 | K63: 267.55 | L63: 273.15 | M63: 196.65 | N63: 358.38 | O63: 3710.14
A64: LYNCHBURG | B64: CITY | C64: 101442.15 | D64: 79331.83 | E64: 69069.59 | F64: 52547.42 | G64: 31870.9 | H64: 28717.15 | I64: 25335.62 | J64: 23906.59 | K64: 26025.99 | L64: 28735.86 | M64: 41789.24 | N64: 79818.15 | O64: 588590.49
A65: MADISON | B65: COUNTY | C65: 80.78 | D65: 80.47 | E65: 80.05 | F65: 76.44 | G65: 73.98 | H65: 58.93 | I65: 58.81 | J65: 58.61 | K65: 57.9 | L65: 59.09 | M65: 65.01 | N65: 75.8 | O65: 825.87
A66: MANASSAS | B66: CITY | C66: 44483.78 | D66: 40096.24 | E66: 38269.61 | F66: 33915.22 | G66: 29182.16 | H66: 27353.79 | I66: 26546.84 | J66: 26512.95 | K66: 26187.53 | L66: 26730.12 | M66: 31330.02 | N66: 39915.64 | O66: 390523.9
A67: MANASSAS PARK | B67: CITY | C67: 19778.88 | D67: 16828.72 | E67: 15311.32 | F67: 14524.71 | G67: 10889.08 | H67: 10713.32 | I67: 10436.73 | J67: 10233.44 | K67: 10252.54 | L67: 10330.05 | M67: 11426.46 | N67: 15904.73 | O67: 156629.98
A68: MECKLENBURG | B68: COUNTY | C68: 165.96 | D68: 165 | E68: 159 | F68: 159 | G68: 158.99 | H68: 159 | I68: 159 | J68: 162 | K68: 165 | L68: 165 | M68: 165 | N68: 165 | O68: 1947.95
A69: NARROWS | B69: CITY | C69: 0 | D69: 0 | E69: 0 | F69: 0 | G69: 0 | H69: 0 | I69: 0 | J69: 0 | K69: 0 | L69: 0 | M69: 0 | N69: 0 | O69: 0
A70: ORANGE | B70: COUNTY | C70: 0 | D70: 0 | E70: 0 | F70: 0 | G70: 0 | H70: 0 | I70: 0 | J70: 0 | K70: 0 | L70: 0 | M70: 0 | N70: 0 | O70: 0
A71: PAGE | B71: COUNTY | C71: 0 | D71: 0 | E71: 0 | F71: 0 | G71: 0 | H71: 0 | I71: 0 | J71: 0 | K71: 0 | L71: 0 | M71: 0 | N71: 0 | O71: 0
A72: PEARISBURG | B72: CITY | C72: 929.16 | D72: 932.99 | E72: 944.9 | F72: 931.6 | G72: 913.76 | H72: 884.57 | I72: 866.45 | J72: 850.34 | K72: 848.76 | L72: 893.63 | M72: 928.8 | N72: 933.56 | O72: 10858.52
A73: PETERSBURG | B73: CITY | C73: 21876.46 | D73: 22027.57 | E73: 21555.96 | F73: 21399.81 | G73: 20049.37 | H73: 19175.36 | I73: 18035 | J73: 17972.22 | K73: 17615.1 | L73: 18454.4 | M73: 19355.41 | N73: 20966.75 | O73: 238483.41
A74: PITTSYLVANIA | B74: COUNTY | C74: 914.03 | D74: 884.56 | E74: 861.55 | F74: 620.29 | G74: 562.76 | H74: 548.8 | I74: 561.44 | J74: 546.04 | K74: 531.67 | L74: 562.02 | M74: 810.52 | N74: 910.49 | O74: 8314.17
A75: PORTSMOUTH | B75: CITY | C75: 141290.12 | D75: 130766.81 | E75: 117507.19 | F75: 113929.57 | G75: 93014.89 | H75: 89687.2 | I75: 86553.86 | J75: 85394.67 | K75: 84842.83 | L75: 87560.23 | M75: 93886.7 | N75: 119491.74 | O75: 1243925.81
A76: POWHATAN | B76: COUNTY | C76: 0 | D76: 0 | E76: 0 | F76: 0 | G76: 0 | H76: 0 | I76: 0 | J76: 0 | K76: 0 | L76: 0 | M76: 0 | N76: 0 | O76: 0
A77: PRINCE GEORGE | B77: COUNTY | C77: 7124.52 | D77: 7058.9 | E77: 6648.77 | F77: 6300.45 | G77: 5029.97 | H77: 5170.68 | I77: 4793.46 | J77: 4714.46 | K77: 4711.75 | L77: 4872.89 | M77: 5300.53 | N77: 6829.33 | O77: 68555.71
A78: PRINCE WILLIAM | B78: COUNTY | C78: 82444.83 | D78: 78677 | E78: 77466.57 | F78: 67872.74 | G78: 59840.75 | H78: 56228.02 | I78: 52186.89 | J78: 50514.41 | K78: 50973.13 | L78: 53693.02 | M78: 66326.81 | N78: 78645.36 | O78: 774869.53
A79: QUANTICO | B79: CITY | C79: 936.41 | D79: 912.16 | E79: 902.94 | F79: 910.17 | G79: 850.29 | H79: 842.36 | I79: 815.17 | J79: 831.73 | K79: 805.49 | L79: 829.54 | M79: 802.28 | N79: 856.94 | O79: =SUM(C79:N79) -> 10295.48
A80: RICH CREEK | B80: COUNTY | C80: 310.61 | D80: 312.61 | E80: 316.61 | F80: 311.59 | G80: 304.46 | H80: 293.84 | I80: 290.8 | J80: 291.6 | K80: 285.42 | L80: 299.5 | M80: 322.17 | N80: 318 | O80: 3657.21
A81: ROCKBRIDGE | B81: COUNTY | C81: 2448.14 | D81: 2467.55 | E81: 2402.1 | F81: 2393.19 | G81: 2236.43 | H81: 2157.65 | I81: 2131.47 | J81: 2090.71 | K81: 2101.22 | L81: 2243.2 | M81: 2466.99 | N81: 2595.42 | O81: 27734.07
A82: ROCKINGHAM | B82: COUNTY | C82: 2515.07 | D82: 2281.36 | E82: 2176.22 | F82: 2188.87 | G82: 1663.3 | H82: 1456.99 | I82: 1315.65 | J82: 1279.48 | K82: 1333.32 | L82: 1427.83 | M82: 1591.44 | N82: 2182.76 | O82: 21412.29
A83: SCOTTSVILLE | B83: CITY | C83: 541.28 | D83: 428.09 | E83: 356.75 | F83: 362.06 | G83: 292.34 | H83: 247.75 | I83: 232.05 | J83: 232.11 | K83: 229.91 | L83: 210.68 | M83: 256.22 | N83: 427.38 | O83: 3816.62
A84: SHENANDOAH | B84: COUNTY | C84: 0 | D84: 0 | E84: 0 | F84: 0 | G84: 0 | H84: 0 | I84: 0 | J84: 0 | K84: 0 | L84: 0 | M84: 0 | N84: 0 | O84: 0
A85: SMITHFIELD | B85: CITY | C85: 5988.84 | D85: 5256.44 | E85: 4837.97 | F85: 4299.35 | G85: 3719.42 | H85: 3596.11 | I85: 3644.35 | J85: 3526.09 | K85: 3535.67 | L85: 3600 | M85: 4006.85 | N85: 5267.83 | O85: 51278.92
A86: SOUTH BOSTON | B86: CITY | C86: 0 | D86: 0 | E86: 0 | F86: 0 | G86: 0 | H86: 0 | I86: 0 | J86: 0 | K86: 0 | L86: 0 | M86: 0 | N86: 0 | O86: 0
A87: SOUTH HILL | B87: CITY | C87: 3408.25 | D87: 3549.98 | E87: 3192.66 | F87: 3308.33 | G87: 2639.71 | H87: 2461.72 | I87: 2395.08 | J87: 2345.66 | K87: 2329.15 | L87: 2376 | M87: 2490.3 | N87: 3213.24 | O87: 33710.08
A88: SOUTHAMPTON | B88: COUNTY | C88: 0 | D88: 0 | E88: 0 | F88: 0 | G88: 0 | H88: 0 | I88: 0 | J88: 0 | K88: 0 | L88: 0 | M88: 0 | N88: 0 | O88: 0
A89: SPOTSYLVANIA | B89: COUNTY | C89: 57461.75 | D89: 56567.96 | E89: 53119.95 | F89: 51106.47 | G89: 43667.51 | H89: 42612.13 | I89: 41613.43 | J89: 41424.2 | K89: 41388.09 | L89: 41763.8 | M89: 44519.22 | N89: 53201.41 | O89: 568445.92
A90: STAFFORD | B90: COUNTY | C90: 83187.88 | D90: 76640.94 | E90: 73818.7 | F90: 61829.82 | G90: 42652.72 | H90: 39284.81 | I90: 37223.59 | J90: 36527.64 | K90: 37029.93 | L90: 38171.04 | M90: 55694.65 | N90: 79390.94 | O90: 661452.66
A91: STANARDSVILLE | B91: CITY | C91: 0 | D91: 0 | E91: 0 | F91: 0 | G91: 0 | H91: 0 | I91: 0 | J91: 0 | K91: 0 | L91: 0 | M91: 0 | N91: 0 | O91: 0
A92: STAUNTON | B92: CITY | C92: 27173.79 | D92: 26408.71 | E92: 25818.87 | F92: 24654.05 | G92: 21821.04 | H92: 20071.27 | I92: 19465.97 | J92: 19342.05 | K92: 18938.22 | L92: 19869.33 | M92: 22769.12 | N92: 26102.22 | O92: 272434.64
A93: SUFFOLK | B93: CITY | C93: 38834.75 | D93: 37331.89 | E93: 35490.63 | F93: 30163.41 | G93: 27567.26 | H93: 27244.54 | I93: 26646.01 | J93: 26266.61 | K93: 26785.09 | L93: 26910.6 | M93: 30590.05 | N93: 39204.73 | O93: 373035.57
A94: SURRY | B94: CITY | O94: 0
A95: SUSSEX | B95: COUNTY | C95: 0 | D95: 0 | E95: 0 | F95: 0 | G95: 0 | H95: 0 | I95: 0 | J95: 0 | K95: 0 | L95: 0 | M95: 0 | N95: 0 | O95: 0
A96: TIMBERVILLE | B96: CITY | C96: 622.77 | D96: 641.47 | E96: 594.97 | F96: 607.28 | G96: 510.97 | H96: 494.76 | I96: 480.52 | J96: 489.3 | K96: 483.97 | L96: 482.76 | M96: 487.68 | N96: 579.24 | O96: 6475.69
A97: WARREN | B97: COUNTY | C97: 18 | D97: 18 | E97: 18 | F97: 18 | G97: 18 | H97: 15 | I97: 10.98 | J97: 11.64 | K97: 9.3 | L97: 11.86 | M97: 13.4 | N97: 18 | O97: 180.18
A98: WARRENTON | B98: CITY | C98: 16859.14 | D98: 16436.98 | E98: 16085.85 | F98: 15101.94 | G98: 12820.98 | H98: 12154.89 | I98: 12020.06 | J98: 11893.8 | K98: 11681.41 | L98: 12050.72 | M98: 13921.98 | N98: 16286.25 | O98: 167314
A99: WAVERLY | B99: CITY | C99: 0 | D99: 0 | E99: 0 | F99: 0 | G99: 0 | H99: 0 | I99: 0 | J99: 0 | K99: 0 | L99: 0 | M99: 0 | N99: 0 | O99: 0
A100: WAYNESBORO | B100: CITY | C100: 35018.8 | D100: 34289.53 | E100: 33389.86 | F100: 24754.49 | G100: 19941.42 | H100: 15692.32 | I100: 14908.38 | J100: 14561.87 | K100: 15798.48 | L100: 17474.21 | M100: 29461.17 | N100: 34208.41 | O100: 289498.94
C101: =SUM(C11:C100) -> 1187740.89 | D101: =SUM(D11:D100) -> 1108087.1 | E101: =SUM(E11:E100) -> 1040441.54 | F101: =SUM(F11:F100) -> 933757.68 | G101: =SUM(G11:G100) -> 768230.12 | H101: =SUM(H11:H100) -> 728878.09 | I101: 697628.96 | J101: 688366.39 | K101: 693396.96 | L101: 713805.59 | M101: 849355.92 | N101: 1088176.53 | O101: 10497865.77 | P101: =SUM(C101:N101) -> 10497865.77
P102: Check
A103: Note:
A104: Utility Service Taxes are due by the 20th of the month.

Sheet (WP)Acct. Payable 107 @12-31-17
A1: Columbia Gas of Virginia, Inc. | M1: KY PSC Case No. 2021-00183
A2: Accounts Payable Selected Records | M2: Staff 3-36
A3: As of December, 2017 | M3: Attachment B
F5: Date | G5: Due
A6: Vendor | B6: Voucher | C6: Cost Element | D6: Activity | E6: Invoice Date | F6: Entered | G6: Date | H6: Amount
H7: $
A8: 2000003821 | B8: C2597324 | C8: 2017 | D8: 00915 | E8: 2017-12-19 | F8: 2017-12-29 | G8: 2018-01-18 | H8: 7394.53
A9: 2000006467 | B9: C2588761 | C9: 2004 | D9: 00909 | E9: 2017-12-05 | F9: 2017-12-12 | G9: 2018-01-04 | H9: 23.57
B10: C2588761 | C10: 9235 | D10: 00909 | E10: 2017-12-05 | F10: 2017-12-12 | G10: 2018-01-04 | H10: 1115.74
A11: 2000012180 | B11: C2595688 | C11: 2017 | D11: 10080 | E11: 2017-12-08 | F11: 2017-12-28 | G11: 2018-01-07 | H11: 526.5
A12: 2000014521 | B12: C2590143 | C12: 3006 | D12: 00557 | E12: 2017-12-07 | F12: 2017-12-18 | G12: 2018-01-06 | H12: 748
B13: C2593889 | C13: 3011 | D13: 00557 | E13: 2017-12-07 | F13: 2017-12-29 | G13: 2018-01-06 | H13: 51.84
B14: C2593889 | C14: 3011 | D14: 00587 | E14: 2017-12-07 | F14: 2017-12-29 | G14: 2018-01-06 | H14: 51.84
B15: C2593889 | C15: 3011 | D15: 00583 | E15: 2017-12-07 | F15: 2017-12-29 | G15: 2018-01-06 | H15: 56.16
B16: C2593889 | C16: 3011 | D16: 00561 | E16: 2017-12-07 | F16: 2017-12-29 | G16: 2018-01-06 | H16: 51.84
B17: C2593889 | C17: 3011 | D17: 00557 | E17: 2017-12-07 | F17: 2017-12-29 | G17: 2018-01-06 | H17: 51.84
B18: C2594253 | C18: 3006 | D18: 00557 | E18: 2017-12-21 | F18: 2017-12-19 | G18: 2018-01-20 | H18: 1246
A19: 2000025248 | B19: 5C409517 | C19: 3087 | D19: 00563 | E19: 2017-12-04 | F19: 2017-12-07 | G19: 2018-01-03 | H19: 1447.98
B20: 5C409917 | C20: 3086 | D20: 00555 | E20: 2017-12-04 | F20: 2017-12-07 | G20: 2018-01-03 | H20: 1233
B21: 5C410917 | C21: 3086 | D21: 00555 | E21: 2017-12-05 | F21: 2017-12-07 | G21: 2018-01-04 | H21: 3422.53
B22: 5C411017 | C22: 3086 | D22: 00555 | E22: 2017-12-06 | F22: 2017-12-07 | G22: 2018-01-05 | H22: 1346.68
B23: 5C411817 | C23: 3086 | D23: 00555 | E23: 2017-12-04 | F23: 2017-12-07 | G23: 2018-01-03 | H23: 1596.3
B24: 5C412017 | C24: 3087 | D24: 00563 | E24: 2017-12-05 | F24: 2017-12-07 | G24: 2018-01-04 | H24: 172
B25: 5C412117 | C25: 3087 | D25: 00563 | E25: 2017-12-05 | F25: 2017-12-07 | G25: 2018-01-04 | H25: 2388.01
B26: 5C412717 | C26: 3087 | D26: 00563 | E26: 2017-12-04 | F26: 2017-12-07 | G26: 2018-01-03 | H26: 1713.17
B27: 5C413117 | C27: 3087 | D27: 00563 | E27: 2017-12-05 | F27: 2017-12-07 | G27: 2018-01-04 | H27: 1671.58
B28: 5C413517 | C28: 3087 | D28: 00563 | E28: 2017-12-04 | F28: 2017-12-07 | G28: 2018-01-03 | H28: 1502.33
B29: 5C413717 | C29: 3087 | D29: 00565 | E29: 2017-12-05 | F29: 2017-12-07 | G29: 2018-01-04 | H29: 3166.54
B30: 5C414717 | C30: 3087 | D30: 00563 | E30: 2017-12-04 | F30: 2017-12-07 | G30: 2018-01-03 | H30: 2087.34
B31: 5C414817 | C31: 3087 | D31: 00565 | E31: 2017-12-04 | F31: 2017-12-07 | G31: 2018-01-03 | H31: 3494.25
B32: 5C415017 | C32: 3087 | D32: 00565 | E32: 2017-12-05 | F32: 2017-12-07 | G32: 2018-01-04 | H32: 1951.91
B33: 5C415217 | C33: 3087 | D33: 00563 | E33: 2017-12-05 | F33: 2017-12-07 | G33: 2018-01-04 | H33: 2394.09
B34: 5C415517 | C34: 3087 | D34: 00563 | E34: 2017-12-04 | F34: 2017-12-07 | G34: 2018-01-03 | H34: 2313.33
B35: 5C415717 | C35: 3087 | D35: 00563 | E35: 2017-12-04 | F35: 2017-12-07 | G35: 2018-01-03 | H35: 735.81
B36: 5C415817 | C36: 3087 | D36: 00563 | E36: 2017-12-06 | F36: 2017-12-07 | G36: 2018-01-05 | H36: 1513.2
B37: 5C416017 | C37: 3087 | D37: 00563 | E37: 2017-12-04 | F37: 2017-12-07 | G37: 2018-01-03 | H37: 613.17
B38: 5C417217 | C38: 3087 | D38: 00563 | E38: 2017-12-05 | F38: 2017-12-07 | G38: 2018-01-04 | H38: 212.8
B39: 5C417317 | C39: 3087 | D39: 00565 | E39: 2017-12-04 | F39: 2017-12-07 | G39: 2018-01-03 | H39: 735.81
B40: 5C417417 | C40: 3087 | D40: 00563 | E40: 2017-12-06 | F40: 2017-12-07 | G40: 2018-01-05 | H40: 1447.98
B41: 5C417717 | C41: 3087 | D41: 00563 | E41: 2017-12-05 | F41: 2017-12-07 | G41: 2018-01-04 | H41: 1832.93
B42: 5C417917 | C42: 3087 | D42: 00563 | E42: 2017-12-06 | F42: 2017-12-07 | G42: 2018-01-05 | H42: 1491.46
B43: 5C418117 | C43: 3087 | D43: 00565 | E43: 2017-12-05 | F43: 2017-12-07 | G43: 2018-01-04 | H43: 1330.25
B44: 5C418217 | C44: 3087 | D44: 00565 | E44: 2017-12-05 | F44: 2017-12-07 | G44: 2018-01-04 | H44: 798.15
B45: 5C418317 | C45: 3087 | D45: 00565 | E45: 2017-12-05 | F45: 2017-12-07 | G45: 2018-01-04 | H45: 1356.57
B46: 5C418417 | C46: 3087 | D46: 00565 | E46: 2017-12-05 | F46: 2017-12-07 | G46: 2018-01-04 | H46: 1356.57
B47: 5C418517 | C47: 3087 | D47: 00565 | E47: 2017-12-04 | F47: 2017-12-07 | G47: 2018-01-03 | H47: 2686.34
B48: 5C418617 | C48: 3087 | D48: 00565 | E48: 2017-12-05 | F48: 2017-12-07 | G48: 2018-01-04 | H48: 1596.3
B49: 5C418717 | C49: 3087 | D49: 00563 | E49: 2017-12-04 | F49: 2017-12-07 | G49: 2018-01-03 | H49: 1080.67
B50: 5C419817 | C50: 3086 | D50: 00561 | E50: 2017-12-06 | F50: 2017-12-07 | G50: 2018-01-05 | H50: 1088.45
B51: 5C526317 | C51: 3086 | D51: 00561 | E51: 2017-12-07 | F51: 2017-12-10 | G51: 2018-01-06 | H51: 2848.67
B52: 5C526417 | C52: 3086 | D52: 00561 | E52: 2017-12-06 | F52: 2017-12-10 | G52: 2018-01-05 | H52: 2474.5
B53: 5C526517 | C53: 3087 | D53: 00563 | E53: 2017-12-07 | F53: 2017-12-10 | G53: 2018-01-06 | H53: 2366.69
B54: 5C772217 | C54: 3086 | D54: 00555 | E54: 2017-12-04 | F54: 2017-12-11 | G54: 2018-01-03 | H54: 3121.7
B55: 5C772317 | C55: 3086 | D55: 00555 | E55: 2017-12-05 | F55: 2017-12-11 | G55: 2018-01-04 | H55: 2128.4
B56: 5C772517 | C56: 3086 | D56: 00555 | E56: 2017-12-05 | F56: 2017-12-11 | G56: 2018-01-04 | H56: 3496.98
B57: 5C772617 | C57: 3086 | D57: 00555 | E57: 2017-12-06 | F57: 2017-12-11 | G57: 2018-01-05 | H57: 16405.74
B58: 5C772717 | C58: 3087 | D58: 00563 | E58: 2017-12-06 | F58: 2017-12-11 | G58: 2018-01-05 | H58: 1330.95
B59: 5C772817 | C59: 3087 | D59: 00563 | E59: 2017-12-07 | F59: 2017-12-11 | G59: 2018-01-06 | H59: 2960.93
B60: 5C772917 | C60: 3087 | D60: 00563 | E60: 2017-12-06 | F60: 2017-12-11 | G60: 2018-01-05 | H60: 2307.26
B61: 5C773317 | C61: 3087 | D61: 00565 | E61: 2017-12-07 | F61: 2017-12-11 | G61: 2018-01-06 | H61: 2054.74
B62: 5C773717 | C62: 3086 | D62: 00559 | E62: 2017-12-08 | F62: 2017-12-11 | G62: 2018-01-07 | H62: 1382.44
B63: 5C774017 | C63: 3086 | D63: 00559 | E63: 2017-12-07 | F63: 2017-12-11 | G63: 2018-01-06 | H63: 951.23
B64: 5C774917 | C64: 3094 | D64: 00583 | E64: 2017-12-04 | F64: 2017-12-11 | G64: 2018-01-03 | H64: 3427.8
B65: 5C775017 | C65: 3086 | D65: 00559 | E65: 2017-12-05 | F65: 2017-12-11 | G65: 2018-01-04 | H65: 2516.87
B66: 5C775117 | C66: 3086 | D66: 00559 | E66: 2017-12-06 | F66: 2017-12-11 | G66: 2018-01-05 | H66: 1889.98
B67: 5C775217 | C67: 3087 | D67: 00563 | E67: 2017-12-05 | F67: 2017-12-11 | G67: 2018-01-04 | H67: 1306.71
B68: 5C775717 | C68: 3087 | D68: 00563 | E68: 2017-12-04 | F68: 2017-12-11 | G68: 2018-01-03 | H68: 372.28
B69: 5C775817 | C69: 3087 | D69: 00563 | E69: 2017-12-05 | F69: 2017-12-11 | G69: 2018-01-04 | H69: 1162.07
B70: 5C776217 | C70: 3087 | D70: 00563 | E70: 2017-12-04 | F70: 2017-12-11 | G70: 2018-01-03 | H70: 2363.18
B71: 5C776317 | C71: 3087 | D71: 00563 | E71: 2017-12-04 | F71: 2017-12-11 | G71: 2018-01-03 | H71: 858.44
B72: 5C776417 | C72: 3087 | D72: 00563 | E72: 2017-12-06 | F72: 2017-12-11 | G72: 2018-01-05 | H72: 1713.17
B73: 5C776517 | C73: 3087 | D73: 00563 | E73: 2017-12-06 | F73: 2017-12-11 | G73: 2018-01-05 | H73: 1522.23
B74: 5C776617 | C74: 3087 | D74: 00563 | E74: 2017-12-07 | F74: 2017-12-11 | G74: 2018-01-06 | H74: 1752.29
B75: 5C776717 | C75: 3087 | D75: 00563 | E75: 2017-12-07 | F75: 2017-12-11 | G75: 2018-01-06 | H75: 2519.3
B76: 5C776817 | C76: 3087 | D76: 00563 | E76: 2017-12-06 | F76: 2017-12-11 | G76: 2018-01-05 | H76: 1799.17
B77: 5C777217 | C77: 3087 | D77: 00563 | E77: 2017-12-07 | F77: 2017-12-11 | G77: 2018-01-06 | H77: 1787.57
B78: 5C777617 | C78: 3087 | D78: 00563 | E78: 2017-12-08 | F78: 2017-12-11 | G78: 2018-01-07 | H78: 1526.68
B79: 5C777717 | C79: 3087 | D79: 00563 | E79: 2017-12-07 | F79: 2017-12-11 | G79: 2018-01-06 | H79: 1447.98
B80: 5C777817 | C80: 3087 | D80: 00565 | E80: 2017-12-04 | F80: 2017-12-11 | G80: 2018-01-03 | H80: 1088.45
B81: 5C778517 | C81: 3087 | D81: 00565 | E81: 2017-12-06 | F81: 2017-12-11 | G81: 2018-01-05 | H81: 907.93
B82: 5C778617 | C82: 3087 | D82: 00563 | E82: 2017-12-08 | F82: 2017-12-11 | G82: 2018-01-07 | H82: 1660.93
B83: 5C778717 | C83: 3087 | D83: 00565 | E83: 2017-12-07 | F83: 2017-12-11 | G83: 2018-01-06 | H83: 2603.1
B84: 5C778817 | C84: 3087 | D84: 00565 | E84: 2017-12-06 | F84: 2017-12-11 | G84: 2018-01-05 | H84: 2522.64
B85: 5C779017 | C85: 3087 | D85: 00563 | E85: 2017-12-05 | F85: 2017-12-11 | G85: 2018-01-04 | H85: 439.66
B86: 5C779117 | C86: 3087 | D86: 00563 | E86: 2017-12-08 | F86: 2017-12-11 | G86: 2018-01-07 | H86: 3744.87
B87: 5C779217 | C87: 3087 | D87: 00563 | E87: 2017-12-08 | F87: 2017-12-11 | G87: 2018-01-07 | H87: 3779.33
B88: 5C779317 | C88: 3087 | D88: 00563 | E88: 2017-12-08 | F88: 2017-12-11 | G88: 2018-01-07 | H88: 3733.33
B89: 5C779417 | C89: 3087 | D89: 00563 | E89: 2017-12-08 | F89: 2017-12-11 | G89: 2018-01-07 | H89: 4139.49
B90: 5C779517 | C90: 3087 | D90: 00563 | E90: 2017-12-04 | F90: 2017-12-11 | G90: 2018-01-03 | H90: 1347.36
B91: 5C779717 | C91: 3086 | D91: 00555 | E91: 2017-12-04 | F91: 2017-12-11 | G91: 2018-01-03 | H91: 4842.62
B92: 5C779917 | C92: 3086 | D92: 00557 | E92: 2017-12-05 | F92: 2017-12-11 | G92: 2018-01-04 | H92: 2128.4
B93: 5C780117 | C93: 3086 | D93: 00555 | E93: 2017-12-05 | F93: 2017-12-11 | G93: 2018-01-04 | H93: 6374.79
B94: 5C780217 | C94: 3086 | D94: 00555 | E94: 2017-12-06 | F94: 2017-12-11 | G94: 2018-01-05 | H94: 6560.04
B95: 5C780317 | C95: 3086 | D95: 00555 | E95: 2017-12-07 | F95: 2017-12-11 | G95: 2018-01-06 | H95: 3566.54
B96: 5C780517 | C96: 3087 | D96: 00565 | E96: 2017-12-04 | F96: 2017-12-11 | G96: 2018-01-03 | H96: 93.68
B97: 5C780717 | C97: 3086 | D97: 00555 | E97: 2017-12-05 | F97: 2017-12-11 | G97: 2018-01-04 | H97: 612.42
B98: 5C780817 | C98: 3086 | D98: 00555 | E98: 2017-12-08 | F98: 2017-12-11 | G98: 2018-01-07 | H98: 1414.98
B99: 5C781017 | C99: 3086 | D99: 00561 | E99: 2017-12-06 | F99: 2017-12-11 | G99: 2018-01-05 | H99: 8661.6
B100: 5C781117 | C100: 3080 | D100: 00575 | E100: 2017-12-05 | F100: 2017-12-11 | G100: 2018-01-04 | H100: 2793.52
B101: 5C781217 | C101: 3080 | D101: 00575 | E101: 2017-12-06 | F101: 2017-12-11 | G101: 2018-01-05 | H101: 1064.2
B102: 5C781417 | C102: 3087 | D102: 00565 | E102: 2017-12-04 | F102: 2017-12-11 | G102: 2018-01-03 | H102: 93.68
B103: 5C781917 | C103: 3087 | D103: 00563 | E103: 2017-12-07 | F103: 2017-12-11 | G103: 2018-01-06 | H103: 1447.98
B104: 5C883017 | C104: 3087 | D104: 00563 | E104: 2017-12-05 | F104: 2017-12-12 | G104: 2018-01-04 | H104: 412.9
B105: 5C883117 | C105: 3086 | D105: 00555 | E105: 2017-12-08 | F105: 2017-12-12 | G105: 2018-01-07 | H105: 4737.66
B106: 5C883217 | C106: 3086 | D106: 00555 | E106: 2017-12-05 | F106: 2017-12-12 | G106: 2018-01-04 | H106: 2261.42
B107: 5C883317 | C107: 3086 | D107: 00555 | E107: 2017-12-06 | F107: 2017-12-12 | G107: 2018-01-05 | H107: 2394.45
B108: 5C883417 | C108: 3086 | D108: 00555 | E108: 2017-12-07 | F108: 2017-12-12 | G108: 2018-01-06 | H108: 2527.47
B109: 5C883517 | C109: 3086 | D109: 00555 | E109: 2017-12-08 | F109: 2017-12-12 | G109: 2018-01-07 | H109: 2394.45
B110: 5C883617 | C110: 3094 | D110: 00573 | E110: 2017-12-07 | F110: 2017-12-12 | G110: 2018-01-06 | H110: 2128.4
B111: 5C883717 | C111: 3094 | D111: 00573 | E111: 2017-12-08 | F111: 2017-12-12 | G111: 2018-01-07 | H111: 1596.3
B112: 5C883817 | C112: 3087 | D112: 00563 | E112: 2017-12-06 | F112: 2017-12-12 | G112: 2018-01-05 | H112: 2566.33
B113: 5C883917 | C113: 3086 | D113: 00555 | E113: 2017-12-08 | F113: 2017-12-12 | G113: 2018-01-07 | H113: 2592
B114: 5C884017 | C114: 3087 | D114: 00563 | E114: 2017-12-11 | F114: 2017-12-12 | G114: 2018-01-10 | H114: 2547.58
B115: 5C884117 | C115: 3087 | D115: 00563 | E115: 2017-12-06 | F115: 2017-12-12 | G115: 2018-01-05 | H115: 903.44
B116: 5C884217 | C116: 3087 | D116: 00563 | E116: 2017-12-11 | F116: 2017-12-12 | G116: 2018-01-10 | H116: 1660.93
B117: 5C884317 | C117: 3086 | D117: 00555 | E117: 2017-12-07 | F117: 2017-12-12 | G117: 2018-01-06 | H117: 1772.67
B118: 5C884417 | C118: 3087 | D118: 00563 | E118: 2017-12-07 | F118: 2017-12-12 | G118: 2018-01-06 | H118: 1231.63
B119: 5C884517 | C119: 3087 | D119: 00563 | E119: 2017-12-07 | F119: 2017-12-12 | G119: 2018-01-06 | H119: 1231.63
B120: 5C884617 | C120: 3087 | D120: 00563 | E120: 2017-12-07 | F120: 2017-12-12 | G120: 2018-01-06 | H120: 1231.63
B121: 5C884717 | C121: 3087 | D121: 00563 | E121: 2017-12-07 | F121: 2017-12-12 | G121: 2018-01-06 | H121: 1231.63
B122: 5C884817 | C122: 3087 | D122: 00563 | E122: 2017-12-07 | F122: 2017-12-12 | G122: 2018-01-06 | H122: 1231.63
B123: 5C884917 | C123: 3087 | D123: 00563 | E123: 2017-12-07 | F123: 2017-12-12 | G123: 2018-01-06 | H123: 1231.63
B124: 5C885017 | C124: 3087 | D124: 00563 | E124: 2017-12-07 | F124: 2017-12-12 | G124: 2018-01-06 | H124: 1231.63
B125: 5C885217 | C125: 3087 | D125: 00563 | E125: 2017-12-07 | F125: 2017-12-12 | G125: 2018-01-06 | H125: 1231.63
B126: 5C885317 | C126: 3087 | D126: 00563 | E126: 2017-12-07 | F126: 2017-12-12 | G126: 2018-01-06 | H126: 1231.63
B127: 5C885417 | C127: 3087 | D127: 00563 | E127: 2017-12-07 | F127: 2017-12-12 | G127: 2018-01-06 | H127: 1231.63
B128: 5C885517 | C128: 3087 | D128: 00565 | E128: 2017-12-05 | F128: 2017-12-12 | G128: 2018-01-04 | H128: 2765.88
B129: 5C885617 | C129: 3087 | D129: 00563 | E129: 2017-12-08 | F129: 2017-12-12 | G129: 2018-01-07 | H129: 1702.37
B130: 5C885717 | C130: 3087 | D130: 00563 | E130: 2017-12-04 | F130: 2017-12-12 | G130: 2018-01-03 | H130: 893.84
B131: 5C885817 | C131: 3087 | D131: 00563 | E131: 2017-12-11 | F131: 2017-12-12 | G131: 2018-01-10 | H131: 948.98
B132: 5C885917 | C132: 3087 | D132: 00563 | E132: 2017-12-07 | F132: 2017-12-12 | G132: 2018-01-06 | H132: 2219.35
B133: 5C886017 | C133: 3087 | D133: 00563 | E133: 2017-12-11 | F133: 2017-12-12 | G133: 2018-01-10 | H133: 604.98
B134: 5C886117 | C134: 3087 | D134: 00563 | E134: 2017-12-04 | F134: 2017-12-12 | G134: 2018-01-03 | H134: 1139.11
B135: 5C886217 | C135: 3087 | D135: 00563 | E135: 2017-12-07 | F135: 2017-12-12 | G135: 2018-01-06 | H135: 1447.98
B136: 5C886317 | C136: 3087 | D136: 00563 | E136: 2017-12-08 | F136: 2017-12-12 | G136: 2018-01-07 | H136: 1080.67
B137: 5C886417 | C137: 3087 | D137: 00563 | E137: 2017-12-08 | F137: 2017-12-12 | G137: 2018-01-07 | H137: 1080.67
B138: 5C886517 | C138: 3087 | D138: 00563 | E138: 2017-12-05 | F138: 2017-12-12 | G138: 2018-01-04 | H138: 648.57
B139: 5C886617 | C139: 3087 | D139: 00563 | E139: 2017-12-06 | F139: 2017-12-12 | G139: 2018-01-05 | H139: 1393.98
B140: 5C886717 | C140: 3087 | D140: 00565 | E140: 2017-12-05 | F140: 2017-12-12 | G140: 2018-01-04 | H140: 1408.59
B141: 5C886817 | C141: 3087 | D141: 00563 | E141: 2017-12-07 | F141: 2017-12-12 | G141: 2018-01-06 | H141: 869.63
B142: 5C886917 | C142: 3087 | D142: 00563 | E142: 2017-12-08 | F142: 2017-12-12 | G142: 2018-01-07 | H142: 1080.67
B143: 5CA39917 | C143: 3087 | D143: 00563 | E143: 2017-12-11 | F143: 2017-12-13 | G143: 2018-01-10 | H143: 2036.12
B144: 5CA40017 | C144: 3087 | D144: 00565 | E144: 2017-12-05 | F144: 2017-12-13 | G144: 2018-01-04 | H144: 870.76
B145: 5CA40117 | C145: 3086 | D145: 00555 | E145: 2017-12-11 | F145: 2017-12-13 | G145: 2018-01-10 | H145: 1959.21
B146: 5CA40217 | C146: 3086 | D146: 00561 | E146: 2017-12-07 | F146: 2017-12-13 | G146: 2018-01-06 | H146: 7355.6
B147: 5CA40317 | C147: 3087 | D147: 00563 | E147: 2017-12-08 | F147: 2017-12-13 | G147: 2018-01-07 | H147: 1080.67
B148: 5CA40417 | C148: 3087 | D148: 00565 | E148: 2017-12-11 | F148: 2017-12-13 | G148: 2018-01-10 | H148: 1881.3
B149: 5CA40517 | C149: 3087 | D149: 00565 | E149: 2017-12-11 | F149: 2017-12-13 | G149: 2018-01-10 | H149: 198.59
B150: 5CB39017 | C150: 3087 | D150: 00563 | E150: 2017-12-05 | F150: 2017-12-15 | G150: 2018-01-04 | H150: 398.58
B151: 5CB39117 | C151: 3087 | D151: 00563 | E151: 2017-12-07 | F151: 2017-12-15 | G151: 2018-01-06 | H151: 2094.03
B152: 5CB39217 | C152: 3086 | D152: 00555 | E152: 2017-12-12 | F152: 2017-12-15 | G152: 2018-01-11 | H152: 1330.25
B153: 5CB39317 | C153: 3086 | D153: 00555 | E153: 2017-12-11 | F153: 2017-12-15 | G153: 2018-01-10 | H153: 2527.47
B154: 5CB39417 | C154: 3087 | D154: 00563 | E154: 2017-12-11 | F154: 2017-12-15 | G154: 2018-01-10 | H154: 1080.67
B155: 5CB39517 | C155: 3087 | D155: 00563 | E155: 2017-12-08 | F155: 2017-12-15 | G155: 2018-01-07 | H155: 1846.02
B156: 5CB39617 | C156: 3087 | D156: 00563 | E156: 2017-12-08 | F156: 2017-12-15 | G156: 2018-01-07 | H156: 1447.98
B157: 5CB39717 | C157: 3087 | D157: 00563 | E157: 2017-12-08 | F157: 2017-12-15 | G157: 2018-01-07 | H157: 1080.67
B158: 5CB39817 | C158: 3087 | D158: 00563 | E158: 2017-12-11 | F158: 2017-12-15 | G158: 2018-01-10 | H158: 1080.67
B159: 5CB39917 | C159: 3087 | D159: 00563 | E159: 2017-12-08 | F159: 2017-12-15 | G159: 2018-01-07 | H159: 1080.67
B160: 5CC47817 | C160: 3087 | D160: 00563 | E160: 2017-12-06 | F160: 2017-12-17 | G160: 2018-01-05 | H160: 490.54
B161: 5CC49017 | C161: 3086 | D161: 00561 | E161: 2017-12-08 | F161: 2017-12-17 | G161: 2018-01-07 | H161: 532.1
B162: 5CC49117 | C162: 3086 | D162: 00555 | E162: 2017-12-13 | F162: 2017-12-17 | G162: 2018-01-12 | H162: 1103.71
B163: 5CC49217 | C163: 3086 | D163: 00555 | E163: 2017-12-11 | F163: 2017-12-17 | G163: 2018-01-10 | H163: 5470.98
B164: 5CC49317 | C164: 3086 | D164: 00555 | E164: 2017-12-12 | F164: 2017-12-17 | G164: 2018-01-11 | H164: 4399.85
B165: 5CC49417 | C165: 3086 | D165: 00555 | E165: 2017-12-13 | F165: 2017-12-17 | G165: 2018-01-12 | H165: 4521
B166: 5CC49517 | C166: 3086 | D166: 00555 | E166: 2017-12-14 | F166: 2017-12-17 | G166: 2018-01-13 | H166: 3078.1
B167: 5CC49617 | C167: 3087 | D167: 00563 | E167: 2017-12-08 | F167: 2017-12-17 | G167: 2018-01-07 | H167: 1447.98
